Workbook

Sheet New Listings
A1: 2004-08-01 | B1: 2004-09-01 | C1: 2004-10-01 | D1: 2004-11-01 | E1: 2004-12-01 | F1: 2005-01-01 | G1: 2005-02-01 | H1: 2005-03-01 | I1: 2005-04-01 | J1: 2005-05-01 | K1: 2005-06-01 | L1: 2005-07-01 | M1: 2005-08-01 | N1: 2005-09-01 | O1: 2005-10-01 | P1: 2005-11-01 | Q1: 2005-12-01 | R1: 2006-01-01 | S1: 2006-02-01 | T1: 2006-03-01 | U1: 2006-04-01 | V1: 2006-05-01 | W1: 2006-06-01 | X1: 2006-07-01 | Y1: 2006-08-01 | Z1: 2006-09-01 | AA1: 2006-10-01 | AB1: 2006-11-01 | AC1: 2006-12-01 | AD1: 2007-01-01 | AE1: 2007-02-01 | AF1: 2007-03-01 | AG1: 2007-04-01 | AH1: 2007-05-01 | AI1: 2007-06-01 | AJ1: 2007-07-01 | AK1: 2007-08-01 | AL1: 2007-09-01 | AM1: 2007-10-01 | AN1: 2007-11-01 | AO1: 2007-12-01 | AP1: 2008-01-01 | AQ1: 2008-02-01 | AR1: 2008-03-01 | AS1: 2008-04-01 | AT1: 2008-05-01 | AU1: 2008-06-01 | AV1: 2008-07-01 | AW1: 2008-08-01 | AX1: 2008-09-01 | AY1: 2008-10-01 | AZ1: 2008-11-01 | BA1: 2008-12-01 | BB1: 2009-01-01 | BC1: 2009-02-01 | BD1: 2009-03-01 | BE1: 2009-04-01 | BF1: 2009-05-01 | BG1: 2009-06-01 | BH1: 2009-07-01 | BI1: 2009-08-01 | BJ1: 2009-09-01 | BK1: 2009-10-01 | BL1: 2009-11-01 | BM1: 2009-12-01 | BN1: 2010-01-01 | BO1: 2010-02-01 | BP1: 2010-03-01 | BQ1: 2010-04-01 | BR1: 2010-05-01 | BS1: 2010-06-01 | BT1: 2010-07-01 | BU1: 2010-08-01 | BV1: 2010-09-01 | BW1: 2010-10-01 | BX1: 2010-11-01 | BY1: 2010-12-01 | BZ1: 2011-01-01 | CA1: 2011-02-01 | CB1: 2011-03-01 | CC1: 2011-04-01 | CD1: 2011-05-01 | CE1: 2011-06-01 | CF1: 2011-07-01 | CG1: 2011-08-01 | CH1: 2011-09-01 | CI1: 2011-10-01 | CJ1: 2011-11-01 | CK1: 2011-12-01 | CL1: 2012-01-01 | CM1: 2012-02-01 | CN1: 2012-03-01 | CO1: 2012-04-01 | CP1: 2012-05-01 | CQ1: 2012-06-01 | CR1: 2012-07-01 | CS1: 2012-08-01 | CT1: 2012-09-01 | CU1: 2012-10-01 | CV1: 2012-11-01 | CW1: 2012-12-01 | CX1: 2013-01-01 | CY1: 2013-02-01 | CZ1: 2013-03-01 | DA1: 2013-04-01 | DB1: 2013-05-01 | DC1: 2013-06-01 | DD1: 2013-07-01 | DE1: 2013-08-01 | DF1: 2013-09-01 | DG1: 2013-10-01 | DH1: 2013-11-01 | DI1: 2013-12-01 | DJ1: 2014-01-01 | DK1: 2014-02-01 | DL1: 2014-03-01 | DM1: 2014-04-01 | DN1: 2014-05-01 | DO1: 2014-06-01 | DP1: 2014-07-01 | DQ1: 2014-08-01 | DR1: 2014-09-01 | DS1: 2014-10-01 | DT1: 2014-11-01 | DU1: 2014-12-01 | DV1: 2015-01-01 | DW1: 2015-02-01 | DX1: 2015-03-01 | DY1: 2015-04-01 | DZ1: 2015-05-01 | EA1: 2015-06-01 | EB1: 2015-07-01 | EC1: 2015-08-01 | ED1: 2015-09-01 | EE1: 2015-10-01 | EF1: 2015-11-01 | EG1: 2015-12-01 | EH1: 2016-01-01 | EI1: 2016-02-01 | EJ1: 2016-03-01 | EK1: 2016-04-01 | EL1: 2016-05-01 | EM1: 2016-06-01 | EN1: 2016-07-01 | EO1: 2016-08-01 | EP1: 2016-09-01 | EQ1: 2016-10-01 | ER1: 2016-11-01 | ES1: 2016-12-01 | ET1: 2017-01-01 | EU1: 2017-02-01 | EV1: 2017-03-01 | EW1: 2017-04-01 | EX1: 2017-05-01 | EY1: 2017-06-01 | EZ1: 2017-07-01 | FA1: 2017-08-01 | FB1: 2017-09-01 | FC1: 2017-10-01 | FD1: 2017-11-01 | FE1: 2017-12-01 | FF1: 2018-01-01 | FG1: 2018-02-01 | FH1: 2018-03-01 | FI1: 2018-04-01 | FJ1: 2018-05-01 | FK1: 2018-06-01 | FL1: 2018-07-01 | FM1: 2018-08-01 | FN1: 2018-09-01 | FO1: 2018-10-01 | FP1: 2018-11-01 | FQ1: 2018-12-01 | FR1: 2019-01-01 | FS1: 2019-02-01 | FT1: 2019-03-01 | FU1: 2019-04-01 | FV1: 2019-05-01 | FW1: 2019-06-01 | FX1: 2019-07-01 | FY1: 2019-08-01 | FZ1: 2019-09-01 | GA1: 2019-10-01 | GB1: 2019-11-01 | GC1: 2019-12-01 | GD1: 2020-01-01 | GE1: 2020-02-01 | GF1: 2020-03-01 | GG1: 2020-04-01 | GH1: 2020-05-01 | GI1: 2020-06-01 | GJ1: 2020-07-01 | GK1: 2020-08-01 | GL1: 2020-09-01 | GM1: 2020-10-01 | GN1: 2020-11-01 | GO1: 2020-12-01 | GP1: 2021-01-01 | GQ1: 2021-02-01 | GR1: 2021-03-01 | GS1: 2021-04-01 | GT1: 2021-05-01 | GU1: 2021-06-01 | GV1: 2021-07-01 | GW1: 2021-08-01 | GX1: 2021-09-01 | GY1: 2021-10-01 | GZ1: 2021-11-01 | HA1: 2021-12-01 | HB1: 2022-01-01 | HC1: 2022-02-01 | HD1: 2022-03-01 | HE1: 2022-04-01 | HF1: 2022-05-01 | HG1: 2022-06-01 | HH1: 2022-07-01 | HI1: 2022-08-01 | HJ1: 2022-09-01 | HK1: 2022-10-01 | HL1: 2022-11-01 | HM1: 2022-12-01 | HN1: 2023-01-01 | HO1: 2023-02-01 | HP1: 2023-03-01 | HQ1: 2023-04-01 | HR1: 2023-05-01 | HS1: 2023-06-01 | HT1: 2023-07-01 | HU1: 2023-08-01 | HV1: 2023-09-01 | HW1: 2023-10-01 | HX1: 2023-11-01 | HY1: 2023-12-01 | HZ1: 2024-01-01 | IA1: 2024-02-01 | IB1: 2024-03-01 | IC1: 2024-04-01
A2: ='Raw Data'!P3 -> 233 | B2: ='Raw Data'!Q3 -> 303 | C2: ='Raw Data'!R3 -> 282 | D2: ='Raw Data'!S3 -> 296 | E2: ='Raw Data'!T3 -> 196 | F2: ='Raw Data'!U3 -> 328 | G2: ='Raw Data'!V3 -> 367 | H2: ='Raw Data'!W3 -> 411 | I2: ='Raw Data'!X3 -> 451 | J2: ='Raw Data'!Y3 -> 385 | K2: ='Raw Data'!Z3 -> 424 | L2: ='Raw Data'!AA3 -> 474 | M2: ='Raw Data'!AB3 -> 591 | N2: ='Raw Data'!AC3 -> 560 | O2: ='Raw Data'!AD3 -> 618 | P2: ='Raw Data'!AE3 -> 631 | Q2: ='Raw Data'!AF3 -> 480 | R2: ='Raw Data'!AG3 -> 637 | S2: ='Raw Data'!AH3 -> 721 | T2: ='Raw Data'!AI3 -> 833 | U2: ='Raw Data'!AJ3 -> 809 | V2: ='Raw Data'!AK3 -> 792 | W2: ='Raw Data'!AL3 -> 659 | X2: ='Raw Data'!AM3 -> 549 | Y2: ='Raw Data'!AN3 -> 573 | Z2: ='Raw Data'!AO3 -> 567 | AA2: ='Raw Data'!AP3 -> 502 | AB2: ='Raw Data'!AQ3 -> 453 | AC2: ='Raw Data'!AR3 -> 333 | AD2: ='Raw Data'!AS3 -> 670 | AE2: ='Raw Data'!AT3 -> 639 | AF2: ='Raw Data'!AU3 -> 744 | AG2: ='Raw Data'!AV3 -> 678 | AH2: ='Raw Data'!AW3 -> 637 | AI2: ='Raw Data'!AX3 -> 510 | AJ2: ='Raw Data'!AY3 -> 537 | AK2: ='Raw Data'!AZ3 -> 569 | AL2: ='Raw Data'!BA3 -> 492 | AM2: ='Raw Data'!BB3 -> 544 | AN2: ='Raw Data'!BC3 -> 479 | AO2: ='Raw Data'!BD3 -> 314 | AP2: ='Raw Data'!BE3 -> 571 | AQ2: ='Raw Data'!BF3 -> 579 | AR2: ='Raw Data'!BG3 -> 592 | AS2: ='Raw Data'!BH3 -> 467 | AT2: ='Raw Data'!BI3 -> 426 | AU2: ='Raw Data'!BJ3 -> 466 | AV2: ='Raw Data'!BK3 -> 424 | AW2: ='Raw Data'!BL3 -> 458 | AX2: ='Raw Data'!BM3 -> 498 | AY2: ='Raw Data'!BN3 -> 442 | AZ2: ='Raw Data'!BO3 -> 341 | BA2: ='Raw Data'!BP3 -> 249 | BB2: ='Raw Data'!BQ3 -> 497 | BC2: ='Raw Data'!BR3 -> 497 | BD2: ='Raw Data'!BS3 -> 584 | BE2: ='Raw Data'!BT3 -> 445 | BF2: ='Raw Data'!BU3 -> 499 | BG2: ='Raw Data'!BV3 -> 484 | BH2: ='Raw Data'!BW3 -> 435 | BI2: ='Raw Data'!BX3 -> 414 | BJ2: ='Raw Data'!BY3 -> 448 | BK2: ='Raw Data'!BZ3 -> 401 | BL2: ='Raw Data'!CA3 -> 308 | BM2: ='Raw Data'!CB3 -> 233 | BN2: ='Raw Data'!CC3 -> 361 | BO2: ='Raw Data'!CD3 -> 424 | BP2: ='Raw Data'!CE3 -> 573 | BQ2: ='Raw Data'!CF3 -> 516 | BR2: ='Raw Data'!CG3 -> 398 | BS2: ='Raw Data'!CH3 -> 400 | BT2: ='Raw Data'!CI3 -> 324 | BU2: ='Raw Data'!CJ3 -> 369 | BV2: ='Raw Data'!CK3 -> 339 | BW2: ='Raw Data'!CL3 -> 298 | BX2: ='Raw Data'!CM3 -> 300 | BY2: ='Raw Data'!CN3 -> 198 | BZ2: ='Raw Data'!CO3 -> 340 | CA2: ='Raw Data'!CP3 -> 364 | CB2: ='Raw Data'!CQ3 -> 470 | CC2: ='Raw Data'!CR3 -> 365 | CD2: ='Raw Data'!CS3 -> 353 | CE2: ='Raw Data'!CT3 -> 342 | CF2: ='Raw Data'!CU3 -> 282 | CG2: ='Raw Data'!CV3 -> 252 | CH2: ='Raw Data'!CW3 -> 264 | CI2: ='Raw Data'!CX3 -> 398 | CJ2: ='Raw Data'!CY3 -> 340 | CK2: ='Raw Data'!CZ3 -> 268 | CL2: ='Raw Data'!DA3 -> 361 | CM2: ='Raw Data'!DB3 -> 467 | CN2: ='Raw Data'!DC3 -> 477 | CO2: ='Raw Data'!DD3 -> 441 | CP2: ='Raw Data'!DE3 -> 381 | CQ2: ='Raw Data'!DF3 -> 324 | CR2: ='Raw Data'!DG3 -> 349 | CS2: ='Raw Data'!DH3 -> 346 | CT2: ='Raw Data'!DI3 -> 328 | CU2: ='Raw Data'!DJ3 -> 342 | CV2: ='Raw Data'!DK3 -> 268 | CW2: ='Raw Data'!DL3 -> 215 | CX2: ='Raw Data'!DM3 -> 416 | CY2: ='Raw Data'!DN3 -> 337 | CZ2: ='Raw Data'!DO3 -> 435 | DA2: ='Raw Data'!DP3 -> 465 | DB2: ='Raw Data'!DQ3 -> 388 | DC2: ='Raw Data'!DR3 -> 351 | DD2: ='Raw Data'!DS3 -> 353 | DE2: ='Raw Data'!DT3 -> 377 | DF2: ='Raw Data'!DU3 -> 342 | DG2: ='Raw Data'!DV3 -> 425 | DH2: ='Raw Data'!DW3 -> 347 | DI2: ='Raw Data'!DX3 -> 213 | DJ2: ='Raw Data'!DY3 -> 373 | DK2: ='Raw Data'!DZ3 -> 378 | DL2: ='Raw Data'!EA3 -> 514 | DM2: ='Raw Data'!EB3 -> 455 | DN2: ='Raw Data'!EC3 -> 437 | DO2: ='Raw Data'!ED3 -> 382 | DP2: ='Raw Data'!EE3 -> 368 | DQ2: ='Raw Data'!EF3 -> 360 | DR2: ='Raw Data'!EG3 -> 361 | DS2: ='Raw Data'!EH3 -> 331 | DT2: ='Raw Data'!EI3 -> 276 | DU2: ='Raw Data'!EJ3 -> 198 | DV2: ='Raw Data'!EK3 -> 394 | DW2: ='Raw Data'!EL3 -> 378 | DX2: ='Raw Data'!EM3 -> 464 | DY2: ='Raw Data'!EN3 -> 458 | DZ2: ='Raw Data'!EO3 -> 419 | EA2: ='Raw Data'!EP3 -> 359 | EB2: ='Raw Data'!EQ3 -> 344 | EC2: ='Raw Data'!ER3 -> 326 | ED2: ='Raw Data'!ES3 -> 418 | EE2: ='Raw Data'!ET3 -> 331 | EF2: ='Raw Data'!EU3 -> 296 | EG2: ='Raw Data'!EV3 -> 245 | EH2: ='Raw Data'!EW3 -> 326 | EI2: ='Raw Data'!EX3 -> 394 | EJ2: ='Raw Data'!EY3 -> 440 | EK2: ='Raw Data'!EZ3 -> 449 | EL2: ='Raw Data'!FA3 -> 335 | EM2: ='Raw Data'!FB3 -> 384 | EN2: ='Raw Data'!FC3 -> 305 | EO2: ='Raw Data'!FD3 -> 304 | EP2: ='Raw Data'!FE3 -> 367 | EQ2: ='Raw Data'!FF3 -> 256 | ER2: ='Raw Data'!FG3 -> 270 | ES2: ='Raw Data'!FH3 -> 213 | ET2: ='Raw Data'!FI3 -> 343 | EU2: ='Raw Data'!FJ3 -> 358 | EV2: ='Raw Data'!FK3 -> 471 | EW2: ='Raw Data'!FL3 -> 366 | EX2: ='Raw Data'!FM3 -> 397 | EY2: ='Raw Data'!FN3 -> 325 | EZ2: ='Raw Data'!FO3 -> 329 | FA2: ='Raw Data'!FP3 -> 347 | FB2: ='Raw Data'!FQ3 -> 310 | FC2: ='Raw Data'!FR3 -> 366 | FD2: ='Raw Data'!FS3 -> 275 | FE2: ='Raw Data'!FT3 -> 204 | FF2: ='Raw Data'!FU3 -> 283 | FG2: ='Raw Data'!FV3 -> 354 | FH2: ='Raw Data'!FW3 -> 457 | FI2: ='Raw Data'!FX3 -> 390 | FJ2: ='Raw Data'!FY3 -> 429 | FK2: ='Raw Data'!FZ3 -> 368 | FL2: ='Raw Data'!GA3 -> 356 | FM2: ='Raw Data'!GB3 -> 405 | FN2: ='Raw Data'!GC3 -> 269 | FO2: ='Raw Data'!GD3 -> 404 | FP2: ='Raw Data'!GE3 -> 320 | FQ2: ='Raw Data'!GF3 -> 224 | FR2: ='Raw Data'!GG3 -> 409 | FS2: ='Raw Data'!GH3 -> 433 | FT2: ='Raw Data'!GI3 -> 564 | FU2: ='Raw Data'!GJ3 -> 479 | FV2: ='Raw Data'!GK3 -> 397 | FW2: ='Raw Data'!GL3 -> 321 | FX2: ='Raw Data'!GM3 -> 339 | FY2: ='Raw Data'!GN3 -> 385 | FZ2: ='Raw Data'!GO3 -> 321 | GA2: ='Raw Data'!GP3 -> 431 | GB2: ='Raw Data'!GQ3 -> 335 | GC2: ='Raw Data'!GR3 -> 214 | GD2: ='Raw Data'!GS3 -> 401 | GE2: ='Raw Data'!GT3 -> 423 | GF2: ='Raw Data'!GU3 -> 384 | GG2: ='Raw Data'!GV3 -> 151 | GH2: ='Raw Data'!GW3 -> 387 | GI2: ='Raw Data'!GX3 -> 418 | GJ2: ='Raw Data'!GY3 -> 448 | GK2: ='Raw Data'!GZ3 -> 411 | GL2: ='Raw Data'!HA3 -> 482 | GM2: ='Raw Data'!HB3 -> 429 | GN2: ='Raw Data'!HC3 -> 346 | GO2: ='Raw Data'!HD3 -> 254 | GP2: ='Raw Data'!HE3 -> 357 | GQ2: ='Raw Data'!HF3 -> 411 | GR2: ='Raw Data'!HG3 -> 478 | GS2: ='Raw Data'!HH3 -> 524 | GT2: ='Raw Data'!HI3 -> 488 | GU2: ='Raw Data'!HJ3 -> 395 | GV2: ='Raw Data'!HK3 -> 485 | GW2: ='Raw Data'!HL3 -> 413 | GX2: ='Raw Data'!HM3 -> 373 | GY2: ='Raw Data'!HN3 -> 342 | GZ2: ='Raw Data'!HO3 -> 289 | HA2: ='Raw Data'!HP3 -> 217 | HB2: ='Raw Data'!HQ3 -> 321 | HC2: ='Raw Data'!HR3 -> 321 | HD2: ='Raw Data'!HS3 -> 440 | HE2: ='Raw Data'!HT3 -> 426 | HF2: ='Raw Data'!HU3 -> 415 | HG2: ='Raw Data'!HV3 -> 437 | HH2: ='Raw Data'!HW3 -> 367 | HI2: ='Raw Data'!HX3 -> 317 | HJ2: ='Raw Data'!HY3 -> 258 | HK2: ='Raw Data'!HZ3 -> 234 | HL2: ='Raw Data'!IA3 -> 229 | HM2: ='Raw Data'!IB3 -> 151 | HN2: ='Raw Data'!IC3 -> 212 | HO2: ='Raw Data'!ID3 -> 255 | HP2: ='Raw Data'!IE3 -> 275 | HQ2: ='Raw Data'!IF3 -> 264 | HR2: ='Raw Data'!IG3 -> 285 | HS2: ='Raw Data'!IH3 -> 267 | HT2: ='Raw Data'!II3 -> 312 | HU2: ='Raw Data'!IJ3 -> 303 | HV2: ='Raw Data'!IK3 -> 272 | HW2: ='Raw Data'!IL3 -> 258 | HX2: ='Raw Data'!IM3 -> 230 | HY2: ='Raw Data'!IN3 -> 170 | HZ2: ='Raw Data'!IO3 -> 0 | IA2: ='Raw Data'!IP3 -> 0 | IB2: ='Raw Data'!IQ3 -> 0 | IC2: ='Raw Data'!IR3 -> 0
HN7: Jan | HO7: Feb | HP7: Mar | HQ7: Apr | HR7: May | HS7: Jun | HT7: Jul | HU7: Aug | HV7: Sep | HW7: Oct | HX7: Nov | HY7: Dec
HM8: 2020 | HN8: =SUM(GD2) -> 401 | HO8: =SUM(GE2) -> 423 | HP8: 384 | HQ8: 151 | HR8: 387 | HS8: 418 | HT8: 448 | HU8: 411 | HV8: 482 | HW8: 429 | HX8: 346 | HY8: 254
HM9: 2021 | HN9: =SUM(GP2) -> 357 | HO9: =SUM(GQ2) -> 411 | HP9: 478 | HQ9: 524 | HR9: 488 | HS9: 395 | HT9: 485 | HU9: 413 | HV9: 373 | HW9: 342 | HX9: 289 | HY9: 217
HM10: 2022 | HN10: =SUM(HB2) -> 321 | HO10: =SUM(HC2) -> 321 | HP10: 440 | HQ10: 426 | HR10: 415 | HS10: 437 | HT10: 367 | HU10: 317 | HV10: 258 | HW10: 234 | HX10: 229 | HY10: 151
HM11: 2023 | HN11: =SUM(HN2) -> 212 | HO11: =SUM(HO2) -> 255 | HP11: 275 | HQ11: 264 | HR11: 285 | HS11: 267 | HT11: 312 | HU11: 303 | HV11: 272 | HW11: 258 | HX11: 230 | HY11: 170
HS25: New Listings
HS26: Month / Year | HT26: Count | HU26: %Chg
HS27: 2023 | HT27: =SUM(HN11:HY11) -> 3103 | HU27: =(HT27-HT28)/HT28 -> -0.2076098059
HS28: 2022 | HT28: =SUM(HN10:HY10) -> 3916 | HU28: =(HT28-HT29)/HT29 -> -0.179379715
HS29: 2021 | HT29: =SUM(HN9:HY9) -> 4772 | HU29: =(HT29-HT30)/HT30 -> 0.05249228055
HS30: 2020 | HT30: =SUM(HN8:HY8) -> 4534

Sheet YOY New Inventory
A1: Total Inventory
B2: Jan | C2: Feb | D2: Mar | E2: Apr | F2: May | G2: Jun | H2: July | I2: Aug | J2: Sep | K2: Oct | L2: Nov | M2: Dec
A3: 2012 | B3: ='Raw Data'!DA34 -> 2893 | C3: ='Raw Data'!DB34 -> 3076 | D3: ='Raw Data'!DC34 -> 3152 | E3: ='Raw Data'!DD34 -> 3191 | F3: ='Raw Data'!DE34 -> 3240 | G3: ='Raw Data'!DF34 -> 3145 | H3: ='Raw Data'!DG34 -> 3153 | I3: ='Raw Data'!DH34 -> 3073 | J3: ='Raw Data'!DI34 -> 3069 | K3: ='Raw Data'!DJ34 -> 3068 | L3: ='Raw Data'!DK34 -> 3016 | M3: ='Raw Data'!DL34 -> 2736
A4: 2013 | B4: ='Raw Data'!DM34 -> 2852 | C4: ='Raw Data'!DN34 -> 2919 | D4: ='Raw Data'!DO34 -> 2954 | E4: ='Raw Data'!DP34 -> 3113 | F4: ='Raw Data'!DQ34 -> 3126 | G4: ='Raw Data'!DR34 -> 3080 | H4: ='Raw Data'!DS34 -> 3074 | I4: ='Raw Data'!DT34 -> 3119 | J4: ='Raw Data'!DU34 -> 2950 | K4: ='Raw Data'!DV34 -> 3014 | L4: ='Raw Data'!DW34 -> 2969 | M4: ='Raw Data'!DX34 -> 2787
A5: 2014 | B5: ='Raw Data'!DY34 -> 2820 | C5: ='Raw Data'!DZ34 -> 2890 | D5: ='Raw Data'!EA34 -> 3105 | E5: ='Raw Data'!EB34 -> 3086 | F5: ='Raw Data'!EC34 -> 3177 | G5: ='Raw Data'!ED34 -> 3209 | H5: ='Raw Data'!EE34 -> 3125 | I5: ='Raw Data'!EF34 -> 3218 | J5: ='Raw Data'!EG34 -> 3093 | K5: ='Raw Data'!EH34 -> 3051 | L5: ='Raw Data'!EI34 -> 3007 | M5: ='Raw Data'!EJ34 -> 2691
A6: 2015 | B6: ='Raw Data'!EK34 -> 2771 | C6: ='Raw Data'!EL34 -> 2866 | D6: ='Raw Data'!EM34 -> 2942 | E6: ='Raw Data'!EN34 -> 3015 | F6: ='Raw Data'!EO34 -> 3055 | G6: ='Raw Data'!EP34 -> 3039 | H6: ='Raw Data'!EQ34 -> 2989 | I6: ='Raw Data'!ER34 -> 2971 | J6: ='Raw Data'!ES34 -> 2944 | K6: ='Raw Data'!ET34 -> 2900 | L6: ='Raw Data'!EU34 -> 2824 | M6: ='Raw Data'!EV34 -> 2585
A7: 2016 | B7: ='Raw Data'!EW34 -> 2587 | C7: ='Raw Data'!EX34 -> 2666 | D7: ='Raw Data'!EY34 -> 2769 | E7: ='Raw Data'!EZ34 -> 2850 | F7: ='Raw Data'!FA34 -> 2730 | G7: ='Raw Data'!FB34 -> 2748 | H7: ='Raw Data'!FC34 -> 2672 | I7: ='Raw Data'!FD34 -> 2594 | J7: ='Raw Data'!FE34 -> 2571 | K7: ='Raw Data'!FF34 -> 2527 | L7: ='Raw Data'!FG34 -> 2415 | M7: ='Raw Data'!FH34 -> 2234
A8: 2017 | B8: ='Raw Data'!FI34 -> 2290 | C8: ='Raw Data'!FJ34 -> 2367 | D8: ='Raw Data'!FK34 -> 2386 | E8: ='Raw Data'!FL34 -> 2408 | F8: ='Raw Data'!FM34 -> 2418 | G8: ='Raw Data'!FN34 -> 2370 | H8: ='Raw Data'!FO34 -> 2370 | I8: ='Raw Data'!FP34 -> 2361 | J8: ='Raw Data'!FQ34 -> 2297 | K8: ='Raw Data'!FR34 -> 2310 | L8: ='Raw Data'!FS34 -> 2247 | M8: ='Raw Data'!FT34 -> 2083
A9: 2018 | B9: ='Raw Data'!FU34 -> 2095 | C9: ='Raw Data'!FV34 -> 2141 | D9: ='Raw Data'!FW34 -> 2236 | E9: ='Raw Data'!FX34 -> 2237 | F9: ='Raw Data'!FY34 -> 2264 | G9: ='Raw Data'!FZ34 -> 2253 | H9: ='Raw Data'!GA34 -> 2246 | I9: ='Raw Data'!GB34 -> 2324 | J9: ='Raw Data'!GC34 -> 2304 | K9: ='Raw Data'!GD34 -> 2344 | L9: ='Raw Data'!GE34 -> 2340 | M9: ='Raw Data'!GF34 -> 2189
A10: 2019 | B10: ='Raw Data'!GG34 -> 2264 | C10: ='Raw Data'!GH34 -> 2362 | D10: ='Raw Data'!GI34 -> 2482 | E10: ='Raw Data'!GJ34 -> 2554 | F10: ='Raw Data'!GK34 -> 2540 | G10: ='Raw Data'!GL34 -> 2464 | H10: ='Raw Data'!GM34 -> 2395 | I10: ='Raw Data'!GN34 -> 2405 | J10: ='Raw Data'!GO34 -> 2371 | K10: ='Raw Data'!GP34 -> 2367 | L10: ='Raw Data'!GQ34 -> 2346 | M10: ='Raw Data'!GR34 -> 2092
A11: 2020 | B11: ='Raw Data'!GS34 -> 2107 | C11: ='Raw Data'!GT34 -> 2121 | D11: ='Raw Data'!GU34 -> 2162 | E11: ='Raw Data'!GV34 -> 2116 | F11: ='Raw Data'!GW34 -> 2042 | G11: ='Raw Data'!GX34 -> 1736 | H11: ='Raw Data'!GY34 -> 1622 | I11: ='Raw Data'!GZ34 -> 1428 | J11: ='Raw Data'!HA34 -> 1400 | K11: ='Raw Data'!HB34 -> 1327 | L11: ='Raw Data'!HC34 -> 1274 | M11: ='Raw Data'!HD34 -> 1142
A12: 2021 | B12: ='Raw Data'!HE34 -> 1030 | C12: ='Raw Data'!HF34 -> 1050 | D12: ='Raw Data'!HG34 -> 966 | E12: ='Raw Data'!HH34 -> 1012 | F12: ='Raw Data'!HI34 -> 1027 | G12: ='Raw Data'!HJ34 -> 1070 | H12: ='Raw Data'!HK34 -> 1113 | I12: ='Raw Data'!HL34 -> 1114 | J12: ='Raw Data'!HM34 -> 1085 | K12: ='Raw Data'!HN34 -> 942 | L12: ='Raw Data'!HO34 -> 883 | M12: ='Raw Data'!HP34 -> 757
A13: 2022 | B13: ='Raw Data'!HQ34 -> 727 | C13: ='Raw Data'!HR34 -> 694 | D13: ='Raw Data'!HS34 -> 733 | E13: ='Raw Data'!HT34 -> 767 | F13: ='Raw Data'!HU34 -> 896 | G13: ='Raw Data'!HV34 -> 1039 | H13: ='Raw Data'!HW34 -> 1071 | I13: ='Raw Data'!HX34 -> 1053 | J13: ='Raw Data'!HY34 -> 997 | K13: ='Raw Data'!HZ34 -> 991 | L13: ='Raw Data'!IA34 -> 955 | M13: ='Raw Data'!IB34 -> 872
A14: 2023 | B14: ='Raw Data'!IC34 -> 808 | C14: ='Raw Data'!ID34 -> 789 | D14: ='Raw Data'!IE34 -> 759 | E14: ='Raw Data'!IF34 -> 768 | F14: ='Raw Data'!IG34 -> 767 | G14: ='Raw Data'!IH34 -> 784 | H14: ='Raw Data'!II34 -> 834 | I14: ='Raw Data'!IJ34 -> 838 | J14: ='Raw Data'!IK34 -> 843 | K14: ='Raw Data'!IL34 -> 852 | L14: ='Raw Data'!IM34 -> 888 | M14: ='Raw Data'!IN34 -> 821
A16: Residential Listings
B17: Jan | C17: Feb | D17: Mar | E17: Apr | F17: May | G17: Jun | H17: July | I17: Aug | J17: Sep | K17: Oct | L17: Nov | M17: Dec
A18: 2012 | B18: ='Raw Data'!DA31 -> 1726 | C18: ='Raw Data'!DB31 -> 1784 | D18: ='Raw Data'!DC31 -> 1836 | E18: ='Raw Data'!DD31 -> 1860 | F18: ='Raw Data'!DE31 -> 1873 | G18: ='Raw Data'!DF31 -> 1805 | H18: ='Raw Data'!DG31 -> 1815 | I18: ='Raw Data'!DH31 -> 1798 | J18: ='Raw Data'!DI31 -> 1782 | K18: ='Raw Data'!DJ31 -> 1806 | L18: ='Raw Data'!DK31 -> 1772 | M18: ='Raw Data'!DL31 -> 1640
A19: 2013 | B19: ='Raw Data'!DM31 -> 1714 | C19: ='Raw Data'!DN31 -> 1783 | D19: ='Raw Data'!DO31 -> 1830 | E19: ='Raw Data'!DP31 -> 1899 | F19: ='Raw Data'!DQ31 -> 1895 | G19: ='Raw Data'!DR31 -> 1851 | H19: ='Raw Data'!DS31 -> 1826 | I19: ='Raw Data'!DT31 -> 1821 | J19: ='Raw Data'!DU31 -> 1688 | K19: ='Raw Data'!DV31 -> 1771 | L19: ='Raw Data'!DW31 -> 1751 | M19: ='Raw Data'!DX31 -> 1628
A20: 2014 | B20: ='Raw Data'!DY31 -> 1685 | C20: ='Raw Data'!DZ31 -> 1765 | D20: ='Raw Data'!EA31 -> 1893 | E20: ='Raw Data'!EB31 -> 1899 | F20: ='Raw Data'!EC31 -> 1954 | G20: ='Raw Data'!ED31 -> 1959 | H20: ='Raw Data'!EE31 -> 1850 | I20: ='Raw Data'!EF31 -> 1964 | J20: ='Raw Data'!EG31 -> 1908 | K20: ='Raw Data'!EH31 -> 1883 | L20: ='Raw Data'!EI31 -> 1874 | M20: ='Raw Data'!EJ31 -> 1650
A21: 2015 | B21: ='Raw Data'!EK31 -> 1718 | C21: ='Raw Data'!EL31 -> 1794 | D21: ='Raw Data'!EM31 -> 1864 | E21: ='Raw Data'!EN31 -> 1897 | F21: ='Raw Data'!EO31 -> 1896 | G21: ='Raw Data'!EP31 -> 1872 | H21: ='Raw Data'!EQ31 -> 1828 | I21: ='Raw Data'!ER31 -> 1828 | J21: ='Raw Data'!ES31 -> 1794 | K21: ='Raw Data'!ET31 -> 1751 | L21: ='Raw Data'!EU31 -> 1692 | M21: ='Raw Data'!EV31 -> 1551
A22: 2016 | B22: ='Raw Data'!EW31 -> 1576 | C22: ='Raw Data'!EX31 -> 1649 | D22: ='Raw Data'!EY31 -> 1753 | E22: ='Raw Data'!EZ31 -> 1803 | F22: ='Raw Data'!FA31 -> 1722 | G22: ='Raw Data'!FB31 -> 1726 | H22: ='Raw Data'!FC31 -> 1668 | I22: ='Raw Data'!FD31 -> 1624 | J22: ='Raw Data'!FE31 -> 1617 | K22: ='Raw Data'!FF31 -> 1602 | L22: ='Raw Data'!FG31 -> 1508 | M22: ='Raw Data'!FH31 -> 1403
A23: 2017 | B23: ='Raw Data'!FI31 -> 1439 | C23: ='Raw Data'!FJ31 -> 1494 | D23: ='Raw Data'!FK31 -> 1499 | E23: ='Raw Data'!FL31 -> 1526 | F23: ='Raw Data'!FM31 -> 1540 | G23: ='Raw Data'!FN31 -> 1508 | H23: ='Raw Data'!FO31 -> 1498 | I23: ='Raw Data'!FP31 -> 1504 | J23: ='Raw Data'!FQ31 -> 1477 | K23: ='Raw Data'!FR31 -> 1488 | L23: ='Raw Data'!FS31 -> 1443 | M23: ='Raw Data'!FT31 -> 1347
A24: 2018 | B24: ='Raw Data'!FU31 -> 1358 | C24: ='Raw Data'!FV31 -> 1428 | D24: ='Raw Data'!FW31 -> 1500 | E24: ='Raw Data'!FX31 -> 1489 | F24: ='Raw Data'!FY31 -> 1507 | G24: ='Raw Data'!FZ31 -> 1459 | H24: ='Raw Data'!GA31 -> 1455 | I24: ='Raw Data'!GB31 -> 1519 | J24: ='Raw Data'!GC31 -> 1498 | K24: ='Raw Data'!GD31 -> 1523 | L24: ='Raw Data'!GE31 -> 1507 | M24: ='Raw Data'!GF31 -> 1434
A25: 2019 | B25: ='Raw Data'!GG31 -> 1487 | C25: ='Raw Data'!GH31 -> 1547 | D25: ='Raw Data'!GI31 -> 1641 | E25: ='Raw Data'!GJ31 -> 1662 | F25: ='Raw Data'!GK31 -> 1620 | G25: ='Raw Data'!GL31 -> 1574 | H25: ='Raw Data'!GM31 -> 1502 | I25: ='Raw Data'!GN31 -> 1491 | J25: ='Raw Data'!GO31 -> 1465 | K25: ='Raw Data'!GP31 -> 1482 | L25: ='Raw Data'!GQ31 -> 1493 | M25: ='Raw Data'!GR31 -> 1336
A26: 2020 | B26: ='Raw Data'!GS31 -> 1330 | C26: ='Raw Data'!GT31 -> 1324 | D26: ='Raw Data'!GU31 -> 1356 | E26: ='Raw Data'!GV31 -> 1316 | F26: ='Raw Data'!GW31 -> 1233 | G26: ='Raw Data'!GX31 -> 965 | H26: ='Raw Data'!GY31 -> 873 | I26: ='Raw Data'!GZ31 -> 715 | J26: ='Raw Data'!HA31 -> 679 | K26: ='Raw Data'!HB31 -> 646 | L26: ='Raw Data'!HC31 -> 618 | M26: ='Raw Data'!HD31 -> 556
A27: 2021 | B27: ='Raw Data'!HE31 -> 443 | C27: ='Raw Data'!HF31 -> 413 | D27: ='Raw Data'!HG31 -> 359 | E27: ='Raw Data'!HH31 -> 388 | F27: ='Raw Data'!HI31 -> 400 | G27: ='Raw Data'!HJ31 -> 422 | H27: ='Raw Data'!HK31 -> 476 | I27: ='Raw Data'!HL31 -> 500 | J27: ='Raw Data'!HM31 -> 497 | K27: ='Raw Data'!HN31 -> 425 | L27: ='Raw Data'!HO31 -> 377 | M27: ='Raw Data'!HP31 -> 309
A28: 2022 | B28: ='Raw Data'!HQ31 -> 281 | C28: ='Raw Data'!HR31 -> 261 | D28: ='Raw Data'!HS31 -> 264 | E28: ='Raw Data'!HT31 -> 322 | F28: ='Raw Data'!HU31 -> 412 | G28: ='Raw Data'!HV31 -> 529 | H28: ='Raw Data'!HW31 -> 560 | I28: ='Raw Data'!HX31 -> 546 | J28: ='Raw Data'!HY31 -> 509 | K28: ='Raw Data'!HZ31 -> 509 | L28: ='Raw Data'!IA31 -> 529 | M28: ='Raw Data'!IB31 -> 455
A29: 2023 | B29: ='Raw Data'!IC31 -> 391 | C29: ='Raw Data'!ID31 -> 372 | D29: ='Raw Data'!IE31 -> 356 | E29: ='Raw Data'!IF31 -> 371 | F29: ='Raw Data'!IG31 -> 382 | G29: ='Raw Data'!IH31 -> 410 | H29: ='Raw Data'!II31 -> 451 | I29: ='Raw Data'!IJ31 -> 470 | J29: ='Raw Data'!IK31 -> 489 | K29: ='Raw Data'!IL31 -> 513 | L29: ='Raw Data'!IM31 -> 542 | M29: ='Raw Data'!IN31 -> 492
F31: Active Residential Inventory | J31: Total Inventory
F32: Month / Year | G32: Count | H32: %Chg | J32: Month / Year | K32: Count | L32: %Chg
F33: Dec'23 | G33: =M29 -> 492 | H33: =(G33-G34)/G34 -> 0.08131868132 | J33: Dec'23 | K33: =M14 -> 821 | L33: =(K33-K34)/K34 -> -0.05848623853
F34: Dec'22 | G34: =M28 -> 455 | H34: =(G34-G35)/G35 -> 0.4724919094 | J34: Dec'22 | K34: =M13 -> 872 | L34: =(K34-K35)/K35 -> 0.1519154557
F35: Dec'21 | G35: =M27 -> 309 | H35: =(G35-G36)/G36 -> -0.4442446043 | J35: Dec'21 | K35: =M12 -> 757 | L35: =(K35-K36)/K36 -> -0.3371278459
F36: Dec'20 | G36: =M26 -> 556 | J36: Dec'20 | K36: =M11 -> 1142
A38: Residential Inventory
B39: 2007-08-01 | C39: 2007-09-01 | D39: 2007-10-01 | E39: 2007-11-01 | F39: 2007-12-01 | G39: 2008-01-01 | H39: 2008-02-01 | I39: 2008-03-01 | J39: 2008-04-01 | K39: 2008-05-01 | L39: 2008-06-01 | M39: 2008-07-01 | N39: 2008-08-01 | O39: 2008-09-01 | P39: 2008-10-01 | Q39: 2008-11-01 | R39: 2008-12-01 | S39: 2009-01-01 | T39: 2009-02-01 | U39: 2009-03-01 | V39: 2009-04-01 | W39: 2009-05-01 | X39: 2009-06-01 | Y39: 2009-07-01 | Z39: 2009-08-01 | AA39: 2009-09-01 | AB39: 2009-10-01 | AC39: 2009-11-01 | AD39: 2009-12-01 | AE39: 2010-01-01 | AF39: 2010-02-01 | AG39: 2010-03-01 | AH39: 2010-04-01 | AI39: 2010-05-01 | AJ39: 2010-06-01 | AK39: 2010-07-01 | AL39: 2010-08-01 | AM39: 2010-09-01 | AN39: 2010-10-01 | AO39: 2010-11-01 | AP39: 2010-12-01 | AQ39: 2011-01-01 | AR39: 2011-02-01 | AS39: 2011-03-01 | AT39: 2011-04-01 | AU39: 2011-05-01 | AV39: 2011-06-01 | AW39: 2011-07-01 | AX39: 2011-08-01 | AY39: 2011-09-01 | AZ39: 2011-10-01 | BA39: 2011-11-01 | BB39: 2011-12-01 | BC39: 2012-01-01 | BD39: 2012-02-01 | BE39: 2012-03-01 | BF39: 2012-04-01 | BG39: 2012-05-01 | BH39: 2012-06-01 | BI39: 2012-07-01 | BJ39: 2012-08-01 | BK39: 2012-09-01 | BL39: 2012-10-01 | BM39: 2012-11-01 | BN39: 2012-12-01 | BO39: 2013-01-01 | BP39: 2013-02-01 | BQ39: 2013-03-01 | BR39: 2013-04-01 | BS39: 2013-05-01 | BT39: 2013-06-01 | BU39: 2013-07-01 | BV39: 2013-08-01 | BW39: 2013-09-01 | BX39: 2013-10-01 | BY39: 2013-11-01 | BZ39: 2013-12-01 | CA39: 2014-01-01 | CB39: 2014-02-01 | CC39: 2014-03-01 | CD39: 2014-04-01 | CE39: 2014-05-01 | CF39: 2014-06-01 | CG39: 2014-07-01 | CH39: 2014-08-01 | CI39: 2014-09-01 | CJ39: 2014-10-01 | CK39: 2014-11-01 | CL39: 2014-12-01 | CM39: 2015-01-01 | CN39: 2015-02-01 | CO39: 2015-03-01 | CP39: 2015-04-01 | CQ39: 2015-05-01 | CR39: 2015-06-01 | CS39: 2015-07-01 | CT39: 2015-08-01 | CU39: 2015-09-01 | CV39: 2015-10-01 | CW39: 2015-11-01 | CX39: 2015-12-01 | CY39: 2016-01-01 | CZ39: 2016-02-01 | DA39: 2016-03-01 | DB39: 2016-04-01 | DC39: 2016-05-01 | DD39: 2016-06-01 | DE39: 2016-07-01 | DF39: 2016-08-01 | DG39: 2016-09-01 | DH39: 2016-10-01 | DI39: 2016-11-01 | DJ39: 2016-12-01 | DK39: 2017-01-01 | DL39: 2017-02-01 | DM39: 2017-03-01 | DN39: 2017-04-01 | DO39: 2017-05-01 | DP39: 2017-06-01 | DQ39: 2017-07-01 | DR39: 2017-08-01 | DS39: 2017-09-01 | DT39: 2017-10-01 | DU39: 2017-11-01 | DV39: 2017-12-01 | DW39: 2018-01-01 | DX39: 2018-02-01 | DY39: 2018-03-01 | DZ39: 2018-04-01 | EA39: 2018-05-01 | EB39: 2018-06-01 | EC39: 2018-07-01 | ED39: 2018-08-01 | EE39: 2018-09-01 | EF39: 2018-10-01 | EG39: 2018-11-01 | EH39: 2018-12-01 | EI39: 2019-01-01 | EJ39: 2019-02-01 | EK39: 2019-03-01 | EL39: 2019-04-01 | EM39: 2019-05-01 | EN39: 2019-06-01 | EO39: 2019-07-01 | EP39: 2019-08-01 | EQ39: 2019-09-01 | ER39: 2019-10-01 | ES39: 2019-11-01 | ET39: 2019-12-01 | EU39: 2020-01-01 | EV39: 2020-02-01 | EW39: 2020-03-01 | EX39: 2020-04-01 | EY39: 2020-05-01 | EZ39: 2020-06-01 | FA39: 2020-07-01 | FB39: 2020-08-01 | FC39: 2020-09-01 | FD39: 2020-10-01 | FE39: 2020-11-01 | FF39: 2020-12-01 | FG39: 2021-01-01 | FH39: 2021-02-01 | FI39: 2021-03-01 | FJ39: 2021-04-01 | FK39: 2021-05-01 | FL39: 2021-06-01 | FM39: 2021-07-01 | FN39: 2021-08-01 | FO39: 2021-09-01 | FP39: 2021-10-01 | FQ39: 2021-11-01 | FR39: 2021-12-01 | FS39: 2022-01-01 | FT39: 2022-02-01 | FU39: 2022-03-01 | FV39: 2022-04-01 | FW39: 2022-05-01 | FX39: 2022-06-01 | FY39: 2022-07-01 | FZ39: 2022-08-01 | GA39: 2022-09-01 | GB39: 2022-10-01 | GC39: 2022-11-01 | GD39: 2022-12-01 | GE39: 2023-01-01 | GF39: 2023-02-01 | GG39: 2023-03-01 | GH39: 2023-04-01 | GI39: 2023-05-01 | GJ39: 2023-06-01 | GK39: 2023-07-01 | GL39: 2023-08-01 | GM39: 2023-09-01 | GN39: 2023-10-01 | GO39: 2023-11-01 | GP39: 2023-12-01 | GQ39: 2024-01-01 | GR39: 2024-02-01 | GS39: 2024-03-01 | GT39: 2024-04-01 | GU39: 2024-05-01
B40: =SUM('Raw Data'!AZ21) -> 2719 | C40: =SUM('Raw Data'!BA21) -> 2712 | D40: =SUM('Raw Data'!BB21) -> 2667 | E40: =SUM('Raw Data'!BC21) -> 2657 | F40: =SUM('Raw Data'!BD21) -> 2599 | G40: =SUM('Raw Data'!BE21) -> 2350 | H40: =SUM('Raw Data'!BF21) -> 2454 | I40: =SUM('Raw Data'!BG21) -> 2499 | J40: =SUM('Raw Data'!BH21) -> 2627 | K40: =SUM('Raw Data'!BI21) -> 2527 | L40: =SUM('Raw Data'!BJ21) -> 2553 | M40: =SUM('Raw Data'!BK21) -> 2559 | N40: =SUM('Raw Data'!BL21) -> 2420 | O40: =SUM('Raw Data'!BM21) -> 2500 | P40: =SUM('Raw Data'!BN21) -> 2500 | Q40: =SUM('Raw Data'!BO21) -> 2487 | R40: =SUM('Raw Data'!BP21) -> 2226 | S40: =SUM('Raw Data'!BQ21) -> 2331 | T40: =SUM('Raw Data'!BR21) -> 2373 | U40: =SUM('Raw Data'!BS21) -> 2468 | V40: =SUM('Raw Data'!BT21) -> 2476 | W40: =SUM('Raw Data'!BU21) -> 2484 | X40: =SUM('Raw Data'!BV21) -> 2439 | Y40: =SUM('Raw Data'!BW21) -> 2423 | Z40: =SUM('Raw Data'!BX21) -> 2419 | AA40: =SUM('Raw Data'!BY21) -> 2383 | AB40: =SUM('Raw Data'!BZ21) -> 2373 | AC40: =SUM('Raw Data'!CA21) -> 2289 | AD40: =SUM('Raw Data'!CB21) -> 2028 | AE40: =SUM('Raw Data'!CC21) -> 2084 | AF40: =SUM('Raw Data'!CD21) -> 2181 | AG40: =SUM('Raw Data'!CE21) -> 2282 | AH40: =SUM('Raw Data'!CF21) -> 2324 | AI40: =SUM('Raw Data'!CG21) -> 2362 | AJ40: =SUM('Raw Data'!CH21) -> 2283 | AK40: =SUM('Raw Data'!CI21) -> 2280 | AL40: =SUM('Raw Data'!CJ21) -> 2191 | AM40: =SUM('Raw Data'!CK21) -> 2132 | AN40: =SUM('Raw Data'!CL21) -> 2030 | AO40: =SUM('Raw Data'!CM21) -> 1984 | AP40: =SUM('Raw Data'!CN21) -> 1801 | AQ40: =SUM('Raw Data'!CO21) -> 1847 | AR40: =SUM('Raw Data'!CP21) -> 1892 | AS40: =SUM('Raw Data'!CQ21) -> 1965 | AT40: =SUM('Raw Data'!CR21) -> 1949 | AU40: =SUM('Raw Data'!CS21) -> 1963 | AV40: =SUM('Raw Data'!CT21) -> 1938 | AW40: =SUM('Raw Data'!CU21) -> 1880 | AX40: =SUM('Raw Data'!CV21) -> 1849 | AY40: =SUM('Raw Data'!CW21) -> 1784 | AZ40: =SUM('Raw Data'!CX21) -> 1872 | BA40: =SUM('Raw Data'!CY21) -> 1770 | BB40: =SUM('Raw Data'!CZ21) -> 1706 | BC40: =SUM('Raw Data'!DA21) -> 1726 | BD40: =SUM('Raw Data'!DB21) -> 1784 | BE40: =SUM('Raw Data'!DC21) -> 1836 | BF40: =SUM('Raw Data'!DD21) -> 1860 | BG40: =SUM('Raw Data'!DE21) -> 1873 | BH40: =SUM('Raw Data'!DF21) -> 1805 | BI40: =SUM('Raw Data'!DG21) -> 1815 | BJ40: =SUM('Raw Data'!DH21) -> 1798 | BK40: =SUM('Raw Data'!DI21) -> 1782 | BL40: =SUM('Raw Data'!DJ21) -> 1806 | BM40: =SUM('Raw Data'!DK21) -> 1772 | BN40: =SUM('Raw Data'!DL21) -> 1640 | BO40: =SUM('Raw Data'!DM21) -> 1714 | BP40: =SUM('Raw Data'!DN21) -> 1783 | BQ40: =SUM('Raw Data'!DO21) -> 1830 | BR40: =SUM('Raw Data'!DP21) -> 1899 | BS40: =SUM('Raw Data'!DQ21) -> 1895 | BT40: =SUM('Raw Data'!DR21) -> 1851 | BU40: =SUM('Raw Data'!DS21) -> 1826 | BV40: =SUM('Raw Data'!DT21) -> 1821 | BW40: =SUM('Raw Data'!DU21) -> 1818 | BX40: =SUM('Raw Data'!DV21) -> 1908 | BY40: =SUM('Raw Data'!DW21) -> 1863 | BZ40: =SUM('Raw Data'!DX21) -> 1700 | CA40: =SUM('Raw Data'!DY21) -> 1792 | CB40: =SUM('Raw Data'!DZ21) -> 1892 | CC40: =SUM('Raw Data'!EA21) -> 2067 | CD40: =SUM('Raw Data'!EB21) -> 2053 | CE40: =SUM('Raw Data'!EC21) -> 2104 | CF40: =SUM('Raw Data'!ED21) -> 2095 | CG40: =SUM('Raw Data'!EE21) -> 2016 | CH40: =SUM('Raw Data'!EF21) -> 2119 | CI40: =SUM('Raw Data'!EG21) -> 2074 | CJ40: =SUM('Raw Data'!EH21) -> 2054 | CK40: =SUM('Raw Data'!EI21) -> 2044 | CL40: =SUM('Raw Data'!EJ21) -> 1767 | CM40: =SUM('Raw Data'!EK21) -> 1870 | CN40: =SUM('Raw Data'!EL21) -> 1954 | CO40: =SUM('Raw Data'!EM21) -> 1914 | CP40: =SUM('Raw Data'!EN21) -> 1940 | CQ40: =SUM('Raw Data'!EO21) -> 1930 | CR40: =SUM('Raw Data'!EP21) -> 1902 | CS40: =SUM('Raw Data'!EQ21) -> 1859 | CT40: =SUM('Raw Data'!ER21) -> 1853 | CU40: =SUM('Raw Data'!ES21) -> 1819 | CV40: =SUM('Raw Data'!ET21) -> 1780 | CW40: =SUM('Raw Data'!EU21) -> 1717 | CX40: =SUM('Raw Data'!EV21) -> 1569 | CY40: =SUM('Raw Data'!EW21) -> 1598 | CZ40: =SUM('Raw Data'!EX21) -> 1667 | DA40: =SUM('Raw Data'!EY21) -> 1765 | DB40: =SUM('Raw Data'!EZ21) -> 1821 | DC40: =SUM('Raw Data'!FA21) -> 1742 | DD40: =SUM('Raw Data'!FB21) -> 1744 | DE40: =SUM('Raw Data'!FC21) -> 1685 | DF40: =SUM('Raw Data'!FD21) -> 1644 | DG40: =SUM('Raw Data'!FE21) -> 1642 | DH40: =SUM('Raw Data'!FF21) -> 1621 | DI40: =SUM('Raw Data'!FG21) -> 1531 | DJ40: =SUM('Raw Data'!FH21) -> 1418 | DK40: =SUM('Raw Data'!FI21) -> 1454 | DL40: =SUM('Raw Data'!FJ21) -> 1506 | DM40: =SUM('Raw Data'!FK21) -> 1513 | DN40: =SUM('Raw Data'!FL21) -> 1545 | DO40: =SUM('Raw Data'!FM21) -> 1555 | DP40: =SUM('Raw Data'!FN21) -> 1526 | DQ40: =SUM('Raw Data'!FO21) -> 1513 | DR40: =SUM('Raw Data'!FP21) -> 1513 | DS40: =SUM('Raw Data'!FQ21) -> 1484 | DT40: =SUM('Raw Data'!FR21) -> 1497 | DU40: =SUM('Raw Data'!FS21) -> 1452 | DV40: =SUM('Raw Data'!FT21) -> 1354 | DW40: =SUM('Raw Data'!FU21) -> 1369 | DX40: =SUM('Raw Data'!FV21) -> 1434 | DY40: =SUM('Raw Data'!FW21) -> 1508 | DZ40: =SUM('Raw Data'!FX21) -> 1496 | EA40: =SUM('Raw Data'!FY21) -> 1514 | EB40: =SUM('Raw Data'!FZ21) -> 1469 | EC40: =SUM('Raw Data'!GA21) -> 1463 | ED40: =SUM('Raw Data'!GB21) -> 1528 | EE40: =SUM('Raw Data'!GC21) -> 1506 | EF40: =SUM('Raw Data'!GD21) -> 1531 | EG40: =SUM('Raw Data'!GE21) -> 1519 | EH40: =SUM('Raw Data'!GF21) -> 1441 | EI40: =SUM('Raw Data'!GG21) -> 1496 | EJ40: =SUM('Raw Data'!GH21) -> 1558 | EK40: =SUM('Raw Data'!GI21) -> 1651 | EL40: =SUM('Raw Data'!GJ21) -> 1673 | EM40: =SUM('Raw Data'!GK21) -> 1627 | EN40: =SUM('Raw Data'!GL21) -> 1579 | EO40: =SUM('Raw Data'!GM21) -> 1506 | EP40: =SUM('Raw Data'!GN21) -> 1499 | EQ40: =SUM('Raw Data'!GO21) -> 1472 | ER40: =SUM('Raw Data'!GP21) -> 1490 | ES40: =SUM('Raw Data'!GQ21) -> 1500 | ET40: =SUM('Raw Data'!GR21) -> 1341 | EU40: =SUM('Raw Data'!GS21) -> 1336 | EV40: =SUM('Raw Data'!GT21) -> 1330 | EW40: =SUM('Raw Data'!GU21) -> 1360 | EX40: =SUM('Raw Data'!GV21) -> 1324 | EY40: =SUM('Raw Data'!GW21) -> 1247 | EZ40: =SUM('Raw Data'!GX21) -> 975 | FA40: =SUM('Raw Data'!GY21) -> 881 | FB40: =SUM('Raw Data'!GZ21) -> 723 | FC40: =SUM('Raw Data'!HA21) -> 689 | FD40: =SUM('Raw Data'!HB21) -> 656 | FE40: =SUM('Raw Data'!HC21) -> 623 | FF40: =SUM('Raw Data'!HD21) -> 560 | FG40: =SUM('Raw Data'!HE21) -> 447 | FH40: =SUM('Raw Data'!HF21) -> 418 | FI40: =SUM('Raw Data'!HG21) -> 380 | FJ40: =SUM('Raw Data'!HH21) -> 392 | FK40: =SUM('Raw Data'!HI21) -> 402 | FL40: =SUM('Raw Data'!HJ21) -> 424 | FM40: =SUM('Raw Data'!HK21) -> 477 | FN40: =SUM('Raw Data'!HL21) -> 501 | FO40: =SUM('Raw Data'!HM21) -> 484 | FP40: =SUM('Raw Data'!HN21) -> 428 | FQ40: =SUM('Raw Data'!HO21) -> 380 | FR40: =SUM('Raw Data'!HP21) -> 311 | FS40: =SUM('Raw Data'!HQ21) -> 284 | FT40: =SUM('Raw Data'!HR21) -> 267 | FU40: =SUM('Raw Data'!HS21) -> 266 | FV40: =SUM('Raw Data'!HT21) -> 326 | FW40: =SUM('Raw Data'!HU21) -> 413 | FX40: =SUM('Raw Data'!HV21) -> 529 | FY40: =SUM('Raw Data'!HW21) -> 561 | FZ40: =SUM('Raw Data'!HX21) -> 548 | GA40: =SUM('Raw Data'!HY21) -> 510 | GB40: =SUM('Raw Data'!HZ21) -> 509 | GC40: =SUM('Raw Data'!IA21) -> 529 | GD40: =SUM('Raw Data'!IB21) -> 455 | GE40: =SUM('Raw Data'!IC21) -> 391 | GF40: =SUM('Raw Data'!ID21) -> 373 | GG40: =SUM('Raw Data'!IE21) -> 356 | GH40: =SUM('Raw Data'!IF21) -> 371 | GI40: =SUM('Raw Data'!IG21) -> 382 | GJ40: =SUM('Raw Data'!IH21) -> 412 | GK40: =SUM('Raw Data'!II21) -> 456 | GL40: =SUM('Raw Data'!IJ21) -> 474 | GM40: =SUM('Raw Data'!IK21) -> 489 | GN40: =SUM('Raw Data'!IL21) -> 513 | GO40: =SUM('Raw Data'!IM21) -> 543 | GP40: =SUM('Raw Data'!IN21) -> 492 | GQ40: =SUM('Raw Data'!IO21) -> 0 | GR40: =SUM('Raw Data'!IP21) -> 0 | GS40: =SUM('Raw Data'!IQ21) -> 0 | GT40: =SUM('Raw Data'!IR21) -> 0 | GU40: =SUM('Raw Data'!IS21) -> 0
A43: Total Inventory
B44: 2007-08-01 | C44: 2007-09-01 | D44: 2007-10-01 | E44: 2007-11-01 | F44: 2007-12-01 | G44: 2008-01-01 | H44: 2008-02-01 | I44: 2008-03-01 | J44: 2008-04-01 | K44: 2008-05-01 | L44: 2008-06-01 | M44: 2008-07-01 | N44: 2008-08-01 | O44: 2008-09-01 | P44: 2008-10-01 | Q44: 2008-11-01 | R44: 2008-12-01 | S44: 2009-01-01 | T44: 2009-02-01 | U44: 2009-03-01 | V44: 2009-04-01 | W44: 2009-05-01 | X44: 2009-06-01 | Y44: 2009-07-01 | Z44: 2009-08-01 | AA44: 2009-09-01 | AB44: 2009-10-01 | AC44: 2009-11-01 | AD44: 2009-12-01 | AE44: 2010-01-01 | AF44: 2010-02-01 | AG44: 2010-03-01 | AH44: 2010-04-01 | AI44: 2010-05-01 | AJ44: 2010-06-01 | AK44: 2010-07-01 | AL44: 2010-08-01 | AM44: 2010-09-01 | AN44: 2010-10-01 | AO44: 2010-11-01 | AP44: 2010-12-01 | AQ44: 2011-01-01 | AR44: 2011-02-01 | AS44: 2011-03-01 | AT44: 2011-04-01 | AU44: 2011-05-01 | AV44: 2011-06-01 | AW44: 2011-07-01 | AX44: 2011-08-01 | AY44: 2011-09-01 | AZ44: 2011-10-01 | BA44: 2011-11-01 | BB44: 2011-12-01 | BC44: 2012-01-01 | BD44: 2012-02-01 | BE44: 2012-03-01 | BF44: 2012-04-01 | BG44: 2012-05-01 | BH44: 2012-06-01 | BI44: 2012-07-01 | BJ44: 2012-08-01 | BK44: 2012-09-01 | BL44: 2012-10-01 | BM44: 2012-11-01 | BN44: 2012-12-01 | BO44: 2013-01-01 | BP44: 2013-02-01 | BQ44: 2013-03-01 | BR44: 2013-04-01 | BS44: 2013-05-01 | BT44: 2013-06-01 | BU44: 2013-07-01 | BV44: 2013-08-01 | BW44: 2013-09-01 | BX44: 2013-10-01 | BY44: 2013-11-01 | BZ44: 2013-12-01 | CA44: 2014-01-01 | CB44: 2014-02-01 | CC44: 2014-03-01 | CD44: 2014-04-01 | CE44: 2014-05-01 | CF44: 2014-06-01 | CG44: 2014-07-01 | CH44: 2014-08-01 | CI44: 2014-09-01 | CJ44: 2014-10-01 | CK44: 2014-11-01 | CL44: 2014-12-01 | CM44: 2015-01-01 | CN44: 2015-02-01 | CO44: 2015-03-01 | CP44: 2015-04-01 | CQ44: 2015-05-01 | CR44: 2015-06-01 | CS44: 2015-07-01 | CT44: 2015-08-01 | CU44: 2015-09-01 | CV44: 2015-10-01 | CW44: 2015-11-01 | CX44: 2015-12-01 | CY44: 2016-01-01 | CZ44: 2016-02-01 | DA44: 2016-03-01 | DB44: 2016-04-01 | DC44: 2016-05-01 | DD44: 2016-06-01 | DE44: 2016-07-01 | DF44: 2016-08-01 | DG44: 2016-09-01 | DH44: 2016-10-01 | DI44: 2016-11-01 | DJ44: 2016-12-01 | DK44: 2017-01-01 | DL44: 2017-02-01 | DM44: 2017-03-01 | DN44: 2017-04-01 | DO44: 2017-05-01 | DP44: 2017-06-01 | DQ44: 2017-07-01 | DR44: 2017-08-01 | DS44: 2017-09-01 | DT44: 2017-10-01 | DU44: 2017-11-01 | DV44: 2017-12-01 | DW44: 2018-01-01 | DX44: 2018-02-01 | DY44: 2018-03-01 | DZ44: 2018-04-01 | EA44: 2018-05-01 | EB44: 2018-06-01 | EC44: 2018-07-01 | ED44: 2018-08-01 | EE44: 2018-09-01 | EF44: 2018-10-01 | EG44: 2018-11-01 | EH44: 2018-12-01 | EI44: 2019-01-01 | EJ44: 2019-02-01 | EK44: 2019-03-01 | EL44: 2019-04-01 | EM44: 2019-05-01 | EN44: 2019-06-01 | EO44: 2019-07-01 | EP44: 2019-08-01 | EQ44: 2019-09-01 | ER44: 2019-10-01 | ES44: 2019-11-01 | ET44: 2019-12-01 | EU44: 2020-01-01 | EV44: 2020-02-01 | EW44: 2020-03-01 | EX44: 2020-04-01 | EY44: 2020-05-01 | EZ44: 2020-06-01 | FA44: 2020-07-01 | FB44: 2020-08-01 | FC44: 2020-09-01 | FD44: 2020-10-01 | FE44: 2020-11-01 | FF44: 2020-12-01 | FG44: 2021-01-01 | FH44: 2021-02-01 | FI44: 2021-03-01 | FJ44: 2021-04-01 | FK44: 2021-05-01 | FL44: 2021-06-01 | FM44: 2021-07-01 | FN44: 2021-08-01 | FO44: 2021-09-01 | FP44: 2021-10-01 | FQ44: 2021-11-01 | FR44: 2021-12-01 | FS44: 2022-01-01 | FT44: 2022-02-01 | FU44: 2022-03-01 | FV44: 2022-04-01 | FW44: 2022-05-01 | FX44: 2022-06-01 | FY44: 2022-07-01 | FZ44: 2022-08-01 | GA44: 2022-09-01 | GB44: 2022-10-01 | GC44: 2022-11-01 | GD44: 2022-12-01 | GE44: 2023-01-01 | GF44: 2023-02-01 | GG44: 2023-03-01 | GH44: 2023-04-01 | GI44: 2023-05-01 | GJ44: 2023-06-01 | GK44: 2023-07-01 | GL44: 2023-08-01 | GM44: 2023-09-01 | GN44: 2023-10-01 | GO44: 2023-11-01 | GP44: 2023-12-01 | GQ44: 2024-01-01 | GR44: 2024-02-01 | GS44: 2024-03-01 | GT44: 2024-04-01 | GU44: 2024-05-01
B45: ='Raw Data'!AZ34 -> 4542 | C45: ='Raw Data'!BA34 -> 4463 | D45: ='Raw Data'!BB34 -> 4418 | E45: ='Raw Data'!BC34 -> 4456 | F45: ='Raw Data'!BD34 -> 4334 | G45: ='Raw Data'!BE34 -> 3886 | H45: ='Raw Data'!BF34 -> 4046 | I45: ='Raw Data'!BG34 -> 4122 | J45: ='Raw Data'!BH34 -> 4296 | K45: ='Raw Data'!BI34 -> 4184 | L45: ='Raw Data'!BJ34 -> 4180 | M45: ='Raw Data'!BK34 -> 4170 | N45: ='Raw Data'!BL34 -> 3991 | O45: ='Raw Data'!BM34 -> 4203 | P45: ='Raw Data'!BN34 -> 4144 | Q45: ='Raw Data'!BO34 -> 4129 | R45: ='Raw Data'!BP34 -> 3638 | S45: ='Raw Data'!BQ34 -> 3743 | T45: ='Raw Data'!BR34 -> 3850 | U45: ='Raw Data'!BS34 -> 3923 | V45: ='Raw Data'!BT34 -> 3992 | W45: ='Raw Data'!BU34 -> 4087 | X45: ='Raw Data'!BV34 -> 4115 | Y45: ='Raw Data'!BW34 -> 4141 | Z45: ='Raw Data'!BX34 -> 4141 | AA45: ='Raw Data'!BY34 -> 4087 | AB45: ='Raw Data'!BZ34 -> 4018 | AC45: ='Raw Data'!CA34 -> 3965 | AD45: ='Raw Data'!CB34 -> 3513 | AE45: ='Raw Data'!CC34 -> 3548 | AF45: ='Raw Data'!CD34 -> 3621 | AG45: ='Raw Data'!CE34 -> 3785 | AH45: ='Raw Data'!CF34 -> 3868 | AI45: ='Raw Data'!CG34 -> 3875 | AJ45: ='Raw Data'!CH34 -> 3776 | AK45: ='Raw Data'!CI34 -> 3762 | AL45: ='Raw Data'!CJ34 -> 3640 | AM45: ='Raw Data'!CK34 -> 3516 | AN45: ='Raw Data'!CL34 -> 3378 | AO45: ='Raw Data'!CM34 -> 3296 | AP45: ='Raw Data'!CN34 -> 2975 | AQ45: ='Raw Data'!CO34 -> 3058 | AR45: ='Raw Data'!CP34 -> 3114 | AS45: ='Raw Data'!CQ34 -> 3250 | AT45: ='Raw Data'!CR34 -> 3235 | AU45: ='Raw Data'!CS34 -> 3255 | AV45: ='Raw Data'!CT34 -> 3251 | AW45: ='Raw Data'!CU34 -> 3209 | AX45: ='Raw Data'!CV34 -> 3142 | AY45: ='Raw Data'!CW34 -> 3058 | AZ45: ='Raw Data'!CX34 -> 3141 | BA45: ='Raw Data'!CY34 -> 3023 | BB45: ='Raw Data'!CZ34 -> 2844 | BC45: ='Raw Data'!DA34 -> 2893 | BD45: ='Raw Data'!DB34 -> 3076 | BE45: ='Raw Data'!DC34 -> 3152 | BF45: ='Raw Data'!DD34 -> 3191 | BG45: ='Raw Data'!DE34 -> 3240 | BH45: ='Raw Data'!DF34 -> 3145 | BI45: ='Raw Data'!DG34 -> 3153 | BJ45: ='Raw Data'!DH34 -> 3073 | BK45: ='Raw Data'!DI34 -> 3069 | BL45: ='Raw Data'!DJ34 -> 3068 | BM45: ='Raw Data'!DK34 -> 3016 | BN45: ='Raw Data'!DL34 -> 2736 | BO45: ='Raw Data'!DM34 -> 2852 | BP45: ='Raw Data'!DN34 -> 2919 | BQ45: ='Raw Data'!DO34 -> 2954 | BR45: ='Raw Data'!DP34 -> 3113 | BS45: ='Raw Data'!DQ34 -> 3126 | BT45: ='Raw Data'!DR34 -> 3080 | BU45: ='Raw Data'!DS34 -> 3074 | BV45: ='Raw Data'!DT34 -> 3119 | BW45: ='Raw Data'!DU34 -> 2950 | BX45: ='Raw Data'!DV34 -> 3014 | BY45: ='Raw Data'!DW34 -> 2969 | BZ45: ='Raw Data'!DX34 -> 2787 | CA45: ='Raw Data'!DY34 -> 2820 | CB45: ='Raw Data'!DZ34 -> 2890 | CC45: ='Raw Data'!EA34 -> 3105 | CD45: ='Raw Data'!EB34 -> 3086 | CE45: ='Raw Data'!EC34 -> 3177 | CF45: ='Raw Data'!ED34 -> 3209 | CG45: ='Raw Data'!EE34 -> 3125 | CH45: ='Raw Data'!EF34 -> 3218 | CI45: ='Raw Data'!EG34 -> 3093 | CJ45: ='Raw Data'!EH34 -> 3051 | CK45: ='Raw Data'!EI34 -> 3007 | CL45: ='Raw Data'!EJ34 -> 2691 | CM45: ='Raw Data'!EK34 -> 2771 | CN45: ='Raw Data'!EL34 -> 2866 | CO45: ='Raw Data'!EM34 -> 2942 | CP45: ='Raw Data'!EN34 -> 3015 | CQ45: ='Raw Data'!EO34 -> 3055 | CR45: ='Raw Data'!EP34 -> 3039 | CS45: ='Raw Data'!EQ34 -> 2989 | CT45: ='Raw Data'!ER34 -> 2971 | CU45: ='Raw Data'!ES34 -> 2944 | CV45: ='Raw Data'!ET34 -> 2900 | CW45: ='Raw Data'!EU34 -> 2824 | CX45: ='Raw Data'!EV34 -> 2585 | CY45: ='Raw Data'!EW34 -> 2587 | CZ45: ='Raw Data'!EX34 -> 2666 | DA45: ='Raw Data'!EY34 -> 2769 | DB45: ='Raw Data'!EZ34 -> 2850 | DC45: ='Raw Data'!FA34 -> 2730 | DD45: ='Raw Data'!FB34 -> 2748 | DE45: ='Raw Data'!FC34 -> 2672 | DF45: ='Raw Data'!FD34 -> 2594 | DG45: ='Raw Data'!FE34 -> 2571 | DH45: ='Raw Data'!FF34 -> 2527 | DI45: ='Raw Data'!FG34 -> 2415 | DJ45: ='Raw Data'!FH34 -> 2234 | DK45: ='Raw Data'!FI34 -> 2290 | DL45: ='Raw Data'!FJ34 -> 2367 | DM45: ='Raw Data'!FK34 -> 2386 | DN45: ='Raw Data'!FL34 -> 2408 | DO45: ='Raw Data'!FM34 -> 2418 | DP45: ='Raw Data'!FN34 -> 2370 | DQ45: ='Raw Data'!FO34 -> 2370 | DR45: ='Raw Data'!FP34 -> 2361 | DS45: ='Raw Data'!FQ34 -> 2297 | DT45: ='Raw Data'!FR34 -> 2310 | DU45: ='Raw Data'!FS34 -> 2247 | DV45: ='Raw Data'!FT34 -> 2083 | DW45: ='Raw Data'!FU34 -> 2095 | DX45: ='Raw Data'!FV34 -> 2141 | DY45: ='Raw Data'!FW34 -> 2236 | DZ45: ='Raw Data'!FX34 -> 2237 | EA45: ='Raw Data'!FY34 -> 2264 | EB45: ='Raw Data'!FZ34 -> 2253 | EC45: ='Raw Data'!GA34 -> 2246 | ED45: ='Raw Data'!GB34 -> 2324 | EE45: ='Raw Data'!GC34 -> 2304 | EF45: ='Raw Data'!GD34 -> 2344 | EG45: ='Raw Data'!GE34 -> 2340 | EH45: ='Raw Data'!GF34 -> 2189 | EI45: ='Raw Data'!GG34 -> 2264 | EJ45: ='Raw Data'!GH34 -> 2362 | EK45: ='Raw Data'!GI34 -> 2482 | EL45: ='Raw Data'!GJ34 -> 2554 | EM45: ='Raw Data'!GK34 -> 2540 | EN45: ='Raw Data'!GL34 -> 2464 | EO45: ='Raw Data'!GM34 -> 2395 | EP45: ='Raw Data'!GN34 -> 2405 | EQ45: ='Raw Data'!GO34 -> 2371 | ER45: ='Raw Data'!GP34 -> 2367 | ES45: ='Raw Data'!GQ34 -> 2346 | ET45: ='Raw Data'!GR34 -> 2092 | EU45: ='Raw Data'!GS34 -> 2107 | EV45: ='Raw Data'!GT34 -> 2121 | EW45: ='Raw Data'!GU34 -> 2162 | EX45: ='Raw Data'!GV34 -> 2116 | EY45: ='Raw Data'!GW34 -> 2042 | EZ45: ='Raw Data'!GX34 -> 1736 | FA45: ='Raw Data'!GY34 -> 1622 | FB45: ='Raw Data'!GZ34 -> 1428 | FC45: ='Raw Data'!HA34 -> 1400 | FD45: ='Raw Data'!HB34 -> 1327 | FE45: ='Raw Data'!HC34 -> 1274 | FF45: ='Raw Data'!HD34 -> 1142 | FG45: ='Raw Data'!HE34 -> 1030 | FH45: ='Raw Data'!HF34 -> 1050 | FI45: ='Raw Data'!HG34 -> 966 | FJ45: ='Raw Data'!HH34 -> 1012 | FK45: ='Raw Data'!HI34 -> 1027 | FL45: ='Raw Data'!HJ34 -> 1070 | FM45: ='Raw Data'!HK34 -> 1113 | FN45: ='Raw Data'!HL34 -> 1114 | FO45: ='Raw Data'!HM34 -> 1085 | FP45: ='Raw Data'!HN34 -> 942 | FQ45: ='Raw Data'!HO34 -> 883 | FR45: ='Raw Data'!HP34 -> 757 | FS45: ='Raw Data'!HQ34 -> 727 | FT45: ='Raw Data'!HR34 -> 694 | FU45: ='Raw Data'!HS34 -> 733 | FV45: ='Raw Data'!HT34 -> 767 | FW45: ='Raw Data'!HU34 -> 896 | FX45: ='Raw Data'!HV34 -> 1039 | FY45: ='Raw Data'!HW34 -> 1071 | FZ45: ='Raw Data'!HX34 -> 1053 | GA45: ='Raw Data'!HY34 -> 997 | GB45: ='Raw Data'!HZ34 -> 991 | GC45: ='Raw Data'!IA34 -> 955 | GD45: ='Raw Data'!IB34 -> 872 | GE45: ='Raw Data'!IC34 -> 808 | GF45: ='Raw Data'!ID34 -> 789 | GG45: ='Raw Data'!IE34 -> 759 | GH45: ='Raw Data'!IF34 -> 768 | GI45: ='Raw Data'!IG34 -> 767 | GJ45: ='Raw Data'!IH34 -> 784 | GK45: ='Raw Data'!II34 -> 834 | GL45: ='Raw Data'!IJ34 -> 838 | GM45: ='Raw Data'!IK34 -> 843 | GN45: ='Raw Data'!IL34 -> 852 | GO45: ='Raw Data'!IM34 -> 888 | GP45: ='Raw Data'!IN34 -> 821 | GQ45: ='Raw Data'!IO34 -> 0 | GR45: ='Raw Data'!IP34 -> 0 | GS45: ='Raw Data'!IQ34 -> 0 | GT45: ='Raw Data'!IR34 -> 0 | GU45: ='Raw Data'!IS34 -> 0

Sheet Unit Sales Data
A1: Sold Properties | B1: 2005-01-01 | C1: 2005-02-01 | D1: 2005-03-01 | E1: 2005-04-01 | F1: 2005-05-01 | G1: 2005-06-01 | H1: 2005-07-01 | I1: 2005-08-01 | J1: 2005-09-01 | K1: 2005-10-01 | L1: 2005-11-01 | M1: 2005-12-01 | N1: 2006-01-01 | O1: 2006-02-01 | P1: 2006-03-01 | Q1: 2006-04-01 | R1: 2006-05-01 | S1: 2006-06-01 | T1: 2006-07-01 | U1: 2006-08-01 | V1: 2006-09-01 | W1: 2006-10-01 | X1: 2006-11-01 | Y1: 2006-12-01 | Z1: 2007-01-01 | AA1: 2007-02-01 | AB1: 2007-03-01 | AC1: 2007-04-01 | AD1: 2007-05-01 | AE1: 2007-06-01 | AF1: 2007-07-01 | AG1: 2007-08-01 | AH1: 2007-09-01 | AI1: 2007-10-01 | AJ1: 2007-11-01 | AK1: 2007-12-01 | AL1: 2008-01-01 | AM1: 2008-02-01 | AN1: 2008-03-03 | AO1: 2008-04-01 | AP1: 2008-05-01 | AQ1: 2008-06-01 | AR1: 2008-07-01 | AS1: 2008-08-01 | AT1: 2008-09-01 | AU1: 2008-10-08 | AV1: 2008-11-14 | AW1: 2008-12-21 | AX1: 2009-01-27 | AY1: 2009-02-09 | AZ1: 2009-03-09 | BA1: 2009-04-09 | BB1: 2009-05-09 | BC1: 2009-06-09 | BD1: 2009-07-09 | BE1: 2009-08-09 | BF1: 2009-09-09 | BG1: 2009-10-09 | BH1: 2009-11-09 | BI1: 2009-12-09 | BJ1: 2010-01-09 | BK1: 2010-02-09 | BL1: 2010-03-09 | BM1: 2010-04-09 | BN1: 2010-05-09 | BO1: 2010-06-09 | BP1: 2010-07-09 | BQ1: 2010-08-09 | BR1: 2010-09-09 | BS1: 2010-10-09 | BT1: 2010-11-09 | BU1: 2010-12-09 | BV1: 2011-01-09 | BW1: 2011-02-09 | BX1: 2011-03-09 | BY1: 2011-04-09 | BZ1: 2011-05-09 | CA1: 2011-06-09 | CB1: 2011-07-09 | CC1: 2011-08-09 | CD1: 2011-09-09 | CE1: 2011-10-09 | CF1: 2011-11-09 | CG1: 2011-12-09 | CH1: 2012-01-09 | CI1: 2012-02-09 | CJ1: 2012-03-09 | CK1: 2012-04-09 | CL1: 2012-05-09 | CM1: 2012-06-09 | CN1: 2012-07-09 | CO1: 2012-08-09 | CP1: 2012-09-09 | CQ1: 2012-10-09 | CR1: 2012-11-09 | CS1: 2012-12-09 | CT1: 2013-01-09 | CU1: 2013-02-09 | CV1: 2013-03-09 | CW1: 2013-04-09 | CX1: 2013-05-09 | CY1: 2013-06-09 | CZ1: 2013-07-09 | DA1: 2013-08-09 | DB1: 2013-09-09 | DC1: 2013-10-09 | DD1: 2013-11-09 | DE1: 2013-12-09 | DF1: 2014-01-09 | DG1: 2014-02-09 | DH1: 2014-03-09 | DI1: 2014-04-09 | DJ1: 2014-05-09 | DK1: 2014-06-09 | DL1: 2014-07-09 | DM1: 2014-08-09 | DN1: 2014-09-09 | DO1: 2014-10-09 | DP1: 2014-11-09 | DQ1: 2014-12-09 | DR1: 2015-01-09 | DS1: 2015-02-09 | DT1: 2015-03-09 | DU1: 2015-04-09 | DV1: 2015-05-09 | DW1: 2015-06-09 | DX1: 2015-07-09 | DY1: 2015-08-09 | DZ1: 2015-09-09 | EA1: 2015-10-09 | EB1: 2015-11-09 | EC1: 2015-12-09 | ED1: 2016-01-09 | EE1: 2016-02-09 | EF1: 2016-03-09 | EG1: 2016-04-09 | EH1: 2016-05-09 | EI1: 2016-06-09 | EJ1: 2016-07-09 | EK1: 2016-08-09 | EL1: 2016-09-09 | EM1: 2016-10-09 | EN1: 2016-11-09 | EO1: 2016-12-09 | EP1: 2017-01-09 | EQ1: 2017-02-09 | ER1: 2017-03-09 | ES1: 2017-04-09 | ET1: 2017-05-09 | EU1: 2017-06-09 | EV1: 2017-07-09 | EW1: 2017-08-09 | EX1: 2017-09-09 | EY1: 2017-10-09 | EZ1: 2017-11-09 | FA1: 2017-12-09 | FB1: 2018-01-09 | FC1: 2018-02-09 | FD1: 2018-03-09 | FE1: 2018-04-09 | FF1: 2018-05-09 | FG1: 2018-06-09 | FH1: 2018-07-09 | FI1: 2018-08-09 | FJ1: 2018-09-09 | FK1: 2018-10-09 | FL1: 2018-11-09 | FM1: 2018-12-09 | FN1: 2019-01-09 | FO1: 2019-02-09 | FP1: 2019-03-09 | FQ1: 2019-04-09 | FR1: 2019-05-09 | FS1: 2019-06-09 | FT1: 2019-07-09 | FU1: 2019-08-09 | FV1: 2019-09-09 | FW1: 2019-10-09 | FX1: 2019-11-09 | FY1: 2019-12-09 | FZ1: 2020-01-09 | GA1: 2020-02-09 | GB1: 2020-03-09 | GC1: 2020-04-09 | GD1: 2020-05-09 | GE1: 2020-06-09 | GF1: 2020-07-09 | GG1: 2020-08-09 | GH1: 2020-09-09 | GI1: 2020-10-09 | GJ1: 2020-11-09 | GK1: 2020-12-09 | GL1: 2021-01-09 | GM1: 2021-02-09 | GN1: 2021-03-09 | GO1: 2021-04-09 | GP1: 2021-05-09 | GQ1: 2021-06-09 | GR1: 2021-07-09 | GS1: 2021-08-09 | GT1: 2021-09-09 | GU1: 2021-10-09 | GV1: 2021-11-09 | GW1: 2021-12-09 | GX1: 2022-01-09 | GY1: 2022-02-09 | GZ1: 2022-03-09 | HA1: 2022-04-09 | HB1: 2022-05-09 | HC1: 2022-06-09 | HD1: 2022-07-09 | HE1: 2022-08-09 | HF1: 2022-09-09 | HG1: 2022-10-09 | HH1: 2022-11-09 | HI1: 2022-12-09 | HJ1: 2023-01-09 | HK1: 2023-02-09 | HL1: 2023-03-09 | HM1: 2023-04-09 | HN1: 2023-05-09 | HO1: 2023-06-09 | HP1: 2023-07-09 | HQ1: 2023-08-09 | HR1: 2023-09-09 | HS1: 2023-10-09 | HT1: 2023-11-09 | HU1: 2023-12-09 | HV1: 2024-01-09 | HW1: 2024-02-09 | HX1: 2024-03-09 | HY1: 2024-04-09 | HZ1: 2024-05-09 | IA1: 2024-06-09 | IB1: 2024-07-09 | IC1: 2024-08-09 | ID1: 2024-09-09 | IE1: 2024-10-09 | IF1: 2024-11-09 | IG1: 2024-12-09 | IH1: 2025-01-09
A2: Residential | B2: ='Raw Data'!U45 -> 149 | C2: ='Raw Data'!V45 -> 119 | D2: ='Raw Data'!W45 -> 190 | E2: ='Raw Data'!X45 -> 208 | F2: ='Raw Data'!Y45 -> 286 | G2: ='Raw Data'!Z45 -> 234 | H2: ='Raw Data'!AA45 -> 167 | I2: ='Raw Data'!AB45 -> 178 | J2: ='Raw Data'!AC45 -> 177 | K2: ='Raw Data'!AD45 -> 162 | L2: ='Raw Data'!AE45 -> 126 | M2: ='Raw Data'!AF45 -> 108 | N2: ='Raw Data'!AG45 -> 97 | O2: ='Raw Data'!AH45 -> 93 | P2: ='Raw Data'!AI45 -> 122 | Q2: ='Raw Data'!AJ45 -> 118 | R2: ='Raw Data'!AK45 -> 151 | S2: ='Raw Data'!AL45 -> 117 | T2: ='Raw Data'!AM45 -> 83 | U2: ='Raw Data'!AN45 -> 106 | V2: ='Raw Data'!AO45 -> 93 | W2: ='Raw Data'!AP45 -> 119 | X2: ='Raw Data'!AQ45 -> 81 | Y2: ='Raw Data'!AR45 -> 89 | Z2: ='Raw Data'!AS45 -> 76 | AA2: ='Raw Data'!AT45 -> 103 | AB2: ='Raw Data'!AU45 -> 100 | AC2: ='Raw Data'!AV45 -> 119 | AD2: ='Raw Data'!AW45 -> 137 | AE2: ='Raw Data'!AX45 -> 117 | AF2: ='Raw Data'!AY45 -> 103 | AG2: ='Raw Data'!AZ45 -> 106 | AH2: ='Raw Data'!BA45 -> 104 | AI2: ='Raw Data'!BB45 -> 95 | AJ2: ='Raw Data'!BC45 -> 93 | AK2: ='Raw Data'!BD45 -> 82 | AL2: ='Raw Data'!BE45 -> 57 | AM2: ='Raw Data'!BF45 -> 75 | AN2: ='Raw Data'!BG45 -> 96 | AO2: ='Raw Data'!BH45 -> 92 | AP2: ='Raw Data'!BI45 -> 111 | AQ2: ='Raw Data'!BJ45 -> 110 | AR2: ='Raw Data'!BK45 -> 94 | AS2: ='Raw Data'!BL45 -> 103 | AT2: ='Raw Data'!BM45 -> 93 | AU2: ='Raw Data'!BN45 -> 85 | AV2: ='Raw Data'!BO45 -> 60 | AW2: ='Raw Data'!BP45 -> 69 | AX2: ='Raw Data'!BQ45 -> 42 | AY2: ='Raw Data'!BR45 -> 68 | AZ2: ='Raw Data'!BS45 -> 84 | BA2: ='Raw Data'!BT45 -> 81 | BB2: ='Raw Data'!BU45 -> 111 | BC2: ='Raw Data'!BV45 -> 114 | BD2: ='Raw Data'!BW45 -> 105 | BE2: ='Raw Data'!BX45 -> 105 | BF2: ='Raw Data'!BY45 -> 104 | BG2: ='Raw Data'!BZ45 -> 106 | BH2: ='Raw Data'!CA45 -> 106 | BI2: ='Raw Data'!CB45 -> 100 | BJ2: ='Raw Data'!CC45 -> 86 | BK2: ='Raw Data'!CD45 -> 72 | BL2: ='Raw Data'!CE45 -> 113 | BM2: ='Raw Data'!CF45 -> 136 | BN2: ='Raw Data'!CG45 -> 151 | BO2: ='Raw Data'!CH45 -> 137 | BP2: ='Raw Data'!CI45 -> 125 | BQ2: ='Raw Data'!CJ45 -> 99 | BR2: ='Raw Data'!CK45 -> 109 | BS2: ='Raw Data'!CL45 -> 115 | BT2: ='Raw Data'!CM45 -> 106 | BU2: ='Raw Data'!CN45 -> 125 | BV2: ='Raw Data'!CO45 -> 83 | BW2: ='Raw Data'!CP45 -> 87 | BX2: ='Raw Data'!CQ45 -> 130 | BY2: ='Raw Data'!CR45 -> 137 | BZ2: ='Raw Data'!CS45 -> 124 | CA2: ='Raw Data'!CT45 -> 142 | CB2: ='Raw Data'!CU45 -> 127 | CC2: ='Raw Data'!CV45 -> 105 | CD2: ='Raw Data'!CW45 -> 113 | CE2: ='Raw Data'!CX45 -> 109 | CF2: ='Raw Data'!CY45 -> 74 | CG2: ='Raw Data'!CZ45 -> 102 | CH2: ='Raw Data'!DA45 -> 94 | CI2: ='Raw Data'!DB45 -> 112 | CJ2: ='Raw Data'!DC45 -> 171 | CK2: ='Raw Data'!DD45 -> 131 | CL2: ='Raw Data'!DE45 -> 165 | CM2: ='Raw Data'!DF45 -> 146 | CN2: ='Raw Data'!DG45 -> 121 | CO2: ='Raw Data'!DH45 -> 125 | CP2: ='Raw Data'!DI45 -> 146 | CQ2: ='Raw Data'!DJ45 -> 134 | CR2: ='Raw Data'!DK45 -> 129 | CS2: ='Raw Data'!DL45 -> 109 | CT2: ='Raw Data'!DM45 -> 89 | CU2: ='Raw Data'!DN45 -> 91 | CV2: ='Raw Data'!DO45 -> 136 | CW2: ='Raw Data'!DP45 -> 168 | CX2: ='Raw Data'!DQ45 -> 157 | CY2: ='Raw Data'!DR45 -> 150 | CZ2: ='Raw Data'!DS45 -> 161 | DA2: ='Raw Data'!DT45 -> 136 | DB2: ='Raw Data'!DU45 -> 127 | DC2: ='Raw Data'!DV45 -> 114 | DD2: ='Raw Data'!DW45 -> 115 | DE2: ='Raw Data'!DX45 -> 125 | DF2: ='Raw Data'!DY45 -> 106 | DG2: ='Raw Data'!DZ45 -> 88 | DH2: ='Raw Data'!EA45 -> 115 | DI2: ='Raw Data'!EB45 -> 149 | DJ2: ='Raw Data'!EC45 -> 192 | DK2: ='Raw Data'!ED45 -> 147 | DL2: ='Raw Data'!EE45 -> 122 | DM2: ='Raw Data'!EF45 -> 127 | DN2: ='Raw Data'!EG45 -> 142 | DO2: ='Raw Data'!EH45 -> 144 | DP2: ='Raw Data'!EI45 -> 118 | DQ2: ='Raw Data'!EJ45 -> 157 | DR2: ='Raw Data'!EK45 -> 96 | DS2: ='Raw Data'!EL45 -> 105 | DT2: ='Raw Data'!EM45 -> 140 | DU2: ='Raw Data'!EN45 -> 153 | DV2: ='Raw Data'!EO45 -> 202 | DW2: ='Raw Data'!EP45 -> 185 | DX2: ='Raw Data'!EQ45 -> 171 | DY2: ='Raw Data'!ER45 -> 146 | DZ2: ='Raw Data'!ES45 -> 143 | EA2: ='Raw Data'!ET45 -> 159 | EB2: ='Raw Data'!EU45 -> 143 | EC2: ='Raw Data'!EV45 -> 148 | ED2: ='Raw Data'!EW45 -> 111 | EE2: ='Raw Data'!EX45 -> 92 | EF2: ='Raw Data'!EY45 -> 138 | EG2: ='Raw Data'!EZ45 -> 158 | EH2: ='Raw Data'!FA45 -> 175 | EI2: ='Raw Data'!FB45 -> 185 | EJ2: ='Raw Data'!FC45 -> 155 | EK2: ='Raw Data'!FD45 -> 159 | EL2: ='Raw Data'!FE45 -> 159 | EM2: ='Raw Data'!FF45 -> 145 | EN2: ='Raw Data'!FG45 -> 140 | EO2: ='Raw Data'!FH45 -> 173 | EP2: ='Raw Data'!FI45 -> 112 | EQ2: ='Raw Data'!FJ45 -> 129 | ER2: ='Raw Data'!FK45 -> 180 | ES2: ='Raw Data'!FL45 -> 180 | ET2: ='Raw Data'!FM45 -> 203 | EU2: ='Raw Data'!FN45 -> 218 | EV2: ='Raw Data'!FO45 -> 136 | EW2: ='Raw Data'!FP45 -> 171 | EX2: ='Raw Data'!FQ45 -> 162 | EY2: ='Raw Data'!FR45 -> 166 | EZ2: ='Raw Data'!FS45 -> 164 | FA2: ='Raw Data'!FT45 -> 164 | FB2: ='Raw Data'!FU45 -> 118 | FC2: ='Raw Data'!FV45 -> 89 | FD2: ='Raw Data'!FW45 -> 187 | FE2: ='Raw Data'!FX45 -> 186 | FF2: ='Raw Data'!FY45 -> 219 | FG2: ='Raw Data'!FZ45 -> 188 | FH2: ='Raw Data'!GA45 -> 172 | FI2: ='Raw Data'!GB45 -> 189 | FJ2: ='Raw Data'!GC45 -> 142 | FK2: ='Raw Data'!GD45 -> 176 | FL2: ='Raw Data'!GE45 -> 135 | FM2: ='Raw Data'!GF45 -> 166 | FN2: ='Raw Data'!GG45 -> 119 | FO2: ='Raw Data'!GH45 -> 123 | FP2: ='Raw Data'!GI45 -> 184 | FQ2: ='Raw Data'!GJ45 -> 189 | FR2: ='Raw Data'!GK45 -> 217 | FS2: ='Raw Data'!GL45 -> 190 | FT2: ='Raw Data'!GM45 -> 185 | FU2: ='Raw Data'!GN45 -> 201 | FV2: ='Raw Data'!GO45 -> 162 | FW2: ='Raw Data'!GP45 -> 189 | FX2: ='Raw Data'!GQ45 -> 206 | FY2: ='Raw Data'!GR45 -> 174 | FZ2: ='Raw Data'!GS45 -> 148 | GA2: ='Raw Data'!GT45 -> 146 | GB2: ='Raw Data'!GU45 -> 198 | GC2: ='Raw Data'!GV45 -> 154 | GD2: ='Raw Data'!GW45 -> 150 | GE2: ='Raw Data'!GX45 -> 221 | GF2: ='Raw Data'!GY45 -> 396 | GG2: ='Raw Data'!GZ45 -> 322 | GH2: ='Raw Data'!HA45 -> 358 | GI2: ='Raw Data'!HB45 -> 372 | GJ2: ='Raw Data'!HC45 -> 310 | GK2: ='Raw Data'!HD45 -> 316 | GL2: ='Raw Data'!HE45 -> 263 | GM2: ='Raw Data'!HF45 -> 237 | GN2: ='Raw Data'!HG45 -> 377 | GO2: ='Raw Data'!HH45 -> 349 | GP2: ='Raw Data'!HI45 -> 337 | GQ2: ='Raw Data'!HJ45 -> 326 | GR2: ='Raw Data'!HK45 -> 263 | GS2: ='Raw Data'!HL45 -> 234 | GT2: ='Raw Data'!HM45 -> 230 | GU2: ='Raw Data'!HN45 -> 253 | GV2: ='Raw Data'!HO45 -> 267 | GW2: ='Raw Data'!HP45 -> 240 | GX2: ='Raw Data'!HQ45 -> 225 | GY2: ='Raw Data'!HR45 -> 182 | GZ2: ='Raw Data'!HS45 -> 300 | HA2: ='Raw Data'!HT45 -> 265 | HB2: ='Raw Data'!HU45 -> 247 | HC2: ='Raw Data'!HV45 -> 235 | HD2: ='Raw Data'!HW45 -> 171 | HE2: ='Raw Data'!HX45 -> 201 | HF2: ='Raw Data'!HY45 -> 179 | HG2: ='Raw Data'!HZ45 -> 161 | HH2: ='Raw Data'!IA45 -> 161 | HI2: ='Raw Data'!IB45 -> 131 | HJ2: ='Raw Data'!IC45 -> 101 | HK2: ='Raw Data'!ID45 -> 137 | HL2: ='Raw Data'!IE45 -> 193 | HM2: ='Raw Data'!IF45 -> 166 | HN2: ='Raw Data'!IG45 -> 184 | HO2: ='Raw Data'!IH45 -> 189 | HP2: ='Raw Data'!II45 -> 129 | HQ2: ='Raw Data'!IJ45 -> 143 | HR2: ='Raw Data'!IK45 -> 167 | HS2: ='Raw Data'!IL45 -> 129 | HT2: ='Raw Data'!IM45 -> 137 | HU2: ='Raw Data'!IN45 -> 116 | HV2: ='Raw Data'!IO45 -> 0 | HW2: ='Raw Data'!IP45 -> 0 | HX2: ='Raw Data'!IQ45 -> 0 | HY2: ='Raw Data'!IR45 -> 0 | HZ2: ='Raw Data'!IS45 -> 0 | IA2: ='Raw Data'!IT45 -> 0 | IB2: ='Raw Data'!IU45 -> 0 | IC2: ='Raw Data'!IV45 -> 0 | ID2: ='Raw Data'!IW45 -> 0 | IE2: ='Raw Data'!IX45 -> 0 | IF2: ='Raw Data'!IY45 -> 0 | IG2: ='Raw Data'!IZ45 -> 0 | IH2: ='Raw Data'!JA45 -> 0
A3: Land | B3: ='Raw Data'!U46 -> 96 | C3: ='Raw Data'!V46 -> 61 | D3: ='Raw Data'!W46 -> 91 | E3: ='Raw Data'!X46 -> 106 | F3: ='Raw Data'!Y46 -> 111 | G3: ='Raw Data'!Z46 -> 114 | H3: ='Raw Data'!AA46 -> 69 | I3: ='Raw Data'!AB46 -> 83 | J3: ='Raw Data'!AC46 -> 115 | K3: ='Raw Data'!AD46 -> 71 | L3: ='Raw Data'!AE46 -> 77 | M3: ='Raw Data'!AF46 -> 55 | N3: ='Raw Data'!AG46 -> 63 | O3: ='Raw Data'!AH46 -> 22 | P3: ='Raw Data'!AI46 -> 48 | Q3: ='Raw Data'!AJ46 -> 33 | R3: ='Raw Data'!AK46 -> 53 | S3: ='Raw Data'!AL46 -> 34 | T3: ='Raw Data'!AM46 -> 38 | U3: ='Raw Data'!AN46 -> 31 | V3: ='Raw Data'!AO46 -> 21 | W3: ='Raw Data'!AP46 -> 52 | X3: ='Raw Data'!AQ46 -> 20 | Y3: ='Raw Data'!AR46 -> 35 | Z3: ='Raw Data'!AS46 -> 19 | AA3: ='Raw Data'!AT46 -> 19 | AB3: ='Raw Data'!AU46 -> 11 | AC3: ='Raw Data'!AV46 -> 22 | AD3: ='Raw Data'!AW46 -> 33 | AE3: ='Raw Data'!AX46 -> 23 | AF3: ='Raw Data'!AY46 -> 17 | AG3: ='Raw Data'!AZ46 -> 20 | AH3: ='Raw Data'!BA46 -> 28 | AI3: ='Raw Data'!BB46 -> 26 | AJ3: ='Raw Data'!BC46 -> 35 | AK3: ='Raw Data'!BD46 -> 19 | AL3: ='Raw Data'!BE46 -> 30 | AM3: ='Raw Data'!BF46 -> 22 | AN3: ='Raw Data'!BG46 -> 13 | AO3: ='Raw Data'!BH46 -> 29 | AP3: ='Raw Data'!BI46 -> 22 | AQ3: ='Raw Data'!BJ46 -> 25 | AR3: ='Raw Data'!BK46 -> 17 | AS3: ='Raw Data'!BL46 -> 24 | AT3: ='Raw Data'!BM46 -> 33 | AU3: ='Raw Data'!BN46 -> 16 | AV3: ='Raw Data'!BO46 -> 20 | AW3: ='Raw Data'!BP46 -> 13 | AX3: ='Raw Data'!BQ46 -> 9 | AY3: ='Raw Data'!BR46 -> 9 | AZ3: ='Raw Data'!BS46 -> 15 | BA3: ='Raw Data'!BT46 -> 6 | BB3: ='Raw Data'!BU46 -> 15 | BC3: ='Raw Data'!BV46 -> 28 | BD3: ='Raw Data'!BW46 -> 16 | BE3: ='Raw Data'!BX46 -> 29 | BF3: ='Raw Data'!BY46 -> 33 | BG3: ='Raw Data'!BZ46 -> 34 | BH3: ='Raw Data'!CA46 -> 22 | BI3: ='Raw Data'!CB46 -> 24 | BJ3: ='Raw Data'!CC46 -> 12 | BK3: ='Raw Data'!CD46 -> 20 | BL3: ='Raw Data'!CE46 -> 12 | BM3: ='Raw Data'!CF46 -> 26 | BN3: ='Raw Data'!CG46 -> 18 | BO3: ='Raw Data'!CH46 -> 28 | BP3: ='Raw Data'!CI46 -> 21 | BQ3: ='Raw Data'!CJ46 -> 30 | BR3: ='Raw Data'!CK46 -> 33 | BS3: ='Raw Data'!CL46 -> 23 | BT3: ='Raw Data'!CM46 -> 30 | BU3: ='Raw Data'!CN46 -> 29 | BV3: ='Raw Data'!CO46 -> 15 | BW3: ='Raw Data'!CP46 -> 18 | BX3: ='Raw Data'!CQ46 -> 37 | BY3: ='Raw Data'!CR46 -> 27 | BZ3: ='Raw Data'!CS46 -> 32 | CA3: ='Raw Data'!CT46 -> 33 | CB3: ='Raw Data'!CU46 -> 18 | CC3: ='Raw Data'!CV46 -> 27 | CD3: ='Raw Data'!CW46 -> 23 | CE3: ='Raw Data'!CX46 -> 18 | CF3: ='Raw Data'!CY46 -> 45 | CG3: ='Raw Data'!CZ46 -> 38 | CH3: ='Raw Data'!DA46 -> 19 | CI3: ='Raw Data'!DB46 -> 30 | CJ3: ='Raw Data'!DC46 -> 50 | CK3: ='Raw Data'!DD46 -> 51 | CL3: ='Raw Data'!DE46 -> 40 | CM3: ='Raw Data'!DF46 -> 35 | CN3: ='Raw Data'!DG46 -> 30 | CO3: ='Raw Data'!DH46 -> 46 | CP3: ='Raw Data'!DI46 -> 29 | CQ3: ='Raw Data'!DJ46 -> 40 | CR3: ='Raw Data'!DK46 -> 30 | CS3: ='Raw Data'!DL46 -> 27 | CT3: ='Raw Data'!DM46 -> 25 | CU3: ='Raw Data'!DN46 -> 52 | CV3: ='Raw Data'!DO46 -> 44 | CW3: ='Raw Data'!DP46 -> 41 | CX3: ='Raw Data'!DQ46 -> 36 | CY3: ='Raw Data'!DR46 -> 34 | CZ3: ='Raw Data'!DS46 -> 39 | DA3: ='Raw Data'!DT46 -> 44 | DB3: ='Raw Data'!DU46 -> 38 | DC3: ='Raw Data'!DV46 -> 48 | DD3: ='Raw Data'!DW46 -> 30 | DE3: ='Raw Data'!DX46 -> 59 | DF3: ='Raw Data'!DY46 -> 22 | DG3: ='Raw Data'!DZ46 -> 26 | DH3: ='Raw Data'!EA46 -> 30 | DI3: ='Raw Data'!EB46 -> 38 | DJ3: ='Raw Data'!EC46 -> 33 | DK3: ='Raw Data'!ED46 -> 51 | DL3: ='Raw Data'!EE46 -> 75 | DM3: ='Raw Data'!EF46 -> 46 | DN3: ='Raw Data'!EG46 -> 53 | DO3: ='Raw Data'!EH46 -> 48 | DP3: ='Raw Data'!EI46 -> 34 | DQ3: ='Raw Data'!EJ46 -> 35 | DR3: ='Raw Data'!EK46 -> 32 | DS3: ='Raw Data'!EL46 -> 31 | DT3: ='Raw Data'!EM46 -> 40 | DU3: ='Raw Data'!EN46 -> 38 | DV3: ='Raw Data'!EO46 -> 37 | DW3: ='Raw Data'!EP46 -> 42 | DX3: ='Raw Data'!EQ46 -> 44 | DY3: ='Raw Data'!ER46 -> 39 | DZ3: ='Raw Data'!ES46 -> 51 | EA3: ='Raw Data'!ET46 -> 39 | EB3: ='Raw Data'!EU46 -> 28 | EC3: ='Raw Data'!EV46 -> 46 | ED3: ='Raw Data'!EW46 -> 32 | EE3: ='Raw Data'!EX46 -> 37 | EF3: ='Raw Data'!EY46 -> 43 | EG3: ='Raw Data'!EZ46 -> 38 | EH3: ='Raw Data'!FA46 -> 39 | EI3: ='Raw Data'!FB46 -> 48 | EJ3: ='Raw Data'!FC46 -> 46 | EK3: ='Raw Data'!FD46 -> 44 | EL3: ='Raw Data'!FE46 -> 51 | EM3: ='Raw Data'!FF46 -> 44 | EN3: ='Raw Data'!FG46 -> 26 | EO3: ='Raw Data'!FH46 -> 23 | EP3: ='Raw Data'!FI46 -> 29 | EQ3: ='Raw Data'!FJ46 -> 19 | ER3: ='Raw Data'!FK46 -> 54 | ES3: ='Raw Data'!FL46 -> 33 | ET3: ='Raw Data'!FM46 -> 45 | EU3: ='Raw Data'!FN46 -> 76 | EV3: ='Raw Data'!FO46 -> 49 | EW3: ='Raw Data'!FP46 -> 52 | EX3: ='Raw Data'!FQ46 -> 44 | EY3: ='Raw Data'!FR46 -> 66 | EZ3: ='Raw Data'!FS46 -> 42 | FA3: ='Raw Data'!FT46 -> 38 | FB3: ='Raw Data'!FU46 -> 35 | FC3: ='Raw Data'!FV46 -> 22 | FD3: ='Raw Data'!FW46 -> 43 | FE3: ='Raw Data'!FX46 -> 36 | FF3: ='Raw Data'!FY46 -> 44 | FG3: ='Raw Data'!FZ46 -> 53 | FH3: ='Raw Data'!GA46 -> 37 | FI3: ='Raw Data'!GB46 -> 39 | FJ3: ='Raw Data'!GC46 -> 35 | FK3: ='Raw Data'!GD46 -> 36 | FL3: ='Raw Data'!GE46 -> 26 | FM3: ='Raw Data'!GF46 -> 24 | FN3: ='Raw Data'!GG46 -> 21 | FO3: ='Raw Data'!GH46 -> 37 | FP3: ='Raw Data'!GI46 -> 30 | FQ3: ='Raw Data'!GJ46 -> 37 | FR3: ='Raw Data'!GK46 -> 35 | FS3: ='Raw Data'!GL46 -> 39 | FT3: ='Raw Data'!GM46 -> 45 | FU3: ='Raw Data'!GN46 -> 39 | FV3: ='Raw Data'!GO46 -> 35 | FW3: ='Raw Data'!GP46 -> 32 | FX3: ='Raw Data'!GQ46 -> 43 | FY3: ='Raw Data'!GR46 -> 41 | FZ3: ='Raw Data'!GS46 -> 29 | GA3: ='Raw Data'!GT46 -> 33 | GB3: ='Raw Data'!GU46 -> 38 | GC3: ='Raw Data'!GV46 -> 25 | GD3: ='Raw Data'!GW46 -> 27 | GE3: ='Raw Data'!GX46 -> 27 | GF3: ='Raw Data'!GY46 -> 55 | GG3: ='Raw Data'!GZ46 -> 78 | GH3: ='Raw Data'!HA46 -> 80 | GI3: ='Raw Data'!HB46 -> 86 | GJ3: ='Raw Data'!HC46 -> 71 | GK3: ='Raw Data'!HD46 -> 80 | GL3: ='Raw Data'!HE46 -> 68 | GM3: ='Raw Data'!HF46 -> 57 | GN3: ='Raw Data'!HG46 -> 67 | GO3: ='Raw Data'!HH46 -> 93 | GP3: ='Raw Data'!HI46 -> 99 | GQ3: ='Raw Data'!HJ46 -> 103 | GR3: ='Raw Data'!HK46 -> 97 | GS3: ='Raw Data'!HL46 -> 89 | GT3: ='Raw Data'!HM46 -> 81 | GU3: ='Raw Data'!HN46 -> 75 | GV3: ='Raw Data'!HO46 -> 70 | GW3: ='Raw Data'!HP46 -> 76 | GX3: ='Raw Data'!HQ46 -> 56 | GY3: ='Raw Data'!HR46 -> 61 | GZ3: ='Raw Data'!HS46 -> 80 | HA3: ='Raw Data'!HT46 -> 75 | HB3: ='Raw Data'!HU46 -> 81 | HC3: ='Raw Data'!HV46 -> 51 | HD3: ='Raw Data'!HW46 -> 56 | HE3: ='Raw Data'!HX46 -> 62 | HF3: ='Raw Data'!HY46 -> 49 | HG3: ='Raw Data'!HZ46 -> 43 | HH3: ='Raw Data'!IA46 -> 31 | HI3: ='Raw Data'!IB46 -> 36 | HJ3: ='Raw Data'!IC46 -> 38 | HK3: ='Raw Data'!ID46 -> 36 | HL3: ='Raw Data'!IE46 -> 43 | HM3: ='Raw Data'!IF46 -> 48 | HN3: ='Raw Data'!IG46 -> 41 | HO3: ='Raw Data'!IH46 -> 55 | HP3: ='Raw Data'!II46 -> 43 | HQ3: ='Raw Data'!IJ46 -> 47 | HR3: ='Raw Data'!IK46 -> 47 | HS3: ='Raw Data'!IL46 -> 46 | HT3: ='Raw Data'!IM46 -> 42 | HU3: ='Raw Data'!IN46 -> 29 | HV3: ='Raw Data'!IO46 -> 0 | HW3: ='Raw Data'!IP46 -> 0 | HX3: ='Raw Data'!IQ46 -> 0 | HY3: ='Raw Data'!IR46 -> 0 | HZ3: ='Raw Data'!IS46 -> 0 | IA3: ='Raw Data'!IT46 -> 0 | IB3: ='Raw Data'!IU46 -> 0 | IC3: ='Raw Data'!IV46 -> 0 | ID3: ='Raw Data'!IW46 -> 0 | IE3: ='Raw Data'!IX46 -> 0 | IF3: ='Raw Data'!IY46 -> 0 | IG3: ='Raw Data'!IZ46 -> 0 | IH3: ='Raw Data'!JA46 -> 0
A4: Commercial | B4: ='Raw Data'!U47 -> 1 | C4: ='Raw Data'!V47 -> 3 | D4: ='Raw Data'!W47 -> 3 | E4: ='Raw Data'!X47 -> 4 | F4: ='Raw Data'!Y47 -> 4 | G4: ='Raw Data'!Z47 -> 6 | H4: ='Raw Data'!AA47 -> 4 | I4: ='Raw Data'!AB47 -> 4 | J4: ='Raw Data'!AC47 -> 1 | K4: ='Raw Data'!AD47 -> 14 | L4: ='Raw Data'!AE47 -> 1 | M4: ='Raw Data'!AF47 -> 3 | N4: ='Raw Data'!AG47 -> 2 | O4: ='Raw Data'!AH47 -> 1 | P4: ='Raw Data'!AI47 -> 6 | Q4: ='Raw Data'!AJ47 -> 2 | R4: ='Raw Data'!AK47 -> 3 | S4: ='Raw Data'!AL47 -> 5 | T4: ='Raw Data'!AM47 -> 2 | U4: ='Raw Data'!AN47 -> 2 | V4: ='Raw Data'!AO47 -> 9 | W4: ='Raw Data'!AP47 -> 5 | X4: ='Raw Data'!AQ47 -> 0 | Y4: ='Raw Data'!AR47 -> 1 | Z4: ='Raw Data'!AS47 -> 2 | AA4: ='Raw Data'!AT47 -> 0 | AB4: ='Raw Data'!AU47 -> 1 | AC4: ='Raw Data'!AV47 -> 2 | AD4: ='Raw Data'!AW47 -> 1 | AE4: ='Raw Data'!AX47 -> 0 | AF4: ='Raw Data'!AY47 -> 3 | AG4: ='Raw Data'!AZ47 -> 3 | AH4: ='Raw Data'!BA47 -> 1 | AI4: ='Raw Data'!BB47 -> 0 | AJ4: ='Raw Data'!BC47 -> 2 | AK4: ='Raw Data'!BD47 -> 0 | AL4: ='Raw Data'!BE47 -> 0 | AM4: ='Raw Data'!BF47 -> 1 | AN4: ='Raw Data'!BG47 -> 1 | AO4: ='Raw Data'!BH47 -> 3 | AP4: ='Raw Data'!BI47 -> 2 | AQ4: ='Raw Data'!BJ47 -> 1 | AR4: ='Raw Data'!BK47 -> 3 | AS4: ='Raw Data'!BL47 -> 1 | AT4: ='Raw Data'!BM47 -> 0 | AU4: ='Raw Data'!BN47 -> 0 | AV4: ='Raw Data'!BO47 -> 0 | AW4: ='Raw Data'!BP47 -> 1 | AX4: ='Raw Data'!BQ47 -> 2 | AY4: ='Raw Data'!BR47 -> 1 | AZ4: ='Raw Data'!BS47 -> 2 | BA4: ='Raw Data'!BT47 -> 1 | BB4: ='Raw Data'!BU47 -> 0 | BC4: ='Raw Data'!BV47 -> 0 | BD4: ='Raw Data'!BW47 -> 1 | BE4: ='Raw Data'!BX47 -> 0 | BF4: ='Raw Data'!BY47 -> 0 | BG4: ='Raw Data'!BZ47 -> 0 | BH4: ='Raw Data'!CA47 -> 1 | BI4: ='Raw Data'!CB47 -> 11 | BJ4: ='Raw Data'!CC47 -> 1 | BK4: ='Raw Data'!CD47 -> 1 | BL4: ='Raw Data'!CE47 -> 1 | BM4: ='Raw Data'!CF47 -> 2 | BN4: ='Raw Data'!CG47 -> 1 | BO4: ='Raw Data'!CH47 -> 3 | BP4: ='Raw Data'!CI47 -> 2 | BQ4: ='Raw Data'!CJ47 -> 0 | BR4: ='Raw Data'!CK47 -> 1 | BS4: ='Raw Data'!CL47 -> 0 | BT4: ='Raw Data'!CM47 -> 0 | BU4: ='Raw Data'!CN47 -> 1 | BV4: ='Raw Data'!CO47 -> 1 | BW4: ='Raw Data'!CP47 -> 2 | BX4: ='Raw Data'!CQ47 -> 2 | BY4: ='Raw Data'!CR47 -> 3 | BZ4: ='Raw Data'!CS47 -> 3 | CA4: ='Raw Data'!CT47 -> 2 | CB4: ='Raw Data'!CU47 -> 2 | CC4: ='Raw Data'!CV47 -> 0 | CD4: ='Raw Data'!CW47 -> 2 | CE4: ='Raw Data'!CX47 -> 5 | CF4: ='Raw Data'!CY47 -> 3 | CG4: ='Raw Data'!CZ47 -> 0 | CH4: ='Raw Data'!DA47 -> 3 | CI4: ='Raw Data'!DB47 -> 1 | CJ4: ='Raw Data'!DC47 -> 6 | CK4: ='Raw Data'!DD47 -> 4 | CL4: ='Raw Data'!DE47 -> 1 | CM4: ='Raw Data'!DF47 -> 1 | CN4: ='Raw Data'!DG47 -> 0 | CO4: ='Raw Data'!DH47 -> 2 | CP4: ='Raw Data'!DI47 -> 1 | CQ4: ='Raw Data'!DJ47 -> 3 | CR4: ='Raw Data'!DK47 -> 6 | CS4: ='Raw Data'!DL47 -> 4 | CT4: ='Raw Data'!DM47 -> 1 | CU4: ='Raw Data'!DN47 -> 3 | CV4: ='Raw Data'!DO47 -> 0 | CW4: ='Raw Data'!DP47 -> 4 | CX4: ='Raw Data'!DQ47 -> 1 | CY4: ='Raw Data'!DR47 -> 3 | CZ4: ='Raw Data'!DS47 -> 2 | DA4: ='Raw Data'!DT47 -> 4 | DB4: ='Raw Data'!DU47 -> 7 | DC4: ='Raw Data'!DV47 -> 2 | DD4: ='Raw Data'!DW47 -> 2 | DE4: ='Raw Data'!DX47 -> 5 | DF4: ='Raw Data'!DY47 -> 5 | DG4: ='Raw Data'!DZ47 -> 3 | DH4: ='Raw Data'!EA47 -> 1 | DI4: ='Raw Data'!EB47 -> 2 | DJ4: ='Raw Data'!EC47 -> 6 | DK4: ='Raw Data'!ED47 -> 2 | DL4: ='Raw Data'!EE47 -> 4 | DM4: ='Raw Data'!EF47 -> 1 | DN4: ='Raw Data'!EG47 -> 6 | DO4: ='Raw Data'!EH47 -> 0 | DP4: ='Raw Data'!EI47 -> 1 | DQ4: ='Raw Data'!EJ47 -> 10 | DR4: ='Raw Data'!EK47 -> 1 | DS4: ='Raw Data'!EL47 -> 6 | DT4: ='Raw Data'!EM47 -> 4 | DU4: ='Raw Data'!EN47 -> 2 | DV4: ='Raw Data'!EO47 -> 2 | DW4: ='Raw Data'!EP47 -> 0 | DX4: ='Raw Data'!EQ47 -> 3 | DY4: ='Raw Data'!ER47 -> 2 | DZ4: ='Raw Data'!ES47 -> 4 | EA4: ='Raw Data'!ET47 -> 0 | EB4: ='Raw Data'!EU47 -> 6 | EC4: ='Raw Data'!EV47 -> 4 | ED4: ='Raw Data'!EW47 -> 2 | EE4: ='Raw Data'!EX47 -> 1 | EF4: ='Raw Data'!EY47 -> 3 | EG4: ='Raw Data'!EZ47 -> 5 | EH4: ='Raw Data'!FA47 -> 3 | EI4: ='Raw Data'!FB47 -> 5 | EJ4: ='Raw Data'!FC47 -> 0 | EK4: ='Raw Data'!FD47 -> 1 | EL4: ='Raw Data'!FE47 -> 1 | EM4: ='Raw Data'!FF47 -> 4 | EN4: ='Raw Data'!FG47 -> 1 | EO4: ='Raw Data'!FH47 -> 6 | EP4: ='Raw Data'!FI47 -> 0 | EQ4: ='Raw Data'!FJ47 -> 1 | ER4: ='Raw Data'!FK47 -> 1 | ES4: ='Raw Data'!FL47 -> 6 | ET4: ='Raw Data'!FM47 -> 6 | EU4: ='Raw Data'!FN47 -> 1 | EV4: ='Raw Data'!FO47 -> 0 | EW4: ='Raw Data'!FP47 -> 1 | EX4: ='Raw Data'!FQ47 -> 0 | EY4: ='Raw Data'!FR47 -> 2 | EZ4: ='Raw Data'!FS47 -> 2 | FA4: ='Raw Data'!FT47 -> 6 | FB4: ='Raw Data'!FU47 -> 0 | FC4: ='Raw Data'!FV47 -> 1 | FD4: ='Raw Data'!FW47 -> 2 | FE4: ='Raw Data'!FX47 -> 3 | FF4: ='Raw Data'!FY47 -> 4 | FG4: ='Raw Data'!FZ47 -> 4 | FH4: ='Raw Data'!GA47 -> 0 | FI4: ='Raw Data'!GB47 -> 0 | FJ4: ='Raw Data'!GC47 -> 1 | FK4: ='Raw Data'!GD47 -> 3 | FL4: ='Raw Data'!GE47 -> 1 | FM4: ='Raw Data'!GF47 -> 2 | FN4: ='Raw Data'!GG47 -> 4 | FO4: ='Raw Data'!GH47 -> 3 | FP4: ='Raw Data'!GI47 -> 4 | FQ4: ='Raw Data'!GJ47 -> 3 | FR4: ='Raw Data'!GK47 -> 1 | FS4: ='Raw Data'!GL47 -> 3 | FT4: ='Raw Data'!GM47 -> 2 | FU4: ='Raw Data'!GN47 -> 3 | FV4: ='Raw Data'!GO47 -> 2 | FW4: ='Raw Data'!GP47 -> 3 | FX4: ='Raw Data'!GQ47 -> 1 | FY4: ='Raw Data'!GR47 -> 4 | FZ4: ='Raw Data'!GS47 -> 2 | GA4: ='Raw Data'!GT47 -> 2 | GB4: ='Raw Data'!GU47 -> 0 | GC4: ='Raw Data'!GV47 -> 2 | GD4: ='Raw Data'!GW47 -> 2 | GE4: ='Raw Data'!GX47 -> 3 | GF4: ='Raw Data'!GY47 -> 1 | GG4: ='Raw Data'!GZ47 -> 3 | GH4: ='Raw Data'!HA47 -> 7 | GI4: ='Raw Data'!HB47 -> 2 | GJ4: ='Raw Data'!HC47 -> 2 | GK4: ='Raw Data'!HD47 -> 5 | GL4: ='Raw Data'!HE47 -> 4 | GM4: ='Raw Data'!HF47 -> 4 | GN4: ='Raw Data'!HG47 -> 3 | GO4: ='Raw Data'!HH47 -> 3 | GP4: ='Raw Data'!HI47 -> 4 | GQ4: ='Raw Data'!HJ47 -> 3 | GR4: ='Raw Data'!HK47 -> 9 | GS4: ='Raw Data'!HL47 -> 6 | GT4: ='Raw Data'!HM47 -> 2 | GU4: ='Raw Data'!HN47 -> 5 | GV4: ='Raw Data'!HO47 -> 3 | GW4: ='Raw Data'!HP47 -> 3 | GX4: ='Raw Data'!HQ47 -> 4 | GY4: ='Raw Data'!HR47 -> 5 | GZ4: ='Raw Data'!HS47 -> 7 | HA4: ='Raw Data'!HT47 -> 4 | HB4: ='Raw Data'!HU47 -> 3 | HC4: ='Raw Data'!HV47 -> 4 | HD4: ='Raw Data'!HW47 -> 6 | HE4: ='Raw Data'!HX47 -> 2 | HF4: ='Raw Data'!HY47 -> 3 | HG4: ='Raw Data'!HZ47 -> 3 | HH4: ='Raw Data'!IA47 -> 3 | HI4: ='Raw Data'!IB47 -> 1 | HJ4: ='Raw Data'!IC47 -> 2 | HK4: ='Raw Data'!ID47 -> 1 | HL4: ='Raw Data'!IE47 -> 6 | HM4: ='Raw Data'!IF47 -> 1 | HN4: ='Raw Data'!IG47 -> 3 | HO4: ='Raw Data'!IH47 -> 1 | HP4: ='Raw Data'!II47 -> 0 | HQ4: ='Raw Data'!IJ47 -> 1 | HR4: ='Raw Data'!IK47 -> 2 | HS4: ='Raw Data'!IL47 -> 2 | HT4: ='Raw Data'!IM47 -> 4 | HU4: ='Raw Data'!IN47 -> 1 | HV4: ='Raw Data'!IO47 -> 0 | HW4: ='Raw Data'!IP47 -> 0 | HX4: ='Raw Data'!IQ47 -> 0 | HY4: ='Raw Data'!IR47 -> 0 | HZ4: ='Raw Data'!IS47 -> 0 | IA4: ='Raw Data'!IT47 -> 0 | IB4: ='Raw Data'!IU47 -> 0 | IC4: ='Raw Data'!IV47 -> 0 | ID4: ='Raw Data'!IW47 -> 0 | IE4: ='Raw Data'!IX47 -> 0 | IF4: ='Raw Data'!IY47 -> 0 | IG4: ='Raw Data'!IZ47 -> 0 | IH4: ='Raw Data'!JA47 -> 0
A5: Total | B5: ='Raw Data'!U48 -> 246 | C5: ='Raw Data'!V48 -> 183 | D5: ='Raw Data'!W48 -> 284 | E5: ='Raw Data'!X48 -> 318 | F5: ='Raw Data'!Y48 -> 401 | G5: ='Raw Data'!Z48 -> 354 | H5: ='Raw Data'!AA48 -> 240 | I5: ='Raw Data'!AB48 -> 265 | J5: ='Raw Data'!AC48 -> 293 | K5: ='Raw Data'!AD48 -> 247 | L5: ='Raw Data'!AE48 -> 204 | M5: ='Raw Data'!AF48 -> 166 | N5: ='Raw Data'!AG48 -> 162 | O5: ='Raw Data'!AH48 -> 116 | P5: ='Raw Data'!AI48 -> 176 | Q5: ='Raw Data'!AJ48 -> 153 | R5: ='Raw Data'!AK48 -> 207 | S5: ='Raw Data'!AL48 -> 156 | T5: ='Raw Data'!AM48 -> 123 | U5: ='Raw Data'!AN48 -> 139 | V5: ='Raw Data'!AO48 -> 123 | W5: ='Raw Data'!AP48 -> 176 | X5: ='Raw Data'!AQ48 -> 101 | Y5: ='Raw Data'!AR48 -> 125 | Z5: ='Raw Data'!AS48 -> 97 | AA5: ='Raw Data'!AT48 -> 122 | AB5: ='Raw Data'!AU48 -> 112 | AC5: ='Raw Data'!AV48 -> 143 | AD5: ='Raw Data'!AW48 -> 171 | AE5: ='Raw Data'!AX48 -> 140 | AF5: ='Raw Data'!AY48 -> 123 | AG5: ='Raw Data'!AZ48 -> 129 | AH5: ='Raw Data'!BA48 -> 133 | AI5: ='Raw Data'!BB48 -> 121 | AJ5: ='Raw Data'!BC48 -> 130 | AK5: ='Raw Data'!BD48 -> 101 | AL5: ='Raw Data'!BE48 -> 87 | AM5: ='Raw Data'!BF48 -> 98 | AN5: ='Raw Data'!BG48 -> 110 | AO5: ='Raw Data'!BH48 -> 124 | AP5: ='Raw Data'!BI48 -> 135 | AQ5: ='Raw Data'!BJ48 -> 136 | AR5: ='Raw Data'!BK48 -> 114 | AS5: ='Raw Data'!BL48 -> 128 | AT5: ='Raw Data'!BM48 -> 126 | AU5: ='Raw Data'!BN48 -> 101 | AV5: ='Raw Data'!BO48 -> 80 | AW5: ='Raw Data'!BP48 -> 83 | AX5: ='Raw Data'!BQ48 -> 53 | AY5: ='Raw Data'!BR48 -> 78 | AZ5: ='Raw Data'!BS48 -> 101 | BA5: ='Raw Data'!BT48 -> 88 | BB5: ='Raw Data'!BU48 -> 126 | BC5: ='Raw Data'!BV48 -> 142 | BD5: ='Raw Data'!BW48 -> 122 | BE5: ='Raw Data'!BX48 -> 134 | BF5: ='Raw Data'!BY48 -> 137 | BG5: ='Raw Data'!BZ48 -> 140 | BH5: ='Raw Data'!CA48 -> 129 | BI5: ='Raw Data'!CB48 -> 135 | BJ5: ='Raw Data'!CC48 -> 99 | BK5: ='Raw Data'!CD48 -> 93 | BL5: ='Raw Data'!CE48 -> 126 | BM5: ='Raw Data'!CF48 -> 164 | BN5: ='Raw Data'!CG48 -> 170 | BO5: ='Raw Data'!CH48 -> 168 | BP5: ='Raw Data'!CI48 -> 148 | BQ5: ='Raw Data'!CJ48 -> 129 | BR5: ='Raw Data'!CK48 -> 143 | BS5: ='Raw Data'!CL48 -> 138 | BT5: ='Raw Data'!CM48 -> 136 | BU5: ='Raw Data'!CN48 -> 155 | BV5: ='Raw Data'!CO48 -> 99 | BW5: ='Raw Data'!CP48 -> 107 | BX5: ='Raw Data'!CQ48 -> 169 | BY5: ='Raw Data'!CR48 -> 167 | BZ5: ='Raw Data'!CS48 -> 159 | CA5: ='Raw Data'!CT48 -> 177 | CB5: ='Raw Data'!CU48 -> 147 | CC5: ='Raw Data'!CV48 -> 132 | CD5: ='Raw Data'!CW48 -> 138 | CE5: ='Raw Data'!CX48 -> 132 | CF5: ='Raw Data'!CY48 -> 122 | CG5: ='Raw Data'!CZ48 -> 140 | CH5: ='Raw Data'!DA48 -> 116 | CI5: ='Raw Data'!DB48 -> 143 | CJ5: ='Raw Data'!DC48 -> 227 | CK5: ='Raw Data'!DD48 -> 186 | CL5: ='Raw Data'!DE48 -> 206 | CM5: ='Raw Data'!DF48 -> 182 | CN5: ='Raw Data'!DG48 -> 151 | CO5: ='Raw Data'!DH48 -> 173 | CP5: ='Raw Data'!DI48 -> 176 | CQ5: ='Raw Data'!DJ48 -> 177 | CR5: ='Raw Data'!DK48 -> 165 | CS5: ='Raw Data'!DL48 -> 140 | CT5: ='Raw Data'!DM48 -> 115 | CU5: ='Raw Data'!DN48 -> 146 | CV5: ='Raw Data'!DO48 -> 180 | CW5: ='Raw Data'!DP48 -> 213 | CX5: ='Raw Data'!DQ48 -> 194 | CY5: ='Raw Data'!DR48 -> 187 | CZ5: ='Raw Data'!DS48 -> 202 | DA5: ='Raw Data'!DT48 -> 184 | DB5: ='Raw Data'!DU48 -> 172 | DC5: ='Raw Data'!DV48 -> 164 | DD5: ='Raw Data'!DW48 -> 147 | DE5: ='Raw Data'!DX48 -> 189 | DF5: ='Raw Data'!DY48 -> 133 | DG5: ='Raw Data'!DZ48 -> 117 | DH5: ='Raw Data'!EA48 -> 146 | DI5: ='Raw Data'!EB48 -> 189 | DJ5: ='Raw Data'!EC48 -> 231 | DK5: ='Raw Data'!ED48 -> 200 | DL5: ='Raw Data'!EE48 -> 201 | DM5: ='Raw Data'!EF48 -> 174 | DN5: ='Raw Data'!EG48 -> 201 | DO5: ='Raw Data'!EH48 -> 192 | DP5: ='Raw Data'!EI48 -> 153 | DQ5: ='Raw Data'!EJ48 -> 202 | DR5: ='Raw Data'!EK48 -> 129 | DS5: ='Raw Data'!EL48 -> 142 | DT5: ='Raw Data'!EM48 -> 184 | DU5: ='Raw Data'!EN48 -> 193 | DV5: ='Raw Data'!EO48 -> 241 | DW5: ='Raw Data'!EP48 -> 227 | DX5: ='Raw Data'!EQ48 -> 218 | DY5: ='Raw Data'!ER48 -> 187 | DZ5: ='Raw Data'!ES48 -> 198 | EA5: ='Raw Data'!ET48 -> 198 | EB5: ='Raw Data'!EU48 -> 177 | EC5: ='Raw Data'!EV48 -> 198 | ED5: ='Raw Data'!EW48 -> 145 | EE5: ='Raw Data'!EX48 -> 130 | EF5: ='Raw Data'!EY48 -> 184 | EG5: ='Raw Data'!EZ48 -> 201 | EH5: ='Raw Data'!FA48 -> 217 | EI5: ='Raw Data'!FB48 -> 238 | EJ5: ='Raw Data'!FC48 -> 201 | EK5: ='Raw Data'!FD48 -> 204 | EL5: ='Raw Data'!FE48 -> 211 | EM5: ='Raw Data'!FF48 -> 193 | EN5: ='Raw Data'!FG48 -> 167 | EO5: ='Raw Data'!FH48 -> 202 | EP5: ='Raw Data'!FI48 -> 141 | EQ5: ='Raw Data'!FJ48 -> 149 | ER5: ='Raw Data'!FK48 -> 235 | ES5: ='Raw Data'!FL48 -> 219 | ET5: ='Raw Data'!FM48 -> 254 | EU5: ='Raw Data'!FN48 -> 295 | EV5: ='Raw Data'!FO48 -> 185 | EW5: ='Raw Data'!FP48 -> 224 | EX5: ='Raw Data'!FQ48 -> 206 | EY5: ='Raw Data'!FR48 -> 234 | EZ5: ='Raw Data'!FS48 -> 208 | FA5: ='Raw Data'!FT48 -> 208 | FB5: ='Raw Data'!FU48 -> 153 | FC5: ='Raw Data'!FV48 -> 112 | FD5: ='Raw Data'!FW48 -> 232 | FE5: ='Raw Data'!FX48 -> 225 | FF5: ='Raw Data'!FY48 -> 267 | FG5: ='Raw Data'!FZ48 -> 245 | FH5: ='Raw Data'!GA48 -> 209 | FI5: ='Raw Data'!GB48 -> 228 | FJ5: ='Raw Data'!GC48 -> 178 | FK5: ='Raw Data'!GD48 -> 215 | FL5: ='Raw Data'!GE48 -> 162 | FM5: ='Raw Data'!GF48 -> 192 | FN5: ='Raw Data'!GG48 -> 144 | FO5: ='Raw Data'!GH48 -> 163 | FP5: ='Raw Data'!GI48 -> 218 | FQ5: ='Raw Data'!GJ48 -> 229 | FR5: ='Raw Data'!GK48 -> 253 | FS5: ='Raw Data'!GL48 -> 232 | FT5: ='Raw Data'!GM48 -> 232 | FU5: ='Raw Data'!GN48 -> 243 | FV5: ='Raw Data'!GO48 -> 199 | FW5: ='Raw Data'!GP48 -> 224 | FX5: ='Raw Data'!GQ48 -> 250 | FY5: ='Raw Data'!GR48 -> 219 | FZ5: ='Raw Data'!GS48 -> 179 | GA5: ='Raw Data'!GT48 -> 181 | GB5: ='Raw Data'!GU48 -> 236 | GC5: ='Raw Data'!GV48 -> 181 | GD5: ='Raw Data'!GW48 -> 179 | GE5: ='Raw Data'!GX48 -> 251 | GF5: ='Raw Data'!GY48 -> 452 | GG5: ='Raw Data'!GZ48 -> 403 | GH5: ='Raw Data'!HA48 -> 445 | GI5: ='Raw Data'!HB48 -> 460 | GJ5: ='Raw Data'!HC48 -> 383 | GK5: ='Raw Data'!HD48 -> 401 | GL5: ='Raw Data'!HE48 -> 335 | GM5: ='Raw Data'!HF48 -> 298 | GN5: ='Raw Data'!HG48 -> 447 | GO5: ='Raw Data'!HH48 -> 445 | GP5: ='Raw Data'!HI48 -> 440 | GQ5: ='Raw Data'!HJ48 -> 432 | GR5: ='Raw Data'!HK48 -> 369 | GS5: ='Raw Data'!HL48 -> 329 | GT5: ='Raw Data'!HM48 -> 313 | GU5: ='Raw Data'!HN48 -> 333 | GV5: ='Raw Data'!HO48 -> 340 | GW5: ='Raw Data'!HP48 -> 319 | GX5: ='Raw Data'!HQ48 -> 285 | GY5: ='Raw Data'!HR48 -> 248 | GZ5: ='Raw Data'!HS48 -> 387 | HA5: ='Raw Data'!HT48 -> 344 | HB5: ='Raw Data'!HU48 -> 331 | HC5: ='Raw Data'!HV48 -> 290 | HD5: ='Raw Data'!HW48 -> 233 | HE5: ='Raw Data'!HX48 -> 265 | HF5: ='Raw Data'!HY48 -> 231 | HG5: ='Raw Data'!HZ48 -> 207 | HH5: ='Raw Data'!IA48 -> 195 | HI5: ='Raw Data'!IB48 -> 168 | HJ5: ='Raw Data'!IC48 -> 141 | HK5: ='Raw Data'!ID48 -> 174 | HL5: ='Raw Data'!IE48 -> 242 | HM5: ='Raw Data'!IF48 -> 215 | HN5: ='Raw Data'!IG48 -> 228 | HO5: ='Raw Data'!IH48 -> 245 | HP5: ='Raw Data'!II48 -> 172 | HQ5: ='Raw Data'!IJ48 -> 191 | HR5: ='Raw Data'!IK48 -> 216 | HS5: ='Raw Data'!IL48 -> 177 | HT5: ='Raw Data'!IM48 -> 183 | HU5: ='Raw Data'!IN48 -> 146 | HV5: ='Raw Data'!IO48 -> 0 | HW5: ='Raw Data'!IP48 -> 0 | HX5: ='Raw Data'!IQ48 -> 0 | HY5: ='Raw Data'!IR48 -> 0 | HZ5: ='Raw Data'!IS48 -> 0 | IA5: ='Raw Data'!IT48 -> 0 | IB5: ='Raw Data'!IU48 -> 0 | IC5: ='Raw Data'!IV48 -> 0 | ID5: ='Raw Data'!IW48 -> 0 | IE5: ='Raw Data'!IX48 -> 0 | IF5: ='Raw Data'!IY48 -> 0 | IG5: ='Raw Data'!IZ48 -> 0 | IH5: ='Raw Data'!JA48 -> 0
GK9: Total Sold
GL10: Jan | GM10: Feb | GN10: Mar | GO10: Apr | GP10: May | GQ10: Jun | GR10: Jul | GS10: Aug | GT10: Sep | GU10: Oct | GV10: Nov | GW10: Dec | GY10: Commercial Proerty Sales
GK11: 2020 | GL11: =FZ5 -> 179 | GM11: =GA5 -> 181 | GN11: 236 | GO11: 181 | GP11: 179 | GQ11: 251 | GR11: 452 | GS11: 403 | GT11: 445 | GU11: 460 | GV11: 383 | GW11: 401 | GY11: Month / Year | GZ11: Count | HA11: %Chg
GK12: 2021 | GL12: =GL5 -> 335 | GM12: =GM5 -> 298 | GN12: 447 | GO12: 445 | GP12: 440 | GQ12: 432 | GR12: 369 | GS12: 329 | GT12: 313 | GU12: 333 | GV12: 340 | GW12: 319 | GY12: 2023 | GZ12: =GX22 -> 24 | HA12: =(GZ12-GZ13)/GZ13 -> -0.4666666667
GK13: 2022 | GL13: =GX5 -> 285 | GM13: =GY5 -> 248 | GN13: 387 | GO13: 344 | GP13: 331 | GQ13: 290 | GR13: 233 | GS13: 265 | GT13: 231 | GU13: 207 | GV13: 195 | GW13: 168 | GY13: 2022 | GZ13: =GX21 -> 45 | HA13: =(GZ13-GZ14)/GZ14 -> -0.08163265306
GK14: 2023 | GL14: =HJ5 -> 141 | GM14: =HK5 -> 174 | GN14: 242 | GO14: 215 | GP14: 228 | GQ14: 245 | GR14: 172 | GS14: 191 | GT14: 216 | GU14: 177 | GV14: 183 | GW14: 146 | GY14: 2021 | GZ14: =GX20 -> 49 | HA14: =(GZ14-GZ15)/GZ15 -> 0.5806451613
GY15: 2020 | GZ15: =GX19 -> 31
GK17: Commercial Sold
GL18: Jan | GM18: Feb | GN18: Mar | GO18: Apr | GP18: May | GQ18: Jun | GR18: Jul | GS18: Aug | GT18: Sep | GU18: Oct | GV18: Nov | GW18: Dec | GX18: Total
GK19: 2020 | GL19: =SUM(FZ4) -> 2 | GM19: =SUM(GA4) -> 2 | GN19: 0 | GO19: 2 | GP19: 2 | GQ19: 3 | GR19: 1 | GS19: 3 | GT19: 7 | GU19: 2 | GV19: 2 | GW19: 5 | GX19: =SUM(GL19:GW19) -> 31
GK20: 2021 | GL20: =GL4 -> 4 | GM20: =GM4 -> 4 | GN20: 3 | GO20: 3 | GP20: 4 | GQ20: 3 | GR20: 9 | GS20: 6 | GT20: 2 | GU20: 5 | GV20: 3 | GW20: 3 | GX20: =SUM(GL20:GW20) -> 49
GK21: 2022 | GL21: =SUM(GX4) -> 4 | GM21: =SUM(GY4) -> 5 | GN21: 7 | GO21: 4 | GP21: 3 | GQ21: 4 | GR21: 6 | GS21: 2 | GT21: 3 | GU21: 3 | GV21: 3 | GW21: 1 | GX21: =SUM(GL21:GW21) -> 45
GK22: 2023 | GL22: =HJ4 -> 2 | GM22: =HK4 -> 1 | GN22: 6 | GO22: 1 | GP22: 3 | GQ22: 1 | GR22: 0 | GS22: 1 | GT22: 2 | GU22: 2 | GV22: 4 | GW22: 1 | GX22: =SUM(GL22:GW22) -> 24
GK23: 2024

Sheet Total Year to Year Sales
B1: Jan | C1: Feb | D1: Mar | E1: Apr | F1: May | G1: Jun | H1: July | I1: Aug | J1: Sep | K1: Oct | L1: Nov | M1: Dec
A2: 2005 | B2: ='Raw Data'!U48 -> 246 | C2: ='Raw Data'!V48 -> 183 | D2: ='Raw Data'!W48 -> 284 | E2: ='Raw Data'!X48 -> 318 | F2: ='Raw Data'!Y48 -> 401 | G2: ='Raw Data'!Z48 -> 354 | H2: ='Raw Data'!AA48 -> 240 | I2: ='Raw Data'!AB48 -> 265 | J2: ='Raw Data'!AC48 -> 293 | K2: ='Raw Data'!AD48 -> 247 | L2: ='Raw Data'!AE48 -> 204 | M2: ='Raw Data'!AF48 -> 166 | N2: =SUM(B2:M2) -> 3201
A3: 2006 | B3: ='Raw Data'!AG48 -> 162 | C3: ='Raw Data'!AH48 -> 116 | D3: ='Raw Data'!AI48 -> 176 | E3: ='Raw Data'!AJ48 -> 153 | F3: ='Raw Data'!AK48 -> 207 | G3: ='Raw Data'!AL48 -> 156 | H3: ='Raw Data'!AM48 -> 123 | I3: ='Raw Data'!AN48 -> 139 | J3: ='Raw Data'!AO48 -> 123 | K3: ='Raw Data'!AP48 -> 176 | L3: ='Raw Data'!AQ48 -> 101 | M3: ='Raw Data'!AR48 -> 125 | N3: 1757
A4: 2007 | B4: ='Raw Data'!AS48 -> 97 | C4: ='Raw Data'!AT48 -> 122 | D4: ='Raw Data'!AU48 -> 112 | E4: ='Raw Data'!AV48 -> 143 | F4: ='Raw Data'!AW48 -> 171 | G4: ='Raw Data'!AX48 -> 140 | H4: ='Raw Data'!AY48 -> 123 | I4: ='Raw Data'!AZ48 -> 129 | J4: ='Raw Data'!BA48 -> 133 | K4: ='Raw Data'!BB48 -> 121 | L4: ='Raw Data'!BC48 -> 130 | M4: ='Raw Data'!BD48 -> 101 | N4: 1522
A5: 2008 | B5: ='Raw Data'!BE48 -> 87 | C5: ='Raw Data'!BF48 -> 98 | D5: ='Raw Data'!BG48 -> 110 | E5: ='Raw Data'!BH48 -> 124 | F5: ='Raw Data'!BI48 -> 135 | G5: ='Raw Data'!BJ48 -> 136 | H5: ='Raw Data'!BK48 -> 114 | I5: ='Raw Data'!BL48 -> 128 | J5: ='Raw Data'!BM48 -> 126 | K5: ='Raw Data'!BN48 -> 101 | L5: ='Raw Data'!BO48 -> 80 | M5: ='Raw Data'!BP48 -> 83 | N5: 1322
A6: 2009 | B6: ='Raw Data'!BQ48 -> 53 | C6: ='Raw Data'!BR48 -> 78 | D6: ='Raw Data'!BS48 -> 101 | E6: ='Raw Data'!BT48 -> 88 | F6: ='Raw Data'!BU48 -> 126 | G6: ='Raw Data'!BV48 -> 142 | H6: ='Raw Data'!BW48 -> 122 | I6: ='Raw Data'!BX48 -> 134 | J6: ='Raw Data'!BY48 -> 137 | K6: ='Raw Data'!BZ48 -> 140 | L6: ='Raw Data'!CA48 -> 129 | M6: ='Raw Data'!CB48 -> 135 | N6: 1385
A7: 2010 | B7: ='Raw Data'!CC48 -> 99 | C7: ='Raw Data'!CD48 -> 93 | D7: ='Raw Data'!CE48 -> 126 | E7: ='Raw Data'!CF48 -> 164 | F7: ='Raw Data'!CG48 -> 170 | G7: ='Raw Data'!CH48 -> 168 | H7: ='Raw Data'!CI48 -> 148 | I7: ='Raw Data'!CJ48 -> 129 | J7: ='Raw Data'!CK48 -> 143 | K7: ='Raw Data'!CL48 -> 138 | L7: ='Raw Data'!CM48 -> 136 | M7: ='Raw Data'!CN48 -> 155 | N7: 1669
A8: 2011 | B8: ='Raw Data'!CO48 -> 99 | C8: ='Raw Data'!CP48 -> 107 | D8: ='Raw Data'!CQ48 -> 169 | E8: ='Raw Data'!CR48 -> 167 | F8: ='Raw Data'!CS48 -> 159 | G8: ='Raw Data'!CT48 -> 177 | H8: ='Raw Data'!CU48 -> 147 | I8: ='Raw Data'!CV48 -> 132 | J8: ='Raw Data'!CW48 -> 138 | K8: ='Raw Data'!CX48 -> 132 | L8: ='Raw Data'!CY48 -> 122 | M8: ='Raw Data'!CZ48 -> 140 | N8: 1689
A9: 2012 | B9: ='Raw Data'!DA48 -> 116 | C9: ='Raw Data'!DB48 -> 143 | D9: ='Raw Data'!DC48 -> 227 | E9: ='Raw Data'!DD48 -> 186 | F9: ='Raw Data'!DE48 -> 206 | G9: ='Raw Data'!DF48 -> 182 | H9: ='Raw Data'!DG48 -> 151 | I9: ='Raw Data'!DH48 -> 173 | J9: ='Raw Data'!DI48 -> 176 | K9: ='Raw Data'!DJ48 -> 177 | L9: ='Raw Data'!DK48 -> 165 | M9: ='Raw Data'!DL48 -> 140 | N9: 2042
A10: 2013 | B10: ='Raw Data'!DM48 -> 115 | C10: ='Raw Data'!DN48 -> 146 | D10: ='Raw Data'!DO48 -> 180 | E10: ='Raw Data'!DP48 -> 213 | F10: ='Raw Data'!DQ48 -> 194 | G10: ='Raw Data'!DR48 -> 187 | H10: ='Raw Data'!DS48 -> 202 | I10: ='Raw Data'!DT48 -> 184 | J10: ='Raw Data'!DU48 -> 172 | K10: ='Raw Data'!DV48 -> 164 | L10: ='Raw Data'!DW48 -> 147 | M10: ='Raw Data'!DX48 -> 189 | N10: 2093
A11: 2014 | B11: ='Raw Data'!DY48 -> 133 | C11: ='Raw Data'!DZ48 -> 117 | D11: ='Raw Data'!EA48 -> 146 | E11: ='Raw Data'!EB48 -> 189 | F11: ='Raw Data'!EC48 -> 231 | G11: ='Raw Data'!ED48 -> 200 | H11: ='Raw Data'!EE48 -> 201 | I11: ='Raw Data'!EF48 -> 174 | J11: ='Raw Data'!EG48 -> 201 | K11: ='Raw Data'!EH48 -> 192 | L11: ='Raw Data'!EI48 -> 153 | M11: ='Raw Data'!EJ48 -> 202 | N11: 2139
A12: 2015 | B12: ='Raw Data'!EK48 -> 129 | C12: ='Raw Data'!EL48 -> 142 | D12: ='Raw Data'!EM48 -> 184 | E12: ='Raw Data'!EN48 -> 193 | F12: ='Raw Data'!EO48 -> 241 | G12: ='Raw Data'!EP48 -> 227 | H12: ='Raw Data'!EQ48 -> 218 | I12: ='Raw Data'!ER48 -> 187 | J12: ='Raw Data'!ES48 -> 198 | K12: ='Raw Data'!ET48 -> 198 | L12: ='Raw Data'!EU48 -> 177 | M12: ='Raw Data'!EV48 -> 198 | N12: 2292
A13: 2016 | B13: ='Raw Data'!EW48 -> 145 | C13: ='Raw Data'!EX48 -> 130 | D13: ='Raw Data'!EY48 -> 184 | E13: ='Raw Data'!EZ48 -> 201 | F13: ='Raw Data'!FA48 -> 217 | G13: ='Raw Data'!FB48 -> 238 | H13: ='Raw Data'!FC48 -> 201 | I13: ='Raw Data'!FD48 -> 204 | J13: ='Raw Data'!FE48 -> 211 | K13: ='Raw Data'!FF48 -> 193 | L13: ='Raw Data'!FG48 -> 167 | M13: ='Raw Data'!FH48 -> 202 | N13: =SUM(B13:L13) -> 2091
A14: 2017 | B14: ='Raw Data'!FI48 -> 141 | C14: ='Raw Data'!FJ48 -> 149 | D14: ='Raw Data'!FK48 -> 235 | E14: ='Raw Data'!FL48 -> 219 | F14: ='Raw Data'!FM48 -> 254 | G14: ='Raw Data'!FN48 -> 295 | H14: ='Raw Data'!FO48 -> 185 | I14: ='Raw Data'!FP48 -> 224 | J14: ='Raw Data'!FQ48 -> 206 | K14: ='Raw Data'!FR48 -> 234 | L14: ='Raw Data'!FS48 -> 208 | M14: ='Raw Data'!FT48 -> 208 | O14: =SUM(B14:C14) -> 290
A15: 2018 | B15: ='Raw Data'!FU48 -> 153 | C15: ='Raw Data'!FV48 -> 112 | D15: ='Raw Data'!FW48 -> 232 | E15: ='Raw Data'!FX48 -> 225 | F15: ='Raw Data'!FY48 -> 267 | G15: ='Raw Data'!FZ48 -> 245 | H15: ='Raw Data'!GA48 -> 209 | I15: ='Raw Data'!GB48 -> 228 | J15: ='Raw Data'!GC48 -> 178 | K15: ='Raw Data'!GD48 -> 215 | L15: ='Raw Data'!GE48 -> 162 | M15: ='Raw Data'!GF48 -> 192 | O15: =SUM(B15) -> 153
A16: 2019 | B16: ='Raw Data'!GG48 -> 144 | C16: ='Raw Data'!GH48 -> 163 | D16: ='Raw Data'!GI48 -> 218 | E16: ='Raw Data'!GJ48 -> 229 | F16: ='Raw Data'!GK48 -> 253 | G16: ='Raw Data'!GL48 -> 232 | H16: ='Raw Data'!GM48 -> 232 | I16: ='Raw Data'!GN48 -> 243 | J16: ='Raw Data'!GO48 -> 199 | K16: ='Raw Data'!GP48 -> 224 | L16: ='Raw Data'!GQ48 -> 250 | M16: ='Raw Data'!GR48 -> 219 | O16: =SUM(B16:M16) -> 2606
A17: 2020 | B17: ='Raw Data'!GS48 -> 179 | C17: ='Raw Data'!GT48 -> 181 | D17: ='Raw Data'!GU48 -> 236 | E17: ='Raw Data'!GV48 -> 181 | F17: ='Raw Data'!GW48 -> 179 | G17: ='Raw Data'!GX48 -> 251 | H17: ='Raw Data'!GY48 -> 452 | I17: ='Raw Data'!GZ48 -> 403 | J17: ='Raw Data'!HA48 -> 445 | K17: ='Raw Data'!HB48 -> 460 | L17: ='Raw Data'!HC48 -> 383 | M17: ='Raw Data'!HD48 -> 401 | O17: =SUM(B17:M17) -> 3751
A18: 2021 | B18: ='Raw Data'!HE48 -> 335 | C18: ='Raw Data'!HF48 -> 298 | D18: ='Raw Data'!HG48 -> 447 | E18: ='Raw Data'!HH48 -> 445 | F18: ='Raw Data'!HI48 -> 440 | G18: ='Raw Data'!HJ48 -> 432 | H18: ='Raw Data'!HK48 -> 369 | I18: ='Raw Data'!HL48 -> 329 | J18: ='Raw Data'!HM48 -> 313 | K18: ='Raw Data'!HN48 -> 333 | L18: ='Raw Data'!HO48 -> 340 | M18: ='Raw Data'!HP48 -> 319 | O18: =SUM(B18:M18) -> 4400
A19: 2022 | B19: ='Raw Data'!HQ48 -> 285 | C19: ='Raw Data'!HR48 -> 248 | D19: ='Raw Data'!HS48 -> 387 | E19: ='Raw Data'!HT48 -> 344 | F19: ='Raw Data'!HU48 -> 331 | G19: ='Raw Data'!HV48 -> 290 | H19: ='Raw Data'!HW48 -> 233 | I19: ='Raw Data'!HX48 -> 265 | J19: ='Raw Data'!HY48 -> 231 | K19: ='Raw Data'!HZ48 -> 207 | L19: ='Raw Data'!IA48 -> 195 | M19: ='Raw Data'!IB48 -> 168 | O19: =SUM(B19:M19) -> 3184
A20: 2023 | B20: ='Raw Data'!IC48 -> 141 | C20: ='Raw Data'!ID48 -> 174 | D20: ='Raw Data'!IE48 -> 242 | E20: ='Raw Data'!IF48 -> 215 | F20: ='Raw Data'!IG48 -> 228 | G20: ='Raw Data'!IH48 -> 245 | H20: ='Raw Data'!II48 -> 172 | I20: ='Raw Data'!IJ48 -> 191 | J20: ='Raw Data'!IK48 -> 216 | K20: ='Raw Data'!IL48 -> 177 | L20: ='Raw Data'!IM48 -> 183 | M20: ='Raw Data'!IN48 -> 146 | O20: =SUM(B20:M20) -> 2330 | R20: Total Volume Sold
A21: 2024 | R21: Month / Year | S21: Count | T21: %Chg
E22: Monthly Sales | I22: All Property Sales | R22: 2023 | S22: 1224094917 | T22: =(S22-S23)/S23 -> -0.3050092156
E23: Month / Year | F23: Count | G23: %Chg | I23: Month / Year | J23: Count | K23: %Chg | R23: 2022 | S23: 1761311005 | T23: =(S23-S24)/S24 -> -0.1602008885
E24: Dec'23 | F24: =M20 -> 146 | G24: =(F24-F25)/F25 -> -0.130952381 | I24: 2023 | J24: =O20 -> 2330 | K24: =(J24-J25)/J25 -> -0.2682160804 | R24: 2021 | S24: 2097300391 | T24: =(S24-S25)/S25 -> 0.4230725491
E25: Dec'22 | F25: =M19 -> 168 | G25: =(F25-F26)/F26 -> -0.473354232 | I25: 2022 | J25: =O19 -> 3184 | K25: =(J25-J26)/J26 -> -0.2763636364 | R25: 2020 | S25: 1473783183
E26: Dec'21 | F26: =M18 -> 319 | G26: =(F26-F27)/F27 -> -0.2044887781 | I26: 2021 | J26: =O18 -> 4400 | K26: =(J26-J27)/J27 -> 0.1730205279
E27: Dec'20 | F27: =M17 -> 401 | I27: 2020 | J27: =O17 -> 3751
M39: x

Sheet 3 Yr Snapshot
B1: ='Raw Data'!U36 -> 2005-01-05 | C1: ='Raw Data'!V36 -> 2005-02-05 | D1: ='Raw Data'!W36 -> 2005-03-05 | E1: ='Raw Data'!X36 -> 2005-04-05 | F1: ='Raw Data'!Y36 -> 2005-05-05 | G1: ='Raw Data'!Z36 -> 2005-06-05 | H1: ='Raw Data'!AA36 -> 2005-07-05 | I1: ='Raw Data'!AB36 -> 2005-08-05 | J1: ='Raw Data'!AC36 -> 2005-09-05 | K1: ='Raw Data'!AD36 -> 2005-10-05 | L1: ='Raw Data'!AE36 -> 2005-11-05 | M1: ='Raw Data'!AF36 -> 2005-12-05 | N1: ='Raw Data'!AG36 -> 2006-01-05 | O1: ='Raw Data'!AH36 -> 2006-02-05 | P1: ='Raw Data'!AI36 -> 2006-03-05 | Q1: ='Raw Data'!AJ36 -> 2006-04-05 | R1: ='Raw Data'!AK36 -> 2006-05-06 | S1: ='Raw Data'!AL36 -> 2006-06-06 | T1: ='Raw Data'!AM36 -> 2006-07-06 | U1: ='Raw Data'!AN36 -> 2006-08-06 | V1: ='Raw Data'!AO36 -> 2006-09-06 | W1: ='Raw Data'!AP36 -> 2006-10-06 | X1: ='Raw Data'!AQ36 -> 2006-11-06 | Y1: ='Raw Data'!AR36 -> 2006-12-06 | Z1: ='Raw Data'!AS36 -> 2007-01-06 | AA1: ='Raw Data'!AT36 -> 2007-02-06 | AB1: ='Raw Data'!AU36 -> 2007-03-06 | AC1: ='Raw Data'!AV36 -> 2007-04-06 | AD1: ='Raw Data'!AW36 -> 2007-05-06 | AE1: ='Raw Data'!AX36 -> 2007-06-06 | AF1: ='Raw Data'!AY36 -> 2007-07-06 | AG1: ='Raw Data'!AZ36 -> 2007-08-06 | AH1: ='Raw Data'!BA36 -> 2007-09-06 | AI1: ='Raw Data'!BB36 -> 2007-10-06 | AJ1: ='Raw Data'!BC36 -> 2007-11-06 | AK1: ='Raw Data'!BD36 -> 2007-12-06 | AL1: ='Raw Data'!BE36 -> 2008-01-06 | AM1: ='Raw Data'!BF36 -> 2008-02-06 | AN1: ='Raw Data'!BG36 -> 2008-03-06 | AO1: ='Raw Data'!BH36 -> 2008-04-06 | AP1: ='Raw Data'!BI36 -> 2008-05-06 | AQ1: ='Raw Data'!BJ36 -> 2008-06-06 | AR1: ='Raw Data'!BK36 -> 2008-07-06 | AS1: ='Raw Data'!BL36 -> 2008-08-06 | AT1: ='Raw Data'!BM36 -> 2008-09-06 | AU1: ='Raw Data'!BN36 -> 2008-10-06 | AV1: ='Raw Data'!BO36 -> 2008-11-06 | AW1: ='Raw Data'!BP36 -> 2008-12-06 | AX1: ='Raw Data'!BQ36 -> 2009-01-06 | AY1: ='Raw Data'!BR36 -> 2009-02-06 | AZ1: ='Raw Data'!BS36 -> 2009-03-06 | BA1: ='Raw Data'!BT36 -> 2009-04-06 | BB1: ='Raw Data'!BU36 -> 2009-05-06 | BC1: ='Raw Data'!BV36 -> 2009-06-06 | BD1: ='Raw Data'!BW36 -> 2009-07-06 | BE1: ='Raw Data'!BX36 -> 2009-08-06 | BF1: ='Raw Data'!BY36 -> 2009-09-06 | BG1: ='Raw Data'!BZ36 -> 2009-10-06 | BH1: ='Raw Data'!CA36 -> 2009-11-06 | BI1: ='Raw Data'!CB36 -> 2009-12-06 | BJ1: ='Raw Data'!CC36 -> 2010-01-06 | BK1: ='Raw Data'!CD36 -> 2010-02-06 | BL1: ='Raw Data'!CE36 -> 2010-03-06 | BM1: ='Raw Data'!CF36 -> 2010-04-06 | BN1: ='Raw Data'!CG36 -> 2010-05-06 | BO1: ='Raw Data'!CH36 -> 2010-06-06 | BP1: ='Raw Data'!CI36 -> 2010-07-06 | BQ1: ='Raw Data'!CJ36 -> 2010-08-06 | BR1: ='Raw Data'!CK36 -> 2010-09-06 | BS1: ='Raw Data'!CL36 -> 2010-10-06 | BT1: ='Raw Data'!CM36 -> 2010-11-06 | BU1: ='Raw Data'!CN36 -> 2010-12-06 | BV1: ='Raw Data'!CO36 -> 2011-01-06 | BW1: ='Raw Data'!CP36 -> 2011-02-06 | BX1: ='Raw Data'!CQ36 -> 2011-03-06 | BY1: ='Raw Data'!CR36 -> 2011-04-06 | BZ1: ='Raw Data'!CS36 -> 2011-05-06 | CA1: ='Raw Data'!CT36 -> 2011-06-06 | CB1: ='Raw Data'!CU36 -> 2011-07-06 | CC1: ='Raw Data'!CV36 -> 2011-08-06 | CD1: ='Raw Data'!CW36 -> 2011-09-06 | CE1: ='Raw Data'!CX36 -> 2011-10-06 | CF1: ='Raw Data'!CY36 -> 2011-11-06 | CG1: ='Raw Data'!CZ36 -> 2011-12-06 | CH1: ='Raw Data'!DA36 -> 2012-01-06 | CI1: ='Raw Data'!DB36 -> 2012-02-06 | CJ1: ='Raw Data'!DC36 -> 2012-03-06 | CK1: ='Raw Data'!DD36 -> 2012-04-06 | CL1: ='Raw Data'!DE36 -> 2012-05-06 | CM1: ='Raw Data'!DF36 -> 2012-06-06 | CN1: ='Raw Data'!DG36 -> 2012-07-06 | CO1: ='Raw Data'!DH36 -> 2012-08-06 | CP1: ='Raw Data'!DI36 -> 2012-09-06 | CQ1: ='Raw Data'!DJ36 -> 2012-10-06 | CR1: ='Raw Data'!DK36 -> 2012-11-06 | CS1: ='Raw Data'!DL36 -> 2012-12-06 | CT1: ='Raw Data'!DM36 -> 2013-01-06 | CU1: ='Raw Data'!DN36 -> 2013-02-06 | CV1: ='Raw Data'!DO36 -> 2013-03-06 | CW1: ='Raw Data'!DP36 -> 2013-04-06 | CX1: ='Raw Data'!DQ36 -> 2013-05-06 | CY1: ='Raw Data'!DR36 -> 2013-06-06 | CZ1: ='Raw Data'!DS36 -> 2013-07-06 | DA1: ='Raw Data'!DT36 -> 2013-08-06 | DB1: ='Raw Data'!DU36 -> 2013-09-06 | DC1: ='Raw Data'!DV36 -> 2013-10-06 | DD1: ='Raw Data'!DW36 -> 2013-11-06 | DE1: ='Raw Data'!DX36 -> 2013-12-06 | DF1: ='Raw Data'!DY36 -> 2014-01-06 | DG1: ='Raw Data'!DZ36 -> 2014-02-06 | DH1: ='Raw Data'!EA36 -> 2014-03-06 | DI1: ='Raw Data'!EB36 -> 2014-04-06 | DJ1: ='Raw Data'!EC36 -> 2014-05-06 | DK1: ='Raw Data'!ED36 -> 2014-06-06 | DL1: ='Raw Data'!EE36 -> 2014-07-06 | DM1: ='Raw Data'!EF36 -> 2014-08-06 | DN1: ='Raw Data'!EG36 -> 2014-09-06 | DO1: ='Raw Data'!EH36 -> 2014-10-06 | DP1: ='Raw Data'!EI36 -> 2014-11-06 | DQ1: ='Raw Data'!EJ36 -> 2014-12-06 | DR1: ='Raw Data'!EK36 -> 2015-01-06 | DS1: ='Raw Data'!EL36 -> 2015-02-06 | DT1: ='Raw Data'!EM36 -> 2015-03-06 | DU1: ='Raw Data'!EN36 -> 2015-04-06 | DV1: ='Raw Data'!EO36 -> 2015-05-06 | DW1: ='Raw Data'!EP36 -> 2015-06-06 | DX1: ='Raw Data'!EQ36 -> 2015-07-06 | DY1: ='Raw Data'!ER36 -> 2015-08-06 | DZ1: ='Raw Data'!ES36 -> 2015-09-06 | EA1: ='Raw Data'!ET36 -> 2015-10-06 | EB1: ='Raw Data'!EU36 -> 2015-11-06 | EC1: ='Raw Data'!EV36 -> 2015-12-06 | ED1: ='Raw Data'!EW36 -> 2016-01-06 | EE1: ='Raw Data'!EX36 -> 2016-02-06 | EF1: ='Raw Data'!EY36 -> 2016-03-06 | EG1: ='Raw Data'!EZ36 -> 2016-04-06 | EH1: ='Raw Data'!FA36 -> 2016-05-06 | EI1: ='Raw Data'!FB36 -> 2016-06-06 | EJ1: ='Raw Data'!FC36 -> 2016-07-06 | EK1: ='Raw Data'!FD36 -> 2016-08-06 | EL1: ='Raw Data'!FE36 -> 2016-09-06 | EM1: ='Raw Data'!FF36 -> 2016-10-06 | EN1: ='Raw Data'!FG36 -> 2016-11-06 | EO1: ='Raw Data'!FH36 -> 2016-12-06 | EP1: ='Raw Data'!FI36 -> 2017-01-06 | EQ1: 2017-02-17 | ER1: 2017-03-17 | ES1: 2017-04-17 | ET1: 2017-05-17 | EU1: 2017-06-17 | EV1: 2017-07-17 | EW1: 2017-08-17 | EX1: 2017-09-17 | EY1: 2017-10-17 | EZ1: 2017-11-17 | FA1: 2017-12-17 | FB1: 2018-01-17 | FC1: 2018-02-17 | FD1: 2018-03-17 | FE1: 2018-04-17 | FF1: 2018-05-17 | FG1: 2018-06-17 | FH1: 2018-07-17 | FI1: 2018-08-17 | FJ1: 2018-09-17 | FK1: 2018-10-17 | FL1: 2018-11-17 | FM1: 2018-12-17 | FN1: 2019-01-17 | FO1: 2019-02-17 | FP1: 2019-03-17 | FQ1: 2019-04-17 | FR1: 2019-05-17 | FS1: 2019-06-17 | FT1: 2019-07-17 | FU1: 2019-08-17 | FV1: 2019-09-17 | FW1: 2019-10-17 | FX1: 2019-11-17 | FY1: 2019-12-17 | FZ1: 2020-01-17 | GA1: 2020-02-17 | GB1: 2020-03-17 | GC1: 2020-04-17 | GD1: 2020-05-17 | GE1: 2020-06-17 | GF1: 2020-07-17 | GG1: 2020-08-17 | GH1: 2020-09-17 | GI1: 2020-10-17 | GJ1: 2020-11-17 | GK1: 2020-12-17 | GL1: 2021-01-17 | GM1: 2021-02-17 | GN1: 2021-03-17 | GO1: 2021-04-17 | GP1: 2021-05-17 | GQ1: 2021-06-17 | GR1: 2021-07-17 | GS1: 2021-08-17 | GT1: 2021-09-17 | GU1: 2021-10-17 | GV1: 2021-11-17 | GW1: 2021-12-17 | GX1: 2022-01-17 | GY1: 2022-02-17 | GZ1: 2022-03-17 | HA1: 2022-04-17 | HB1: 2022-05-17 | HC1: 2022-06-17 | HD1: 2022-07-17 | HE1: 2022-08-17 | HF1: 2022-09-17 | HG1: 2022-10-17 | HH1: 2022-11-17 | HI1: 2022-12-17 | HJ1: 2023-01-17 | HK1: 2023-02-17 | HL1: 2023-03-17 | HM1: 2023-04-17 | HN1: 2023-05-17 | HO1: 2023-06-17 | HP1: 2023-07-17 | HQ1: 2023-08-17 | HR1: 2023-09-17 | HS1: 2023-10-17 | HT1: 2023-11-17 | HU1: 2023-12-17 | HV1: 2024-01-17 | HW1: 2024-02-17 | HX1: 2024-03-17 | HY1: 2024-04-17 | HZ1: 2024-05-17 | IA1: 2024-06-17 | IB1: 2024-07-17 | IC1: 2024-08-17 | ID1: 2024-09-17 | IE1: 2024-10-17 | IF1: 2024-11-17 | IG1: 2024-12-17 | IH1: 2025-01-17
A2: Sold Residential | B2: ='Raw Data'!U45 -> 149 | C2: ='Raw Data'!V45 -> 119 | D2: ='Raw Data'!W45 -> 190 | E2: ='Raw Data'!X45 -> 208 | F2: ='Raw Data'!Y45 -> 286 | G2: ='Raw Data'!Z45 -> 234 | H2: ='Raw Data'!AA45 -> 167 | I2: ='Raw Data'!AB45 -> 178 | J2: ='Raw Data'!AC45 -> 177 | K2: ='Raw Data'!AD45 -> 162 | L2: ='Raw Data'!AE45 -> 126 | M2: ='Raw Data'!AF45 -> 108 | N2: ='Raw Data'!AG45 -> 97 | O2: ='Raw Data'!AH45 -> 93 | P2: ='Raw Data'!AI45 -> 122 | Q2: ='Raw Data'!AJ45 -> 118 | R2: ='Raw Data'!AK45 -> 151 | S2: ='Raw Data'!AL45 -> 117 | T2: ='Raw Data'!AM45 -> 83 | U2: ='Raw Data'!AN45 -> 106 | V2: ='Raw Data'!AO45 -> 93 | W2: ='Raw Data'!AP45 -> 119 | X2: ='Raw Data'!AQ45 -> 81 | Y2: ='Raw Data'!AR45 -> 89 | Z2: ='Raw Data'!AS45 -> 76 | AA2: ='Raw Data'!AT45 -> 103 | AB2: ='Raw Data'!AU45 -> 100 | AC2: ='Raw Data'!AV45 -> 119 | AD2: ='Raw Data'!AW45 -> 137 | AE2: ='Raw Data'!AX45 -> 117 | AF2: ='Raw Data'!AY45 -> 103 | AG2: ='Raw Data'!AZ45 -> 106 | AH2: ='Raw Data'!BA45 -> 104 | AI2: ='Raw Data'!BB45 -> 95 | AJ2: ='Raw Data'!BC45 -> 93 | AK2: ='Raw Data'!BD45 -> 82 | AL2: ='Raw Data'!BE45 -> 57 | AM2: ='Raw Data'!BF45 -> 75 | AN2: ='Raw Data'!BG45 -> 96 | AO2: ='Raw Data'!BH45 -> 92 | AP2: ='Raw Data'!BI45 -> 111 | AQ2: ='Raw Data'!BJ45 -> 110 | AR2: ='Raw Data'!BK45 -> 94 | AS2: ='Raw Data'!BL45 -> 103 | AT2: ='Raw Data'!BM45 -> 93 | AU2: ='Raw Data'!BN45 -> 85 | AV2: ='Raw Data'!BO45 -> 60 | AW2: ='Raw Data'!BP45 -> 69 | AX2: ='Raw Data'!BQ45 -> 42 | AY2: ='Raw Data'!BR45 -> 68 | AZ2: ='Raw Data'!BS45 -> 84 | BA2: ='Raw Data'!BT45 -> 81 | BB2: ='Raw Data'!BU45 -> 111 | BC2: ='Raw Data'!BV45 -> 114 | BD2: ='Raw Data'!BW45 -> 105 | BE2: ='Raw Data'!BX45 -> 105 | BF2: ='Raw Data'!BY45 -> 104 | BG2: ='Raw Data'!BZ45 -> 106 | BH2: ='Raw Data'!CA45 -> 106 | BI2: ='Raw Data'!CB45 -> 100 | BJ2: ='Raw Data'!CC45 -> 86 | BK2: ='Raw Data'!CD45 -> 72 | BL2: ='Raw Data'!CE45 -> 113 | BM2: ='Raw Data'!CF45 -> 136 | BN2: ='Raw Data'!CG45 -> 151 | BO2: ='Raw Data'!CH45 -> 137 | BP2: ='Raw Data'!CI45 -> 125 | BQ2: ='Raw Data'!CJ45 -> 99 | BR2: ='Raw Data'!CK45 -> 109 | BS2: ='Raw Data'!CL45 -> 115 | BT2: ='Raw Data'!CM45 -> 106 | BU2: ='Raw Data'!CN45 -> 125 | BV2: ='Raw Data'!CO45 -> 83 | BW2: ='Raw Data'!CP45 -> 87 | BX2: ='Raw Data'!CQ45 -> 130 | BY2: ='Raw Data'!CR45 -> 137 | BZ2: ='Raw Data'!CS45 -> 124 | CA2: ='Raw Data'!CT45 -> 142 | CB2: ='Raw Data'!CU45 -> 127 | CC2: ='Raw Data'!CV45 -> 105 | CD2: ='Raw Data'!CW45 -> 113 | CE2: ='Raw Data'!CX45 -> 109 | CF2: ='Raw Data'!CY45 -> 74 | CG2: ='Raw Data'!CZ45 -> 102 | CH2: ='Raw Data'!DA45 -> 94 | CI2: ='Raw Data'!DB45 -> 112 | CJ2: ='Raw Data'!DC45 -> 171 | CK2: ='Raw Data'!DD45 -> 131 | CL2: ='Raw Data'!DE45 -> 165 | CM2: ='Raw Data'!DF45 -> 146 | CN2: ='Raw Data'!DG45 -> 121 | CO2: ='Raw Data'!DH45 -> 125 | CP2: ='Raw Data'!DI45 -> 146 | CQ2: ='Raw Data'!DJ45 -> 134 | CR2: ='Raw Data'!DK45 -> 129 | CS2: ='Raw Data'!DL45 -> 109 | CT2: ='Raw Data'!DM45 -> 89 | CU2: ='Raw Data'!DN45 -> 91 | CV2: ='Raw Data'!DO45 -> 136 | CW2: ='Raw Data'!DP45 -> 168 | CX2: ='Raw Data'!DQ45 -> 157 | CY2: ='Raw Data'!DR45 -> 150 | CZ2: ='Raw Data'!DS45 -> 161 | DA2: ='Raw Data'!DT45 -> 136 | DB2: ='Raw Data'!DU45 -> 127 | DC2: ='Raw Data'!DV45 -> 114 | DD2: ='Raw Data'!DW45 -> 115 | DE2: ='Raw Data'!DX45 -> 125 | DF2: ='Raw Data'!DY45 -> 106 | DG2: ='Raw Data'!DZ45 -> 88 | DH2: ='Raw Data'!EA45 -> 115 | DI2: ='Raw Data'!EB45 -> 149 | DJ2: ='Raw Data'!EC45 -> 192 | DK2: ='Raw Data'!ED45 -> 147 | DL2: ='Raw Data'!EE45 -> 122 | DM2: ='Raw Data'!EF45 -> 127 | DN2: ='Raw Data'!EG45 -> 142 | DO2: ='Raw Data'!EH45 -> 144 | DP2: ='Raw Data'!EI45 -> 118 | DQ2: ='Raw Data'!EJ45 -> 157 | DR2: ='Raw Data'!EK45 -> 96 | DS2: ='Raw Data'!EL45 -> 105 | DT2: ='Raw Data'!EM45 -> 140 | DU2: ='Raw Data'!EN45 -> 153 | DV2: ='Raw Data'!EO45 -> 202 | DW2: ='Raw Data'!EP45 -> 185 | DX2: ='Raw Data'!EQ45 -> 171 | DY2: ='Raw Data'!ER45 -> 146 | DZ2: ='Raw Data'!ES45 -> 143 | EA2: ='Raw Data'!ET45 -> 159 | EB2: ='Raw Data'!EU45 -> 143 | EC2: ='Raw Data'!EV45 -> 148 | ED2: ='Raw Data'!EW45 -> 111 | EE2: ='Raw Data'!EX45 -> 92 | EF2: ='Raw Data'!EY45 -> 138 | EG2: ='Raw Data'!EZ45 -> 158 | EH2: ='Raw Data'!FA45 -> 175 | EI2: ='Raw Data'!FB45 -> 185 | EJ2: ='Raw Data'!FC45 -> 155 | EK2: ='Raw Data'!FD45 -> 159 | EL2: ='Raw Data'!FE45 -> 159 | EM2: ='Raw Data'!FF45 -> 145 | EN2: ='Raw Data'!FG45 -> 140 | EO2: ='Raw Data'!FH45 -> 173 | EP2: ='Raw Data'!FI45 -> 112 | EQ2: ='Raw Data'!FJ45 -> 129 | ER2: ='Raw Data'!FK45 -> 180 | ES2: ='Raw Data'!FL45 -> 180 | ET2: ='Raw Data'!FM45 -> 203 | EU2: ='Raw Data'!FN45 -> 218 | EV2: ='Raw Data'!FO45 -> 136 | EW2: ='Raw Data'!FP45 -> 171 | EX2: ='Raw Data'!FQ45 -> 162 | EY2: ='Raw Data'!FR45 -> 166 | EZ2: ='Raw Data'!FS45 -> 164 | FA2: ='Raw Data'!FT45 -> 164 | FB2: ='Raw Data'!FU45 -> 118 | FC2: ='Raw Data'!FV45 -> 89 | FD2: ='Raw Data'!FW45 -> 187 | FE2: ='Raw Data'!FX45 -> 186 | FF2: ='Raw Data'!FY45 -> 219 | FG2: ='Raw Data'!FZ45 -> 188 | FH2: ='Raw Data'!GA45 -> 172 | FI2: ='Raw Data'!GB45 -> 189 | FJ2: ='Raw Data'!GC45 -> 142 | FK2: ='Raw Data'!GD45 -> 176 | FL2: ='Raw Data'!GE45 -> 135 | FM2: ='Raw Data'!GF45 -> 166 | FN2: ='Raw Data'!GG45 -> 119 | FO2: ='Raw Data'!GH45 -> 123 | FP2: ='Raw Data'!GI45 -> 184 | FQ2: ='Raw Data'!GJ45 -> 189 | FR2: ='Raw Data'!GK45 -> 217 | FS2: ='Raw Data'!GL45 -> 190 | FT2: ='Raw Data'!GM45 -> 185 | FU2: ='Raw Data'!GN45 -> 201 | FV2: ='Raw Data'!GO45 -> 162 | FW2: ='Raw Data'!GP45 -> 189 | FX2: ='Raw Data'!GQ45 -> 206 | FY2: ='Raw Data'!GR45 -> 174 | FZ2: ='Raw Data'!GS45 -> 148 | GA2: ='Raw Data'!GT45 -> 146 | GB2: ='Raw Data'!GU45 -> 198 | GC2: ='Raw Data'!GV45 -> 154 | GD2: ='Raw Data'!GW45 -> 150 | GE2: ='Raw Data'!GX45 -> 221 | GF2: ='Raw Data'!GY45 -> 396 | GG2: ='Raw Data'!GZ45 -> 322 | GH2: ='Raw Data'!HA45 -> 358 | GI2: ='Raw Data'!HB45 -> 372 | GJ2: ='Raw Data'!HC45 -> 310 | GK2: ='Raw Data'!HD45 -> 316 | GL2: ='Raw Data'!HE45 -> 263 | GM2: ='Raw Data'!HF45 -> 237 | GN2: ='Raw Data'!HG45 -> 377 | GO2: ='Raw Data'!HH45 -> 349 | GP2: ='Raw Data'!HI45 -> 337 | GQ2: ='Raw Data'!HJ45 -> 326 | GR2: ='Raw Data'!HK45 -> 263 | GS2: ='Raw Data'!HL45 -> 234 | GT2: ='Raw Data'!HM45 -> 230 | GU2: ='Raw Data'!HN45 -> 253 | GV2: ='Raw Data'!HO45 -> 267 | GW2: ='Raw Data'!HP45 -> 240 | GX2: ='Raw Data'!HQ45 -> 225 | GY2: ='Raw Data'!HR45 -> 182 | GZ2: ='Raw Data'!HS45 -> 300 | HA2: ='Raw Data'!HT45 -> 265 | HB2: ='Raw Data'!HU45 -> 247 | HC2: ='Raw Data'!HV45 -> 235 | HD2: ='Raw Data'!HW45 -> 171 | HE2: ='Raw Data'!HX45 -> 201 | HF2: ='Raw Data'!HY45 -> 179 | HG2: ='Raw Data'!HZ45 -> 161 | HH2: ='Raw Data'!IA45 -> 161 | HI2: ='Raw Data'!IB45 -> 131 | HJ2: ='Raw Data'!IC45 -> 101 | HK2: ='Raw Data'!ID45 -> 137 | HL2: ='Raw Data'!IE45 -> 193 | HM2: ='Raw Data'!IF45 -> 166 | HN2: ='Raw Data'!IG45 -> 184 | HO2: ='Raw Data'!IH45 -> 189 | HP2: ='Raw Data'!II45 -> 129 | HQ2: ='Raw Data'!IJ45 -> 143 | HR2: ='Raw Data'!IK45 -> 167 | HS2: ='Raw Data'!IL45 -> 129 | HT2: ='Raw Data'!IM45 -> 137 | HU2: ='Raw Data'!IN45 -> 116 | HV2: ='Raw Data'!IO45 -> 0 | HW2: ='Raw Data'!IP45 -> 0 | HX2: ='Raw Data'!IQ45 -> 0 | HY2: ='Raw Data'!IR45 -> 0 | HZ2: ='Raw Data'!IS45 -> 0 | IA2: ='Raw Data'!IT45 -> 0 | IB2: ='Raw Data'!IU45 -> 0 | IC2: ='Raw Data'!IV45 -> 0 | ID2: ='Raw Data'!IW45 -> 0 | IE2: ='Raw Data'!IX45 -> 0 | IF2: ='Raw Data'!IY45 -> 0 | IG2: ='Raw Data'!IZ45 -> 0 | IH2: ='Raw Data'!JA45 -> 0
A3: Sold Land | B3: ='Raw Data'!U46 -> 96 | C3: ='Raw Data'!V46 -> 61 | D3: ='Raw Data'!W46 -> 91 | E3: ='Raw Data'!X46 -> 106 | F3: ='Raw Data'!Y46 -> 111 | G3: ='Raw Data'!Z46 -> 114 | H3: ='Raw Data'!AA46 -> 69 | I3: ='Raw Data'!AB46 -> 83 | J3: ='Raw Data'!AC46 -> 115 | K3: ='Raw Data'!AD46 -> 71 | L3: ='Raw Data'!AE46 -> 77 | M3: ='Raw Data'!AF46 -> 55 | N3: ='Raw Data'!AG46 -> 63 | O3: ='Raw Data'!AH46 -> 22 | P3: ='Raw Data'!AI46 -> 48 | Q3: ='Raw Data'!AJ46 -> 33 | R3: ='Raw Data'!AK46 -> 53 | S3: ='Raw Data'!AL46 -> 34 | T3: ='Raw Data'!AM46 -> 38 | U3: ='Raw Data'!AN46 -> 31 | V3: ='Raw Data'!AO46 -> 21 | W3: ='Raw Data'!AP46 -> 52 | X3: ='Raw Data'!AQ46 -> 20 | Y3: ='Raw Data'!AR46 -> 35 | Z3: ='Raw Data'!AS46 -> 19 | AA3: ='Raw Data'!AT46 -> 19 | AB3: ='Raw Data'!AU46 -> 11 | AC3: ='Raw Data'!AV46 -> 22 | AD3: ='Raw Data'!AW46 -> 33 | AE3: ='Raw Data'!AX46 -> 23 | AF3: ='Raw Data'!AY46 -> 17 | AG3: ='Raw Data'!AZ46 -> 20 | AH3: ='Raw Data'!BA46 -> 28 | AI3: ='Raw Data'!BB46 -> 26 | AJ3: ='Raw Data'!BC46 -> 35 | AK3: ='Raw Data'!BD46 -> 19 | AL3: ='Raw Data'!BE46 -> 30 | AM3: ='Raw Data'!BF46 -> 22 | AN3: ='Raw Data'!BG46 -> 13 | AO3: ='Raw Data'!BH46 -> 29 | AP3: ='Raw Data'!BI46 -> 22 | AQ3: ='Raw Data'!BJ46 -> 25 | AR3: ='Raw Data'!BK46 -> 17 | AS3: ='Raw Data'!BL46 -> 24 | AT3: ='Raw Data'!BM46 -> 33 | AU3: ='Raw Data'!BN46 -> 16 | AV3: ='Raw Data'!BO46 -> 20 | AW3: ='Raw Data'!BP46 -> 13 | AX3: ='Raw Data'!BQ46 -> 9 | AY3: ='Raw Data'!BR46 -> 9 | AZ3: ='Raw Data'!BS46 -> 15 | BA3: ='Raw Data'!BT46 -> 6 | BB3: ='Raw Data'!BU46 -> 15 | BC3: ='Raw Data'!BV46 -> 28 | BD3: ='Raw Data'!BW46 -> 16 | BE3: ='Raw Data'!BX46 -> 29 | BF3: ='Raw Data'!BY46 -> 33 | BG3: ='Raw Data'!BZ46 -> 34 | BH3: ='Raw Data'!CA46 -> 22 | BI3: ='Raw Data'!CB46 -> 24 | BJ3: ='Raw Data'!CC46 -> 12 | BK3: ='Raw Data'!CD46 -> 20 | BL3: ='Raw Data'!CE46 -> 12 | BM3: ='Raw Data'!CF46 -> 26 | BN3: ='Raw Data'!CG46 -> 18 | BO3: ='Raw Data'!CH46 -> 28 | BP3: ='Raw Data'!CI46 -> 21 | BQ3: ='Raw Data'!CJ46 -> 30 | BR3: ='Raw Data'!CK46 -> 33 | BS3: ='Raw Data'!CL46 -> 23 | BT3: ='Raw Data'!CM46 -> 30 | BU3: ='Raw Data'!CN46 -> 29 | BV3: ='Raw Data'!CO46 -> 15 | BW3: ='Raw Data'!CP46 -> 18 | BX3: ='Raw Data'!CQ46 -> 37 | BY3: ='Raw Data'!CR46 -> 27 | BZ3: ='Raw Data'!CS46 -> 32 | CA3: ='Raw Data'!CT46 -> 33 | CB3: ='Raw Data'!CU46 -> 18 | CC3: ='Raw Data'!CV46 -> 27 | CD3: ='Raw Data'!CW46 -> 23 | CE3: ='Raw Data'!CX46 -> 18 | CF3: ='Raw Data'!CY46 -> 45 | CG3: ='Raw Data'!CZ46 -> 38 | CH3: ='Raw Data'!DA46 -> 19 | CI3: ='Raw Data'!DB46 -> 30 | CJ3: ='Raw Data'!DC46 -> 50 | CK3: ='Raw Data'!DD46 -> 51 | CL3: ='Raw Data'!DE46 -> 40 | CM3: ='Raw Data'!DF46 -> 35 | CN3: ='Raw Data'!DG46 -> 30 | CO3: ='Raw Data'!DH46 -> 46 | CP3: ='Raw Data'!DI46 -> 29 | CQ3: ='Raw Data'!DJ46 -> 40 | CR3: ='Raw Data'!DK46 -> 30 | CS3: ='Raw Data'!DL46 -> 27 | CT3: ='Raw Data'!DM46 -> 25 | CU3: ='Raw Data'!DN46 -> 52 | CV3: ='Raw Data'!DO46 -> 44 | CW3: ='Raw Data'!DP46 -> 41 | CX3: ='Raw Data'!DQ46 -> 36 | CY3: ='Raw Data'!DR46 -> 34 | CZ3: ='Raw Data'!DS46 -> 39 | DA3: ='Raw Data'!DT46 -> 44 | DB3: ='Raw Data'!DU46 -> 38 | DC3: ='Raw Data'!DV46 -> 48 | DD3: ='Raw Data'!DW46 -> 30 | DE3: ='Raw Data'!DX46 -> 59 | DF3: ='Raw Data'!DY46 -> 22 | DG3: ='Raw Data'!DZ46 -> 26 | DH3: ='Raw Data'!EA46 -> 30 | DI3: ='Raw Data'!EB46 -> 38 | DJ3: ='Raw Data'!EC46 -> 33 | DK3: ='Raw Data'!ED46 -> 51 | DL3: ='Raw Data'!EE46 -> 75 | DM3: ='Raw Data'!EF46 -> 46 | DN3: ='Raw Data'!EG46 -> 53 | DO3: ='Raw Data'!EH46 -> 48 | DP3: ='Raw Data'!EI46 -> 34 | DQ3: ='Raw Data'!EJ46 -> 35 | DR3: ='Raw Data'!EK46 -> 32 | DS3: ='Raw Data'!EL46 -> 31 | DT3: ='Raw Data'!EM46 -> 40 | DU3: ='Raw Data'!EN46 -> 38 | DV3: ='Raw Data'!EO46 -> 37 | DW3: ='Raw Data'!EP46 -> 42 | DX3: ='Raw Data'!EQ46 -> 44 | DY3: ='Raw Data'!ER46 -> 39 | DZ3: ='Raw Data'!ES46 -> 51 | EA3: ='Raw Data'!ET46 -> 39 | EB3: ='Raw Data'!EU46 -> 28 | EC3: ='Raw Data'!EV46 -> 46 | ED3: ='Raw Data'!EW46 -> 32 | EE3: ='Raw Data'!EX46 -> 37 | EF3: ='Raw Data'!EY46 -> 43 | EG3: ='Raw Data'!EZ46 -> 38 | EH3: ='Raw Data'!FA46 -> 39 | EI3: ='Raw Data'!FB46 -> 48 | EJ3: ='Raw Data'!FC46 -> 46 | EK3: ='Raw Data'!FD46 -> 44 | EL3: ='Raw Data'!FE46 -> 51 | EM3: ='Raw Data'!FF46 -> 44 | EN3: ='Raw Data'!FG46 -> 26 | EO3: ='Raw Data'!FH46 -> 23 | EP3: ='Raw Data'!FI46 -> 29 | EQ3: ='Raw Data'!FJ46 -> 19 | ER3: ='Raw Data'!FK46 -> 54 | ES3: ='Raw Data'!FL46 -> 33 | ET3: ='Raw Data'!FM46 -> 45 | EU3: ='Raw Data'!FN46 -> 76 | EV3: ='Raw Data'!FO46 -> 49 | EW3: ='Raw Data'!FP46 -> 52 | EX3: ='Raw Data'!FQ46 -> 44 | EY3: ='Raw Data'!FR46 -> 66 | EZ3: ='Raw Data'!FS46 -> 42 | FA3: ='Raw Data'!FT46 -> 38 | FB3: ='Raw Data'!FU46 -> 35 | FC3: ='Raw Data'!FV46 -> 22 | FD3: ='Raw Data'!FW46 -> 43 | FE3: ='Raw Data'!FX46 -> 36 | FF3: ='Raw Data'!FY46 -> 44 | FG3: ='Raw Data'!FZ46 -> 53 | FH3: ='Raw Data'!GA46 -> 37 | FI3: ='Raw Data'!GB46 -> 39 | FJ3: ='Raw Data'!GC46 -> 35 | FK3: ='Raw Data'!GD46 -> 36 | FL3: ='Raw Data'!GE46 -> 26 | FM3: ='Raw Data'!GF46 -> 24 | FN3: ='Raw Data'!GG46 -> 21 | FO3: ='Raw Data'!GH46 -> 37 | FP3: ='Raw Data'!GI46 -> 30 | FQ3: ='Raw Data'!GJ46 -> 37 | FR3: ='Raw Data'!GK46 -> 35 | FS3: ='Raw Data'!GL46 -> 39 | FT3: ='Raw Data'!GM46 -> 45 | FU3: ='Raw Data'!GN46 -> 39 | FV3: ='Raw Data'!GO46 -> 35 | FW3: ='Raw Data'!GP46 -> 32 | FX3: ='Raw Data'!GQ46 -> 43 | FY3: ='Raw Data'!GR46 -> 41 | FZ3: ='Raw Data'!GS46 -> 29 | GA3: ='Raw Data'!GT46 -> 33 | GB3: ='Raw Data'!GU46 -> 38 | GC3: ='Raw Data'!GV46 -> 25 | GD3: ='Raw Data'!GW46 -> 27 | GE3: ='Raw Data'!GX46 -> 27 | GF3: ='Raw Data'!GY46 -> 55 | GG3: ='Raw Data'!GZ46 -> 78 | GH3: ='Raw Data'!HA46 -> 80 | GI3: ='Raw Data'!HB46 -> 86 | GJ3: ='Raw Data'!HC46 -> 71 | GK3: ='Raw Data'!HD46 -> 80 | GL3: ='Raw Data'!HE46 -> 68 | GM3: ='Raw Data'!HF46 -> 57 | GN3: ='Raw Data'!HG46 -> 67 | GO3: ='Raw Data'!HH46 -> 93 | GP3: ='Raw Data'!HI46 -> 99 | GQ3: ='Raw Data'!HJ46 -> 103 | GR3: ='Raw Data'!HK46 -> 97 | GS3: ='Raw Data'!HL46 -> 89 | GT3: ='Raw Data'!HM46 -> 81 | GU3: ='Raw Data'!HN46 -> 75 | GV3: ='Raw Data'!HO46 -> 70 | GW3: ='Raw Data'!HP46 -> 76 | GX3: ='Raw Data'!HQ46 -> 56 | GY3: ='Raw Data'!HR46 -> 61 | GZ3: ='Raw Data'!HS46 -> 80 | HA3: ='Raw Data'!HT46 -> 75 | HB3: ='Raw Data'!HU46 -> 81 | HC3: ='Raw Data'!HV46 -> 51 | HD3: ='Raw Data'!HW46 -> 56 | HE3: ='Raw Data'!HX46 -> 62 | HF3: ='Raw Data'!HY46 -> 49 | HG3: ='Raw Data'!HZ46 -> 43 | HH3: ='Raw Data'!IA46 -> 31 | HI3: ='Raw Data'!IB46 -> 36 | HJ3: ='Raw Data'!IC46 -> 38 | HK3: ='Raw Data'!ID46 -> 36 | HL3: ='Raw Data'!IE46 -> 43 | HM3: ='Raw Data'!IF46 -> 48 | HN3: ='Raw Data'!IG46 -> 41 | HO3: ='Raw Data'!IH46 -> 55 | HP3: ='Raw Data'!II46 -> 43 | HQ3: ='Raw Data'!IJ46 -> 47 | HR3: ='Raw Data'!IK46 -> 47 | HS3: ='Raw Data'!IL46 -> 46 | HT3: ='Raw Data'!IM46 -> 42 | HU3: ='Raw Data'!IN46 -> 29 | HV3: ='Raw Data'!IO46 -> 0 | HW3: ='Raw Data'!IP46 -> 0 | HX3: ='Raw Data'!IQ46 -> 0 | HY3: ='Raw Data'!IR46 -> 0 | HZ3: ='Raw Data'!IS46 -> 0 | IA3: ='Raw Data'!IT46 -> 0 | IB3: ='Raw Data'!IU46 -> 0 | IC3: ='Raw Data'!IV46 -> 0 | ID3: ='Raw Data'!IW46 -> 0 | IE3: ='Raw Data'!IX46 -> 0 | IF3: ='Raw Data'!IY46 -> 0 | IG3: ='Raw Data'!IZ46 -> 0 | IH3: ='Raw Data'!JA46 -> 0
A4: Sold Commercial | B4: ='Raw Data'!U47 -> 1 | C4: ='Raw Data'!V47 -> 3 | D4: ='Raw Data'!W47 -> 3 | E4: ='Raw Data'!X47 -> 4 | F4: ='Raw Data'!Y47 -> 4 | G4: ='Raw Data'!Z47 -> 6 | H4: ='Raw Data'!AA47 -> 4 | I4: ='Raw Data'!AB47 -> 4 | J4: ='Raw Data'!AC47 -> 1 | K4: ='Raw Data'!AD47 -> 14 | L4: ='Raw Data'!AE47 -> 1 | M4: ='Raw Data'!AF47 -> 3 | N4: ='Raw Data'!AG47 -> 2 | O4: ='Raw Data'!AH47 -> 1 | P4: ='Raw Data'!AI47 -> 6 | Q4: ='Raw Data'!AJ47 -> 2 | R4: ='Raw Data'!AK47 -> 3 | S4: ='Raw Data'!AL47 -> 5 | T4: ='Raw Data'!AM47 -> 2 | U4: ='Raw Data'!AN47 -> 2 | V4: ='Raw Data'!AO47 -> 9 | W4: ='Raw Data'!AP47 -> 5 | X4: ='Raw Data'!AQ47 -> 0 | Y4: ='Raw Data'!AR47 -> 1 | Z4: ='Raw Data'!AS47 -> 2 | AA4: ='Raw Data'!AT47 -> 0 | AB4: ='Raw Data'!AU47 -> 1 | AC4: ='Raw Data'!AV47 -> 2 | AD4: ='Raw Data'!AW47 -> 1 | AE4: ='Raw Data'!AX47 -> 0 | AF4: ='Raw Data'!AY47 -> 3 | AG4: ='Raw Data'!AZ47 -> 3 | AH4: ='Raw Data'!BA47 -> 1 | AI4: ='Raw Data'!BB47 -> 0 | AJ4: ='Raw Data'!BC47 -> 2 | AK4: ='Raw Data'!BD47 -> 0 | AL4: ='Raw Data'!BE47 -> 0 | AM4: ='Raw Data'!BF47 -> 1 | AN4: ='Raw Data'!BG47 -> 1 | AO4: ='Raw Data'!BH47 -> 3 | AP4: ='Raw Data'!BI47 -> 2 | AQ4: ='Raw Data'!BJ47 -> 1 | AR4: ='Raw Data'!BK47 -> 3 | AS4: ='Raw Data'!BL47 -> 1 | AT4: ='Raw Data'!BM47 -> 0 | AU4: ='Raw Data'!BN47 -> 0 | AV4: ='Raw Data'!BO47 -> 0 | AW4: ='Raw Data'!BP47 -> 1 | AX4: ='Raw Data'!BQ47 -> 2 | AY4: ='Raw Data'!BR47 -> 1 | AZ4: ='Raw Data'!BS47 -> 2 | BA4: ='Raw Data'!BT47 -> 1 | BB4: ='Raw Data'!BU47 -> 0 | BC4: ='Raw Data'!BV47 -> 0 | BD4: ='Raw Data'!BW47 -> 1 | BE4: ='Raw Data'!BX47 -> 0 | BF4: ='Raw Data'!BY47 -> 0 | BG4: ='Raw Data'!BZ47 -> 0 | BH4: ='Raw Data'!CA47 -> 1 | BI4: ='Raw Data'!CB47 -> 11 | BJ4: ='Raw Data'!CC47 -> 1 | BK4: ='Raw Data'!CD47 -> 1 | BL4: ='Raw Data'!CE47 -> 1 | BM4: ='Raw Data'!CF47 -> 2 | BN4: ='Raw Data'!CG47 -> 1 | BO4: ='Raw Data'!CH47 -> 3 | BP4: ='Raw Data'!CI47 -> 2 | BQ4: ='Raw Data'!CJ47 -> 0 | BR4: ='Raw Data'!CK47 -> 1 | BS4: ='Raw Data'!CL47 -> 0 | BT4: ='Raw Data'!CM47 -> 0 | BU4: ='Raw Data'!CN47 -> 1 | BV4: ='Raw Data'!CO47 -> 1 | BW4: ='Raw Data'!CP47 -> 2 | BX4: ='Raw Data'!CQ47 -> 2 | BY4: ='Raw Data'!CR47 -> 3 | BZ4: ='Raw Data'!CS47 -> 3 | CA4: ='Raw Data'!CT47 -> 2 | CB4: ='Raw Data'!CU47 -> 2 | CC4: ='Raw Data'!CV47 -> 0 | CD4: ='Raw Data'!CW47 -> 2 | CE4: ='Raw Data'!CX47 -> 5 | CF4: ='Raw Data'!CY47 -> 3 | CG4: ='Raw Data'!CZ47 -> 0 | CH4: ='Raw Data'!DA47 -> 3 | CI4: ='Raw Data'!DB47 -> 1 | CJ4: ='Raw Data'!DC47 -> 6 | CK4: ='Raw Data'!DD47 -> 4 | CL4: ='Raw Data'!DE47 -> 1 | CM4: ='Raw Data'!DF47 -> 1 | CN4: ='Raw Data'!DG47 -> 0 | CO4: ='Raw Data'!DH47 -> 2 | CP4: ='Raw Data'!DI47 -> 1 | CQ4: ='Raw Data'!DJ47 -> 3 | CR4: ='Raw Data'!DK47 -> 6 | CS4: ='Raw Data'!DL47 -> 4 | CT4: ='Raw Data'!DM47 -> 1 | CU4: ='Raw Data'!DN47 -> 3 | CV4: ='Raw Data'!DO47 -> 0 | CW4: ='Raw Data'!DP47 -> 4 | CX4: ='Raw Data'!DQ47 -> 1 | CY4: ='Raw Data'!DR47 -> 3 | CZ4: ='Raw Data'!DS47 -> 2 | DA4: ='Raw Data'!DT47 -> 4 | DB4: ='Raw Data'!DU47 -> 7 | DC4: ='Raw Data'!DV47 -> 2 | DD4: ='Raw Data'!DW47 -> 2 | DE4: ='Raw Data'!DX47 -> 5 | DF4: ='Raw Data'!DY47 -> 5 | DG4: ='Raw Data'!DZ47 -> 3 | DH4: ='Raw Data'!EA47 -> 1 | DI4: ='Raw Data'!EB47 -> 2 | DJ4: ='Raw Data'!EC47 -> 6 | DK4: ='Raw Data'!ED47 -> 2 | DL4: ='Raw Data'!EE47 -> 4 | DM4: ='Raw Data'!EF47 -> 1 | DN4: ='Raw Data'!EG47 -> 6 | DO4: ='Raw Data'!EH47 -> 0 | DP4: ='Raw Data'!EI47 -> 1 | DQ4: ='Raw Data'!EJ47 -> 10 | DR4: ='Raw Data'!EK47 -> 1 | DS4: ='Raw Data'!EL47 -> 6 | DT4: ='Raw Data'!EM47 -> 4 | DU4: ='Raw Data'!EN47 -> 2 | DV4: ='Raw Data'!EO47 -> 2 | DW4: ='Raw Data'!EP47 -> 0 | DX4: ='Raw Data'!EQ47 -> 3 | DY4: ='Raw Data'!ER47 -> 2 | DZ4: ='Raw Data'!ES47 -> 4 | EA4: ='Raw Data'!ET47 -> 0 | EB4: ='Raw Data'!EU47 -> 6 | EC4: ='Raw Data'!EV47 -> 4 | ED4: ='Raw Data'!EW47 -> 2 | EE4: ='Raw Data'!EX47 -> 1 | EF4: ='Raw Data'!EY47 -> 3 | EG4: ='Raw Data'!EZ47 -> 5 | EH4: ='Raw Data'!FA47 -> 3 | EI4: ='Raw Data'!FB47 -> 5 | EJ4: ='Raw Data'!FC47 -> 0 | EK4: ='Raw Data'!FD47 -> 1 | EL4: ='Raw Data'!FE47 -> 1 | EM4: ='Raw Data'!FF47 -> 4 | EN4: ='Raw Data'!FG47 -> 1 | EO4: ='Raw Data'!FH47 -> 6 | EP4: ='Raw Data'!FI47 -> 0 | EQ4: ='Raw Data'!FJ47 -> 1 | ER4: ='Raw Data'!FK47 -> 1 | ES4: ='Raw Data'!FL47 -> 6 | ET4: ='Raw Data'!FM47 -> 6 | EU4: ='Raw Data'!FN47 -> 1 | EV4: ='Raw Data'!FO47 -> 0 | EW4: ='Raw Data'!FP47 -> 1 | EX4: ='Raw Data'!FQ47 -> 0 | EY4: ='Raw Data'!FR47 -> 2 | EZ4: ='Raw Data'!FS47 -> 2 | FA4: ='Raw Data'!FT47 -> 6 | FB4: ='Raw Data'!FU47 -> 0 | FC4: ='Raw Data'!FV47 -> 1 | FD4: ='Raw Data'!FW47 -> 2 | FE4: ='Raw Data'!FX47 -> 3 | FF4: ='Raw Data'!FY47 -> 4 | FG4: ='Raw Data'!FZ47 -> 4 | FH4: ='Raw Data'!GA47 -> 0 | FI4: ='Raw Data'!GB47 -> 0 | FJ4: ='Raw Data'!GC47 -> 1 | FK4: ='Raw Data'!GD47 -> 3 | FL4: ='Raw Data'!GE47 -> 1 | FM4: ='Raw Data'!GF47 -> 2 | FN4: ='Raw Data'!GG47 -> 4 | FO4: ='Raw Data'!GH47 -> 3 | FP4: ='Raw Data'!GI47 -> 4 | FQ4: ='Raw Data'!GJ47 -> 3 | FR4: ='Raw Data'!GK47 -> 1 | FS4: ='Raw Data'!GL47 -> 3 | FT4: ='Raw Data'!GM47 -> 2 | FU4: ='Raw Data'!GN47 -> 3 | FV4: ='Raw Data'!GO47 -> 2 | FW4: ='Raw Data'!GP47 -> 3 | FX4: ='Raw Data'!GQ47 -> 1 | FY4: ='Raw Data'!GR47 -> 4 | FZ4: ='Raw Data'!GS47 -> 2 | GA4: ='Raw Data'!GT47 -> 2 | GB4: ='Raw Data'!GU47 -> 0 | GC4: ='Raw Data'!GV47 -> 2 | GD4: ='Raw Data'!GW47 -> 2 | GE4: ='Raw Data'!GX47 -> 3 | GF4: ='Raw Data'!GY47 -> 1 | GG4: ='Raw Data'!GZ47 -> 3 | GH4: ='Raw Data'!HA47 -> 7 | GI4: ='Raw Data'!HB47 -> 2 | GJ4: ='Raw Data'!HC47 -> 2 | GK4: ='Raw Data'!HD47 -> 5 | GL4: ='Raw Data'!HE47 -> 4 | GM4: ='Raw Data'!HF47 -> 4 | GN4: ='Raw Data'!HG47 -> 3 | GO4: ='Raw Data'!HH47 -> 3 | GP4: ='Raw Data'!HI47 -> 4 | GQ4: ='Raw Data'!HJ47 -> 3 | GR4: ='Raw Data'!HK47 -> 9 | GS4: ='Raw Data'!HL47 -> 6 | GT4: ='Raw Data'!HM47 -> 2 | GU4: ='Raw Data'!HN47 -> 5 | GV4: ='Raw Data'!HO47 -> 3 | GW4: ='Raw Data'!HP47 -> 3 | GX4: ='Raw Data'!HQ47 -> 4 | GY4: ='Raw Data'!HR47 -> 5 | GZ4: ='Raw Data'!HS47 -> 7 | HA4: ='Raw Data'!HT47 -> 4 | HB4: ='Raw Data'!HU47 -> 3 | HC4: ='Raw Data'!HV47 -> 4 | HD4: ='Raw Data'!HW47 -> 6 | HE4: ='Raw Data'!HX47 -> 2 | HF4: ='Raw Data'!HY47 -> 3 | HG4: ='Raw Data'!HZ47 -> 3 | HH4: ='Raw Data'!IA47 -> 3 | HI4: ='Raw Data'!IB47 -> 1 | HJ4: ='Raw Data'!IC47 -> 2 | HK4: ='Raw Data'!ID47 -> 1 | HL4: ='Raw Data'!IE47 -> 6 | HM4: ='Raw Data'!IF47 -> 1 | HN4: ='Raw Data'!IG47 -> 3 | HO4: ='Raw Data'!IH47 -> 1 | HP4: ='Raw Data'!II47 -> 0 | HQ4: ='Raw Data'!IJ47 -> 1 | HR4: ='Raw Data'!IK47 -> 2 | HS4: ='Raw Data'!IL47 -> 2 | HT4: ='Raw Data'!IM47 -> 4 | HU4: ='Raw Data'!IN47 -> 1 | HV4: ='Raw Data'!IO47 -> 0 | HW4: ='Raw Data'!IP47 -> 0 | HX4: ='Raw Data'!IQ47 -> 0 | HY4: ='Raw Data'!IR47 -> 0 | HZ4: ='Raw Data'!IS47 -> 0 | IA4: ='Raw Data'!IT47 -> 0 | IB4: ='Raw Data'!IU47 -> 0 | IC4: ='Raw Data'!IV47 -> 0 | ID4: ='Raw Data'!IW47 -> 0 | IE4: ='Raw Data'!IX47 -> 0 | IF4: ='Raw Data'!IY47 -> 0 | IG4: ='Raw Data'!IZ47 -> 0 | IH4: ='Raw Data'!JA47 -> 0
A5: Total | B5: ='Raw Data'!U48 -> 246 | C5: ='Raw Data'!V48 -> 183 | D5: ='Raw Data'!W48 -> 284 | E5: ='Raw Data'!X48 -> 318 | F5: ='Raw Data'!Y48 -> 401 | G5: ='Raw Data'!Z48 -> 354 | H5: ='Raw Data'!AA48 -> 240 | I5: ='Raw Data'!AB48 -> 265 | J5: ='Raw Data'!AC48 -> 293 | K5: ='Raw Data'!AD48 -> 247 | L5: ='Raw Data'!AE48 -> 204 | M5: ='Raw Data'!AF48 -> 166 | N5: ='Raw Data'!AG48 -> 162 | O5: ='Raw Data'!AH48 -> 116 | P5: ='Raw Data'!AI48 -> 176 | Q5: ='Raw Data'!AJ48 -> 153 | R5: ='Raw Data'!AK48 -> 207 | S5: ='Raw Data'!AL48 -> 156 | T5: ='Raw Data'!AM48 -> 123 | U5: ='Raw Data'!AN48 -> 139 | V5: ='Raw Data'!AO48 -> 123 | W5: ='Raw Data'!AP48 -> 176 | X5: ='Raw Data'!AQ48 -> 101 | Y5: ='Raw Data'!AR48 -> 125 | Z5: ='Raw Data'!AS48 -> 97 | AA5: ='Raw Data'!AT48 -> 122 | AB5: ='Raw Data'!AU48 -> 112 | AC5: ='Raw Data'!AV48 -> 143 | AD5: ='Raw Data'!AW48 -> 171 | AE5: ='Raw Data'!AX48 -> 140 | AF5: ='Raw Data'!AY48 -> 123 | AG5: ='Raw Data'!AZ48 -> 129 | AH5: ='Raw Data'!BA48 -> 133 | AI5: ='Raw Data'!BB48 -> 121 | AJ5: ='Raw Data'!BC48 -> 130 | AK5: ='Raw Data'!BD48 -> 101 | AL5: ='Raw Data'!BE48 -> 87 | AM5: ='Raw Data'!BF48 -> 98 | AN5: ='Raw Data'!BG48 -> 110 | AO5: ='Raw Data'!BH48 -> 124 | AP5: ='Raw Data'!BI48 -> 135 | AQ5: ='Raw Data'!BJ48 -> 136 | AR5: ='Raw Data'!BK48 -> 114 | AS5: ='Raw Data'!BL48 -> 128 | AT5: ='Raw Data'!BM48 -> 126 | AU5: ='Raw Data'!BN48 -> 101 | AV5: ='Raw Data'!BO48 -> 80 | AW5: ='Raw Data'!BP48 -> 83 | AX5: ='Raw Data'!BQ48 -> 53 | AY5: ='Raw Data'!BR48 -> 78 | AZ5: ='Raw Data'!BS48 -> 101 | BA5: ='Raw Data'!BT48 -> 88 | BB5: ='Raw Data'!BU48 -> 126 | BC5: ='Raw Data'!BV48 -> 142 | BD5: ='Raw Data'!BW48 -> 122 | BE5: ='Raw Data'!BX48 -> 134 | BF5: ='Raw Data'!BY48 -> 137 | BG5: ='Raw Data'!BZ48 -> 140 | BH5: ='Raw Data'!CA48 -> 129 | BI5: ='Raw Data'!CB48 -> 135 | BJ5: ='Raw Data'!CC48 -> 99 | BK5: ='Raw Data'!CD48 -> 93 | BL5: ='Raw Data'!CE48 -> 126 | BM5: ='Raw Data'!CF48 -> 164 | BN5: ='Raw Data'!CG48 -> 170 | BO5: ='Raw Data'!CH48 -> 168 | BP5: ='Raw Data'!CI48 -> 148 | BQ5: ='Raw Data'!CJ48 -> 129 | BR5: ='Raw Data'!CK48 -> 143 | BS5: ='Raw Data'!CL48 -> 138 | BT5: ='Raw Data'!CM48 -> 136 | BU5: ='Raw Data'!CN48 -> 155 | BV5: ='Raw Data'!CO48 -> 99 | BW5: ='Raw Data'!CP48 -> 107 | BX5: ='Raw Data'!CQ48 -> 169 | BY5: ='Raw Data'!CR48 -> 167 | BZ5: ='Raw Data'!CS48 -> 159 | CA5: ='Raw Data'!CT48 -> 177 | CB5: ='Raw Data'!CU48 -> 147 | CC5: ='Raw Data'!CV48 -> 132 | CD5: ='Raw Data'!CW48 -> 138 | CE5: ='Raw Data'!CX48 -> 132 | CF5: ='Raw Data'!CY48 -> 122 | CG5: ='Raw Data'!CZ48 -> 140 | CH5: ='Raw Data'!DA48 -> 116 | CI5: ='Raw Data'!DB48 -> 143 | CJ5: ='Raw Data'!DC48 -> 227 | CK5: ='Raw Data'!DD48 -> 186 | CL5: ='Raw Data'!DE48 -> 206 | CM5: ='Raw Data'!DF48 -> 182 | CN5: ='Raw Data'!DG48 -> 151 | CO5: ='Raw Data'!DH48 -> 173 | CP5: ='Raw Data'!DI48 -> 176 | CQ5: ='Raw Data'!DJ48 -> 177 | CR5: ='Raw Data'!DK48 -> 165 | CS5: ='Raw Data'!DL48 -> 140 | CT5: ='Raw Data'!DM48 -> 115 | CU5: ='Raw Data'!DN48 -> 146 | CV5: ='Raw Data'!DO48 -> 180 | CW5: ='Raw Data'!DP48 -> 213 | CX5: ='Raw Data'!DQ48 -> 194 | CY5: ='Raw Data'!DR48 -> 187 | CZ5: ='Raw Data'!DS48 -> 202 | DA5: ='Raw Data'!DT48 -> 184 | DB5: ='Raw Data'!DU48 -> 172 | DC5: ='Raw Data'!DV48 -> 164 | DD5: ='Raw Data'!DW48 -> 147 | DE5: ='Raw Data'!DX48 -> 189 | DF5: ='Raw Data'!DY48 -> 133 | DG5: ='Raw Data'!DZ48 -> 117 | DH5: ='Raw Data'!EA48 -> 146 | DI5: ='Raw Data'!EB48 -> 189 | DJ5: ='Raw Data'!EC48 -> 231 | DK5: ='Raw Data'!ED48 -> 200 | DL5: ='Raw Data'!EE48 -> 201 | DM5: ='Raw Data'!EF48 -> 174 | DN5: ='Raw Data'!EG48 -> 201 | DO5: ='Raw Data'!EH48 -> 192 | DP5: ='Raw Data'!EI48 -> 153 | DQ5: ='Raw Data'!EJ48 -> 202 | DR5: ='Raw Data'!EK48 -> 129 | DS5: ='Raw Data'!EL48 -> 142 | DT5: ='Raw Data'!EM48 -> 184 | DU5: ='Raw Data'!EN48 -> 193 | DV5: ='Raw Data'!EO48 -> 241 | DW5: ='Raw Data'!EP48 -> 227 | DX5: ='Raw Data'!EQ48 -> 218 | DY5: ='Raw Data'!ER48 -> 187 | DZ5: ='Raw Data'!ES48 -> 198 | EA5: ='Raw Data'!ET48 -> 198 | EB5: ='Raw Data'!EU48 -> 177 | EC5: ='Raw Data'!EV48 -> 198 | ED5: ='Raw Data'!EW48 -> 145 | EE5: ='Raw Data'!EX48 -> 130 | EF5: ='Raw Data'!EY48 -> 184 | EG5: ='Raw Data'!EZ48 -> 201 | EH5: ='Raw Data'!FA48 -> 217 | EI5: ='Raw Data'!FB48 -> 238 | EJ5: ='Raw Data'!FC48 -> 201 | EK5: ='Raw Data'!FD48 -> 204 | EL5: ='Raw Data'!FE48 -> 211 | EM5: ='Raw Data'!FF48 -> 193 | EN5: ='Raw Data'!FG48 -> 167 | EO5: ='Raw Data'!FH48 -> 202 | EP5: ='Raw Data'!FI48 -> 141 | EQ5: ='Raw Data'!FJ48 -> 149 | ER5: ='Raw Data'!FK48 -> 235 | ES5: ='Raw Data'!FL48 -> 219 | ET5: ='Raw Data'!FM48 -> 254 | EU5: ='Raw Data'!FN48 -> 295 | EV5: ='Raw Data'!FO48 -> 185 | EW5: ='Raw Data'!FP48 -> 224 | EX5: ='Raw Data'!FQ48 -> 206 | EY5: ='Raw Data'!FR48 -> 234 | EZ5: ='Raw Data'!FS48 -> 208 | FA5: ='Raw Data'!FT48 -> 208 | FB5: ='Raw Data'!FU48 -> 153 | FC5: ='Raw Data'!FV48 -> 112 | FD5: ='Raw Data'!FW48 -> 232 | FE5: ='Raw Data'!FX48 -> 225 | FF5: ='Raw Data'!FY48 -> 267 | FG5: ='Raw Data'!FZ48 -> 245 | FH5: ='Raw Data'!GA48 -> 209 | FI5: ='Raw Data'!GB48 -> 228 | FJ5: ='Raw Data'!GC48 -> 178 | FK5: ='Raw Data'!GD48 -> 215 | FL5: ='Raw Data'!GE48 -> 162 | FM5: ='Raw Data'!GF48 -> 192 | FN5: ='Raw Data'!GG48 -> 144 | FO5: ='Raw Data'!GH48 -> 163 | FP5: ='Raw Data'!GI48 -> 218 | FQ5: ='Raw Data'!GJ48 -> 229 | FR5: ='Raw Data'!GK48 -> 253 | FS5: ='Raw Data'!GL48 -> 232 | FT5: ='Raw Data'!GM48 -> 232 | FU5: ='Raw Data'!GN48 -> 243 | FV5: ='Raw Data'!GO48 -> 199 | FW5: ='Raw Data'!GP48 -> 224 | FX5: ='Raw Data'!GQ48 -> 250 | FY5: ='Raw Data'!GR48 -> 219 | FZ5: ='Raw Data'!GS48 -> 179 | GA5: ='Raw Data'!GT48 -> 181 | GB5: ='Raw Data'!GU48 -> 236 | GC5: ='Raw Data'!GV48 -> 181 | GD5: ='Raw Data'!GW48 -> 179 | GE5: ='Raw Data'!GX48 -> 251 | GF5: ='Raw Data'!GY48 -> 452 | GG5: ='Raw Data'!GZ48 -> 403 | GH5: ='Raw Data'!HA48 -> 445 | GI5: ='Raw Data'!HB48 -> 460 | GJ5: ='Raw Data'!HC48 -> 383 | GK5: ='Raw Data'!HD48 -> 401 | GL5: ='Raw Data'!HE48 -> 335 | GM5: ='Raw Data'!HF48 -> 298 | GN5: ='Raw Data'!HG48 -> 447 | GO5: ='Raw Data'!HH48 -> 445 | GP5: ='Raw Data'!HI48 -> 440 | GQ5: ='Raw Data'!HJ48 -> 432 | GR5: ='Raw Data'!HK48 -> 369 | GS5: ='Raw Data'!HL48 -> 329 | GT5: ='Raw Data'!HM48 -> 313 | GU5: ='Raw Data'!HN48 -> 333 | GV5: ='Raw Data'!HO48 -> 340 | GW5: ='Raw Data'!HP48 -> 319 | GX5: ='Raw Data'!HQ48 -> 285 | GY5: ='Raw Data'!HR48 -> 248 | GZ5: ='Raw Data'!HS48 -> 387 | HA5: ='Raw Data'!HT48 -> 344 | HB5: ='Raw Data'!HU48 -> 331 | HC5: ='Raw Data'!HV48 -> 290 | HD5: ='Raw Data'!HW48 -> 233 | HE5: ='Raw Data'!HX48 -> 265 | HF5: ='Raw Data'!HY48 -> 231 | HG5: ='Raw Data'!HZ48 -> 207 | HH5: ='Raw Data'!IA48 -> 195 | HI5: ='Raw Data'!IB48 -> 168 | HJ5: ='Raw Data'!IC48 -> 141 | HK5: ='Raw Data'!ID48 -> 174 | HL5: ='Raw Data'!IE48 -> 242 | HM5: ='Raw Data'!IF48 -> 215 | HN5: ='Raw Data'!IG48 -> 228 | HO5: ='Raw Data'!IH48 -> 245 | HP5: ='Raw Data'!II48 -> 172 | HQ5: ='Raw Data'!IJ48 -> 191 | HR5: ='Raw Data'!IK48 -> 216 | HS5: ='Raw Data'!IL48 -> 177 | HT5: ='Raw Data'!IM48 -> 183 | HU5: ='Raw Data'!IN48 -> 146 | HV5: ='Raw Data'!IO48 -> 0 | HW5: ='Raw Data'!IP48 -> 0 | HX5: ='Raw Data'!IQ48 -> 0 | HY5: ='Raw Data'!IR48 -> 0 | HZ5: ='Raw Data'!IS48 -> 0 | IA5: ='Raw Data'!IT48 -> 0 | IB5: ='Raw Data'!IU48 -> 0 | IC5: ='Raw Data'!IV48 -> 0 | ID5: ='Raw Data'!IW48 -> 0 | IE5: ='Raw Data'!IX48 -> 0 | IF5: ='Raw Data'!IY48 -> 0 | IG5: ='Raw Data'!IZ48 -> 0 | IH5: ='Raw Data'!JA48 -> 0

Sheet 1 YR Snapshot
B1: ='Raw Data'!U36 -> 2005-01-05 | C1: ='Raw Data'!V36 -> 2005-02-05 | D1: ='Raw Data'!W36 -> 2005-03-05 | E1: ='Raw Data'!X36 -> 2005-04-05 | F1: ='Raw Data'!Y36 -> 2005-05-05 | G1: ='Raw Data'!Z36 -> 2005-06-05 | H1: ='Raw Data'!AA36 -> 2005-07-05 | I1: ='Raw Data'!AB36 -> 2005-08-05 | J1: ='Raw Data'!AC36 -> 2005-09-05 | K1: ='Raw Data'!AD36 -> 2005-10-05 | L1: ='Raw Data'!AE36 -> 2005-11-05 | M1: ='Raw Data'!AF36 -> 2005-12-05 | N1: ='Raw Data'!AG36 -> 2006-01-05 | O1: ='Raw Data'!AH36 -> 2006-02-05 | P1: ='Raw Data'!AI36 -> 2006-03-05 | Q1: ='Raw Data'!AJ36 -> 2006-04-05 | R1: ='Raw Data'!AK36 -> 2006-05-06 | S1: ='Raw Data'!AL36 -> 2006-06-06 | T1: ='Raw Data'!AM36 -> 2006-07-06 | U1: ='Raw Data'!AN36 -> 2006-08-06 | V1: ='Raw Data'!AO36 -> 2006-09-06 | W1: ='Raw Data'!AP36 -> 2006-10-06 | X1: ='Raw Data'!AQ36 -> 2006-11-06 | Y1: ='Raw Data'!AR36 -> 2006-12-06 | Z1: ='Raw Data'!AS36 -> 2007-01-06 | AA1: ='Raw Data'!AT36 -> 2007-02-06 | AB1: ='Raw Data'!AU36 -> 2007-03-06 | AC1: ='Raw Data'!AV36 -> 2007-04-06 | AD1: ='Raw Data'!AW36 -> 2007-05-06 | AE1: ='Raw Data'!AX36 -> 2007-06-06 | AF1: ='Raw Data'!AY36 -> 2007-07-06 | AG1: ='Raw Data'!AZ36 -> 2007-08-06 | AH1: ='Raw Data'!BA36 -> 2007-09-06 | AI1: ='Raw Data'!BB36 -> 2007-10-06 | AJ1: ='Raw Data'!BC36 -> 2007-11-06 | AK1: ='Raw Data'!BD36 -> 2007-12-06 | AL1: ='Raw Data'!BE36 -> 2008-01-06 | AM1: ='Raw Data'!BF36 -> 2008-02-06 | AN1: ='Raw Data'!BG36 -> 2008-03-06 | AO1: ='Raw Data'!BH36 -> 2008-04-06 | AP1: ='Raw Data'!BI36 -> 2008-05-06 | AQ1: ='Raw Data'!BJ36 -> 2008-06-06 | AR1: ='Raw Data'!BK36 -> 2008-07-06 | AS1: ='Raw Data'!BL36 -> 2008-08-06 | AT1: ='Raw Data'!BM36 -> 2008-09-06 | AU1: ='Raw Data'!BN36 -> 2008-10-06 | AV1: ='Raw Data'!BO36 -> 2008-11-06 | AW1: ='Raw Data'!BP36 -> 2008-12-06 | AX1: ='Raw Data'!BQ36 -> 2009-01-06 | AY1: ='Raw Data'!BR36 -> 2009-02-06 | AZ1: ='Raw Data'!BS36 -> 2009-03-06 | BA1: ='Raw Data'!BT36 -> 2009-04-06 | BB1: ='Raw Data'!BU36 -> 2009-05-06 | BC1: ='Raw Data'!BV36 -> 2009-06-06 | BD1: ='Raw Data'!BW36 -> 2009-07-06 | BE1: ='Raw Data'!BX36 -> 2009-08-06 | BF1: ='Raw Data'!BY36 -> 2009-09-06 | BG1: ='Raw Data'!BZ36 -> 2009-10-06 | BH1: ='Raw Data'!CA36 -> 2009-11-06 | BI1: ='Raw Data'!CB36 -> 2009-12-06 | BJ1: ='Raw Data'!CC36 -> 2010-01-06 | BK1: ='Raw Data'!CD36 -> 2010-02-06 | BL1: ='Raw Data'!CE36 -> 2010-03-06 | BM1: ='Raw Data'!CF36 -> 2010-04-06 | BN1: ='Raw Data'!CG36 -> 2010-05-06 | BO1: ='Raw Data'!CH36 -> 2010-06-06 | BP1: ='Raw Data'!CI36 -> 2010-07-06 | BQ1: ='Raw Data'!CJ36 -> 2010-08-06 | BR1: ='Raw Data'!CK36 -> 2010-09-06 | BS1: ='Raw Data'!CL36 -> 2010-10-06 | BT1: ='Raw Data'!CM36 -> 2010-11-06 | BU1: ='Raw Data'!CN36 -> 2010-12-06 | BV1: ='Raw Data'!CO36 -> 2011-01-06 | BW1: ='Raw Data'!CP36 -> 2011-02-06 | BX1: ='Raw Data'!CQ36 -> 2011-03-06 | BY1: ='Raw Data'!CR36 -> 2011-04-06 | BZ1: ='Raw Data'!CS36 -> 2011-05-06 | CA1: ='Raw Data'!CT36 -> 2011-06-06 | CB1: ='Raw Data'!CU36 -> 2011-07-06 | CC1: ='Raw Data'!CV36 -> 2011-08-06 | CD1: ='Raw Data'!CW36 -> 2011-09-06 | CE1: ='Raw Data'!CX36 -> 2011-10-06 | CF1: ='Raw Data'!CY36 -> 2011-11-06 | CG1: ='Raw Data'!CZ36 -> 2011-12-06 | CH1: ='Raw Data'!DA36 -> 2012-01-06 | CI1: ='Raw Data'!DB36 -> 2012-02-06 | CJ1: ='Raw Data'!DC36 -> 2012-03-06 | CK1: ='Raw Data'!DD36 -> 2012-04-06 | CL1: ='Raw Data'!DE36 -> 2012-05-06 | CM1: ='Raw Data'!DF36 -> 2012-06-06 | CN1: ='Raw Data'!DG36 -> 2012-07-06 | CO1: ='Raw Data'!DH36 -> 2012-08-06 | CP1: ='Raw Data'!DI36 -> 2012-09-06 | CQ1: ='Raw Data'!DJ36 -> 2012-10-06 | CR1: ='Raw Data'!DK36 -> 2012-11-06 | CS1: ='Raw Data'!DL36 -> 2012-12-06 | CT1: ='Raw Data'!DM36 -> 2013-01-06 | CU1: ='Raw Data'!DN36 -> 2013-02-06 | CV1: ='Raw Data'!DO36 -> 2013-03-06 | CW1: ='Raw Data'!DP36 -> 2013-04-06 | CX1: ='Raw Data'!DQ36 -> 2013-05-06 | CY1: ='Raw Data'!DR36 -> 2013-06-06 | CZ1: ='Raw Data'!DS36 -> 2013-07-06 | DA1: ='Raw Data'!DT36 -> 2013-08-06 | DB1: ='Raw Data'!DU36 -> 2013-09-06 | DC1: ='Raw Data'!DV36 -> 2013-10-06 | DD1: ='Raw Data'!DW36 -> 2013-11-06 | DE1: ='Raw Data'!DX36 -> 2013-12-06 | DF1: ='Raw Data'!DY36 -> 2014-01-06 | DG1: ='Raw Data'!DZ36 -> 2014-02-06 | DH1: ='Raw Data'!EA36 -> 2014-03-06 | DI1: ='Raw Data'!EB36 -> 2014-04-06 | DJ1: ='Raw Data'!EC36 -> 2014-05-06 | DK1: ='Raw Data'!ED36 -> 2014-06-06 | DL1: ='Raw Data'!EE36 -> 2014-07-06 | DM1: ='Raw Data'!EF36 -> 2014-08-06 | DN1: ='Raw Data'!EG36 -> 2014-09-06 | DO1: ='Raw Data'!EH36 -> 2014-10-06 | DP1: ='Raw Data'!EI36 -> 2014-11-06 | DQ1: ='Raw Data'!EJ36 -> 2014-12-06 | DR1: ='Raw Data'!EK36 -> 2015-01-06 | DS1: ='Raw Data'!EL36 -> 2015-02-06 | DT1: ='Raw Data'!EM36 -> 2015-03-06 | DU1: ='Raw Data'!EN36 -> 2015-04-06 | DV1: ='Raw Data'!EO36 -> 2015-05-06 | DW1: ='Raw Data'!EP36 -> 2015-06-06 | DX1: ='Raw Data'!EQ36 -> 2015-07-06 | DY1: ='Raw Data'!ER36 -> 2015-08-06 | DZ1: ='Raw Data'!ES36 -> 2015-09-06 | EA1: ='Raw Data'!ET36 -> 2015-10-06 | EB1: ='Raw Data'!EU36 -> 2015-11-06 | EC1: ='Raw Data'!EV36 -> 2015-12-06 | ED1: ='Raw Data'!EW36 -> 2016-01-06 | EE1: ='Raw Data'!EX36 -> 2016-02-06 | EF1: ='Raw Data'!EY36 -> 2016-03-06 | EG1: ='Raw Data'!EZ36 -> 2016-04-06 | EH1: ='Raw Data'!FA36 -> 2016-05-06 | EI1: ='Raw Data'!FB36 -> 2016-06-06 | EJ1: ='Raw Data'!FC36 -> 2016-07-06 | EK1: ='Raw Data'!FD36 -> 2016-08-06 | EL1: ='Raw Data'!FE36 -> 2016-09-06 | EM1: ='Raw Data'!FF36 -> 2016-10-06 | EN1: ='Raw Data'!FG36 -> 2016-11-06 | EO1: ='Raw Data'!FH36 -> 2016-12-06 | EP1: ='Raw Data'!FI36 -> 2017-01-06 | EQ1: ='Raw Data'!FJ36 -> 2017-02-06 | ER1: ='Raw Data'!FK36 -> 2017-03-06 | ES1: ='Raw Data'!FL36 -> 2017-04-06 | ET1: ='Raw Data'!FM36 -> 2017-05-06 | EU1: ='Raw Data'!FN36 -> 2017-06-06 | EV1: ='Raw Data'!FO36 -> 2017-07-06 | EW1: ='Raw Data'!FP36 -> 2017-08-06 | EX1: ='Raw Data'!FQ36 -> 2017-09-06 | EY1: ='Raw Data'!FR36 -> 2017-10-06 | EZ1: ='Raw Data'!FS36 -> 2017-11-06 | FA1: ='Raw Data'!FT36 -> 2017-12-06 | FB1: ='Raw Data'!FU36 -> 2018-01-06 | FC1: ='Raw Data'!FV36 -> 2018-02-06 | FD1: ='Raw Data'!FW36 -> 2018-03-06 | FE1: ='Raw Data'!FX36 -> 2018-04-06 | FF1: ='Raw Data'!FY36 -> 2018-05-06 | FG1: ='Raw Data'!FZ36 -> 2018-06-01 | FH1: ='Raw Data'!GA36 -> 2018-07-06 | FI1: ='Raw Data'!GB36 -> 2018-08-06 | FJ1: ='Raw Data'!GC36 -> 2018-09-06 | FK1: ='Raw Data'!GD36 -> 2018-10-06 | FL1: ='Raw Data'!GE36 -> 2018-11-06 | FM1: ='Raw Data'!GF36 -> 2018-12-06 | FN1: ='Raw Data'!GG36 -> 2019-01-06 | FO1: ='Raw Data'!GH36 -> 2019-02-06 | FP1: ='Raw Data'!GI36 -> 2019-03-06 | FQ1: ='Raw Data'!GJ36 -> 2019-04-06 | FR1: ='Raw Data'!GK36 -> 2019-05-06 | FS1: ='Raw Data'!GL36 -> 2019-06-06 | FT1: ='Raw Data'!GM36 -> 2019-07-06 | FU1: ='Raw Data'!GN36 -> 2019-08-06 | FV1: ='Raw Data'!GO36 -> 2019-09-06 | FW1: ='Raw Data'!GP36 -> 2019-10-06 | FX1: ='Raw Data'!GQ36 -> 2019-11-06 | FY1: ='Raw Data'!GR36 -> 2019-12-01 | FZ1: ='Raw Data'!GS36 -> 2020-01-06 | GA1: ='Raw Data'!GT36 -> 2020-02-06 | GB1: ='Raw Data'!GU36 -> 2020-03-06 | GC1: ='Raw Data'!GV36 -> 2020-04-06 | GD1: ='Raw Data'!GW36 -> 2020-05-06 | GE1: ='Raw Data'!GX36 -> 2020-06-06 | GF1: ='Raw Data'!GY36 -> 2020-07-06 | GG1: ='Raw Data'!GZ36 -> 2020-08-06 | GH1: ='Raw Data'!HA36 -> 2020-09-06 | GI1: ='Raw Data'!HB36 -> 2020-10-06 | GJ1: ='Raw Data'!HC36 -> 2020-11-06 | GK1: ='Raw Data'!HD36 -> 2020-12-06 | GL1: ='Raw Data'!HE36 -> 2021-01-06 | GM1: ='Raw Data'!HF36 -> 2021-02-06 | GN1: ='Raw Data'!HG36 -> 2021-03-06 | GO1: ='Raw Data'!HH36 -> 2021-04-06 | GP1: ='Raw Data'!HI36 -> 2021-05-06 | GQ1: ='Raw Data'!HJ36 -> 2021-06-06 | GR1: ='Raw Data'!HK36 -> 2021-07-06 | GS1: ='Raw Data'!HL36 -> 2021-08-06 | GT1: ='Raw Data'!HM36 -> 2021-09-06 | GU1: ='Raw Data'!HN36 -> 2021-10-06 | GV1: ='Raw Data'!HO36 -> 2021-11-06 | GW1: ='Raw Data'!HP36 -> 2021-12-06 | GX1: ='Raw Data'!HQ36 -> 2022-01-06 | GY1: ='Raw Data'!HR36 -> 2022-02-06 | GZ1: ='Raw Data'!HS36 -> 2022-03-06 | HA1: ='Raw Data'!HT36 -> 2022-04-06 | HB1: ='Raw Data'!HU36 -> 2022-05-06 | HC1: ='Raw Data'!HV36 -> 2022-06-06 | HD1: ='Raw Data'!HW36 -> 2022-07-06 | HE1: ='Raw Data'!HX36 -> 2022-08-06 | HF1: ='Raw Data'!HY36 -> 2022-09-06 | HG1: ='Raw Data'!HZ36 -> 2022-10-06 | HH1: ='Raw Data'!IA36 -> 2022-11-06 | HI1: ='Raw Data'!IB36 -> 2022-12-06 | HJ1: ='Raw Data'!IC36 -> 2023-01-06 | HK1: ='Raw Data'!ID36 -> 2023-02-23 | HL1: ='Raw Data'!IE36 -> 2023-03-23 | HM1: ='Raw Data'!IF36 -> 2023-04-23 | HN1: ='Raw Data'!IG36 -> 2023-05-23 | HO1: ='Raw Data'!IH36 -> 2023-06-23 | HP1: ='Raw Data'!II36 -> 2023-07-23 | HQ1: ='Raw Data'!IJ36 -> 2023-08-23 | HR1: ='Raw Data'!IK36 -> 2023-09-23 | HS1: ='Raw Data'!IL36 -> 2023-10-23 | HT1: ='Raw Data'!IM36 -> 2023-11-23 | HU1: ='Raw Data'!IN36 -> 2023-12-23 | HV1: ='Raw Data'!IO36 -> 2024-01-23 | HW1: 2024-02-24 | HX1: 2024-03-24 | HY1: ='Raw Data'!IR36 -> 2024-04-23 | HZ1: 2024-04-24 | IA1: 2024-05-24 | IB1: 2024-06-24 | IC1: 2024-07-24 | ID1: 2024-08-24 | IE1: 2024-09-24 | IF1: 2024-10-24 | IG1: 2024-11-24 | IH1: 2024-12-24 | II1: 2025-01-24 | IJ1: 2025-02-24 | IK1: 2025-03-24
A2: Sold Residential | B2: ='Raw Data'!U45 -> 149 | C2: ='Raw Data'!V45 -> 119 | D2: ='Raw Data'!W45 -> 190 | E2: ='Raw Data'!X45 -> 208 | F2: ='Raw Data'!Y45 -> 286 | G2: ='Raw Data'!Z45 -> 234 | H2: ='Raw Data'!AA45 -> 167 | I2: ='Raw Data'!AB45 -> 178 | J2: ='Raw Data'!AC45 -> 177 | K2: ='Raw Data'!AD45 -> 162 | L2: ='Raw Data'!AE45 -> 126 | M2: ='Raw Data'!AF45 -> 108 | N2: ='Raw Data'!AG45 -> 97 | O2: ='Raw Data'!AH45 -> 93 | P2: ='Raw Data'!AI45 -> 122 | Q2: ='Raw Data'!AJ45 -> 118 | R2: ='Raw Data'!AK45 -> 151 | S2: ='Raw Data'!AL45 -> 117 | T2: ='Raw Data'!AM45 -> 83 | U2: ='Raw Data'!AN45 -> 106 | V2: ='Raw Data'!AO45 -> 93 | W2: ='Raw Data'!AP45 -> 119 | X2: ='Raw Data'!AQ45 -> 81 | Y2: ='Raw Data'!AR45 -> 89 | Z2: ='Raw Data'!AS45 -> 76 | AA2: ='Raw Data'!AT45 -> 103 | AB2: ='Raw Data'!AU45 -> 100 | AC2: ='Raw Data'!AV45 -> 119 | AD2: ='Raw Data'!AW45 -> 137 | AE2: ='Raw Data'!AX45 -> 117 | AF2: ='Raw Data'!AY45 -> 103 | AG2: ='Raw Data'!AZ45 -> 106 | AH2: ='Raw Data'!BA45 -> 104 | AI2: ='Raw Data'!BB45 -> 95 | AJ2: ='Raw Data'!BC45 -> 93 | AK2: ='Raw Data'!BD45 -> 82 | AL2: ='Raw Data'!BE45 -> 57 | AM2: ='Raw Data'!BF45 -> 75 | AN2: ='Raw Data'!BG45 -> 96 | AO2: ='Raw Data'!BH45 -> 92 | AP2: ='Raw Data'!BI45 -> 111 | AQ2: ='Raw Data'!BJ45 -> 110 | AR2: ='Raw Data'!BK45 -> 94 | AS2: ='Raw Data'!BL45 -> 103 | AT2: ='Raw Data'!BM45 -> 93 | AU2: ='Raw Data'!BN45 -> 85 | AV2: ='Raw Data'!BO45 -> 60 | AW2: ='Raw Data'!BP45 -> 69 | AX2: ='Raw Data'!BQ45 -> 42 | AY2: ='Raw Data'!BR45 -> 68 | AZ2: ='Raw Data'!BS45 -> 84 | BA2: ='Raw Data'!BT45 -> 81 | BB2: ='Raw Data'!BU45 -> 111 | BC2: ='Raw Data'!BV45 -> 114 | BD2: ='Raw Data'!BW45 -> 105 | BE2: ='Raw Data'!BX45 -> 105 | BF2: ='Raw Data'!BY45 -> 104 | BG2: ='Raw Data'!BZ45 -> 106 | BH2: ='Raw Data'!CA45 -> 106 | BI2: ='Raw Data'!CB45 -> 100 | BJ2: ='Raw Data'!CC45 -> 86 | BK2: ='Raw Data'!CD45 -> 72 | BL2: ='Raw Data'!CE45 -> 113 | BM2: ='Raw Data'!CF45 -> 136 | BN2: ='Raw Data'!CG45 -> 151 | BO2: ='Raw Data'!CH45 -> 137 | BP2: ='Raw Data'!CI45 -> 125 | BQ2: ='Raw Data'!CJ45 -> 99 | BR2: ='Raw Data'!CK45 -> 109 | BS2: ='Raw Data'!CL45 -> 115 | BT2: ='Raw Data'!CM45 -> 106 | BU2: ='Raw Data'!CN45 -> 125 | BV2: ='Raw Data'!CO45 -> 83 | BW2: ='Raw Data'!CP45 -> 87 | BX2: ='Raw Data'!CQ45 -> 130 | BY2: ='Raw Data'!CR45 -> 137 | BZ2: ='Raw Data'!CS45 -> 124 | CA2: ='Raw Data'!CT45 -> 142 | CB2: ='Raw Data'!CU45 -> 127 | CC2: ='Raw Data'!CV45 -> 105 | CD2: ='Raw Data'!CW45 -> 113 | CE2: ='Raw Data'!CX45 -> 109 | CF2: ='Raw Data'!CY45 -> 74 | CG2: ='Raw Data'!CZ45 -> 102 | CH2: ='Raw Data'!DA45 -> 94 | CI2: ='Raw Data'!DB45 -> 112 | CJ2: ='Raw Data'!DC45 -> 171 | CK2: ='Raw Data'!DD45 -> 131 | CL2: ='Raw Data'!DE45 -> 165 | CM2: ='Raw Data'!DF45 -> 146 | CN2: ='Raw Data'!DG45 -> 121 | CO2: ='Raw Data'!DH45 -> 125 | CP2: ='Raw Data'!DI45 -> 146 | CQ2: ='Raw Data'!DJ45 -> 134 | CR2: ='Raw Data'!DK45 -> 129 | CS2: ='Raw Data'!DL45 -> 109 | CT2: ='Raw Data'!DM45 -> 89 | CU2: ='Raw Data'!DN45 -> 91 | CV2: ='Raw Data'!DO45 -> 136 | CW2: ='Raw Data'!DP45 -> 168 | CX2: ='Raw Data'!DQ45 -> 157 | CY2: ='Raw Data'!DR45 -> 150 | CZ2: ='Raw Data'!DS45 -> 161 | DA2: ='Raw Data'!DT45 -> 136 | DB2: ='Raw Data'!DU45 -> 127 | DC2: ='Raw Data'!DV45 -> 114 | DD2: ='Raw Data'!DW45 -> 115 | DE2: ='Raw Data'!DX45 -> 125 | DF2: ='Raw Data'!DY45 -> 106 | DG2: ='Raw Data'!DZ45 -> 88 | DH2: ='Raw Data'!EA45 -> 115 | DI2: ='Raw Data'!EB45 -> 149 | DJ2: ='Raw Data'!EC45 -> 192 | DK2: ='Raw Data'!ED45 -> 147 | DL2: ='Raw Data'!EE45 -> 122 | DM2: ='Raw Data'!EF45 -> 127 | DN2: ='Raw Data'!EG45 -> 142 | DO2: ='Raw Data'!EH45 -> 144 | DP2: ='Raw Data'!EI45 -> 118 | DQ2: ='Raw Data'!EJ45 -> 157 | DR2: ='Raw Data'!EK45 -> 96 | DS2: ='Raw Data'!EL45 -> 105 | DT2: ='Raw Data'!EM45 -> 140 | DU2: ='Raw Data'!EN45 -> 153 | DV2: ='Raw Data'!EO45 -> 202 | DW2: ='Raw Data'!EP45 -> 185 | DX2: ='Raw Data'!EQ45 -> 171 | DY2: ='Raw Data'!ER45 -> 146 | DZ2: ='Raw Data'!ES45 -> 143 | EA2: ='Raw Data'!ET45 -> 159 | EB2: ='Raw Data'!EU45 -> 143 | EC2: ='Raw Data'!EV45 -> 148 | ED2: ='Raw Data'!EW45 -> 111 | EE2: ='Raw Data'!EX45 -> 92 | EF2: ='Raw Data'!EY45 -> 138 | EG2: ='Raw Data'!EZ45 -> 158 | EH2: ='Raw Data'!FA45 -> 175 | EI2: ='Raw Data'!FB45 -> 185 | EJ2: ='Raw Data'!FC45 -> 155 | EK2: ='Raw Data'!FD45 -> 159 | EL2: ='Raw Data'!FE45 -> 159 | EM2: ='Raw Data'!FF45 -> 145 | EN2: ='Raw Data'!FG45 -> 140 | EO2: ='Raw Data'!FH45 -> 173 | EP2: ='Raw Data'!FI45 -> 112 | EQ2: ='Raw Data'!FJ45 -> 129 | ER2: ='Raw Data'!FK45 -> 180 | ES2: ='Raw Data'!FL45 -> 180 | ET2: ='Raw Data'!FM45 -> 203 | EU2: ='Raw Data'!FN45 -> 218 | EV2: ='Raw Data'!FO45 -> 136 | EW2: ='Raw Data'!FP45 -> 171 | EX2: ='Raw Data'!FQ45 -> 162 | EY2: ='Raw Data'!FR45 -> 166 | EZ2: ='Raw Data'!FS45 -> 164 | FA2: ='Raw Data'!FT45 -> 164 | FB2: ='Raw Data'!FU45 -> 118 | FC2: ='Raw Data'!FV45 -> 89 | FD2: ='Raw Data'!FW45 -> 187 | FE2: ='Raw Data'!FX45 -> 186 | FF2: ='Raw Data'!FY45 -> 219 | FG2: ='Raw Data'!FZ45 -> 188 | FH2: ='Raw Data'!GA45 -> 172 | FI2: ='Raw Data'!GB45 -> 189 | FJ2: ='Raw Data'!GC45 -> 142 | FK2: ='Raw Data'!GD45 -> 176 | FL2: ='Raw Data'!GE45 -> 135 | FM2: ='Raw Data'!GF45 -> 166 | FN2: ='Raw Data'!GG45 -> 119 | FO2: ='Raw Data'!GH45 -> 123 | FP2: ='Raw Data'!GI45 -> 184 | FQ2: ='Raw Data'!GJ45 -> 189 | FR2: ='Raw Data'!GK45 -> 217 | FS2: ='Raw Data'!GL45 -> 190 | FT2: ='Raw Data'!GM45 -> 185 | FU2: ='Raw Data'!GN45 -> 201 | FV2: ='Raw Data'!GO45 -> 162 | FW2: ='Raw Data'!GP45 -> 189 | FX2: ='Raw Data'!GQ45 -> 206 | FY2: ='Raw Data'!GR45 -> 174 | FZ2: ='Raw Data'!GS45 -> 148 | GA2: ='Raw Data'!GT45 -> 146 | GB2: ='Raw Data'!GU45 -> 198 | GC2: ='Raw Data'!GV45 -> 154 | GD2: ='Raw Data'!GW45 -> 150 | GE2: ='Raw Data'!GX45 -> 221 | GF2: ='Raw Data'!GY45 -> 396 | GG2: ='Raw Data'!GZ45 -> 322 | GH2: ='Raw Data'!HA45 -> 358 | GI2: ='Raw Data'!HB45 -> 372 | GJ2: ='Raw Data'!HC45 -> 310 | GK2: ='Raw Data'!HD45 -> 316 | GL2: ='Raw Data'!HE45 -> 263 | GM2: ='Raw Data'!HF45 -> 237 | GN2: ='Raw Data'!HG45 -> 377 | GO2: ='Raw Data'!HH45 -> 349 | GP2: ='Raw Data'!HI45 -> 337 | GQ2: ='Raw Data'!HJ45 -> 326 | GR2: ='Raw Data'!HK45 -> 263 | GS2: ='Raw Data'!HL45 -> 234 | GT2: ='Raw Data'!HM45 -> 230 | GU2: ='Raw Data'!HN45 -> 253 | GV2: ='Raw Data'!HO45 -> 267 | GW2: ='Raw Data'!HP45 -> 240 | GX2: ='Raw Data'!HQ45 -> 225 | GY2: ='Raw Data'!HR45 -> 182 | GZ2: ='Raw Data'!HS45 -> 300 | HA2: ='Raw Data'!HT45 -> 265 | HB2: ='Raw Data'!HU45 -> 247 | HC2: ='Raw Data'!HV45 -> 235 | HD2: ='Raw Data'!HW45 -> 171 | HE2: ='Raw Data'!HX45 -> 201 | HF2: ='Raw Data'!HY45 -> 179 | HG2: ='Raw Data'!HZ45 -> 161 | HH2: ='Raw Data'!IA45 -> 161 | HI2: ='Raw Data'!IB45 -> 131 | HJ2: ='Raw Data'!IC45 -> 101 | HK2: ='Raw Data'!ID45 -> 137 | HL2: ='Raw Data'!IE45 -> 193 | HM2: ='Raw Data'!IF45 -> 166 | HN2: ='Raw Data'!IG45 -> 184 | HO2: ='Raw Data'!IH45 -> 189 | HP2: ='Raw Data'!II45 -> 129 | HQ2: ='Raw Data'!IJ45 -> 143 | HR2: ='Raw Data'!IK45 -> 167 | HS2: ='Raw Data'!IL45 -> 129 | HT2: ='Raw Data'!IM45 -> 137 | HU2: ='Raw Data'!IN45 -> 116 | HV2: ='Raw Data'!IO45 -> 0 | HW2: ='Raw Data'!IP45 -> 0 | HX2: ='Raw Data'!IQ45 -> 0 | HY2: ='Raw Data'!IR45 -> 0 | HZ2: ='Raw Data'!IS45 -> 0 | IA2: ='Raw Data'!IT45 -> 0 | IB2: ='Raw Data'!IU45 -> 0 | IC2: ='Raw Data'!IV45 -> 0 | ID2: ='Raw Data'!IW45 -> 0 | IE2: ='Raw Data'!IX45 -> 0 | IF2: ='Raw Data'!IY45 -> 0 | IG2: ='Raw Data'!IZ45 -> 0 | IH2: ='Raw Data'!JA45 -> 0 | II2: ='Raw Data'!JB45 -> 0 | IJ2: ='Raw Data'!JC45 -> 0 | IK2: ='Raw Data'!JD45 -> 0
A3: Sold Land | B3: ='Raw Data'!U46 -> 96 | C3: ='Raw Data'!V46 -> 61 | D3: ='Raw Data'!W46 -> 91 | E3: ='Raw Data'!X46 -> 106 | F3: ='Raw Data'!Y46 -> 111 | G3: ='Raw Data'!Z46 -> 114 | H3: ='Raw Data'!AA46 -> 69 | I3: ='Raw Data'!AB46 -> 83 | J3: ='Raw Data'!AC46 -> 115 | K3: ='Raw Data'!AD46 -> 71 | L3: ='Raw Data'!AE46 -> 77 | M3: ='Raw Data'!AF46 -> 55 | N3: ='Raw Data'!AG46 -> 63 | O3: ='Raw Data'!AH46 -> 22 | P3: ='Raw Data'!AI46 -> 48 | Q3: ='Raw Data'!AJ46 -> 33 | R3: ='Raw Data'!AK46 -> 53 | S3: ='Raw Data'!AL46 -> 34 | T3: ='Raw Data'!AM46 -> 38 | U3: ='Raw Data'!AN46 -> 31 | V3: ='Raw Data'!AO46 -> 21 | W3: ='Raw Data'!AP46 -> 52 | X3: ='Raw Data'!AQ46 -> 20 | Y3: ='Raw Data'!AR46 -> 35 | Z3: ='Raw Data'!AS46 -> 19 | AA3: ='Raw Data'!AT46 -> 19 | AB3: ='Raw Data'!AU46 -> 11 | AC3: ='Raw Data'!AV46 -> 22 | AD3: ='Raw Data'!AW46 -> 33 | AE3: ='Raw Data'!AX46 -> 23 | AF3: ='Raw Data'!AY46 -> 17 | AG3: ='Raw Data'!AZ46 -> 20 | AH3: ='Raw Data'!BA46 -> 28 | AI3: ='Raw Data'!BB46 -> 26 | AJ3: ='Raw Data'!BC46 -> 35 | AK3: ='Raw Data'!BD46 -> 19 | AL3: ='Raw Data'!BE46 -> 30 | AM3: ='Raw Data'!BF46 -> 22 | AN3: ='Raw Data'!BG46 -> 13 | AO3: ='Raw Data'!BH46 -> 29 | AP3: ='Raw Data'!BI46 -> 22 | AQ3: ='Raw Data'!BJ46 -> 25 | AR3: ='Raw Data'!BK46 -> 17 | AS3: ='Raw Data'!BL46 -> 24 | AT3: ='Raw Data'!BM46 -> 33 | AU3: ='Raw Data'!BN46 -> 16 | AV3: ='Raw Data'!BO46 -> 20 | AW3: ='Raw Data'!BP46 -> 13 | AX3: ='Raw Data'!BQ46 -> 9 | AY3: ='Raw Data'!BR46 -> 9 | AZ3: ='Raw Data'!BS46 -> 15 | BA3: ='Raw Data'!BT46 -> 6 | BB3: ='Raw Data'!BU46 -> 15 | BC3: ='Raw Data'!BV46 -> 28 | BD3: ='Raw Data'!BW46 -> 16 | BE3: ='Raw Data'!BX46 -> 29 | BF3: ='Raw Data'!BY46 -> 33 | BG3: ='Raw Data'!BZ46 -> 34 | BH3: ='Raw Data'!CA46 -> 22 | BI3: ='Raw Data'!CB46 -> 24 | BJ3: ='Raw Data'!CC46 -> 12 | BK3: ='Raw Data'!CD46 -> 20 | BL3: ='Raw Data'!CE46 -> 12 | BM3: ='Raw Data'!CF46 -> 26 | BN3: ='Raw Data'!CG46 -> 18 | BO3: ='Raw Data'!CH46 -> 28 | BP3: ='Raw Data'!CI46 -> 21 | BQ3: ='Raw Data'!CJ46 -> 30 | BR3: ='Raw Data'!CK46 -> 33 | BS3: ='Raw Data'!CL46 -> 23 | BT3: ='Raw Data'!CM46 -> 30 | BU3: ='Raw Data'!CN46 -> 29 | BV3: ='Raw Data'!CO46 -> 15 | BW3: ='Raw Data'!CP46 -> 18 | BX3: ='Raw Data'!CQ46 -> 37 | BY3: ='Raw Data'!CR46 -> 27 | BZ3: ='Raw Data'!CS46 -> 32 | CA3: ='Raw Data'!CT46 -> 33 | CB3: ='Raw Data'!CU46 -> 18 | CC3: ='Raw Data'!CV46 -> 27 | CD3: ='Raw Data'!CW46 -> 23 | CE3: ='Raw Data'!CX46 -> 18 | CF3: ='Raw Data'!CY46 -> 45 | CG3: ='Raw Data'!CZ46 -> 38 | CH3: ='Raw Data'!DA46 -> 19 | CI3: ='Raw Data'!DB46 -> 30 | CJ3: ='Raw Data'!DC46 -> 50 | CK3: ='Raw Data'!DD46 -> 51 | CL3: ='Raw Data'!DE46 -> 40 | CM3: ='Raw Data'!DF46 -> 35 | CN3: ='Raw Data'!DG46 -> 30 | CO3: ='Raw Data'!DH46 -> 46 | CP3: ='Raw Data'!DI46 -> 29 | CQ3: ='Raw Data'!DJ46 -> 40 | CR3: ='Raw Data'!DK46 -> 30 | CS3: ='Raw Data'!DL46 -> 27 | CT3: ='Raw Data'!DM46 -> 25 | CU3: ='Raw Data'!DN46 -> 52 | CV3: ='Raw Data'!DO46 -> 44 | CW3: ='Raw Data'!DP46 -> 41 | CX3: ='Raw Data'!DQ46 -> 36 | CY3: ='Raw Data'!DR46 -> 34 | CZ3: ='Raw Data'!DS46 -> 39 | DA3: ='Raw Data'!DT46 -> 44 | DB3: ='Raw Data'!DU46 -> 38 | DC3: ='Raw Data'!DV46 -> 48 | DD3: ='Raw Data'!DW46 -> 30 | DE3: ='Raw Data'!DX46 -> 59 | DF3: ='Raw Data'!DY46 -> 22 | DG3: ='Raw Data'!DZ46 -> 26 | DH3: ='Raw Data'!EA46 -> 30 | DI3: ='Raw Data'!EB46 -> 38 | DJ3: ='Raw Data'!EC46 -> 33 | DK3: ='Raw Data'!ED46 -> 51 | DL3: ='Raw Data'!EE46 -> 75 | DM3: ='Raw Data'!EF46 -> 46 | DN3: ='Raw Data'!EG46 -> 53 | DO3: ='Raw Data'!EH46 -> 48 | DP3: ='Raw Data'!EI46 -> 34 | DQ3: ='Raw Data'!EJ46 -> 35 | DR3: ='Raw Data'!EK46 -> 32 | DS3: ='Raw Data'!EL46 -> 31 | DT3: ='Raw Data'!EM46 -> 40 | DU3: ='Raw Data'!EN46 -> 38 | DV3: ='Raw Data'!EO46 -> 37 | DW3: ='Raw Data'!EP46 -> 42 | DX3: ='Raw Data'!EQ46 -> 44 | DY3: ='Raw Data'!ER46 -> 39 | DZ3: ='Raw Data'!ES46 -> 51 | EA3: ='Raw Data'!ET46 -> 39 | EB3: ='Raw Data'!EU46 -> 28 | EC3: ='Raw Data'!EV46 -> 46 | ED3: ='Raw Data'!EW46 -> 32 | EE3: ='Raw Data'!EX46 -> 37 | EF3: ='Raw Data'!EY46 -> 43 | EG3: ='Raw Data'!EZ46 -> 38 | EH3: ='Raw Data'!FA46 -> 39 | EI3: ='Raw Data'!FB46 -> 48 | EJ3: ='Raw Data'!FC46 -> 46 | EK3: ='Raw Data'!FD46 -> 44 | EL3: ='Raw Data'!FE46 -> 51 | EM3: ='Raw Data'!FF46 -> 44 | EN3: ='Raw Data'!FG46 -> 26 | EO3: ='Raw Data'!FH46 -> 23 | EP3: ='Raw Data'!FI46 -> 29 | EQ3: ='Raw Data'!FJ46 -> 19 | ER3: ='Raw Data'!FK46 -> 54 | ES3: ='Raw Data'!FL46 -> 33 | ET3: ='Raw Data'!FM46 -> 45 | EU3: ='Raw Data'!FN46 -> 76 | EV3: ='Raw Data'!FO46 -> 49 | EW3: ='Raw Data'!FP46 -> 52 | EX3: ='Raw Data'!FQ46 -> 44 | EY3: ='Raw Data'!FR46 -> 66 | EZ3: ='Raw Data'!FS46 -> 42 | FA3: ='Raw Data'!FT46 -> 38 | FB3: ='Raw Data'!FU46 -> 35 | FC3: ='Raw Data'!FV46 -> 22 | FD3: ='Raw Data'!FW46 -> 43 | FE3: ='Raw Data'!FX46 -> 36 | FF3: ='Raw Data'!FY46 -> 44 | FG3: ='Raw Data'!FZ46 -> 53 | FH3: ='Raw Data'!GA46 -> 37 | FI3: ='Raw Data'!GB46 -> 39 | FJ3: ='Raw Data'!GC46 -> 35 | FK3: ='Raw Data'!GD46 -> 36 | FL3: ='Raw Data'!GE46 -> 26 | FM3: ='Raw Data'!GF46 -> 24 | FN3: ='Raw Data'!GG46 -> 21 | FO3: ='Raw Data'!GH46 -> 37 | FP3: ='Raw Data'!GI46 -> 30 | FQ3: ='Raw Data'!GJ46 -> 37 | FR3: ='Raw Data'!GK46 -> 35 | FS3: ='Raw Data'!GL46 -> 39 | FT3: ='Raw Data'!GM46 -> 45 | FU3: ='Raw Data'!GN46 -> 39 | FV3: ='Raw Data'!GO46 -> 35 | FW3: ='Raw Data'!GP46 -> 32 | FX3: ='Raw Data'!GQ46 -> 43 | FY3: ='Raw Data'!GR46 -> 41 | FZ3: ='Raw Data'!GS46 -> 29 | GA3: ='Raw Data'!GT46 -> 33 | GB3: ='Raw Data'!GU46 -> 38 | GC3: ='Raw Data'!GV46 -> 25 | GD3: ='Raw Data'!GW46 -> 27 | GE3: ='Raw Data'!GX46 -> 27 | GF3: ='Raw Data'!GY46 -> 55 | GG3: ='Raw Data'!GZ46 -> 78 | GH3: ='Raw Data'!HA46 -> 80 | GI3: ='Raw Data'!HB46 -> 86 | GJ3: ='Raw Data'!HC46 -> 71 | GK3: ='Raw Data'!HD46 -> 80 | GL3: ='Raw Data'!HE46 -> 68 | GM3: ='Raw Data'!HF46 -> 57 | GN3: ='Raw Data'!HG46 -> 67 | GO3: ='Raw Data'!HH46 -> 93 | GP3: ='Raw Data'!HI46 -> 99 | GQ3: ='Raw Data'!HJ46 -> 103 | GR3: ='Raw Data'!HK46 -> 97 | GS3: ='Raw Data'!HL46 -> 89 | GT3: ='Raw Data'!HM46 -> 81 | GU3: ='Raw Data'!HN46 -> 75 | GV3: ='Raw Data'!HO46 -> 70 | GW3: ='Raw Data'!HP46 -> 76 | GX3: ='Raw Data'!HQ46 -> 56 | GY3: ='Raw Data'!HR46 -> 61 | GZ3: ='Raw Data'!HS46 -> 80 | HA3: ='Raw Data'!HT46 -> 75 | HB3: ='Raw Data'!HU46 -> 81 | HC3: ='Raw Data'!HV46 -> 51 | HD3: ='Raw Data'!HW46 -> 56 | HE3: ='Raw Data'!HX46 -> 62 | HF3: ='Raw Data'!HY46 -> 49 | HG3: ='Raw Data'!HZ46 -> 43 | HH3: ='Raw Data'!IA46 -> 31 | HI3: ='Raw Data'!IB46 -> 36 | HJ3: ='Raw Data'!IC46 -> 38 | HK3: ='Raw Data'!ID46 -> 36 | HL3: ='Raw Data'!IE46 -> 43 | HM3: ='Raw Data'!IF46 -> 48 | HN3: ='Raw Data'!IG46 -> 41 | HO3: ='Raw Data'!IH46 -> 55 | HP3: ='Raw Data'!II46 -> 43 | HQ3: ='Raw Data'!IJ46 -> 47 | HR3: ='Raw Data'!IK46 -> 47 | HS3: ='Raw Data'!IL46 -> 46 | HT3: ='Raw Data'!IM46 -> 42 | HU3: ='Raw Data'!IN46 -> 29 | HV3: ='Raw Data'!IO46 -> 0 | HW3: ='Raw Data'!IP46 -> 0 | HX3: ='Raw Data'!IQ46 -> 0 | HY3: ='Raw Data'!IR46 -> 0 | HZ3: ='Raw Data'!IS46 -> 0 | IA3: ='Raw Data'!IT46 -> 0 | IB3: ='Raw Data'!IU46 -> 0 | IC3: ='Raw Data'!IV46 -> 0 | ID3: ='Raw Data'!IW46 -> 0 | IE3: ='Raw Data'!IX46 -> 0 | IF3: ='Raw Data'!IY46 -> 0 | IG3: ='Raw Data'!IZ46 -> 0 | IH3: ='Raw Data'!JA46 -> 0 | II3: ='Raw Data'!JB46 -> 0 | IJ3: ='Raw Data'!JC46 -> 0 | IK3: ='Raw Data'!JD46 -> 0
A4: Sold Commercial | B4: ='Raw Data'!U47 -> 1 | C4: ='Raw Data'!V47 -> 3 | D4: ='Raw Data'!W47 -> 3 | E4: ='Raw Data'!X47 -> 4 | F4: ='Raw Data'!Y47 -> 4 | G4: ='Raw Data'!Z47 -> 6 | H4: ='Raw Data'!AA47 -> 4 | I4: ='Raw Data'!AB47 -> 4 | J4: ='Raw Data'!AC47 -> 1 | K4: ='Raw Data'!AD47 -> 14 | L4: ='Raw Data'!AE47 -> 1 | M4: ='Raw Data'!AF47 -> 3 | N4: ='Raw Data'!AG47 -> 2 | O4: ='Raw Data'!AH47 -> 1 | P4: ='Raw Data'!AI47 -> 6 | Q4: ='Raw Data'!AJ47 -> 2 | R4: ='Raw Data'!AK47 -> 3 | S4: ='Raw Data'!AL47 -> 5 | T4: ='Raw Data'!AM47 -> 2 | U4: ='Raw Data'!AN47 -> 2 | V4: ='Raw Data'!AO47 -> 9 | W4: ='Raw Data'!AP47 -> 5 | X4: ='Raw Data'!AQ47 -> 0 | Y4: ='Raw Data'!AR47 -> 1 | Z4: ='Raw Data'!AS47 -> 2 | AA4: ='Raw Data'!AT47 -> 0 | AB4: ='Raw Data'!AU47 -> 1 | AC4: ='Raw Data'!AV47 -> 2 | AD4: ='Raw Data'!AW47 -> 1 | AE4: ='Raw Data'!AX47 -> 0 | AF4: ='Raw Data'!AY47 -> 3 | AG4: ='Raw Data'!AZ47 -> 3 | AH4: ='Raw Data'!BA47 -> 1 | AI4: ='Raw Data'!BB47 -> 0 | AJ4: ='Raw Data'!BC47 -> 2 | AK4: ='Raw Data'!BD47 -> 0 | AL4: ='Raw Data'!BE47 -> 0 | AM4: ='Raw Data'!BF47 -> 1 | AN4: ='Raw Data'!BG47 -> 1 | AO4: ='Raw Data'!BH47 -> 3 | AP4: ='Raw Data'!BI47 -> 2 | AQ4: ='Raw Data'!BJ47 -> 1 | AR4: ='Raw Data'!BK47 -> 3 | AS4: ='Raw Data'!BL47 -> 1 | AT4: ='Raw Data'!BM47 -> 0 | AU4: ='Raw Data'!BN47 -> 0 | AV4: ='Raw Data'!BO47 -> 0 | AW4: ='Raw Data'!BP47 -> 1 | AX4: ='Raw Data'!BQ47 -> 2 | AY4: ='Raw Data'!BR47 -> 1 | AZ4: ='Raw Data'!BS47 -> 2 | BA4: ='Raw Data'!BT47 -> 1 | BB4: ='Raw Data'!BU47 -> 0 | BC4: ='Raw Data'!BV47 -> 0 | BD4: ='Raw Data'!BW47 -> 1 | BE4: ='Raw Data'!BX47 -> 0 | BF4: ='Raw Data'!BY47 -> 0 | BG4: ='Raw Data'!BZ47 -> 0 | BH4: ='Raw Data'!CA47 -> 1 | BI4: ='Raw Data'!CB47 -> 11 | BJ4: ='Raw Data'!CC47 -> 1 | BK4: ='Raw Data'!CD47 -> 1 | BL4: ='Raw Data'!CE47 -> 1 | BM4: ='Raw Data'!CF47 -> 2 | BN4: ='Raw Data'!CG47 -> 1 | BO4: ='Raw Data'!CH47 -> 3 | BP4: ='Raw Data'!CI47 -> 2 | BQ4: ='Raw Data'!CJ47 -> 0 | BR4: ='Raw Data'!CK47 -> 1 | BS4: ='Raw Data'!CL47 -> 0 | BT4: ='Raw Data'!CM47 -> 0 | BU4: ='Raw Data'!CN47 -> 1 | BV4: ='Raw Data'!CO47 -> 1 | BW4: ='Raw Data'!CP47 -> 2 | BX4: ='Raw Data'!CQ47 -> 2 | BY4: ='Raw Data'!CR47 -> 3 | BZ4: ='Raw Data'!CS47 -> 3 | CA4: ='Raw Data'!CT47 -> 2 | CB4: ='Raw Data'!CU47 -> 2 | CC4: ='Raw Data'!CV47 -> 0 | CD4: ='Raw Data'!CW47 -> 2 | CE4: ='Raw Data'!CX47 -> 5 | CF4: ='Raw Data'!CY47 -> 3 | CG4: ='Raw Data'!CZ47 -> 0 | CH4: ='Raw Data'!DA47 -> 3 | CI4: ='Raw Data'!DB47 -> 1 | CJ4: ='Raw Data'!DC47 -> 6 | CK4: ='Raw Data'!DD47 -> 4 | CL4: ='Raw Data'!DE47 -> 1 | CM4: ='Raw Data'!DF47 -> 1 | CN4: ='Raw Data'!DG47 -> 0 | CO4: ='Raw Data'!DH47 -> 2 | CP4: ='Raw Data'!DI47 -> 1 | CQ4: ='Raw Data'!DJ47 -> 3 | CR4: ='Raw Data'!DK47 -> 6 | CS4: ='Raw Data'!DL47 -> 4 | CT4: ='Raw Data'!DM47 -> 1 | CU4: ='Raw Data'!DN47 -> 3 | CV4: ='Raw Data'!DO47 -> 0 | CW4: ='Raw Data'!DP47 -> 4 | CX4: ='Raw Data'!DQ47 -> 1 | CY4: ='Raw Data'!DR47 -> 3 | CZ4: ='Raw Data'!DS47 -> 2 | DA4: ='Raw Data'!DT47 -> 4 | DB4: ='Raw Data'!DU47 -> 7 | DC4: ='Raw Data'!DV47 -> 2 | DD4: ='Raw Data'!DW47 -> 2 | DE4: ='Raw Data'!DX47 -> 5 | DF4: ='Raw Data'!DY47 -> 5 | DG4: ='Raw Data'!DZ47 -> 3 | DH4: ='Raw Data'!EA47 -> 1 | DI4: ='Raw Data'!EB47 -> 2 | DJ4: ='Raw Data'!EC47 -> 6 | DK4: ='Raw Data'!ED47 -> 2 | DL4: ='Raw Data'!EE47 -> 4 | DM4: ='Raw Data'!EF47 -> 1 | DN4: ='Raw Data'!EG47 -> 6 | DO4: ='Raw Data'!EH47 -> 0 | DP4: ='Raw Data'!EI47 -> 1 | DQ4: ='Raw Data'!EJ47 -> 10 | DR4: ='Raw Data'!EK47 -> 1 | DS4: ='Raw Data'!EL47 -> 6 | DT4: ='Raw Data'!EM47 -> 4 | DU4: ='Raw Data'!EN47 -> 2 | DV4: ='Raw Data'!EO47 -> 2 | DW4: ='Raw Data'!EP47 -> 0 | DX4: ='Raw Data'!EQ47 -> 3 | DY4: ='Raw Data'!ER47 -> 2 | DZ4: ='Raw Data'!ES47 -> 4 | EA4: ='Raw Data'!ET47 -> 0 | EB4: ='Raw Data'!EU47 -> 6 | EC4: ='Raw Data'!EV47 -> 4 | ED4: ='Raw Data'!EW47 -> 2 | EE4: ='Raw Data'!EX47 -> 1 | EF4: ='Raw Data'!EY47 -> 3 | EG4: ='Raw Data'!EZ47 -> 5 | EH4: ='Raw Data'!FA47 -> 3 | EI4: ='Raw Data'!FB47 -> 5 | EJ4: ='Raw Data'!FC47 -> 0 | EK4: ='Raw Data'!FD47 -> 1 | EL4: ='Raw Data'!FE47 -> 1 | EM4: ='Raw Data'!FF47 -> 4 | EN4: ='Raw Data'!FG47 -> 1 | EO4: ='Raw Data'!FH47 -> 6 | EP4: ='Raw Data'!FI47 -> 0 | EQ4: ='Raw Data'!FJ47 -> 1 | ER4: ='Raw Data'!FK47 -> 1 | ES4: ='Raw Data'!FL47 -> 6 | ET4: ='Raw Data'!FM47 -> 6 | EU4: ='Raw Data'!FN47 -> 1 | EV4: ='Raw Data'!FO47 -> 0 | EW4: ='Raw Data'!FP47 -> 1 | EX4: ='Raw Data'!FQ47 -> 0 | EY4: ='Raw Data'!FR47 -> 2 | EZ4: ='Raw Data'!FS47 -> 2 | FA4: ='Raw Data'!FT47 -> 6 | FB4: ='Raw Data'!FU47 -> 0 | FC4: ='Raw Data'!FV47 -> 1 | FD4: ='Raw Data'!FW47 -> 2 | FE4: ='Raw Data'!FX47 -> 3 | FF4: ='Raw Data'!FY47 -> 4 | FG4: ='Raw Data'!FZ47 -> 4 | FH4: ='Raw Data'!GA47 -> 0 | FI4: ='Raw Data'!GB47 -> 0 | FJ4: ='Raw Data'!GC47 -> 1 | FK4: ='Raw Data'!GD47 -> 3 | FL4: ='Raw Data'!GE47 -> 1 | FM4: ='Raw Data'!GF47 -> 2 | FN4: ='Raw Data'!GG47 -> 4 | FO4: ='Raw Data'!GH47 -> 3 | FP4: ='Raw Data'!GI47 -> 4 | FQ4: ='Raw Data'!GJ47 -> 3 | FR4: ='Raw Data'!GK47 -> 1 | FS4: ='Raw Data'!GL47 -> 3 | FT4: ='Raw Data'!GM47 -> 2 | FU4: ='Raw Data'!GN47 -> 3 | FV4: ='Raw Data'!GO47 -> 2 | FW4: ='Raw Data'!GP47 -> 3 | FX4: ='Raw Data'!GQ47 -> 1 | FY4: ='Raw Data'!GR47 -> 4 | FZ4: ='Raw Data'!GS47 -> 2 | GA4: ='Raw Data'!GT47 -> 2 | GB4: ='Raw Data'!GU47 -> 0 | GC4: ='Raw Data'!GV47 -> 2 | GD4: ='Raw Data'!GW47 -> 2 | GE4: ='Raw Data'!GX47 -> 3 | GF4: ='Raw Data'!GY47 -> 1 | GG4: ='Raw Data'!GZ47 -> 3 | GH4: ='Raw Data'!HA47 -> 7 | GI4: ='Raw Data'!HB47 -> 2 | GJ4: ='Raw Data'!HC47 -> 2 | GK4: ='Raw Data'!HD47 -> 5 | GL4: ='Raw Data'!HE47 -> 4 | GM4: ='Raw Data'!HF47 -> 4 | GN4: ='Raw Data'!HG47 -> 3 | GO4: ='Raw Data'!HH47 -> 3 | GP4: ='Raw Data'!HI47 -> 4 | GQ4: ='Raw Data'!HJ47 -> 3 | GR4: ='Raw Data'!HK47 -> 9 | GS4: ='Raw Data'!HL47 -> 6 | GT4: ='Raw Data'!HM47 -> 2 | GU4: ='Raw Data'!HN47 -> 5 | GV4: ='Raw Data'!HO47 -> 3 | GW4: ='Raw Data'!HP47 -> 3 | GX4: ='Raw Data'!HQ47 -> 4 | GY4: ='Raw Data'!HR47 -> 5 | GZ4: ='Raw Data'!HS47 -> 7 | HA4: ='Raw Data'!HT47 -> 4 | HB4: ='Raw Data'!HU47 -> 3 | HC4: ='Raw Data'!HV47 -> 4 | HD4: ='Raw Data'!HW47 -> 6 | HE4: ='Raw Data'!HX47 -> 2 | HF4: ='Raw Data'!HY47 -> 3 | HG4: ='Raw Data'!HZ47 -> 3 | HH4: ='Raw Data'!IA47 -> 3 | HI4: ='Raw Data'!IB47 -> 1 | HJ4: ='Raw Data'!IC47 -> 2 | HK4: ='Raw Data'!ID47 -> 1 | HL4: ='Raw Data'!IE47 -> 6 | HM4: ='Raw Data'!IF47 -> 1 | HN4: ='Raw Data'!IG47 -> 3 | HO4: ='Raw Data'!IH47 -> 1 | HP4: ='Raw Data'!II47 -> 0 | HQ4: ='Raw Data'!IJ47 -> 1 | HR4: ='Raw Data'!IK47 -> 2 | HS4: ='Raw Data'!IL47 -> 2 | HT4: ='Raw Data'!IM47 -> 4 | HU4: ='Raw Data'!IN47 -> 1 | HV4: ='Raw Data'!IO47 -> 0 | HW4: ='Raw Data'!IP47 -> 0 | HX4: ='Raw Data'!IQ47 -> 0 | HY4: ='Raw Data'!IR47 -> 0 | HZ4: ='Raw Data'!IS47 -> 0 | IA4: ='Raw Data'!IT47 -> 0 | IB4: ='Raw Data'!IU47 -> 0 | IC4: ='Raw Data'!IV47 -> 0 | ID4: ='Raw Data'!IW47 -> 0 | IE4: ='Raw Data'!IX47 -> 0 | IF4: ='Raw Data'!IY47 -> 0 | IG4: ='Raw Data'!IZ47 -> 0 | IH4: ='Raw Data'!JA47 -> 0 | II4: ='Raw Data'!JB47 -> 0 | IJ4: ='Raw Data'!JC47 -> 0 | IK4: ='Raw Data'!JD47 -> 0
A5: Total | B5: ='Raw Data'!U48 -> 246 | C5: ='Raw Data'!V48 -> 183 | D5: ='Raw Data'!W48 -> 284 | E5: ='Raw Data'!X48 -> 318 | F5: ='Raw Data'!Y48 -> 401 | G5: ='Raw Data'!Z48 -> 354 | H5: ='Raw Data'!AA48 -> 240 | I5: ='Raw Data'!AB48 -> 265 | J5: ='Raw Data'!AC48 -> 293 | K5: ='Raw Data'!AD48 -> 247 | L5: ='Raw Data'!AE48 -> 204 | M5: ='Raw Data'!AF48 -> 166 | N5: ='Raw Data'!AG48 -> 162 | O5: ='Raw Data'!AH48 -> 116 | P5: ='Raw Data'!AI48 -> 176 | Q5: ='Raw Data'!AJ48 -> 153 | R5: ='Raw Data'!AK48 -> 207 | S5: ='Raw Data'!AL48 -> 156 | T5: ='Raw Data'!AM48 -> 123 | U5: ='Raw Data'!AN48 -> 139 | V5: ='Raw Data'!AO48 -> 123 | W5: ='Raw Data'!AP48 -> 176 | X5: ='Raw Data'!AQ48 -> 101 | Y5: ='Raw Data'!AR48 -> 125 | Z5: ='Raw Data'!AS48 -> 97 | AA5: ='Raw Data'!AT48 -> 122 | AB5: ='Raw Data'!AU48 -> 112 | AC5: ='Raw Data'!AV48 -> 143 | AD5: ='Raw Data'!AW48 -> 171 | AE5: ='Raw Data'!AX48 -> 140 | AF5: ='Raw Data'!AY48 -> 123 | AG5: ='Raw Data'!AZ48 -> 129 | AH5: ='Raw Data'!BA48 -> 133 | AI5: ='Raw Data'!BB48 -> 121 | AJ5: ='Raw Data'!BC48 -> 130 | AK5: ='Raw Data'!BD48 -> 101 | AL5: ='Raw Data'!BE48 -> 87 | AM5: ='Raw Data'!BF48 -> 98 | AN5: ='Raw Data'!BG48 -> 110 | AO5: ='Raw Data'!BH48 -> 124 | AP5: ='Raw Data'!BI48 -> 135 | AQ5: ='Raw Data'!BJ48 -> 136 | AR5: ='Raw Data'!BK48 -> 114 | AS5: ='Raw Data'!BL48 -> 128 | AT5: ='Raw Data'!BM48 -> 126 | AU5: ='Raw Data'!BN48 -> 101 | AV5: ='Raw Data'!BO48 -> 80 | AW5: ='Raw Data'!BP48 -> 83 | AX5: ='Raw Data'!BQ48 -> 53 | AY5: ='Raw Data'!BR48 -> 78 | AZ5: ='Raw Data'!BS48 -> 101 | BA5: ='Raw Data'!BT48 -> 88 | BB5: ='Raw Data'!BU48 -> 126 | BC5: ='Raw Data'!BV48 -> 142 | BD5: ='Raw Data'!BW48 -> 122 | BE5: ='Raw Data'!BX48 -> 134 | BF5: ='Raw Data'!BY48 -> 137 | BG5: ='Raw Data'!BZ48 -> 140 | BH5: ='Raw Data'!CA48 -> 129 | BI5: ='Raw Data'!CB48 -> 135 | BJ5: ='Raw Data'!CC48 -> 99 | BK5: ='Raw Data'!CD48 -> 93 | BL5: ='Raw Data'!CE48 -> 126 | BM5: ='Raw Data'!CF48 -> 164 | BN5: ='Raw Data'!CG48 -> 170 | BO5: ='Raw Data'!CH48 -> 168 | BP5: ='Raw Data'!CI48 -> 148 | BQ5: ='Raw Data'!CJ48 -> 129 | BR5: ='Raw Data'!CK48 -> 143 | BS5: ='Raw Data'!CL48 -> 138 | BT5: ='Raw Data'!CM48 -> 136 | BU5: ='Raw Data'!CN48 -> 155 | BV5: ='Raw Data'!CO48 -> 99 | BW5: ='Raw Data'!CP48 -> 107 | BX5: ='Raw Data'!CQ48 -> 169 | BY5: ='Raw Data'!CR48 -> 167 | BZ5: ='Raw Data'!CS48 -> 159 | CA5: ='Raw Data'!CT48 -> 177 | CB5: ='Raw Data'!CU48 -> 147 | CC5: ='Raw Data'!CV48 -> 132 | CD5: ='Raw Data'!CW48 -> 138 | CE5: ='Raw Data'!CX48 -> 132 | CF5: ='Raw Data'!CY48 -> 122 | CG5: ='Raw Data'!CZ48 -> 140 | CH5: ='Raw Data'!DA48 -> 116 | CI5: ='Raw Data'!DB48 -> 143 | CJ5: ='Raw Data'!DC48 -> 227 | CK5: ='Raw Data'!DD48 -> 186 | CL5: ='Raw Data'!DE48 -> 206 | CM5: ='Raw Data'!DF48 -> 182 | CN5: ='Raw Data'!DG48 -> 151 | CO5: ='Raw Data'!DH48 -> 173 | CP5: ='Raw Data'!DI48 -> 176 | CQ5: ='Raw Data'!DJ48 -> 177 | CR5: ='Raw Data'!DK48 -> 165 | CS5: ='Raw Data'!DL48 -> 140 | CT5: ='Raw Data'!DM48 -> 115 | CU5: ='Raw Data'!DN48 -> 146 | CV5: ='Raw Data'!DO48 -> 180 | CW5: ='Raw Data'!DP48 -> 213 | CX5: ='Raw Data'!DQ48 -> 194 | CY5: ='Raw Data'!DR48 -> 187 | CZ5: ='Raw Data'!DS48 -> 202 | DA5: ='Raw Data'!DT48 -> 184 | DB5: ='Raw Data'!DU48 -> 172 | DC5: ='Raw Data'!DV48 -> 164 | DD5: ='Raw Data'!DW48 -> 147 | DE5: ='Raw Data'!DX48 -> 189 | DF5: ='Raw Data'!DY48 -> 133 | DG5: ='Raw Data'!DZ48 -> 117 | DH5: ='Raw Data'!EA48 -> 146 | DI5: ='Raw Data'!EB48 -> 189 | DJ5: ='Raw Data'!EC48 -> 231 | DK5: ='Raw Data'!ED48 -> 200 | DL5: ='Raw Data'!EE48 -> 201 | DM5: ='Raw Data'!EF48 -> 174 | DN5: ='Raw Data'!EG48 -> 201 | DO5: ='Raw Data'!EH48 -> 192 | DP5: ='Raw Data'!EI48 -> 153 | DQ5: ='Raw Data'!EJ48 -> 202 | DR5: ='Raw Data'!EK48 -> 129 | DS5: ='Raw Data'!EL48 -> 142 | DT5: ='Raw Data'!EM48 -> 184 | DU5: ='Raw Data'!EN48 -> 193 | DV5: ='Raw Data'!EO48 -> 241 | DW5: ='Raw Data'!EP48 -> 227 | DX5: ='Raw Data'!EQ48 -> 218 | DY5: ='Raw Data'!ER48 -> 187 | DZ5: ='Raw Data'!ES48 -> 198 | EA5: ='Raw Data'!ET48 -> 198 | EB5: ='Raw Data'!EU48 -> 177 | EC5: ='Raw Data'!EV48 -> 198 | ED5: ='Raw Data'!EW48 -> 145 | EE5: ='Raw Data'!EX48 -> 130 | EF5: ='Raw Data'!EY48 -> 184 | EG5: ='Raw Data'!EZ48 -> 201 | EH5: ='Raw Data'!FA48 -> 217 | EI5: ='Raw Data'!FB48 -> 238 | EJ5: ='Raw Data'!FC48 -> 201 | EK5: ='Raw Data'!FD48 -> 204 | EL5: ='Raw Data'!FE48 -> 211 | EM5: ='Raw Data'!FF48 -> 193 | EN5: ='Raw Data'!FG48 -> 167 | EO5: ='Raw Data'!FH48 -> 202 | EP5: ='Raw Data'!FI48 -> 141 | EQ5: ='Raw Data'!FJ48 -> 149 | ER5: ='Raw Data'!FK48 -> 235 | ES5: ='Raw Data'!FL48 -> 219 | ET5: ='Raw Data'!FM48 -> 254 | EU5: ='Raw Data'!FN48 -> 295 | EV5: ='Raw Data'!FO48 -> 185 | EW5: ='Raw Data'!FP48 -> 224 | EX5: ='Raw Data'!FQ48 -> 206 | EY5: ='Raw Data'!FR48 -> 234 | EZ5: ='Raw Data'!FS48 -> 208 | FA5: ='Raw Data'!FT48 -> 208 | FB5: ='Raw Data'!FU48 -> 153 | FC5: ='Raw Data'!FV48 -> 112 | FD5: ='Raw Data'!FW48 -> 232 | FE5: ='Raw Data'!FX48 -> 225 | FF5: ='Raw Data'!FY48 -> 267 | FG5: ='Raw Data'!FZ48 -> 245 | FH5: ='Raw Data'!GA48 -> 209 | FI5: ='Raw Data'!GB48 -> 228 | FJ5: ='Raw Data'!GC48 -> 178 | FK5: ='Raw Data'!GD48 -> 215 | FL5: ='Raw Data'!GE48 -> 162 | FM5: ='Raw Data'!GF48 -> 192 | FN5: ='Raw Data'!GG48 -> 144 | FO5: ='Raw Data'!GH48 -> 163 | FP5: ='Raw Data'!GI48 -> 218 | FQ5: ='Raw Data'!GJ48 -> 229 | FR5: ='Raw Data'!GK48 -> 253 | FS5: ='Raw Data'!GL48 -> 232 | FT5: ='Raw Data'!GM48 -> 232 | FU5: ='Raw Data'!GN48 -> 243 | FV5: ='Raw Data'!GO48 -> 199 | FW5: ='Raw Data'!GP48 -> 224 | FX5: ='Raw Data'!GQ48 -> 250 | FY5: ='Raw Data'!GR48 -> 219 | FZ5: ='Raw Data'!GS48 -> 179 | GA5: ='Raw Data'!GT48 -> 181 | GB5: ='Raw Data'!GU48 -> 236 | GC5: ='Raw Data'!GV48 -> 181 | GD5: ='Raw Data'!GW48 -> 179 | GE5: ='Raw Data'!GX48 -> 251 | GF5: ='Raw Data'!GY48 -> 452 | GG5: ='Raw Data'!GZ48 -> 403 | GH5: ='Raw Data'!HA48 -> 445 | GI5: ='Raw Data'!HB48 -> 460 | GJ5: ='Raw Data'!HC48 -> 383 | GK5: ='Raw Data'!HD48 -> 401 | GL5: ='Raw Data'!HE48 -> 335 | GM5: ='Raw Data'!HF48 -> 298 | GN5: ='Raw Data'!HG48 -> 447 | GO5: ='Raw Data'!HH48 -> 445 | GP5: ='Raw Data'!HI48 -> 440 | GQ5: ='Raw Data'!HJ48 -> 432 | GR5: ='Raw Data'!HK48 -> 369 | GS5: ='Raw Data'!HL48 -> 329 | GT5: ='Raw Data'!HM48 -> 313 | GU5: ='Raw Data'!HN48 -> 333 | GV5: ='Raw Data'!HO48 -> 340 | GW5: ='Raw Data'!HP48 -> 319 | GX5: ='Raw Data'!HQ48 -> 285 | GY5: ='Raw Data'!HR48 -> 248 | GZ5: ='Raw Data'!HS48 -> 387 | HA5: ='Raw Data'!HT48 -> 344 | HB5: ='Raw Data'!HU48 -> 331 | HC5: ='Raw Data'!HV48 -> 290 | HD5: ='Raw Data'!HW48 -> 233 | HE5: ='Raw Data'!HX48 -> 265 | HF5: ='Raw Data'!HY48 -> 231 | HG5: ='Raw Data'!HZ48 -> 207 | HH5: ='Raw Data'!IA48 -> 195 | HI5: ='Raw Data'!IB48 -> 168 | HJ5: ='Raw Data'!IC48 -> 141 | HK5: ='Raw Data'!ID48 -> 174 | HL5: ='Raw Data'!IE48 -> 242 | HM5: ='Raw Data'!IF48 -> 215 | HN5: ='Raw Data'!IG48 -> 228 | HO5: ='Raw Data'!IH48 -> 245 | HP5: ='Raw Data'!II48 -> 172 | HQ5: ='Raw Data'!IJ48 -> 191 | HR5: ='Raw Data'!IK48 -> 216 | HS5: ='Raw Data'!IL48 -> 177 | HT5: ='Raw Data'!IM48 -> 183 | HU5: ='Raw Data'!IN48 -> 146 | HV5: ='Raw Data'!IO48 -> 0 | HW5: ='Raw Data'!IP48 -> 0 | HX5: ='Raw Data'!IQ48 -> 0 | HY5: ='Raw Data'!IR48 -> 0 | HZ5: ='Raw Data'!IS48 -> 0 | IA5: ='Raw Data'!IT48 -> 0 | IB5: ='Raw Data'!IU48 -> 0 | IC5: ='Raw Data'!IV48 -> 0 | ID5: ='Raw Data'!IW48 -> 0 | IE5: ='Raw Data'!IX48 -> 0 | IF5: ='Raw Data'!IY48 -> 0 | IG5: ='Raw Data'!IZ48 -> 0 | IH5: ='Raw Data'!JA48 -> 0 | II5: ='Raw Data'!JB48 -> 0 | IJ5: ='Raw Data'!JC48 -> 0 | IK5: ='Raw Data'!JD48 -> 0
HW8: Jan | HX8: Feb | HY8: Mar | HZ8: Apr | IA8: May | IB8: Jun | IC8: July | ID8: Aug | IE8: Sep | IF8: Oct | IG8: Nov | IH8: Dec
HV9: 2005 | HW9: ='Raw Data'!U45 -> 149 | HX9: ='Raw Data'!V45 -> 119 | HY9: ='Raw Data'!W45 -> 190 | HZ9: ='Raw Data'!X45 -> 208 | IA9: ='Raw Data'!Y45 -> 286 | IB9: ='Raw Data'!Z45 -> 234 | IC9: ='Raw Data'!AA45 -> 167 | ID9: ='Raw Data'!AB45 -> 178 | IE9: ='Raw Data'!AC45 -> 177 | IF9: ='Raw Data'!AD45 -> 162 | IG9: ='Raw Data'!AE45 -> 126 | IH9: ='Raw Data'!AF45 -> 108 | II9: =SUM(HW9:IH9) -> 2104
HV10: 2006 | HW10: ='Raw Data'!AG45 -> 97 | HX10: ='Raw Data'!AH45 -> 93 | HY10: ='Raw Data'!AI45 -> 122 | HZ10: ='Raw Data'!AJ45 -> 118 | IA10: ='Raw Data'!AK45 -> 151 | IB10: ='Raw Data'!AL45 -> 117 | IC10: ='Raw Data'!AM45 -> 83 | ID10: ='Raw Data'!AN45 -> 106 | IE10: ='Raw Data'!AO45 -> 93 | IF10: ='Raw Data'!AP45 -> 119 | IG10: ='Raw Data'!AQ45 -> 81 | IH10: ='Raw Data'!AR45 -> 89 | II10: 1269
HV11: 2007 | HW11: ='Raw Data'!AS45 -> 76 | HX11: ='Raw Data'!AT45 -> 103 | HY11: ='Raw Data'!AU45 -> 100 | HZ11: ='Raw Data'!AV45 -> 119 | IA11: ='Raw Data'!AW45 -> 137 | IB11: ='Raw Data'!AX45 -> 117 | IC11: ='Raw Data'!AY45 -> 103 | ID11: ='Raw Data'!AZ45 -> 106 | IE11: ='Raw Data'!BA45 -> 104 | IF11: ='Raw Data'!BB45 -> 95 | IG11: ='Raw Data'!BC45 -> 93 | IH11: ='Raw Data'!BD45 -> 82 | II11: 1235
HV12: 2008 | HW12: ='Raw Data'!BE45 -> 57 | HX12: ='Raw Data'!BF45 -> 75 | HY12: ='Raw Data'!BG45 -> 96 | HZ12: ='Raw Data'!BH45 -> 92 | IA12: ='Raw Data'!BI45 -> 111 | IB12: ='Raw Data'!BJ45 -> 110 | IC12: ='Raw Data'!BK45 -> 94 | ID12: ='Raw Data'!BL45 -> 103 | IE12: ='Raw Data'!BM45 -> 93 | IF12: ='Raw Data'!BN45 -> 85 | IG12: ='Raw Data'!BO45 -> 60 | IH12: ='Raw Data'!BP45 -> 69 | II12: 1045
HV13: 2009 | HW13: ='Raw Data'!BQ45 -> 42 | HX13: ='Raw Data'!BR45 -> 68 | HY13: ='Raw Data'!BS45 -> 84 | HZ13: ='Raw Data'!BT45 -> 81 | IA13: ='Raw Data'!BU45 -> 111 | IB13: ='Raw Data'!BV45 -> 114 | IC13: ='Raw Data'!BW45 -> 105 | ID13: ='Raw Data'!BX45 -> 105 | IE13: ='Raw Data'!BY45 -> 104 | IF13: ='Raw Data'!BZ45 -> 106 | IG13: ='Raw Data'!CA45 -> 106 | IH13: ='Raw Data'!CB45 -> 100 | II13: 1126
HV14: 2010 | HW14: ='Raw Data'!CC45 -> 86 | HX14: ='Raw Data'!CD45 -> 72 | HY14: ='Raw Data'!CE45 -> 113 | HZ14: ='Raw Data'!CF45 -> 136 | IA14: ='Raw Data'!CG45 -> 151 | IB14: ='Raw Data'!CH45 -> 137 | IC14: ='Raw Data'!CI45 -> 125 | ID14: ='Raw Data'!CJ45 -> 99 | IE14: ='Raw Data'!CK45 -> 109 | IF14: ='Raw Data'!CL45 -> 115 | IG14: ='Raw Data'!CM45 -> 106 | IH14: ='Raw Data'!CN45 -> 125 | II14: 1374
HV15: 2011 | HW15: ='Raw Data'!CO45 -> 83 | HX15: ='Raw Data'!CP45 -> 87 | HY15: ='Raw Data'!CQ45 -> 130 | HZ15: ='Raw Data'!CR45 -> 137 | IA15: ='Raw Data'!CS45 -> 124 | IB15: ='Raw Data'!CT45 -> 142 | IC15: ='Raw Data'!CU45 -> 127 | ID15: ='Raw Data'!CV45 -> 105 | IE15: ='Raw Data'!CW45 -> 113 | IF15: ='Raw Data'!CX45 -> 109 | IG15: ='Raw Data'!CY45 -> 74 | IH15: ='Raw Data'!CZ45 -> 102 | II15: 1333
HV16: 2012 | HW16: ='Raw Data'!DA45 -> 94 | HX16: ='Raw Data'!DB45 -> 112 | HY16: ='Raw Data'!DC45 -> 171 | HZ16: ='Raw Data'!DD45 -> 131 | IA16: ='Raw Data'!DE45 -> 165 | IB16: ='Raw Data'!DF45 -> 146 | IC16: ='Raw Data'!DG45 -> 121 | ID16: ='Raw Data'!DH45 -> 125 | IE16: ='Raw Data'!DI45 -> 146 | IF16: ='Raw Data'!DJ45 -> 134 | IG16: ='Raw Data'!DK45 -> 129 | IH16: ='Raw Data'!DL45 -> 109 | II16: 1583
HV17: 2013 | HW17: ='Raw Data'!DM45 -> 89 | HX17: ='Raw Data'!DN45 -> 91 | HY17: ='Raw Data'!DO45 -> 136 | HZ17: ='Raw Data'!DP45 -> 168 | IA17: ='Raw Data'!DQ45 -> 157 | IB17: ='Raw Data'!DR45 -> 150 | IC17: ='Raw Data'!DS45 -> 161 | ID17: ='Raw Data'!DT45 -> 136 | IE17: ='Raw Data'!DU45 -> 127 | IF17: ='Raw Data'!DV45 -> 114 | IG17: ='Raw Data'!DW45 -> 115 | IH17: ='Raw Data'!DX45 -> 125 | II17: 1569
HV18: 2014 | HW18: ='Raw Data'!DY45 -> 106 | HX18: ='Raw Data'!DZ45 -> 88 | HY18: ='Raw Data'!EA45 -> 115 | HZ18: ='Raw Data'!EB45 -> 149 | IA18: ='Raw Data'!EC45 -> 192 | IB18: ='Raw Data'!ED45 -> 147 | IC18: ='Raw Data'!EE45 -> 122 | ID18: ='Raw Data'!EF45 -> 127 | IE18: ='Raw Data'!EG45 -> 142 | IF18: ='Raw Data'!EH45 -> 144 | IG18: ='Raw Data'!EI45 -> 118 | IH18: ='Raw Data'!EJ45 -> 157 | II18: 1607
HV19: 2015 | HW19: =DR5 -> 129 | HX19: 142 | HY19: 184 | HZ19: 193 | IA19: 241 | IB19: 227 | IC19: 218 | ID19: 187 | IE19: 198 | IF19: 198 | IG19: 177 | IH19: 198 | II19: =SUM(HW19:IH19) -> 2292
HV20: 2016 | HW20: =ED2 -> 111 | HX20: 92 | HY20: 138 | HZ20: 158 | IA20: 175 | IB20: 185 | IC20: 155 | ID20: 159 | IE20: 159 | IF20: 145 | IG20: 140 | IH20: 173 | II20: 1790
HV21: 2017 | HW21: =EP2 -> 112 | HX21: 129 | HY21: 180 | HZ21: 180 | IA21: 203 | IB21: 218 | IC21: 136 | ID21: 171 | IE21: 162 | IF21: 166 | IG21: 164 | IH21: 164 | II21: 1985
HV22: 2018 | HW22: =FB2 -> 118 | HX22: 89 | HY22: 187 | HZ22: 186 | IA22: 219 | IB22: 188 | IC22: 172 | ID22: 189 | IE22: 142 | IF22: 176 | IG22: 135 | IH22: 166 | II22: 1967
HV23: 2019 | HW23: =FN2 -> 119 | HX23: 123 | HY23: 184 | HZ23: 189 | IA23: 217 | IB23: 190 | IC23: 185 | ID23: 201 | IE23: 162 | IF23: 189 | IG23: 206 | IH23: 174 | II23: 2139
HV24: 2020 | HW24: =FZ2 -> 148 | HX24: 146 | HY24: 198 | HZ24: 154 | IA24: 150 | IB24: 221 | IC24: 396 | ID24: 322 | IE24: 358 | IF24: 372 | IG24: 310 | IH24: 316 | II24: 3091
HV25: 2021 | HW25: =GL2 -> 263 | HX25: 237 | HY25: 377 | HZ25: 349 | IA25: 337 | IB25: 326 | IC25: 263 | ID25: 234 | IE25: 230 | IF25: 253 | IG25: 267 | IH25: 240 | II25: =SUM(HW25:IH25) -> 3376
HV26: 2022 | HW26: =GX2 -> 225 | HX26: 182 | HY26: 300 | HZ26: 265 | IA26: 247 | IB26: 235 | IC26: 171 | ID26: 201 | IE26: 179 | IF26: 161 | IG26: 161 | IH26: 131 | II26: =SUM(HW26:IH26) -> 2458
HV27: 2023 | HW27: =HJ2 -> 101 | HX27: 137 | HY27: 193 | HZ27: 166 | IA27: 184 | IB27: 189 | IC27: 129 | ID27: 143 | IE27: 167 | IF27: 129 | IG27: 137 | IH27: 116 | II27: =SUM(HW27:IH27) -> 1791
IE30: Residential Sales
IE31: Month / Year | IF31: Count | IG31: %Chg
IE32: Dec'23 | IF32: =IG27 -> 137 | IG32: =(IF32-IF33)/IF33 -> -0.149068323
IE33: Dec'22 | IF33: =IG26 -> 161 | IG33: =(IF33-IF34)/IF34 -> -0.3970037453
IE34: Dec'21 | IF34: =IG25 -> 267 | IG34: =(IF34-IF35)/IF35 -> -0.1387096774
IE35: Dec'20 | IF35: =IG24 -> 310

Sheet Distressed Data
B1: ='Raw Data'!BO44 -> 2008-11-14 | C1: ='Raw Data'!BP44 -> 2008-12-21 | D1: ='Raw Data'!BQ44 -> 2009-01-27 | E1: ='Raw Data'!BR44 -> 2009-02-09 | F1: ='Raw Data'!BS44 -> 2009-03-09 | G1: ='Raw Data'!BT44 -> 2009-04-09 | H1: ='Raw Data'!BU44 -> 2009-05-09 | I1: ='Raw Data'!BV44 -> 2009-06-09 | J1: ='Raw Data'!BW44 -> 2009-07-09 | K1: ='Raw Data'!BX44 -> 2009-08-09 | L1: ='Raw Data'!BY44 -> 2009-09-09 | M1: ='Raw Data'!BZ44 -> 2009-10-09 | N1: ='Raw Data'!CA44 -> 2009-11-09 | O1: ='Raw Data'!CB44 -> 2009-12-09 | P1: ='Raw Data'!CC44 -> 2010-01-09 | Q1: ='Raw Data'!CD44 -> 2010-02-09 | R1: ='Raw Data'!CE44 -> 2010-03-09 | S1: ='Raw Data'!CF44 -> 2010-04-09 | T1: ='Raw Data'!CG44 -> 2010-05-09 | U1: ='Raw Data'!CH44 -> 2010-06-09 | V1: ='Raw Data'!CI44 -> 2010-07-09 | W1: ='Raw Data'!CJ44 -> 2010-08-09 | X1: ='Raw Data'!CK44 -> 2010-09-09 | Y1: ='Raw Data'!CL44 -> 2010-10-09 | Z1: ='Raw Data'!CM44 -> 2010-11-09 | AA1: ='Raw Data'!CN44 -> 2010-12-09 | AB1: ='Raw Data'!CO44 -> 2011-01-09 | AC1: ='Raw Data'!CP44 -> 2011-02-09 | AD1: ='Raw Data'!CQ44 -> 2011-03-09 | AE1: ='Raw Data'!CR44 -> 2011-04-09 | AF1: ='Raw Data'!CS44 -> 2011-05-09 | AG1: ='Raw Data'!CT44 -> 2011-06-09 | AH1: ='Raw Data'!CU44 -> 2011-07-09 | AI1: ='Raw Data'!CV44 -> 2011-08-09 | AJ1: ='Raw Data'!CW44 -> 2011-09-09 | AK1: ='Raw Data'!CX44 -> 2011-10-09 | AL1: ='Raw Data'!CY44 -> 2011-11-09 | AM1: ='Raw Data'!CZ44 -> 2011-12-09 | AN1: ='Raw Data'!DA44 -> 2012-01-09 | AO1: ='Raw Data'!DB44 -> 2012-02-09 | AP1: ='Raw Data'!DC44 -> 2012-03-09 | AQ1: ='Raw Data'!DD44 -> 2012-04-09 | AR1: ='Raw Data'!DE44 -> 2012-05-09 | AS1: ='Raw Data'!DF44 -> 2012-06-09 | AT1: ='Raw Data'!DG44 -> 2012-07-09 | AU1: ='Raw Data'!DH44 -> 2012-08-09 | AV1: ='Raw Data'!DI44 -> 2012-09-09 | AW1: ='Raw Data'!DJ44 -> 2012-10-09 | AX1: ='Raw Data'!DK44 -> 2012-11-09 | AY1: ='Raw Data'!DL44 -> 2012-12-09 | AZ1: ='Raw Data'!DM44 -> 2013-01-09 | BA1: ='Raw Data'!DN44 -> 2013-02-09 | BB1: ='Raw Data'!DO44 -> 2013-03-09 | BC1: ='Raw Data'!DP44 -> 2013-04-09 | BD1: ='Raw Data'!DQ44 -> 2013-05-09 | BE1: ='Raw Data'!DR44 -> 2013-06-09 | BF1: ='Raw Data'!DS44 -> 2013-07-09 | BG1: ='Raw Data'!DT44 -> 2013-08-09 | BH1: ='Raw Data'!DU44 -> 2013-09-09 | BI1: ='Raw Data'!DV44 -> 2013-10-09 | BJ1: ='Raw Data'!DW44 -> 2013-11-09 | BK1: ='Raw Data'!DX44 -> 2013-12-09 | BL1: ='Raw Data'!DY44 -> 2014-01-09 | BM1: ='Raw Data'!DZ44 -> 2014-02-09 | BN1: ='Raw Data'!EA44 -> 2014-03-09 | BO1: ='Raw Data'!EB44 -> 2014-04-09 | BP1: ='Raw Data'!EC44 -> 2014-05-09 | BQ1: ='Raw Data'!ED44 -> 2014-06-09 | BR1: ='Raw Data'!EE44 -> 2014-07-09 | BS1: ='Raw Data'!EF44 -> 2014-08-09 | BT1: ='Raw Data'!EG44 -> 2014-09-09 | BU1: ='Raw Data'!EH44 -> 2014-10-09 | BV1: ='Raw Data'!EI44 -> 2014-11-09 | BW1: ='Raw Data'!EJ44 -> 2014-12-09 | BX1: ='Raw Data'!EK44 -> 2015-01-09 | BY1: ='Raw Data'!EL44 -> 2015-02-09 | BZ1: ='Raw Data'!EM44 -> 2015-03-09 | CA1: ='Raw Data'!EN44 -> 2015-04-09 | CB1: ='Raw Data'!EO44 -> 2015-05-09 | CC1: ='Raw Data'!EP44 -> 2015-06-09 | CD1: ='Raw Data'!EQ44 -> 2015-07-09 | CE1: ='Raw Data'!ER44 -> 2015-08-09 | CF1: ='Raw Data'!ES44 -> 2015-09-09 | CG1: ='Raw Data'!ET44 -> 2015-10-09 | CH1: ='Raw Data'!EU44 -> 2015-11-09 | CI1: ='Raw Data'!EV44 -> 2015-12-09 | CJ1: ='Raw Data'!EW44 -> 2016-01-09 | CK1: ='Raw Data'!EX44 -> 2016-02-09 | CL1: ='Raw Data'!EY44 -> 2016-03-09 | CM1: ='Raw Data'!EZ44 -> 2016-04-09 | CN1: ='Raw Data'!FA44 -> 2016-05-09 | CO1: ='Raw Data'!FB44 -> 2016-06-09 | CP1: ='Raw Data'!FC44 -> 2016-07-09 | CQ1: ='Raw Data'!FD44 -> 2016-08-09 | CR1: ='Raw Data'!FE44 -> 2016-09-09 | CS1: ='Raw Data'!FF44 -> 2016-10-09 | CT1: ='Raw Data'!FG44 -> 2016-11-09 | CU1: ='Raw Data'!FH44 -> 2016-12-09 | CV1: ='Raw Data'!FI44 -> 2017-01-09 | CW1: ='Raw Data'!FJ44 -> 2017-02-09 | CX1: ='Raw Data'!FK44 -> 2017-03-09 | CY1: ='Raw Data'!FL44 -> 2017-04-09 | CZ1: ='Raw Data'!FM44 -> 2017-05-09 | DA1: ='Raw Data'!FN44 -> 2017-06-09 | DB1: ='Raw Data'!FO44 -> 2017-07-09 | DC1: ='Raw Data'!FP44 -> 2017-08-09 | DD1: ='Raw Data'!FQ44 -> 2017-09-09 | DE1: ='Raw Data'!FR44 -> 2017-10-09 | DF1: ='Raw Data'!FS44 -> 2017-11-09 | DG1: ='Raw Data'!FT44 -> 2017-12-09 | DH1: ='Raw Data'!FU44 -> 2018-01-09 | DI1: ='Raw Data'!FV44 -> 2018-02-09 | DJ1: ='Raw Data'!FW44 -> 2018-03-09 | DK1: ='Raw Data'!FX44 -> 2018-04-09 | DL1: ='Raw Data'!FY44 -> 2018-05-09 | DM1: ='Raw Data'!FZ44 -> 2018-06-09 | DN1: ='Raw Data'!GA44 -> 2018-07-09 | DO1: ='Raw Data'!GB44 -> 2018-08-09 | DP1: ='Raw Data'!GC44 -> 2018-09-09 | DQ1: ='Raw Data'!GD44 -> 2018-10-09 | DR1: ='Raw Data'!GE44 -> 2018-11-09 | DS1: ='Raw Data'!GF44 -> 2018-12-09 | DT1: ='Raw Data'!GG44 -> 2019-01-09 | DU1: ='Raw Data'!GH44 -> 2019-02-09 | DV1: ='Raw Data'!GI44 -> 2019-03-09 | DW1: ='Raw Data'!GJ44 -> 2019-04-09 | DX1: ='Raw Data'!GK44 -> 2019-05-09 | DY1: ='Raw Data'!GL44 -> 2019-06-09 | DZ1: ='Raw Data'!GM44 -> 2019-07-09 | EA1: ='Raw Data'!GN44 -> 2019-08-09 | EB1: ='Raw Data'!GO44 -> 2019-09-09 | EC1: ='Raw Data'!GP44 -> 2019-10-09 | ED1: ='Raw Data'!GQ44 -> 2019-11-09 | EE1: ='Raw Data'!GR44 -> 2019-12-09 | EF1: ='Raw Data'!GS44 -> 2020-01-09 | EG1: ='Raw Data'!GT44 -> 2020-02-09 | EH1: ='Raw Data'!GU44 -> 2020-03-09 | EI1: ='Raw Data'!GV44 -> 2020-04-09 | EJ1: ='Raw Data'!GW44 -> 2020-05-09 | EK1: ='Raw Data'!GX44 -> 2020-06-09 | EL1: ='Raw Data'!GY44 -> 2020-07-09 | EM1: ='Raw Data'!GZ44 -> 2020-08-09 | EN1: ='Raw Data'!HA44 -> 2020-09-09 | EO1: ='Raw Data'!HB44 -> 2020-10-09 | EP1: ='Raw Data'!HC44 -> 2020-11-09 | EQ1: ='Raw Data'!HD44 -> 2020-12-09 | ER1: ='Raw Data'!HE44 -> 2021-01-09 | ES1: ='Raw Data'!HF44 -> 2021-02-09 | ET1: 2021-03-21 | EU1: 2021-04-21 | EV1: 2021-05-21 | EW1: 2021-06-21 | EX1: 2021-07-21 | EY1: 2021-08-21 | EZ1: 2021-09-21 | FA1: 2021-10-21 | FB1: 2021-11-21 | FC1: 2021-12-21 | FD1: 2022-01-21 | FE1: 2022-02-21 | FF1: 2022-03-21 | FG1: 2022-04-21 | FH1: 2022-05-21 | FI1: 2022-06-21 | FJ1: 2022-07-21 | FK1: 2022-08-21 | FL1: 2022-09-21 | FM1: 2022-10-21 | FN1: 2022-11-21 | FO1: 2022-12-21 | FP1: 2023-01-21 | FQ1: 2023-02-21 | FR1: 2023-03-21 | FS1: 2023-04-21 | FT1: 2023-05-21 | FU1: 2023-06-21 | FV1: 2023-07-21 | FW1: 2023-08-21 | FX1: 2023-09-21 | FY1: 2023-10-21 | FZ1: 2023-11-21 | GA1: 2023-12-21 | GB1: 2024-01-24 | GC1: 2024-02-24 | GD1: 2024-03-24 | GE1: 2024-04-24 | GF1: 2024-05-24 | GG1: 2024-06-24 | GH1: 2024-07-24 | GI1: 2024-08-24 | GJ1: 2024-09-24 | GK1: 2024-10-24 | GL1: 2024-11-24 | GM1: 2024-12-24 | GN1: 2025-01-24 | GO1: 2025-02-24 | GP1: 2025-03-24 | GQ1: 2025-04-24 | GR1: 2025-05-24
A2: Total Residential Sold | B2: ='Raw Data'!BO45 -> 60 | C2: ='Raw Data'!BP45 -> 69 | D2: ='Raw Data'!BQ45 -> 42 | E2: ='Raw Data'!BR45 -> 68 | F2: ='Raw Data'!BS45 -> 84 | G2: ='Raw Data'!BT45 -> 81 | H2: ='Raw Data'!BU45 -> 111 | I2: ='Raw Data'!BV45 -> 114 | J2: ='Raw Data'!BW45 -> 105 | K2: ='Raw Data'!BX45 -> 105 | L2: ='Raw Data'!BY45 -> 104 | M2: ='Raw Data'!BZ45 -> 106 | N2: ='Raw Data'!CA45 -> 106 | O2: ='Raw Data'!CB45 -> 100 | P2: ='Raw Data'!CC45 -> 86 | Q2: ='Raw Data'!CD45 -> 72 | R2: ='Raw Data'!CE45 -> 113 | S2: ='Raw Data'!CF45 -> 136 | T2: ='Raw Data'!CG45 -> 151 | U2: ='Raw Data'!CH45 -> 137 | V2: ='Raw Data'!CI45 -> 125 | W2: ='Raw Data'!CJ45 -> 99 | X2: ='Raw Data'!CK45 -> 109 | Y2: ='Raw Data'!CL45 -> 115 | Z2: ='Raw Data'!CM45 -> 106 | AA2: ='Raw Data'!CN45 -> 125 | AB2: ='Raw Data'!CO45 -> 83 | AC2: ='Raw Data'!CP45 -> 87 | AD2: ='Raw Data'!CQ45 -> 130 | AE2: ='Raw Data'!CR45 -> 137 | AF2: ='Raw Data'!CS45 -> 124 | AG2: ='Raw Data'!CT45 -> 142 | AH2: ='Raw Data'!CU45 -> 127 | AI2: ='Raw Data'!CV45 -> 105 | AJ2: ='Raw Data'!CW45 -> 113 | AK2: ='Raw Data'!CX45 -> 109 | AL2: ='Raw Data'!CY45 -> 74 | AM2: ='Raw Data'!CZ45 -> 102 | AN2: ='Raw Data'!DA45 -> 94 | AO2: ='Raw Data'!DB45 -> 112 | AP2: ='Raw Data'!DC45 -> 171 | AQ2: ='Raw Data'!DD45 -> 131 | AR2: ='Raw Data'!DE45 -> 165 | AS2: ='Raw Data'!DF45 -> 146 | AT2: ='Raw Data'!DG45 -> 121 | AU2: ='Raw Data'!DH45 -> 125 | AV2: ='Raw Data'!DI45 -> 146 | AW2: ='Raw Data'!DJ45 -> 134 | AX2: ='Raw Data'!DK45 -> 129 | AY2: ='Raw Data'!DL45 -> 109 | AZ2: ='Raw Data'!DM45 -> 89 | BA2: ='Raw Data'!DN45 -> 91 | BB2: ='Raw Data'!DO45 -> 136 | BC2: ='Raw Data'!DP45 -> 168 | BD2: ='Raw Data'!DQ45 -> 157 | BE2: ='Raw Data'!DR45 -> 150 | BF2: ='Raw Data'!DS45 -> 161 | BG2: ='Raw Data'!DT45 -> 136 | BH2: ='Raw Data'!DU45 -> 127 | BI2: ='Raw Data'!DV45 -> 114 | BJ2: ='Raw Data'!DW45 -> 115 | BK2: ='Raw Data'!DX45 -> 125 | BL2: ='Raw Data'!DY45 -> 106 | BM2: ='Raw Data'!DZ45 -> 88 | BN2: ='Raw Data'!EA45 -> 115 | BO2: ='Raw Data'!EB45 -> 149 | BP2: ='Raw Data'!EC45 -> 192 | BQ2: ='Raw Data'!ED45 -> 147 | BR2: ='Raw Data'!EE45 -> 122 | BS2: ='Raw Data'!EF45 -> 127 | BT2: ='Raw Data'!EG45 -> 142 | BU2: ='Raw Data'!EH45 -> 144 | BV2: ='Raw Data'!EI45 -> 118 | BW2: ='Raw Data'!EJ45 -> 157 | BX2: ='Raw Data'!EK45 -> 96 | BY2: ='Raw Data'!EL45 -> 105 | BZ2: ='Raw Data'!EM45 -> 140 | CA2: ='Raw Data'!EN45 -> 153 | CB2: ='Raw Data'!EO45 -> 202 | CC2: ='Raw Data'!EP45 -> 185 | CD2: ='Raw Data'!EQ45 -> 171 | CE2: ='Raw Data'!ER45 -> 146 | CF2: ='Raw Data'!ES45 -> 143 | CG2: ='Raw Data'!ET45 -> 159 | CH2: ='Raw Data'!EU45 -> 143 | CI2: ='Raw Data'!EV45 -> 148 | CJ2: ='Raw Data'!EW45 -> 111 | CK2: ='Raw Data'!EX45 -> 92 | CL2: ='Raw Data'!EY45 -> 138 | CM2: ='Raw Data'!EZ45 -> 158 | CN2: ='Raw Data'!FA45 -> 175 | CO2: ='Raw Data'!FB45 -> 185 | CP2: ='Raw Data'!FC45 -> 155 | CQ2: ='Raw Data'!FD45 -> 159 | CR2: ='Raw Data'!FE45 -> 159 | CS2: ='Raw Data'!FF45 -> 145 | CT2: ='Raw Data'!FG45 -> 140 | CU2: ='Raw Data'!FH45 -> 173 | CV2: ='Raw Data'!FI45 -> 112 | CW2: ='Raw Data'!FJ45 -> 129 | CX2: ='Raw Data'!FK45 -> 180 | CY2: ='Raw Data'!FL45 -> 180 | CZ2: ='Raw Data'!FM45 -> 203 | DA2: ='Raw Data'!FN45 -> 218 | DB2: ='Raw Data'!FO45 -> 136 | DC2: ='Raw Data'!FP45 -> 171 | DD2: ='Raw Data'!FQ45 -> 162 | DE2: ='Raw Data'!FR45 -> 166 | DF2: ='Raw Data'!FS45 -> 164 | DG2: ='Raw Data'!FT45 -> 164 | DH2: ='Raw Data'!FU45 -> 118 | DI2: ='Raw Data'!FV45 -> 89 | DJ2: ='Raw Data'!FW45 -> 187 | DK2: ='Raw Data'!FX45 -> 186 | DL2: ='Raw Data'!FY45 -> 219 | DM2: ='Raw Data'!FZ45 -> 188 | DN2: ='Raw Data'!GA45 -> 172 | DO2: ='Raw Data'!GB45 -> 189 | DP2: ='Raw Data'!GC45 -> 142 | DQ2: ='Raw Data'!GD45 -> 176 | DR2: ='Raw Data'!GE45 -> 135 | DS2: ='Raw Data'!GF45 -> 166 | DT2: ='Raw Data'!GG45 -> 119 | DU2: ='Raw Data'!GH45 -> 123 | DV2: ='Raw Data'!GI45 -> 184 | DW2: ='Raw Data'!GJ45 -> 189 | DX2: ='Raw Data'!GK45 -> 217 | DY2: ='Raw Data'!GL45 -> 190 | DZ2: ='Raw Data'!GM45 -> 185 | EA2: ='Raw Data'!GN45 -> 201 | EB2: ='Raw Data'!GO45 -> 162 | EC2: ='Raw Data'!GP45 -> 189 | ED2: ='Raw Data'!GQ45 -> 206 | EE2: ='Raw Data'!GR45 -> 174 | EF2: ='Raw Data'!GS45 -> 148 | EG2: ='Raw Data'!GT45 -> 146 | EH2: ='Raw Data'!GU45 -> 198 | EI2: ='Raw Data'!GV45 -> 154 | EJ2: ='Raw Data'!GW45 -> 150 | EK2: ='Raw Data'!GX45 -> 221 | EL2: ='Raw Data'!GY45 -> 396 | EM2: ='Raw Data'!GZ45 -> 322 | EN2: ='Raw Data'!HA45 -> 358 | EO2: ='Raw Data'!HB45 -> 372 | EP2: ='Raw Data'!HC45 -> 310 | EQ2: ='Raw Data'!HD45 -> 316 | ER2: ='Raw Data'!HE45 -> 263 | ES2: ='Raw Data'!HF45 -> 237 | ET2: ='Raw Data'!HG45 -> 377 | EU2: ='Raw Data'!HH45 -> 349 | EV2: ='Raw Data'!HI45 -> 337 | EW2: ='Raw Data'!HJ45 -> 326 | EX2: ='Raw Data'!HK45 -> 263 | EY2: ='Raw Data'!HL45 -> 234 | EZ2: ='Raw Data'!HM45 -> 230 | FA2: ='Raw Data'!HN45 -> 253 | FB2: ='Raw Data'!HO45 -> 267 | FC2: ='Raw Data'!HP45 -> 240 | FD2: ='Raw Data'!HQ45 -> 225 | FE2: ='Raw Data'!HR45 -> 182 | FF2: ='Raw Data'!HS45 -> 300 | FG2: ='Raw Data'!HT45 -> 265 | FH2: ='Raw Data'!HU45 -> 247 | FI2: ='Raw Data'!HV45 -> 235 | FJ2: ='Raw Data'!HW45 -> 171 | FK2: ='Raw Data'!HX45 -> 201 | FL2: ='Raw Data'!HY45 -> 179 | FM2: ='Raw Data'!HZ45 -> 161 | FN2: ='Raw Data'!IA45 -> 161 | FO2: ='Raw Data'!IB45 -> 131 | FP2: ='Raw Data'!IC45 -> 101 | FQ2: ='Raw Data'!ID45 -> 137 | FR2: ='Raw Data'!IE45 -> 193 | FS2: ='Raw Data'!IF45 -> 166 | FT2: ='Raw Data'!IG45 -> 184 | FU2: ='Raw Data'!IH45 -> 189 | FV2: ='Raw Data'!II45 -> 129 | FW2: ='Raw Data'!IJ45 -> 143 | FX2: ='Raw Data'!IK45 -> 167 | FY2: ='Raw Data'!IL45 -> 129 | FZ2: ='Raw Data'!IM45 -> 137 | GA2: ='Raw Data'!IN45 -> 116 | GB2: ='Raw Data'!IO45 -> 0 | GC2: ='Raw Data'!IP45 -> 0 | GD2: ='Raw Data'!IQ45 -> 0 | GE2: ='Raw Data'!IR45 -> 0 | GF2: ='Raw Data'!IS45 -> 0 | GG2: ='Raw Data'!IT45 -> 0 | GH2: ='Raw Data'!IU45 -> 0 | GI2: ='Raw Data'!IV45 -> 0 | GJ2: ='Raw Data'!IW45 -> 0 | GK2: ='Raw Data'!IX45 -> 0 | GL2: ='Raw Data'!IY45 -> 0 | GM2: ='Raw Data'!IZ45 -> 0
A3: Potential Short Sale | B3: ='Raw Data'!BO85 -> 2 | C3: ='Raw Data'!BP85 -> 7 | D3: ='Raw Data'!BQ85 -> 2 | E3: ='Raw Data'!BR85 -> 4 | F3: ='Raw Data'!BS85 -> 10 | G3: ='Raw Data'!BT85 -> 9 | H3: ='Raw Data'!BU85 -> 6 | I3: ='Raw Data'!BV85 -> 11 | J3: ='Raw Data'!BW85 -> 9 | K3: ='Raw Data'!BX85 -> 5 | L3: ='Raw Data'!BY85 -> 7 | M3: ='Raw Data'!BZ85 -> 8 | N3: ='Raw Data'!CA85 -> 10 | O3: ='Raw Data'!CB85 -> 14 | P3: ='Raw Data'!CC85 -> 13 | Q3: ='Raw Data'!CD85 -> 8 | R3: ='Raw Data'!CE85 -> 16 | S3: ='Raw Data'!CF85 -> 22 | T3: ='Raw Data'!CG85 -> 12 | U3: ='Raw Data'!CH85 -> 11 | V3: ='Raw Data'!CI85 -> 9 | W3: ='Raw Data'!CJ85 -> 11 | X3: ='Raw Data'!CK85 -> 6 | Y3: ='Raw Data'!CL85 -> 9 | Z3: ='Raw Data'!CM85 -> 14 | AA3: ='Raw Data'!CN85 -> 14 | AB3: ='Raw Data'!CO85 -> 10 | AC3: ='Raw Data'!CP85 -> 14 | AD3: ='Raw Data'!CQ85 -> 19 | AE3: ='Raw Data'!CR85 -> 17 | AF3: ='Raw Data'!CS85 -> 25 | AG3: ='Raw Data'!CT85 -> 20 | AH3: ='Raw Data'!CU85 -> 15 | AI3: ='Raw Data'!CV85 -> 9 | AJ3: ='Raw Data'!CW85 -> 16 | AK3: ='Raw Data'!CX85 -> 15 | AL3: ='Raw Data'!CY85 -> 12 | AM3: ='Raw Data'!CZ85 -> 14 | AN3: ='Raw Data'!DA85 -> 14 | AO3: ='Raw Data'!DB85 -> 20 | AP3: ='Raw Data'!DC85 -> 17 | AQ3: ='Raw Data'!DD85 -> 10 | AR3: ='Raw Data'!DE85 -> 18 | AS3: ='Raw Data'!DF85 -> 13 | AT3: ='Raw Data'!DG85 -> 12 | AU3: ='Raw Data'!DH85 -> 18 | AV3: ='Raw Data'!DI85 -> 21 | AW3: ='Raw Data'!DJ85 -> 8 | AX3: ='Raw Data'!DK85 -> 16 | AY3: ='Raw Data'!DL85 -> 11 | AZ3: ='Raw Data'!DM85 -> 11 | BA3: ='Raw Data'!DN85 -> 11 | BB3: ='Raw Data'!DO85 -> 12 | BC3: ='Raw Data'!DP85 -> 10 | BD3: ='Raw Data'!DQ85 -> 16 | BE3: ='Raw Data'!DR85 -> 16 | BF3: ='Raw Data'!DS85 -> 15 | BG3: ='Raw Data'!DT85 -> 14 | BH3: ='Raw Data'!DU85 -> 9 | BI3: ='Raw Data'!DV85 -> 5 | BJ3: ='Raw Data'!DW85 -> 5 | BK3: ='Raw Data'!DX85 -> 15 | BL3: ='Raw Data'!DY85 -> 4 | BM3: ='Raw Data'!DZ85 -> 1 | BN3: ='Raw Data'!EA85 -> 7 | BO3: ='Raw Data'!EB85 -> 13 | BP3: ='Raw Data'!EC85 -> 12 | BQ3: ='Raw Data'!ED85 -> 6 | BR3: ='Raw Data'!EE85 -> 6 | BS3: ='Raw Data'!EF85 -> 6 | BT3: ='Raw Data'!EG85 -> 6 | BU3: ='Raw Data'!EH85 -> 10 | BV3: ='Raw Data'!EI85 -> 1 | BW3: ='Raw Data'!EJ85 -> 16 | BX3: ='Raw Data'!EK85 -> 7 | BY3: ='Raw Data'!EL85 -> 5 | BZ3: ='Raw Data'!EM85 -> 4 | CA3: ='Raw Data'!EN85 -> 4 | CB3: ='Raw Data'!EO85 -> 9 | CC3: ='Raw Data'!EP85 -> 14 | CD3: ='Raw Data'!EQ85 -> 7 | CE3: ='Raw Data'!ER85 -> 6 | CF3: ='Raw Data'!ES85 -> 5 | CG3: ='Raw Data'!ET85 -> 2 | CH3: ='Raw Data'!EU85 -> 7 | CI3: ='Raw Data'!EV85 -> 4 | CJ3: ='Raw Data'!EW85 -> 5 | CK3: ='Raw Data'!EX85 -> 4 | CL3: ='Raw Data'!EY85 -> 1 | CM3: ='Raw Data'!EZ85 -> 2 | CN3: ='Raw Data'!FA85 -> 2 | CO3: ='Raw Data'!FB85 -> 4 | CP3: ='Raw Data'!FC85 -> 3 | CQ3: ='Raw Data'!FD85 -> 2 | CR3: ='Raw Data'!FE85 -> 1 | CS3: ='Raw Data'!FF85 -> 1 | CT3: ='Raw Data'!FG85 -> 3 | CU3: ='Raw Data'!FH85 -> 3 | CV3: ='Raw Data'!FI85 -> 5 | CW3: ='Raw Data'!FJ85 -> 2 | CX3: ='Raw Data'!FK85 -> 2 | CY3: ='Raw Data'!FL85 -> 0 | CZ3: ='Raw Data'!FM85 -> 5 | DA3: ='Raw Data'!FN85 -> 4 | DB3: ='Raw Data'!FO85 -> 0 | DC3: ='Raw Data'!FP85 -> 1 | DD3: ='Raw Data'!FQ85 -> 3 | DE3: ='Raw Data'!FR85 -> 6 | DF3: ='Raw Data'!FS85 -> 0 | DG3: ='Raw Data'!FT85 -> 0 | DH3: ='Raw Data'!FU85 -> 1 | DI3: ='Raw Data'!FV85 -> 1 | DJ3: ='Raw Data'!FW85 -> 1 | DK3: ='Raw Data'!FX85 -> 2 | DL3: ='Raw Data'!FY85 -> 0 | DM3: ='Raw Data'!FZ85 -> 0 | DN3: ='Raw Data'!GA85 -> 1 | DO3: ='Raw Data'!GB85 -> 1 | DP3: ='Raw Data'!GC85 -> 1 | DQ3: ='Raw Data'!GD85 -> 0 | DR3: ='Raw Data'!GE85 -> 0 | DS3: ='Raw Data'!GF85 -> 3 | DT3: ='Raw Data'!GG85 -> 0 | DU3: ='Raw Data'!GH85 -> 1 | DV3: ='Raw Data'!GI85 -> 1 | DW3: ='Raw Data'!GJ85 -> 1 | DX3: ='Raw Data'!GK85 -> 0 | DY3: ='Raw Data'!GL85 -> 1 | DZ3: ='Raw Data'!GM85 -> 1 | EA3: ='Raw Data'!GN85 -> 1 | EB3: ='Raw Data'!GO85 -> 0 | EC3: ='Raw Data'!GP85 -> 1 | ED3: ='Raw Data'!GQ85 -> 0 | EE3: ='Raw Data'!GR85 -> 1 | EF3: ='Raw Data'!GS85 -> 1 | EG3: ='Raw Data'!GT85 -> 1 | EH3: ='Raw Data'!GU85 -> 0 | EI3: ='Raw Data'!GV85 -> 0 | EJ3: ='Raw Data'!GW85 -> 0 | EK3: ='Raw Data'!GX85 -> 2 | EL3: ='Raw Data'!GY85 -> 0 | EM3: ='Raw Data'!GZ85 -> 2 | EN3: ='Raw Data'!HA85 -> 1 | EO3: ='Raw Data'!HB85 -> 1 | EP3: ='Raw Data'!HC85 -> 0 | EQ3: ='Raw Data'!HD85 -> 0 | ER3: ='Raw Data'!HE85 -> 2 | ES3: ='Raw Data'!HF85 -> 0 | ET3: ='Raw Data'!HG85 -> 1 | EU3: ='Raw Data'!HH85 -> 1 | EV3: ='Raw Data'!HI85 -> 0 | EW3: ='Raw Data'!HJ85 -> 1 | EX3: ='Raw Data'!HK85 -> 1 | EY3: ='Raw Data'!HL85 -> 1 | EZ3: ='Raw Data'!HM85 -> 0 | FA3: ='Raw Data'!HN85 -> 0 | FB3: ='Raw Data'!HO85 -> 0 | FC3: ='Raw Data'!HP85 -> 1 | FD3: ='Raw Data'!HQ85 -> 0 | FE3: ='Raw Data'!HR85 -> 0 | FF3: ='Raw Data'!HS85 -> 1 | FG3: ='Raw Data'!HT85 -> 0 | FH3: ='Raw Data'!HU85 -> 0 | FI3: ='Raw Data'!HV85 -> 0 | FJ3: ='Raw Data'!HW85 -> 0 | FK3: ='Raw Data'!HX85 -> 0 | FL3: ='Raw Data'!HY85 -> 0 | FM3: ='Raw Data'!HZ85 -> 0 | FN3: ='Raw Data'!IA85 -> 0 | FO3: ='Raw Data'!IB85 -> 0 | FP3: ='Raw Data'!IC85 -> 0 | FQ3: ='Raw Data'!ID85 -> 1 | FR3: ='Raw Data'!IE85 -> 0 | FS3: ='Raw Data'!IF85 -> 1 | FT3: ='Raw Data'!IG85 -> 0 | FU3: ='Raw Data'!IH85 -> 0 | FV3: ='Raw Data'!II85 -> 0 | FW3: ='Raw Data'!IJ85 -> 0 | FX3: ='Raw Data'!IK85 -> 0 | FY3: ='Raw Data'!IL85 -> 0 | FZ3: ='Raw Data'!IM85 -> 1 | GA3: ='Raw Data'!IN85 -> 0 | GB3: ='Raw Data'!IO85 -> 0 | GC3: ='Raw Data'!IP85 -> 0 | GD3: ='Raw Data'!IQ85 -> 0 | GE3: ='Raw Data'!IR85 -> 0 | GF3: ='Raw Data'!IS85 -> 0 | GG3: ='Raw Data'!IT85 -> 0 | GH3: ='Raw Data'!IU85 -> 0 | GI3: ='Raw Data'!IV85 -> 0 | GJ3: ='Raw Data'!IW85 -> 0 | GK3: ='Raw Data'!IX85 -> 0 | GL3: ='Raw Data'!IY85 -> 0 | GM3: ='Raw Data'!IZ85 -> 0
A4: Bank Owned | B4: ='Raw Data'!BO86 -> 6 | C4: ='Raw Data'!BP86 -> 6 | D4: ='Raw Data'!BQ86 -> 5 | E4: ='Raw Data'!BR86 -> 21 | F4: ='Raw Data'!BS86 -> 16 | G4: ='Raw Data'!BT86 -> 15 | H4: ='Raw Data'!BU86 -> 20 | I4: ='Raw Data'!BV86 -> 18 | J4: ='Raw Data'!BW86 -> 20 | K4: ='Raw Data'!BX86 -> 11 | L4: ='Raw Data'!BY86 -> 17 | M4: ='Raw Data'!BZ86 -> 25 | N4: ='Raw Data'!CA86 -> 17 | O4: ='Raw Data'!CB86 -> 43 | P4: ='Raw Data'!CC86 -> 21 | Q4: ='Raw Data'!CD86 -> 19 | R4: ='Raw Data'!CE86 -> 27 | S4: ='Raw Data'!CF86 -> 36 | T4: ='Raw Data'!CG86 -> 40 | U4: ='Raw Data'!CH86 -> 43 | V4: ='Raw Data'!CI86 -> 32 | W4: ='Raw Data'!CJ86 -> 29 | X4: ='Raw Data'!CK86 -> 44 | Y4: ='Raw Data'!CL86 -> 26 | Z4: ='Raw Data'!CM86 -> 27 | AA4: ='Raw Data'!CN86 -> 35 | AB4: ='Raw Data'!CO86 -> 24 | AC4: ='Raw Data'!CP86 -> 27 | AD4: ='Raw Data'!CQ86 -> 35 | AE4: ='Raw Data'!CR86 -> 34 | AF4: ='Raw Data'!CS86 -> 30 | AG4: ='Raw Data'!CT86 -> 32 | AH4: ='Raw Data'!CU86 -> 34 | AI4: ='Raw Data'!CV86 -> 21 | AJ4: ='Raw Data'!CW86 -> 20 | AK4: ='Raw Data'!CX86 -> 19 | AL4: ='Raw Data'!CY86 -> 10 | AM4: ='Raw Data'!CZ86 -> 19 | AN4: ='Raw Data'!DA86 -> 14 | AO4: ='Raw Data'!DB86 -> 29 | AP4: ='Raw Data'!DC86 -> 23 | AQ4: ='Raw Data'!DD86 -> 21 | AR4: ='Raw Data'!DE86 -> 31 | AS4: ='Raw Data'!DF86 -> 24 | AT4: ='Raw Data'!DG86 -> 26 | AU4: ='Raw Data'!DH86 -> 32 | AV4: ='Raw Data'!DI86 -> 28 | AW4: ='Raw Data'!DJ86 -> 26 | AX4: ='Raw Data'!DK86 -> 21 | AY4: ='Raw Data'!DL86 -> 24 | AZ4: ='Raw Data'!DM86 -> 21 | BA4: ='Raw Data'!DN86 -> 28 | BB4: ='Raw Data'!DO86 -> 32 | BC4: ='Raw Data'!DP86 -> 27 | BD4: ='Raw Data'!DQ86 -> 24 | BE4: ='Raw Data'!DR86 -> 17 | BF4: ='Raw Data'!DS86 -> 28 | BG4: ='Raw Data'!DT86 -> 18 | BH4: ='Raw Data'!DU86 -> 15 | BI4: ='Raw Data'!DV86 -> 10 | BJ4: ='Raw Data'!DW86 -> 4 | BK4: ='Raw Data'!DX86 -> 19 | BL4: ='Raw Data'!DY86 -> 15 | BM4: ='Raw Data'!DZ86 -> 22 | BN4: ='Raw Data'!EA86 -> 13 | BO4: ='Raw Data'!EB86 -> 11 | BP4: ='Raw Data'!EC86 -> 19 | BQ4: ='Raw Data'!ED86 -> 12 | BR4: ='Raw Data'!EE86 -> 13 | BS4: ='Raw Data'!EF86 -> 12 | BT4: ='Raw Data'!EG86 -> 18 | BU4: ='Raw Data'!EH86 -> 8 | BV4: ='Raw Data'!EI86 -> 11 | BW4: ='Raw Data'!EJ86 -> 10 | BX4: ='Raw Data'!EK86 -> 10 | BY4: ='Raw Data'!EL86 -> 11 | BZ4: ='Raw Data'!EM86 -> 15 | CA4: ='Raw Data'!EN86 -> 6 | CB4: ='Raw Data'!EO86 -> 9 | CC4: ='Raw Data'!EP86 -> 6 | CD4: ='Raw Data'!EQ86 -> 14 | CE4: ='Raw Data'!ER86 -> 5 | CF4: ='Raw Data'!ES86 -> 7 | CG4: ='Raw Data'!ET86 -> 5 | CH4: ='Raw Data'!EU86 -> 7 | CI4: ='Raw Data'!EV86 -> 9 | CJ4: ='Raw Data'!EW86 -> 5 | CK4: ='Raw Data'!EX86 -> 5 | CL4: ='Raw Data'!EY86 -> 8 | CM4: ='Raw Data'!EZ86 -> 8 | CN4: ='Raw Data'!FA86 -> 8 | CO4: ='Raw Data'!FB86 -> 7 | CP4: ='Raw Data'!FC86 -> 6 | CQ4: ='Raw Data'!FD86 -> 7 | CR4: ='Raw Data'!FE86 -> 3 | CS4: ='Raw Data'!FF86 -> 7 | CT4: ='Raw Data'!FG86 -> 9 | CU4: ='Raw Data'!FH86 -> 8 | CV4: ='Raw Data'!FI86 -> 9 | CW4: ='Raw Data'!FJ86 -> 8 | CX4: ='Raw Data'!FK86 -> 8 | CY4: ='Raw Data'!FL86 -> 6 | CZ4: ='Raw Data'!FM86 -> 9 | DA4: ='Raw Data'!FN86 -> 7 | DB4: ='Raw Data'!FO86 -> 6 | DC4: ='Raw Data'!FP86 -> 4 | DD4: ='Raw Data'!FQ86 -> 6 | DE4: ='Raw Data'!FR86 -> 7 | DF4: ='Raw Data'!FS86 -> 4 | DG4: ='Raw Data'!FT86 -> 6 | DH4: ='Raw Data'!FU86 -> 3 | DI4: ='Raw Data'!FV86 -> 3 | DJ4: ='Raw Data'!FW86 -> 12 | DK4: ='Raw Data'!FX86 -> 3 | DL4: ='Raw Data'!FY86 -> 6 | DM4: ='Raw Data'!FZ86 -> 6 | DN4: ='Raw Data'!GA86 -> 2 | DO4: ='Raw Data'!GB86 -> 10 | DP4: ='Raw Data'!GC86 -> 3 | DQ4: ='Raw Data'!GD86 -> 4 | DR4: ='Raw Data'!GE86 -> 7 | DS4: ='Raw Data'!GF86 -> 5 | DT4: ='Raw Data'!GG86 -> 2 | DU4: ='Raw Data'!GH86 -> 1 | DV4: ='Raw Data'!GI86 -> 5 | DW4: ='Raw Data'!GJ86 -> 5 | DX4: ='Raw Data'!GK86 -> 7 | DY4: ='Raw Data'!GL86 -> 1 | DZ4: ='Raw Data'!GM86 -> 5 | EA4: ='Raw Data'!GN86 -> 4 | EB4: ='Raw Data'!GO86 -> 7 | EC4: ='Raw Data'!GP86 -> 4 | ED4: ='Raw Data'!GQ86 -> 4 | EE4: ='Raw Data'!GR86 -> 2 | EF4: ='Raw Data'!GS86 -> 8 | EG4: ='Raw Data'!GT86 -> 7 | EH4: ='Raw Data'!GU86 -> 8 | EI4: ='Raw Data'!GV86 -> 4 | EJ4: ='Raw Data'!GW86 -> 5 | EK4: ='Raw Data'!GX86 -> 7 | EL4: ='Raw Data'!GY86 -> 3 | EM4: ='Raw Data'!GZ86 -> 3 | EN4: ='Raw Data'!HA86 -> 2 | EO4: ='Raw Data'!HB86 -> 4 | EP4: ='Raw Data'!HC86 -> 2 | EQ4: ='Raw Data'!HD86 -> 3 | ER4: ='Raw Data'!HE86 -> 2 | ES4: ='Raw Data'!HF86 -> 1 | ET4: ='Raw Data'!HG86 -> 3 | EU4: ='Raw Data'!HH86 -> 1 | EV4: ='Raw Data'!HI86 -> 1 | EW4: ='Raw Data'!HJ86 -> 2 | EX4: ='Raw Data'!HK86 -> 1 | EY4: ='Raw Data'!HL86 -> 4 | EZ4: ='Raw Data'!HM86 -> 0 | FA4: ='Raw Data'!HN86 -> 1 | FB4: ='Raw Data'!HO86 -> 2 | FC4: ='Raw Data'!HP86 -> 0 | FD4: ='Raw Data'!HQ86 -> 3 | FE4: ='Raw Data'!HR86 -> 1 | FF4: ='Raw Data'!HS86 -> 2 | FG4: ='Raw Data'!HT86 -> 1 | FH4: ='Raw Data'!HU86 -> 0 | FI4: ='Raw Data'!HV86 -> 0 | FJ4: ='Raw Data'!HW86 -> 2 | FK4: ='Raw Data'!HX86 -> 1 | FL4: ='Raw Data'!HY86 -> 0 | FM4: ='Raw Data'!HZ86 -> 1 | FN4: ='Raw Data'!IA86 -> 1 | FO4: ='Raw Data'!IB86 -> 1 | FP4: ='Raw Data'!IC86 -> 0 | FQ4: ='Raw Data'!ID86 -> 0 | FR4: ='Raw Data'!IE86 -> 1 | FS4: ='Raw Data'!IF86 -> 2 | FT4: ='Raw Data'!IG86 -> 1 | FU4: ='Raw Data'!IH86 -> 3 | FV4: ='Raw Data'!II86 -> 1 | FW4: ='Raw Data'!IJ86 -> 2 | FX4: ='Raw Data'!IK86 -> 1 | FY4: ='Raw Data'!IL86 -> 0 | FZ4: ='Raw Data'!IM86 -> 0 | GA4: ='Raw Data'!IN86 -> 1 | GB4: ='Raw Data'!IO86 -> 0 | GC4: ='Raw Data'!IP86 -> 0 | GD4: ='Raw Data'!IQ86 -> 0 | GE4: ='Raw Data'!IR86 -> 0 | GF4: ='Raw Data'!IS86 -> 0 | GG4: ='Raw Data'!IT86 -> 0 | GH4: ='Raw Data'!IU86 -> 0 | GI4: ='Raw Data'!IV86 -> 0 | GJ4: ='Raw Data'!IW86 -> 0 | GK4: ='Raw Data'!IX86 -> 0 | GL4: ='Raw Data'!IY86 -> 0 | GM4: ='Raw Data'!IZ86 -> 0
A5: Percent Potential Short Sale | B5: =B3/B2 -> 0.03333333333 | C5: 0.1014492754 | D5: 0.04761904762 | E5: 0.05882352941 | F5: 0.119047619 | G5: 0.1111111111 | H5: 0.05405405405 | I5: 0.09649122807 | J5: 0.08571428571 | K5: 0.04761904762 | L5: 0.06730769231 | M5: 0.07547169811 | N5: 0.09433962264 | O5: 0.14 | P5: 0.1511627907 | Q5: 0.1111111111 | R5: 0.1415929204 | S5: 0.1617647059 | T5: 0.07947019868 | U5: 0.0802919708 | V5: 0.072 | W5: 0.1111111111 | X5: 0.05504587156 | Y5: 0.07826086957 | Z5: 0.1320754717 | AA5: 0.112 | AB5: 0.1204819277 | AC5: 0.1609195402 | AD5: 0.1461538462 | AE5: 0.1240875912 | AF5: 0.2016129032 | AG5: 0.1408450704 | AH5: 0.1181102362 | AI5: 0.08571428571 | AJ5: 0.1415929204 | AK5: 0.1376146789 | AL5: 0.1621621622 | AM5: 0.137254902 | AN5: 0.1489361702 | AO5: 0.1785714286 | AP5: 0.09941520468 | AQ5: 0.07633587786 | AR5: 0.1090909091 | AS5: 0.08904109589 | AT5: 0.09917355372 | AU5: 0.144 | AV5: 0.1438356164 | AW5: 0.05970149254 | AX5: 0.1240310078 | AY5: 0.1009174312 | AZ5: 0.1235955056 | BA5: 0.1208791209 | BB5: 0.08823529412 | BC5: 0.05952380952 | BD5: 0.101910828 | BE5: 0.1066666667 | BF5: 0.09316770186 | BG5: 0.1029411765 | BH5: 0.07086614173 | BI5: 0.04385964912 | BJ5: 0.04347826087 | BK5: 0.12 | BL5: 0.03773584906 | BM5: 0.01136363636 | BN5: 0.06086956522 | BO5: 0.08724832215 | BP5: 0.0625 | BQ5: 0.04081632653 | BR5: 0.04918032787 | BS5: 0.04724409449 | BT5: 0.04225352113 | BU5: 0.06944444444 | BV5: 0.008474576271 | BW5: 0.101910828 | BX5: 0.07291666667 | BY5: 0.04761904762 | BZ5: 0.02857142857 | CA5: 0.02614379085 | CB5: 0.04455445545 | CC5: 0.07567567568 | CD5: 0.04093567251 | CE5: 0.04109589041 | CF5: 0.03496503497 | CG5: 0.01257861635 | CH5: 0.04895104895 | CI5: 0.02702702703 | CJ5: 0.04504504505 | CK5: 0.04347826087 | CL5: 0.007246376812 | CM5: 0.01265822785 | CN5: 0.01142857143 | CO5: 0.02162162162 | CP5: 0.01935483871 | CQ5: 0.01257861635 | CR5: 0.006289308176 | CS5: 0.006896551724 | CT5: 0.02142857143 | CU5: 0.01734104046 | CV5: 0.04464285714 | CW5: 0.01550387597 | CX5: 0.01111111111 | CY5: 0 | CZ5: 0.02463054187 | DA5: 0.01834862385 | DB5: 0 | DC5: 0.005847953216 | DD5: 0.01851851852 | DE5: 0.03614457831 | DF5: 0 | DG5: 0 | DH5: 0.008474576271 | DI5: 0.01123595506 | DJ5: 0.005347593583 | DK5: 0.01075268817 | DL5: 0 | DM5: 0 | DN5: 0.005813953488 | DO5: 0.005291005291 | DP5: 0.007042253521 | DQ5: 0 | DR5: 0 | DS5: 0.01807228916 | DT5: 0 | DU5: 0.008130081301 | DV5: 0.005434782609 | DW5: 0.005291005291 | DX5: 0 | DY5: 0.005263157895 | DZ5: 0.005405405405 | EA5: 0.004975124378 | EB5: 0 | EC5: 0.005291005291 | ED5: 0 | EE5: 0.005747126437 | EF5: 0.006756756757 | EG5: 0.006849315068 | EH5: 0 | EI5: 0 | EJ5: 0 | EK5: 0.009049773756 | EL5: 0 | EM5: 0.006211180124 | EN5: 0.002793296089 | EO5: 0.002688172043 | EP5: 0 | EQ5: =EQ3/EQ2 -> 0 | ER5: 0.007604562738 | ES5: 0 | ET5: 0.002652519894 | EU5: 0.002865329513 | EV5: 0 | EW5: 0.003067484663 | EX5: 0.003802281369 | EY5: 0.004273504274 | EZ5: 0 | FA5: 0 | FB5: 0 | FC5: 0.004166666667 | FD5: =FD3/FD2 -> 0 | FE5: 0 | FF5: 0.003333333333 | FG5: 0 | FH5: 0 | FI5: 0 | FJ5: 0 | FK5: 0 | FL5: 0 | FM5: 0 | FN5: 0 | FO5: 0 | FP5: 0 | FQ5: =FQ3/FQ2 -> 0.007299270073 | FR5: 0 | FS5: 0.006024096386 | FT5: 0 | FU5: 0 | FV5: 0 | FW5: 0 | FX5: 0 | FY5: 0 | FZ5: 0.007299270073 | GA5: 0 | GB5: =GB3/GB2 -> 
A6: Percent Bank Owned | B6: =B4/B2 -> 0.1 | C6: 0.08695652174 | D6: 0.119047619 | E6: 0.3088235294 | F6: 0.1904761905 | G6: 0.1851851852 | H6: 0.1801801802 | I6: 0.1578947368 | J6: 0.1904761905 | K6: 0.1047619048 | L6: 0.1634615385 | M6: 0.2358490566 | N6: 0.1603773585 | O6: 0.43 | P6: 0.2441860465 | Q6: 0.2638888889 | R6: 0.2389380531 | S6: 0.2647058824 | T6: 0.2649006623 | U6: 0.3138686131 | V6: 0.256 | W6: 0.2929292929 | X6: 0.4036697248 | Y6: 0.2260869565 | Z6: 0.2547169811 | AA6: 0.28 | AB6: 0.2891566265 | AC6: 0.3103448276 | AD6: 0.2692307692 | AE6: 0.2481751825 | AF6: 0.2419354839 | AG6: 0.2253521127 | AH6: 0.2677165354 | AI6: 0.2 | AJ6: 0.1769911504 | AK6: 0.1743119266 | AL6: 0.1351351351 | AM6: 0.1862745098 | AN6: 0.1489361702 | AO6: 0.2589285714 | AP6: 0.134502924 | AQ6: 0.1603053435 | AR6: 0.1878787879 | AS6: 0.1643835616 | AT6: 0.2148760331 | AU6: 0.256 | AV6: 0.1917808219 | AW6: 0.1940298507 | AX6: 0.1627906977 | AY6: 0.2201834862 | AZ6: 0.2359550562 | BA6: 0.3076923077 | BB6: 0.2352941176 | BC6: 0.1607142857 | BD6: 0.152866242 | BE6: 0.1133333333 | BF6: 0.1739130435 | BG6: 0.1323529412 | BH6: 0.1181102362 | BI6: 0.08771929825 | BJ6: 0.0347826087 | BK6: 0.152 | BL6: 0.141509434 | BM6: 0.25 | BN6: 0.1130434783 | BO6: 0.07382550336 | BP6: 0.09895833333 | BQ6: 0.08163265306 | BR6: 0.106557377 | BS6: 0.09448818898 | BT6: 0.1267605634 | BU6: 0.05555555556 | BV6: 0.09322033898 | BW6: 0.06369426752 | BX6: 0.1041666667 | BY6: 0.1047619048 | BZ6: 0.1071428571 | CA6: 0.03921568627 | CB6: 0.04455445545 | CC6: 0.03243243243 | CD6: 0.08187134503 | CE6: 0.03424657534 | CF6: 0.04895104895 | CG6: 0.03144654088 | CH6: 0.04895104895 | CI6: 0.06081081081 | CJ6: 0.04504504505 | CK6: 0.05434782609 | CL6: 0.05797101449 | CM6: 0.05063291139 | CN6: 0.04571428571 | CO6: 0.03783783784 | CP6: 0.03870967742 | CQ6: 0.04402515723 | CR6: 0.01886792453 | CS6: 0.04827586207 | CT6: 0.06428571429 | CU6: 0.04624277457 | CV6: 0.08035714286 | CW6: 0.06201550388 | CX6: 0.04444444444 | CY6: 0.03333333333 | CZ6: 0.04433497537 | DA6: 0.03211009174 | DB6: 0.04411764706 | DC6: 0.02339181287 | DD6: 0.03703703704 | DE6: 0.0421686747 | DF6: 0.0243902439 | DG6: 0.03658536585 | DH6: 0.02542372881 | DI6: 0.03370786517 | DJ6: 0.06417112299 | DK6: 0.01612903226 | DL6: 0.02739726027 | DM6: 0.03191489362 | DN6: 0.01162790698 | DO6: 0.05291005291 | DP6: 0.02112676056 | DQ6: 0.02272727273 | DR6: 0.05185185185 | DS6: 0.03012048193 | DT6: 0.01680672269 | DU6: 0.008130081301 | DV6: 0.02717391304 | DW6: 0.02645502646 | DX6: 0.03225806452 | DY6: 0.005263157895 | DZ6: 0.02702702703 | EA6: 0.01990049751 | EB6: 0.04320987654 | EC6: 0.02116402116 | ED6: 0.01941747573 | EE6: 0.01149425287 | EF6: 0.05405405405 | EG6: 0.04794520548 | EH6: 0.0404040404 | EI6: 0.02597402597 | EJ6: 0.03333333333 | EK6: 0.03167420814 | EL6: 0.007575757576 | EM6: 0.009316770186 | EN6: 0.005586592179 | EO6: 0.01075268817 | EP6: 0.006451612903 | EQ6: =EQ4/EQ2 -> 0.009493670886 | ER6: 0.007604562738 | ES6: 0.004219409283 | ET6: 0.007957559682 | EU6: 0.002865329513 | EV6: 0.00296735905 | EW6: 0.006134969325 | EX6: 0.003802281369 | EY6: 0.01709401709 | EZ6: 0 | FA6: 0.00395256917 | FB6: 0.007490636704 | FC6: 0 | FD6: =FD4/FD2 -> 0.01333333333 | FE6: 0.005494505495 | FF6: 0.006666666667 | FG6: 0.003773584906 | FH6: 0 | FI6: 0 | FJ6: 0.01169590643 | FK6: 0.004975124378 | FL6: 0 | FM6: 0.006211180124 | FN6: 0.006211180124 | FO6: 0.007633587786 | FP6: 0 | FQ6: =FQ4/FQ2 -> 0 | FR6: 0.00518134715 | FS6: 0.01204819277 | FT6: 0.005434782609 | FU6: 0.01587301587 | FV6: 0.007751937984 | FW6: 0.01398601399 | FX6: 0.005988023952 | FY6: 0 | FZ6: 0 | GA6: 0.008620689655 | GB6: =GB4/GB2 -> 
A7: Total Percent | B7: =(B3+B4)/B2 -> 0.1333333333 | C7: 0.1884057971 | D7: 0.1666666667 | E7: 0.3676470588 | F7: 0.3095238095 | G7: 0.2962962963 | H7: 0.2342342342 | I7: 0.2543859649 | J7: 0.2761904762 | K7: 0.1523809524 | L7: 0.2307692308 | M7: 0.3113207547 | N7: 0.2547169811 | O7: 0.57 | P7: 0.3953488372 | Q7: 0.375 | R7: 0.3805309735 | S7: 0.4264705882 | T7: 0.3443708609 | U7: 0.3941605839 | V7: 0.328 | W7: 0.404040404 | X7: 0.4587155963 | Y7: 0.3043478261 | Z7: 0.3867924528 | AA7: 0.392 | AB7: 0.4096385542 | AC7: 0.4712643678 | AD7: 0.4153846154 | AE7: 0.3722627737 | AF7: 0.4435483871 | AG7: 0.3661971831 | AH7: 0.3858267717 | AI7: 0.2857142857 | AJ7: 0.3185840708 | AK7: 0.3119266055 | AL7: 0.2972972973 | AM7: 0.3235294118 | AN7: 0.2978723404 | AO7: 0.4375 | AP7: 0.2339181287 | AQ7: 0.2366412214 | AR7: 0.296969697 | AS7: 0.2534246575 | AT7: 0.3140495868 | AU7: 0.4 | AV7: 0.3356164384 | AW7: 0.2537313433 | AX7: 0.2868217054 | AY7: 0.3211009174 | AZ7: 0.3595505618 | BA7: 0.4285714286 | BB7: 0.3235294118 | BC7: 0.2202380952 | BD7: 0.2547770701 | BE7: 0.22 | BF7: 0.2670807453 | BG7: 0.2352941176 | BH7: 0.188976378 | BI7: 0.1315789474 | BJ7: 0.07826086957 | BK7: 0.272 | BL7: 0.179245283 | BM7: 0.2613636364 | BN7: 0.1739130435 | BO7: 0.1610738255 | BP7: 0.1614583333 | BQ7: 0.1224489796 | BR7: 0.1557377049 | BS7: 0.1417322835 | BT7: 0.1690140845 | BU7: 0.125 | BV7: 0.1016949153 | BW7: 0.1656050955 | BX7: 0.1770833333 | BY7: 0.1523809524 | BZ7: 0.1357142857 | CA7: 0.06535947712 | CB7: 0.08910891089 | CC7: 0.1081081081 | CD7: 0.1228070175 | CE7: 0.07534246575 | CF7: 0.08391608392 | CG7: 0.04402515723 | CH7: 0.0979020979 | CI7: 0.08783783784 | CJ7: 0.09009009009 | CK7: 0.09782608696 | CL7: 0.0652173913 | CM7: 0.06329113924 | CN7: 0.05714285714 | CO7: 0.05945945946 | CP7: 0.05806451613 | CQ7: 0.05660377358 | CR7: 0.0251572327 | CS7: 0.05517241379 | CT7: 0.08571428571 | CU7: 0.06358381503 | CV7: 0.125 | CW7: 0.07751937984 | CX7: 0.05555555556 | CY7: 0.03333333333 | CZ7: 0.06896551724 | DA7: 0.0504587156 | DB7: 0.04411764706 | DC7: 0.02923976608 | DD7: 0.05555555556 | DE7: 0.07831325301 | DF7: 0.0243902439 | DG7: 0.03658536585 | DH7: 0.03389830508 | DI7: 0.04494382022 | DJ7: 0.06951871658 | DK7: 0.02688172043 | DL7: 0.02739726027 | DM7: 0.03191489362 | DN7: 0.01744186047 | DO7: 0.0582010582 | DP7: 0.02816901408 | DQ7: 0.02272727273 | DR7: 0.05185185185 | DS7: 0.04819277108 | DT7: 0.01680672269 | DU7: 0.0162601626 | DV7: 0.03260869565 | DW7: 0.03174603175 | DX7: 0.03225806452 | DY7: 0.01052631579 | DZ7: 0.03243243243 | EA7: 0.02487562189 | EB7: 0.04320987654 | EC7: 0.02645502646 | ED7: 0.01941747573 | EE7: 0.01724137931 | EF7: 0.06081081081 | EG7: 0.05479452055 | EH7: 0.0404040404 | EI7: 0.02597402597 | EJ7: 0.03333333333 | EK7: 0.0407239819 | EL7: 0.007575757576 | EM7: 0.01552795031 | EN7: 0.008379888268 | EO7: 0.01344086022 | EP7: 0.006451612903 | EQ7: =(EQ3+EQ4)/EQ2 -> 0.009493670886 | ER7: 0.01520912548 | ES7: 0.004219409283 | ET7: 0.01061007958 | EU7: 0.005730659026 | EV7: 0.00296735905 | EW7: 0.009202453988 | EX7: 0.007604562738 | EY7: 0.02136752137 | EZ7: 0 | FA7: 0.00395256917 | FB7: 0.007490636704 | FC7: 0.004166666667 | FD7: =(FD3+FD4)/FD2 -> 0.01333333333 | FE7: 0.005494505495 | FF7: 0.01 | FG7: 0.003773584906 | FH7: 0 | FI7: 0 | FJ7: 0.01169590643 | FK7: 0.004975124378 | FL7: 0 | FM7: 0.006211180124 | FN7: 0.006211180124 | FO7: 0.007633587786 | FP7: 0 | FQ7: =(FQ3+FQ4)/FQ2 -> 0.007299270073 | FR7: 0.00518134715 | FS7: 0.01807228916 | FT7: 0.005434782609 | FU7: 0.01587301587 | FV7: 0.007751937984 | FW7: 0.01398601399 | FX7: 0.005988023952 | FY7: 0 | FZ7: 0.007299270073 | GA7: 0.008620689655 | GB7: =(GB3+GB4)/GB2 -> 
A10: Total distressed sold | B10: =B3+B4 -> 8 | C10: 13 | D10: 7 | E10: 25 | F10: 26 | G10: 24 | H10: 26 | I10: 29 | J10: 29 | K10: 16 | L10: 24 | M10: 33 | N10: 27 | O10: 57 | P10: 34 | Q10: 27 | R10: 43 | S10: 58 | T10: 52 | U10: 54 | V10: 41 | W10: 40 | X10: 50 | Y10: 35 | Z10: 41 | AA10: 49 | AB10: 34 | AC10: 41 | AD10: 54 | AE10: 51 | AF10: 55 | AG10: 52 | AH10: 49 | AI10: 30 | AJ10: 36 | AK10: 34 | AL10: 22 | AM10: 33 | AN10: 28 | AO10: 49 | AP10: 40 | AQ10: 31 | AR10: 49 | AS10: 37 | AT10: 38 | AU10: 50 | AV10: 49 | AW10: 34 | AX10: 37 | AY10: 35 | AZ10: 32 | BA10: 39 | BB10: 44 | BC10: 37 | BD10: 40 | BE10: 33 | BF10: 43 | BG10: 32 | BH10: 24 | BI10: 15 | BJ10: 9 | BK10: 34 | BL10: 19 | BM10: 23 | BN10: 20 | BO10: 24 | BP10: 31 | BQ10: 18 | BR10: 19 | BS10: 18 | BT10: 24 | BU10: 18 | BV10: 12 | BW10: 26 | BX10: 17 | BY10: 16 | BZ10: 19 | CA10: 10 | CB10: 18 | CC10: 20 | CD10: 21 | CE10: 11 | CF10: 12 | CG10: 7 | CH10: 14 | CI10: 13 | CJ10: 10 | CK10: 9 | CL10: 9 | CM10: 10 | CN10: 10 | CO10: 11 | CP10: 9 | CQ10: 9 | CR10: 4 | CS10: 8 | CT10: 12 | CU10: 11 | CV10: 14 | CW10: 10 | CX10: 10 | CY10: 6 | CZ10: 14 | DA10: 11 | DB10: 6 | DC10: 5 | DD10: 9 | DE10: 13 | DF10: 4 | DG10: 6 | DH10: 4 | DI10: 4 | DJ10: 13 | DK10: 5 | DL10: 6 | DM10: 6 | DN10: 3 | DO10: 11 | DP10: 4 | DQ10: 4 | DR10: 7 | DS10: 8 | DT10: 2 | DU10: 2 | DV10: 6 | DW10: 6 | DX10: 7 | DY10: 2 | DZ10: 6 | EA10: 5 | EB10: 7 | EC10: 5 | ED10: 4 | EE10: 3 | EF10: 9 | EG10: 8 | EH10: 8 | EI10: 4 | EJ10: 5 | EK10: 9 | EL10: 3 | EM10: 5 | EN10: 3 | EO10: 5 | EP10: 2 | EQ10: =EQ3+EQ4 -> 3 | ER10: 4 | ES10: 1 | ET10: 4 | EU10: 2 | EV10: 1 | EW10: 3 | EX10: 2 | EY10: 5 | EZ10: 0 | FA10: 1 | FB10: 2 | FC10: 1 | FD10: =FD3+FD4 -> 3 | FE10: 1 | FF10: 3 | FG10: 1 | FH10: 0 | FI10: 0 | FJ10: 2 | FK10: 1 | FL10: 0 | FM10: 1 | FN10: 1 | FO10: 1 | FP10: 0 | FQ10: =FQ3+FQ4 -> 1 | FR10: 1 | FS10: 3 | FT10: 1 | FU10: 3 | FV10: 1 | FW10: 2 | FX10: 1 | FY10: 0 | FZ10: 1 | GA10: 1 | GB10: =GB3+GB4 -> 0 | GC10: 0 | GD10: 0 | GE10: 0 | GF10: 0 | GG10: 0 | GH10: 0 | GI10: 0 | GJ10: 0 | GK10: 0 | GL10: 0 | GM10: 0
A11: Total distressed inventory | T11: 299 | U11: 294 | V11: 306 | W11: 274 | X11: 295 | Y11: 258 | Z11: 262 | AA11: 288 | AB11: 301 | AC11: 282 | AD11: 279 | AE11: =SUM(AE15:AE16) -> 273 | AF11: 251 | AG11: 248 | AH11: 239 | AI11: 244 | AJ11: 229 | AK11: 251 | AL11: 182 | AM11: 237 | AN11: 201 | AO11: 228 | AP11: 236 | AQ11: 242 | AR11: 230 | AS11: 221 | AT11: 205 | AU11: 185 | AV11: 188 | AW11: 196 | AX11: 212 | AY11: 218 | AZ11: 200 | BA11: 202 | BB11: 192 | BC11: 192 | BD11: 178 | BE11: 156 | BF11: 145 | BG11: 133 | BH11: 142 | BI11: 147 | BJ11: 145 | BK11: 126 | BL11: 133 | BM11: 136 | BN11: 135 | BO11: 123 | BP11: 124 | BQ11: 121 | BR11: 124 | BS11: 134 | BT11: 131 | BU11: 119 | BV11: 117 | BW11: 98 | BX11: 112 | BY11: 110 | BZ11: 104 | CA11: 91 | CB11: 77 | CC11: 78 | CD11: 70 | CE11: 64 | CF11: 69 | CG11: 68 | CH11: 58 | CI11: 55 | CJ11: 58 | CK11: 59 | CL11: 54 | CM11: 56 | CN11: 53 | CO11: 58 | CP11: 52 | CQ11: 57 | CR11: 36 | CS11: 55 | CT11: 55 | CU11: 45 | CV11: 39 | CW11: 40 | CX11: 32 | CY11: 26 | CZ11: 32 | DA11: 35 | DB11: 25 | DC11: 23 | DD11: 21 | DE11: 22 | DF11: 24 | DG11: 30 | DH11: 23 | DI11: 25 | DJ11: 32 | DK11: 25 | DL11: 22 | DM11: 18 | DN11: 25 | DO11: 26 | DP11: 25 | DQ11: 21 | DR11: 19 | DS11: 23 | DT11: 20 | DU11: 22 | DV11: 18 | DW11: 21 | DX11: 18 | DY11: 11 | DZ11: 16 | EA11: 20 | EB11: 9 | EC11: 20 | ED11: 24 | EE11: 21 | EF11: 21 | EG11: 16 | EH11: 17 | EI11: 23 | EJ11: 24 | EK11: 10 | EL11: 13 | EM11: 10 | EN11: 7 | EO11: 1 | EP11: 7 | EQ11: =SUM(EQ15:EQ16) -> 6 | ER11: 5 | ES11: 6 | ET11: 3 | EU11: 4 | EV11: 4 | EW11: 5 | EX11: 4 | EY11: 1 | EZ11: 4 | FA11: 4 | FB11: 0 | FC11: 6 | FD11: =SUM(FD15:FD16) -> 6 | FE11: 3 | FF11: 1 | FG11: 0 | FH11: 2 | FI11: 1 | FJ11: 0 | FK11: 2 | FL11: 0 | FM11: 2 | FN11: 1 | FO11: 2 | FP11: 0 | FQ11: =SUM(FQ15:FQ16) -> 0 | FR11: 2 | FS11: 4 | FT11: 0 | FU11: 3 | FV11: 3 | FW11: 0 | FX11: 0 | FY11: 2 | FZ11: 2 | GA11: 3 | GB11: =SUM(GB15:GB16) -> 0 | GC11: 0 | GD11: 0 | GE11: 0 | GF11: 0 | GG11: 0 | GH11: 0 | GI11: 0 | GJ11: 0 | GK11: 0 | GL11: 0 | GM11: 0
A12: Percent of Inventory | T12: =T10/T11 -> 0.1739130435 | U12: 0.1836734694 | V12: 0.1339869281 | W12: 0.1459854015 | X12: 0.1694915254 | Y12: 0.1356589147 | Z12: 0.1564885496 | AA12: 0.1701388889 | AB12: 0.1129568106 | AC12: 0.1453900709 | AD12: 0.1935483871 | AE12: 0.1868131868 | AF12: 0.219123506 | AG12: 0.2096774194 | AH12: 0.2050209205 | AI12: 0.1229508197 | AJ12: 0.1572052402 | AK12: 0.1354581673 | AL12: 0.1208791209 | AM12: 0.1392405063 | AN12: 0.1393034826 | AO12: 0.2149122807 | AP12: 0.1694915254 | AQ12: 0.1280991736 | AR12: 0.2130434783 | AS12: 0.1674208145 | AT12: 0.1853658537 | AU12: 0.2702702703 | AV12: 0.2606382979 | AW12: 0.1734693878 | AX12: 0.1745283019 | AY12: 0.1605504587 | AZ12: 0.16 | BA12: 0.1930693069 | BB12: 0.2291666667 | BC12: 0.1927083333 | BD12: 0.2247191011 | BE12: 0.2115384615 | BF12: 0.2965517241 | BG12: 0.2406015038 | BH12: 0.1690140845 | BI12: 0.1020408163 | BJ12: 0.06206896552 | BK12: 0.2698412698 | BL12: 0.1428571429 | BM12: 0.1691176471 | BN12: 0.1481481481 | BO12: 0.1951219512 | BP12: 0.25 | BQ12: 0.1487603306 | BR12: 0.1532258065 | BS12: 0.1343283582 | BT12: 0.1832061069 | BU12: 0.1512605042 | BV12: 0.1025641026 | BW12: 0.2653061224 | BX12: 0.1517857143 | BY12: 0.1454545455 | BZ12: 0.1826923077 | CA12: 0.1098901099 | CB12: 0.2337662338 | CC12: 0.2564102564 | CD12: 0.3 | CE12: 0.171875 | CF12: 0.1739130435 | CG12: 0.1029411765 | CH12: 0.2413793103 | CI12: 0.2363636364 | CJ12: 0.1724137931 | CK12: 0.1525423729 | CL12: 0.1666666667 | CM12: 0.1785714286 | CN12: 0.1886792453 | CO12: 0.1896551724 | CP12: 0.1730769231 | CQ12: 0.1578947368 | CR12: 0.1111111111 | CS12: 0.1454545455 | CT12: 0.2181818182 | CU12: 0.2444444444 | CV12: 0.358974359 | CW12: 0.25 | CX12: 0.3125 | CY12: 0.2307692308 | CZ12: 0.4375 | DA12: 0.3142857143 | DB12: 0.24 | DC12: 0.2173913043 | DD12: 0.4285714286 | DE12: 0.5909090909 | DF12: 0.1666666667 | DG12: 0.2 | DH12: 0.1739130435 | DI12: 0.16 | DJ12: 0.40625 | DK12: 0.2 | DL12: 0.2727272727 | DM12: 0.3333333333 | DN12: 0.12 | DO12: 0.4230769231 | DP12: 0.16 | DQ12: 0.1904761905 | DR12: 0.3684210526 | DS12: 0.347826087 | DT12: 0.1 | DU12: 0.09090909091 | DV12: 0.3333333333 | DW12: 0.2857142857 | DX12: 0.3888888889 | DY12: 0.1818181818 | DZ12: 0.375 | EA12: 0.25 | EB12: 0.7777777778 | EC12: 0.25 | ED12: 0.1666666667 | EE12: 0.1428571429 | EF12: 0.4285714286 | EG12: 0.5 | EH12: 0.4705882353 | EI12: 0.1739130435 | EJ12: 0.2083333333 | EK12: 0.9 | EL12: 0.2307692308 | EM12: 0.5 | EN12: 0.4285714286 | EO12: 5 | EP12: 0.2857142857 | EQ12: =EQ10/EQ11 -> 0.5 | ER12: 0.8 | ES12: 0.1666666667 | ET12: 1.333333333 | EU12: 0.5 | EV12: 0.25 | EW12: 0.6 | EX12: 0.5 | EY12: 5 | EZ12: 0 | FA12: 0.25 | FC12: 0.1666666667 | FD12: =FD10/FD11 -> 0.5 | FE12: 0.3333333333 | FF12: 3 | FH12: 0 | FI12: 0 | FK12: 0.5 | FM12: 0.5 | FN12: 1 | FO12: 0.5 | FQ12: =FQ10/FQ11 ->  | FR12: 0.5 | FS12: 0.75 | FU12: 1 | FV12: 0.3333333333 | FY12: 0 | FZ12: 0.5 | GA12: 0.3333333333 | GB12: =GB10/GB11 -> 
AE14: 2011-04-01 | AF14: 2011-05-01 | AG14: 2011-06-01 | AH14: 2011-07-01 | AI14: 2011-08-01 | AJ14: 2011-09-01 | AK14: 2011-10-01 | AL14: 2011-11-01 | AM14: 2011-12-01 | AN14: 2012-01-01 | AO14: 2012-02-01 | AP14: 2012-03-01 | AQ14: 2012-04-01 | AR14: 2012-05-01 | AS14: 2012-06-01 | AT14: 2012-07-01 | AU14: 2012-08-01 | AV14: 2012-09-01 | AW14: 2012-10-01 | AX14: 2012-11-01 | AY14: 2012-12-01 | AZ14: 2013-01-01 | BA14: 2013-02-01 | BB14: 2013-03-01 | BC14: 2013-04-01 | BD14: 2013-05-01 | BE14: 2013-06-01 | BF14: 2013-07-01 | BG14: 2013-08-01 | BH14: 2013-09-01 | BI14: 2013-10-01 | BJ14: 2013-11-01 | BK14: 2013-12-01 | BL14: 2014-01-01 | BM14: 2014-02-01 | BN14: 2014-03-01 | BO14: 2014-04-01 | BP14: 2014-05-01 | BQ14: 2014-06-01 | BR14: 2014-07-01 | BS14: 2014-08-01 | BT14: 2014-09-01 | BU14: 2014-10-01 | BV14: 2014-11-01 | BW14: 2014-12-01 | BX14: 2015-01-01 | BY14: 2015-02-01 | BZ14: 2015-03-01 | CA14: 2015-04-01 | CB14: 2015-05-01 | CC14: 2015-06-01 | CD14: 2015-07-01 | CE14: 2015-08-01 | CF14: 2015-09-01 | CG14: 2015-10-01 | CH14: 2015-11-01 | CI14: 2015-12-01 | CJ14: 2016-01-01 | CK14: 2016-02-01 | CL14: 2016-03-01 | CM14: 2016-04-01 | CN14: 2016-05-01 | CO14: 2016-06-01 | CP14: 2016-07-01 | CQ14: 2016-08-01 | CR14: 2016-09-01 | CS14: 2016-10-01 | CT14: 2016-11-01 | CU14: 2016-12-01 | CV14: 2017-01-01 | CW14: 2017-02-01 | CX14: 2017-03-01 | CY14: 2017-04-01 | CZ14: 2017-05-01 | DA14: 2017-06-01 | DB14: 2017-07-01 | DC14: 2017-08-01 | DD14: 2017-09-01 | DE14: 2017-10-01 | DF14: 2017-11-01 | DG14: 2017-12-01 | DH14: 2018-01-01 | DI14: 2018-02-01 | DJ14: 2018-03-01 | DK14: 2018-04-01 | DL14: 2018-05-01 | DM14: 2018-06-01 | DN14: 2018-07-01 | DO14: 2018-08-01 | DP14: 2018-09-01 | DQ14: 2018-10-01 | DR14: 2018-11-01 | DS14: 2018-12-01 | DT14: 2019-01-01 | DU14: 2019-02-01 | DV14: 2019-03-01 | DW14: 2019-04-01 | DX14: 2019-05-01 | DY14: 2019-06-01 | DZ14: 2019-07-01 | EA14: 2019-08-01 | EB14: 2019-09-01 | EC14: 2019-10-01 | ED14: 2019-11-01 | EE14: 2019-12-01 | EF14: 2020-01-01 | EG14: 2020-02-01 | EH14: 2020-03-01 | EI14: 2020-04-01 | EJ14: 2020-05-01 | EK14: 2020-06-01 | EL14: 2020-07-01 | EM14: 2020-08-01 | EN14: 2020-09-01 | EO14: 2020-10-01 | EP14: 2020-11-01 | EQ14: 2020-12-01 | ER14: 2021-01-01 | ES14: 2021-02-01 | ET14: 2021-03-01 | EU14: 2021-04-01 | EV14: 2021-05-01 | EW14: 2021-06-01 | EX14: 2021-07-01 | EY14: 2021-08-01 | EZ14: 2021-09-01 | FA14: 2021-10-01 | FB14: 2021-11-01 | FC14: 2021-12-01 | FD14: 2022-01-01 | FE14: 2022-02-01 | FF14: 2022-03-01 | FG14: 2022-04-01 | FH14: 2022-05-01 | FI14: 2022-06-01 | FJ14: 2022-07-01 | FK14: 2022-08-01 | FL14: 2022-09-01 | FM14: 2022-10-01 | FN14: 2022-11-01 | FO14: 2022-12-01 | FP14: 2023-01-01 | FQ14: 2023-02-01 | FR14: 2023-03-01 | FS14: 2023-04-01 | FT14: 2023-05-01 | FU14: 2023-06-01 | FV14: 2023-07-01 | FW14: 2023-08-01 | FX14: 2023-09-01 | FY14: 2023-10-01 | FZ14: 2023-11-01 | GA14: 2023-12-01 | GB14: 2024-01-01 | GC14: 2024-02-01 | GD14: 2024-03-01 | GE14: 2024-04-01 | GF14: 2024-05-01 | GG14: 2024-06-01 | GH14: 2024-07-01 | GI14: 2024-08-01 | GJ14: 2024-09-01 | GK14: 2024-10-01 | GL14: 2024-11-01 | GM14: 2024-12-01
A15: Short Sale Inventory | AD15: Short Sale Inventory | AE15: ='Raw Data'!CR88 -> 190 | AF15: ='Raw Data'!CS88 -> 173 | AG15: ='Raw Data'!CT88 -> 177 | AH15: ='Raw Data'!CU88 -> 178 | AI15: ='Raw Data'!CV88 -> 175 | AJ15: ='Raw Data'!CW88 -> 169 | AK15: ='Raw Data'!CX88 -> 186 | AL15: ='Raw Data'!CY88 -> 120 | AM15: ='Raw Data'!CZ88 -> 152 | AN15: ='Raw Data'!DA88 -> 126 | AO15: ='Raw Data'!DB88 -> 150 | AP15: ='Raw Data'!DC88 -> 162 | AQ15: ='Raw Data'!DD88 -> 160 | AR15: ='Raw Data'!DE88 -> 161 | AS15: ='Raw Data'!DF88 -> 153 | AT15: ='Raw Data'!DG88 -> 145 | AU15: ='Raw Data'!DH88 -> 129 | AV15: ='Raw Data'!DI88 -> 127 | AW15: ='Raw Data'!DJ88 -> 132 | AX15: ='Raw Data'!DK88 -> 132 | AY15: ='Raw Data'!DL88 -> 134 | AZ15: ='Raw Data'!DM88 -> 133 | BA15: ='Raw Data'!DN88 -> 139 | BB15: ='Raw Data'!DO88 -> 136 | BC15: ='Raw Data'!DP88 -> 132 | BD15: ='Raw Data'!DQ88 -> 120 | BE15: ='Raw Data'!DR88 -> 105 | BF15: ='Raw Data'!DS88 -> 98 | BG15: ='Raw Data'!DT88 -> 93 | BH15: ='Raw Data'!DU88 -> 89 | BI15: ='Raw Data'!DV88 -> 91 | BJ15: ='Raw Data'!DW88 -> 87 | BK15: ='Raw Data'!DX88 -> 78 | BL15: ='Raw Data'!DY88 -> 91 | BM15: ='Raw Data'!DZ88 -> 96 | BN15: ='Raw Data'!EA88 -> 91 | BO15: ='Raw Data'!EB88 -> 86 | BP15: ='Raw Data'!EC88 -> 85 | BQ15: ='Raw Data'!ED88 -> 80 | BR15: ='Raw Data'!EE88 -> 84 | BS15: ='Raw Data'!EF88 -> 87 | BT15: ='Raw Data'!EG88 -> 85 | BU15: ='Raw Data'!EH88 -> 83 | BV15: ='Raw Data'!EI88 -> 87 | BW15: ='Raw Data'!EJ88 -> 66 | BX15: ='Raw Data'!EK88 -> 80 | BY15: ='Raw Data'!EL88 -> 82 | BZ15: ='Raw Data'!EM88 -> 82 | CA15: ='Raw Data'!EN88 -> 74 | CB15: ='Raw Data'!EO88 -> 57 | CC15: ='Raw Data'!EP88 -> 54 | CD15: ='Raw Data'!EQ88 -> 52 | CE15: ='Raw Data'!ER88 -> 46 | CF15: ='Raw Data'!ES88 -> 46 | CG15: ='Raw Data'!ET88 -> 46 | CH15: ='Raw Data'!EU88 -> 39 | CI15: ='Raw Data'!EV88 -> 35 | CJ15: ='Raw Data'!EW88 -> 36 | CK15: ='Raw Data'!EX88 -> 36 | CL15: ='Raw Data'!EY88 -> 32 | CM15: ='Raw Data'!EZ88 -> 31 | CN15: ='Raw Data'!FA88 -> 30 | CO15: ='Raw Data'!FB88 -> 32 | CP15: ='Raw Data'!FC88 -> 30 | CQ15: ='Raw Data'!FD88 -> 34 | CR15: ='Raw Data'!FE88 -> 17 | CS15: ='Raw Data'!FF88 -> 30 | CT15: ='Raw Data'!FG88 -> 31 | CU15: ='Raw Data'!FH88 -> 22 | CV15: ='Raw Data'!FI88 -> 18 | CW15: ='Raw Data'!FJ88 -> 22 | CX15: ='Raw Data'!FK88 -> 18 | CY15: ='Raw Data'!FL88 -> 15 | CZ15: ='Raw Data'!FM88 -> 18 | DA15: ='Raw Data'!FN88 -> 19 | DB15: ='Raw Data'!FO88 -> 15 | DC15: ='Raw Data'!FP88 -> 10 | DD15: ='Raw Data'!FQ88 -> 10 | DE15: ='Raw Data'!FR88 -> 7 | DF15: ='Raw Data'!FS88 -> 8 | DG15: ='Raw Data'!FT88 -> 10 | DH15: ='Raw Data'!FU88 -> 7 | DI15: ='Raw Data'!FV88 -> 9 | DJ15: ='Raw Data'!FW88 -> 13 | DK15: ='Raw Data'!FX88 -> 8 | DL15: ='Raw Data'!FY88 -> 7 | DM15: ='Raw Data'!FZ88 -> 4 | DN15: ='Raw Data'!GA88 -> 9 | DO15: ='Raw Data'!GB88 -> 12 | DP15: ='Raw Data'!GC88 -> 10 | DQ15: ='Raw Data'!GD88 -> 9 | DR15: ='Raw Data'!GE88 -> 6 | DS15: ='Raw Data'!GF88 -> 7 | DT15: ='Raw Data'!GG88 -> 4 | DU15: ='Raw Data'!GH88 -> 6 | DV15: ='Raw Data'!GI88 -> 6 | DW15: ='Raw Data'!GJ88 -> 8 | DX15: ='Raw Data'!GK88 -> 8 | DY15: ='Raw Data'!GL88 -> 4 | DZ15: ='Raw Data'!GM88 -> 5 | EA15: ='Raw Data'!GN88 -> 7 | EB15: ='Raw Data'!GO88 -> 4 | EC15: ='Raw Data'!GP88 -> 5 | ED15: ='Raw Data'!GQ88 -> 5 | EE15: ='Raw Data'!GR88 -> 5 | EF15: ='Raw Data'!GS88 -> 7 | EG15: ='Raw Data'!GT88 -> 6 | EH15: ='Raw Data'!GU88 -> 8 | EI15: ='Raw Data'!GV88 -> 11 | EJ15: ='Raw Data'!GW88 -> 10 | EK15: ='Raw Data'!GX88 -> 3 | EL15: ='Raw Data'!GY88 -> 6 | EM15: ='Raw Data'!GZ88 -> 6 | EN15: ='Raw Data'!HA88 -> 5 | EO15: ='Raw Data'!HB88 -> 1 | EP15: ='Raw Data'!HC88 -> 4 | EQ15: ='Raw Data'!HD88 -> 3 | ER15: ='Raw Data'!HE88 -> 4 | ES15: ='Raw Data'!HF88 -> 5 | ET15: ='Raw Data'!HG88 -> 3 | EU15: ='Raw Data'!HH88 -> 3 | EV15: ='Raw Data'!HI88 -> 2 | EW15: ='Raw Data'!HJ88 -> 2 | EX15: ='Raw Data'!HK88 -> 2 | EY15: ='Raw Data'!HL88 -> 1 | EZ15: ='Raw Data'!HM88 -> 2 | FA15: ='Raw Data'!HN88 -> 2 | FB15: ='Raw Data'!HO88 -> 0 | FC15: ='Raw Data'!HP88 -> 3 | FD15: ='Raw Data'!HQ88 -> 2 | FE15: ='Raw Data'!HR88 -> 0 | FF15: ='Raw Data'!HS88 -> 1 | FG15: ='Raw Data'!HT88 -> 0 | FH15: ='Raw Data'!HU88 -> 0 | FI15: ='Raw Data'!HV88 -> 0 | FJ15: ='Raw Data'!HW88 -> 0 | FK15: ='Raw Data'!HX88 -> 0 | FL15: ='Raw Data'!HY88 -> 0 | FM15: ='Raw Data'!HZ88 -> 0 | FN15: ='Raw Data'!IA88 -> 0 | FO15: ='Raw Data'!IB88 -> 0 | FP15: ='Raw Data'!IC88 -> 0 | FQ15: ='Raw Data'!ID88 -> 0 | FR15: ='Raw Data'!IE88 -> 0 | FS15: ='Raw Data'!IF88 -> 0 | FT15: ='Raw Data'!IG88 -> 0 | FU15: ='Raw Data'!IH88 -> 0 | FV15: ='Raw Data'!II88 -> 0 | FW15: ='Raw Data'!IJ88 -> 0 | FX15: ='Raw Data'!IK88 -> 0 | FY15: ='Raw Data'!IL88 -> 1 | FZ15: ='Raw Data'!IM88 -> 2 | GA15: ='Raw Data'!IN88 -> 2 | GB15: ='Raw Data'!IO88 -> 0 | GC15: ='Raw Data'!IP88 -> 0 | GD15: ='Raw Data'!IQ88 -> 0 | GE15: ='Raw Data'!IR88 -> 0 | GF15: ='Raw Data'!IS88 -> 0 | GG15: ='Raw Data'!IT88 -> 0 | GH15: ='Raw Data'!IU88 -> 0 | GI15: ='Raw Data'!IV88 -> 0 | GJ15: ='Raw Data'!IW88 -> 0 | GK15: ='Raw Data'!IX88 -> 0 | GL15: ='Raw Data'!IY88 -> 0 | GM15: ='Raw Data'!IZ88 -> 0
A16: Bank Owned Inventory | AD16: Bank Owned Inventory | AE16: ='Raw Data'!CR89 -> 83 | AF16: ='Raw Data'!CS89 -> 78 | AG16: ='Raw Data'!CT89 -> 71 | AH16: ='Raw Data'!CU89 -> 61 | AI16: ='Raw Data'!CV89 -> 69 | AJ16: ='Raw Data'!CW89 -> 60 | AK16: ='Raw Data'!CX89 -> 65 | AL16: ='Raw Data'!CY89 -> 62 | AM16: ='Raw Data'!CZ89 -> 85 | AN16: ='Raw Data'!DA89 -> 75 | AO16: ='Raw Data'!DB89 -> 78 | AP16: ='Raw Data'!DC89 -> 74 | AQ16: ='Raw Data'!DD89 -> 82 | AR16: ='Raw Data'!DE89 -> 69 | AS16: ='Raw Data'!DF89 -> 68 | AT16: ='Raw Data'!DG89 -> 60 | AU16: ='Raw Data'!DH89 -> 56 | AV16: ='Raw Data'!DI89 -> 61 | AW16: ='Raw Data'!DJ89 -> 64 | AX16: ='Raw Data'!DK89 -> 80 | AY16: ='Raw Data'!DL89 -> 84 | AZ16: ='Raw Data'!DM89 -> 67 | BA16: ='Raw Data'!DN89 -> 63 | BB16: ='Raw Data'!DO89 -> 56 | BC16: ='Raw Data'!DP89 -> 60 | BD16: ='Raw Data'!DQ89 -> 58 | BE16: ='Raw Data'!DR89 -> 51 | BF16: ='Raw Data'!DS89 -> 47 | BG16: ='Raw Data'!DT89 -> 40 | BH16: ='Raw Data'!DU89 -> 53 | BI16: ='Raw Data'!DV89 -> 56 | BJ16: ='Raw Data'!DW89 -> 58 | BK16: ='Raw Data'!DX89 -> 48 | BL16: ='Raw Data'!DY89 -> 42 | BM16: ='Raw Data'!DZ89 -> 40 | BN16: ='Raw Data'!EA89 -> 44 | BO16: ='Raw Data'!EB89 -> 37 | BP16: ='Raw Data'!EC89 -> 39 | BQ16: ='Raw Data'!ED89 -> 41 | BR16: ='Raw Data'!EE89 -> 40 | BS16: ='Raw Data'!EF89 -> 47 | BT16: ='Raw Data'!EG89 -> 46 | BU16: ='Raw Data'!EH89 -> 36 | BV16: ='Raw Data'!EI89 -> 30 | BW16: ='Raw Data'!EJ89 -> 32 | BX16: ='Raw Data'!EK89 -> 32 | BY16: ='Raw Data'!EL89 -> 28 | BZ16: ='Raw Data'!EM89 -> 22 | CA16: ='Raw Data'!EN89 -> 17 | CB16: ='Raw Data'!EO89 -> 20 | CC16: ='Raw Data'!EP89 -> 24 | CD16: ='Raw Data'!EQ89 -> 18 | CE16: ='Raw Data'!ER89 -> 18 | CF16: ='Raw Data'!ES89 -> 23 | CG16: ='Raw Data'!ET89 -> 22 | CH16: ='Raw Data'!EU89 -> 19 | CI16: ='Raw Data'!EV89 -> 20 | CJ16: ='Raw Data'!EW89 -> 22 | CK16: ='Raw Data'!EX89 -> 23 | CL16: ='Raw Data'!EY89 -> 22 | CM16: ='Raw Data'!EZ89 -> 25 | CN16: ='Raw Data'!FA89 -> 23 | CO16: ='Raw Data'!FB89 -> 26 | CP16: ='Raw Data'!FC89 -> 22 | CQ16: ='Raw Data'!FD89 -> 23 | CR16: ='Raw Data'!FE89 -> 19 | CS16: ='Raw Data'!FF89 -> 25 | CT16: ='Raw Data'!FG89 -> 24 | CU16: ='Raw Data'!FH89 -> 23 | CV16: ='Raw Data'!FI89 -> 21 | CW16: ='Raw Data'!FJ89 -> 18 | CX16: ='Raw Data'!FK89 -> 14 | CY16: ='Raw Data'!FL89 -> 11 | CZ16: ='Raw Data'!FM89 -> 14 | DA16: ='Raw Data'!FN89 -> 16 | DB16: ='Raw Data'!FO89 -> 10 | DC16: ='Raw Data'!FP89 -> 13 | DD16: ='Raw Data'!FQ89 -> 11 | DE16: ='Raw Data'!FR89 -> 15 | DF16: ='Raw Data'!FS89 -> 16 | DG16: ='Raw Data'!FT89 -> 20 | DH16: ='Raw Data'!FU89 -> 16 | DI16: ='Raw Data'!FV89 -> 16 | DJ16: ='Raw Data'!FW89 -> 19 | DK16: ='Raw Data'!FX89 -> 17 | DL16: ='Raw Data'!FY89 -> 15 | DM16: ='Raw Data'!FZ89 -> 14 | DN16: ='Raw Data'!GA89 -> 16 | DO16: ='Raw Data'!GB89 -> 14 | DP16: ='Raw Data'!GC89 -> 15 | DQ16: ='Raw Data'!GD89 -> 12 | DR16: ='Raw Data'!GE89 -> 13 | DS16: ='Raw Data'!GF89 -> 16 | DT16: ='Raw Data'!GG89 -> 16 | DU16: ='Raw Data'!GH89 -> 16 | DV16: ='Raw Data'!GI89 -> 12 | DW16: ='Raw Data'!GJ89 -> 13 | DX16: ='Raw Data'!GK89 -> 10 | DY16: ='Raw Data'!GL89 -> 7 | DZ16: ='Raw Data'!GM89 -> 11 | EA16: ='Raw Data'!GN89 -> 13 | EB16: ='Raw Data'!GO89 -> 5 | EC16: ='Raw Data'!GP89 -> 15 | ED16: ='Raw Data'!GQ89 -> 19 | EE16: ='Raw Data'!GR89 -> 16 | EF16: ='Raw Data'!GS89 -> 14 | EG16: ='Raw Data'!GT89 -> 10 | EH16: ='Raw Data'!GU89 -> 9 | EI16: ='Raw Data'!GV89 -> 12 | EJ16: ='Raw Data'!GW89 -> 14 | EK16: ='Raw Data'!GX89 -> 7 | EL16: ='Raw Data'!GY89 -> 7 | EM16: ='Raw Data'!GZ89 -> 4 | EN16: ='Raw Data'!HA89 -> 2 | EO16: ='Raw Data'!HB89 -> 0 | EP16: ='Raw Data'!HC89 -> 3 | EQ16: ='Raw Data'!HD89 -> 3 | ER16: ='Raw Data'!HE89 -> 1 | ES16: ='Raw Data'!HF89 -> 1 | ET16: ='Raw Data'!HG89 -> 0 | EU16: ='Raw Data'!HH89 -> 1 | EV16: ='Raw Data'!HI89 -> 2 | EW16: ='Raw Data'!HJ89 -> 3 | EX16: ='Raw Data'!HK89 -> 2 | EY16: ='Raw Data'!HL89 -> 0 | EZ16: ='Raw Data'!HM89 -> 2 | FA16: ='Raw Data'!HN89 -> 2 | FB16: ='Raw Data'!HO89 -> 0 | FC16: ='Raw Data'!HP89 -> 3 | FD16: ='Raw Data'!HQ89 -> 4 | FE16: ='Raw Data'!HR89 -> 3 | FF16: ='Raw Data'!HS89 -> 0 | FG16: ='Raw Data'!HT89 -> 0 | FH16: ='Raw Data'!HU89 -> 2 | FI16: ='Raw Data'!HV89 -> 1 | FJ16: ='Raw Data'!HW89 -> 0 | FK16: ='Raw Data'!HX89 -> 2 | FL16: ='Raw Data'!HY89 -> 0 | FM16: ='Raw Data'!HZ89 -> 2 | FN16: ='Raw Data'!IA89 -> 1 | FO16: ='Raw Data'!IB89 -> 2 | FP16: ='Raw Data'!IC89 -> 0 | FQ16: ='Raw Data'!ID89 -> 0 | FR16: ='Raw Data'!IE89 -> 2 | FS16: ='Raw Data'!IF89 -> 4 | FT16: ='Raw Data'!IG89 -> 0 | FU16: ='Raw Data'!IH89 -> 3 | FV16: ='Raw Data'!II89 -> 3 | FW16: ='Raw Data'!IJ89 -> 0 | FX16: ='Raw Data'!IK89 -> 0 | FY16: ='Raw Data'!IL89 -> 1 | FZ16: ='Raw Data'!IM89 -> 0 | GA16: ='Raw Data'!IN89 -> 1 | GB16: ='Raw Data'!IO89 -> 0 | GC16: ='Raw Data'!IP89 -> 0 | GD16: ='Raw Data'!IQ89 -> 0 | GE16: ='Raw Data'!IR89 -> 0 | GF16: ='Raw Data'!IS89 -> 0 | GG16: ='Raw Data'!IT89 -> 0 | GH16: ='Raw Data'!IU89 -> 0 | GI16: ='Raw Data'!IV89 -> 0 | GJ16: ='Raw Data'!IW89 -> 0 | GK16: ='Raw Data'!IX89 -> 0 | GL16: ='Raw Data'!IY89 -> 0 | GM16: ='Raw Data'!IZ89 -> 0
A17: Percent of Active Inventory | AD17: Percent of Active Inventory | AE17: =SUM(AE15:AE16)/'Raw Data'!CR21 -> 0.1400718317 | AF17: =SUM(AF15:AF16)/'Raw Data'!CS21 -> 0.127865512 | AG17: =SUM(AG15:AG16)/'Raw Data'!CT21 -> 0.1279669763 | AH17: =SUM(AH15:AH16)/'Raw Data'!CU21 -> 0.1271276596 | AI17: =SUM(AI15:AI16)/'Raw Data'!CV21 -> 0.1319632234 | AJ17: =SUM(AJ15:AJ16)/'Raw Data'!CW21 -> 0.1283632287 | AK17: =SUM(AK15:AK16)/'Raw Data'!CX21 -> 0.1340811966 | AL17: =SUM(AL15:AL16)/'Raw Data'!CY21 -> 0.1028248588 | AM17: =SUM(AM15:AM16)/'Raw Data'!CZ21 -> 0.1389214537 | AN17: =SUM(AN15:AN16)/'Raw Data'!DA21 -> 0.1164542294 | AO17: =SUM(AO15:AO16)/'Raw Data'!DB21 -> 0.1278026906 | AP17: =SUM(AP15:AP16)/'Raw Data'!DC21 -> 0.128540305 | AQ17: =SUM(AQ15:AQ16)/'Raw Data'!DD21 -> 0.1301075269 | AR17: =SUM(AR15:AR16)/'Raw Data'!DE21 -> 0.1227976508 | AS17: =SUM(AS15:AS16)/'Raw Data'!DF21 -> 0.1224376731 | AT17: =SUM(AT15:AT16)/'Raw Data'!DG21 -> 0.1129476584 | AU17: =SUM(AU15:AU16)/'Raw Data'!DH21 -> 0.1028921023 | AV17: =SUM(AV15:AV16)/'Raw Data'!DI21 -> 0.1054994388 | AW17: =SUM(AW15:AW16)/'Raw Data'!DJ21 -> 0.1085271318 | AX17: =SUM(AX15:AX16)/'Raw Data'!DK21 -> 0.1196388262 | AY17: =SUM(AY15:AY16)/'Raw Data'!DL21 -> 0.1329268293 | AZ17: =SUM(AZ15:AZ16)/'Raw Data'!DM21 -> 0.1166861144 | BA17: =SUM(BA15:BA16)/'Raw Data'!DN21 -> 0.1132922042 | BB17: =SUM(BB15:BB16)/'Raw Data'!DO21 -> 0.1049180328 | BC17: =SUM(BC15:BC16)/'Raw Data'!DP21 -> 0.1011058452 | BD17: =SUM(BD15:BD16)/'Raw Data'!DQ21 -> 0.09393139842 | BE17: =SUM(BE15:BE16)/'Raw Data'!DR21 -> 0.08427876823 | BF17: =SUM(BF15:BF16)/'Raw Data'!DS21 -> 0.07940854326 | BG17: =SUM(BG15:BG16)/'Raw Data'!DT21 -> 0.07303679297 | BH17: =SUM(BH15:BH16)/'Raw Data'!DU21 -> 0.07810781078 | BI17: =SUM(BI15:BI16)/'Raw Data'!DV21 -> 0.07704402516 | BJ17: =SUM(BJ15:BJ16)/'Raw Data'!DW21 -> 0.07783145464 | BK17: =SUM(BK15:BK16)/'Raw Data'!DX21 -> 0.07411764706 | BL17: =SUM(BL15:BL16)/'Raw Data'!DY21 -> 0.07421875 | BM17: =SUM(BM15:BM16)/'Raw Data'!DZ21 -> 0.07188160677 | BN17: =SUM(BN15:BN16)/'Raw Data'!EA21 -> 0.06531204644 | BO17: =SUM(BO15:BO16)/'Raw Data'!EB21 -> 0.05991232343 | BP17: =SUM(BP15:BP16)/'Raw Data'!EC21 -> 0.05893536122 | BQ17: =SUM(BQ15:BQ16)/'Raw Data'!ED21 -> 0.05775656325 | BR17: =SUM(BR15:BR16)/'Raw Data'!EE21 -> 0.06150793651 | BS17: =SUM(BS15:BS16)/'Raw Data'!EF21 -> 0.06323737612 | BT17: =SUM(BT15:BT16)/'Raw Data'!EG21 -> 0.06316297011 | BU17: =SUM(BU15:BU16)/'Raw Data'!EH21 -> 0.05793573515 | BV17: =SUM(BV15:BV16)/'Raw Data'!EI21 -> 0.0572407045 | BW17: =SUM(BW15:BW16)/'Raw Data'!EJ21 -> 0.05546123373 | BX17: =SUM(BX15:BX16)/'Raw Data'!EK21 -> 0.05989304813 | BY17: =SUM(BY15:BY16)/'Raw Data'!EL21 -> 0.05629477994 | BZ17: =SUM(BZ15:BZ16)/'Raw Data'!EM21 -> 0.05433646813 | CA17: =SUM(CA15:CA16)/'Raw Data'!EN21 -> 0.04690721649 | CB17: =SUM(CB15:CB16)/'Raw Data'!EO21 -> 0.03989637306 | CC17: =SUM(CC15:CC16)/'Raw Data'!EP21 -> 0.04100946372 | CD17: =SUM(CD15:CD16)/'Raw Data'!EQ21 -> 0.03765465304 | CE17: =SUM(CE15:CE16)/'Raw Data'!ER21 -> 0.03453858608 | CF17: =SUM(CF15:CF16)/'Raw Data'!ES21 -> 0.03793293018 | CG17: =SUM(CG15:CG16)/'Raw Data'!ET21 -> 0.03820224719 | CH17: =SUM(CH15:CH16)/'Raw Data'!EU21 -> 0.03377984857 | CI17: =SUM(CI15:CI16)/'Raw Data'!EV21 -> 0.03505417463 | CJ17: =SUM(CJ15:CJ16)/'Raw Data'!EW21 -> 0.03629536921 | CK17: =SUM(CK15:CK16)/'Raw Data'!EX21 -> 0.03539292142 | CL17: =SUM(CL15:CL16)/'Raw Data'!EY21 -> 0.03059490085 | CM17: =SUM(CM15:CM16)/'Raw Data'!EZ21 -> 0.03075233388 | CN17: =SUM(CN15:CN16)/'Raw Data'!FA21 -> 0.03042479908 | CO17: =SUM(CO15:CO16)/'Raw Data'!FB21 -> 0.03325688073 | CP17: =SUM(CP15:CP16)/'Raw Data'!FC21 -> 0.03086053412 | CQ17: =SUM(CQ15:CQ16)/'Raw Data'!FD21 -> 0.03467153285 | CR17: =SUM(CR15:CR16)/'Raw Data'!FE21 -> 0.02192448234 | CS17: =SUM(CS15:CS16)/'Raw Data'!FF21 -> 0.03392967304 | CT17: =SUM(CT15:CT16)/'Raw Data'!FG21 -> 0.03592423253 | CU17: =SUM(CU15:CU16)/'Raw Data'!FH21 -> 0.0317348378 | CV17: =SUM(CV15:CV16)/'Raw Data'!FI21 -> 0.02682255846 | CW17: =SUM(CW15:CW16)/'Raw Data'!FJ21 -> 0.02656042497 | CX17: =SUM(CX15:CX16)/'Raw Data'!FK21 -> 0.02115003305 | CY17: =SUM(CY15:CY16)/'Raw Data'!FL21 -> 0.01682847896 | CZ17: =SUM(CZ15:CZ16)/'Raw Data'!FM21 -> 0.02057877814 | DA17: =SUM(DA15:DA16)/'Raw Data'!FN21 -> 0.02293577982 | DB17: =SUM(DB15:DB16)/'Raw Data'!FO21 -> 0.01652346332 | DC17: =SUM(DC15:DC16)/'Raw Data'!FP21 -> 0.01520158625 | DD17: =SUM(DD15:DD16)/'Raw Data'!FQ21 -> 0.0141509434 | DE17: =SUM(DE15:DE16)/'Raw Data'!FR21 -> 0.01469605878 | DF17: =SUM(DF15:DF16)/'Raw Data'!FS21 -> 0.01652892562 | DG17: =SUM(DG15:DG16)/'Raw Data'!FT21 -> 0.02215657312 | DH17: =SUM(DH15:DH16)/'Raw Data'!FU21 -> 0.01680058437 | DI17: =SUM(DI15:DI16)/'Raw Data'!FV21 -> 0.01743375174 | DJ17: =SUM(DJ15:DJ16)/'Raw Data'!FW21 -> 0.02122015915 | DK17: =SUM(DK15:DK16)/'Raw Data'!FX21 -> 0.01671122995 | DL17: =SUM(DL15:DL16)/'Raw Data'!FY21 -> 0.01453104359 | DM17: =SUM(DM15:DM16)/'Raw Data'!FZ21 -> 0.01225323349 | DN17: =SUM(DN15:DN16)/'Raw Data'!GA21 -> 0.01708817498 | DO17: =SUM(DO15:DO16)/'Raw Data'!GB21 -> 0.01701570681 | DP17: =SUM(DP15:DP16)/'Raw Data'!GC21 -> 0.0166002656 | DQ17: =SUM(DQ15:DQ16)/'Raw Data'!GD21 -> 0.01371652515 | DR17: =SUM(DR15:DR16)/'Raw Data'!GE21 -> 0.0125082291 | DS17: =SUM(DS15:DS16)/'Raw Data'!GF21 -> 0.0159611381 | DT17: =SUM(DT15:DT16)/'Raw Data'!GG21 -> 0.01336898396 | DU17: =SUM(DU15:DU16)/'Raw Data'!GH21 -> 0.01412066752 | DV17: =SUM(DV15:DV16)/'Raw Data'!GI21 -> 0.01090248334 | DW17: =SUM(DW15:DW16)/'Raw Data'!GJ21 -> 0.01255230126 | DX17: =SUM(DX15:DX16)/'Raw Data'!GK21 -> 0.0110633067 | DY17: =SUM(DY15:DY16)/'Raw Data'!GL21 -> 0.006966434452 | DZ17: =SUM(DZ15:DZ16)/'Raw Data'!GM21 -> 0.01062416999 | EA17: =SUM(EA15:EA16)/'Raw Data'!GN21 -> 0.01334222815 | EB17: =SUM(EB15:EB16)/'Raw Data'!GO21 -> 0.006114130435 | EC17: =SUM(EC15:EC16)/'Raw Data'!GP21 -> 0.01342281879 | ED17: =SUM(ED15:ED16)/'Raw Data'!GQ21 -> 0.016 | EE17: =SUM(EE15:EE16)/'Raw Data'!GR21 -> 0.01565995526 | EF17: =SUM(EF15:EF16)/'Raw Data'!GS21 -> 0.01571856287 | EG17: =SUM(EG15:EG16)/'Raw Data'!GT21 -> 0.01203007519 | EH17: =SUM(EH15:EH16)/'Raw Data'!GU21 -> 0.0125 | EI17: =SUM(EI15:EI16)/'Raw Data'!GV21 -> 0.01737160121 | EJ17: =SUM(EJ15:EJ16)/'Raw Data'!GW21 -> 0.01924619086 | EK17: =SUM(EK15:EK16)/'Raw Data'!GX21 -> 0.01025641026 | EL17: =SUM(EL15:EL16)/'Raw Data'!GY21 -> 0.01475595914 | EM17: =SUM(EM15:EM16)/'Raw Data'!GZ21 -> 0.01383125864 | EN17: =SUM(EN15:EN16)/'Raw Data'!HA21 -> 0.01015965167 | EO17: =SUM(EO15:EO16)/'Raw Data'!HB21 -> 0.001524390244 | EP17: =SUM(EP15:EP16)/'Raw Data'!HC21 -> 0.01123595506 | EQ17: =SUM(EQ15:EQ16)/'Raw Data'!HD21 -> 0.01071428571 | ER17: =SUM(ER15:ER16)/'Raw Data'!HE21 -> 0.01118568233 | ES17: =SUM(ES15:ES16)/'Raw Data'!HF21 -> 0.01435406699 | ET17: =SUM(ET15:ET16)/'Raw Data'!HG21 -> 0.007894736842 | EU17: =SUM(EU15:EU16)/'Raw Data'!HH21 -> 0.01020408163 | EV17: =SUM(EV15:EV16)/'Raw Data'!HI21 -> 0.009950248756 | EW17: =SUM(EW15:EW16)/'Raw Data'!HJ21 -> 0.01179245283 | EX17: =SUM(EX15:EX16)/'Raw Data'!HK21 -> 0.008385744235 | EY17: =SUM(EY15:EY16)/'Raw Data'!HL21 -> 0.001996007984 | EZ17: =SUM(EZ15:EZ16)/'Raw Data'!HM21 -> 0.00826446281 | FA17: =SUM(FA15:FA16)/'Raw Data'!HN21 -> 0.009345794393 | FB17: =SUM(FB15:FB16)/'Raw Data'!HO21 -> 0 | FC17: =SUM(FC15:FC16)/'Raw Data'!HP21 -> 0.0192926045 | FD17: =SUM(FD15:FD16)/'Raw Data'!HQ21 -> 0.02112676056 | FE17: =SUM(FE15:FE16)/'Raw Data'!HR21 -> 0.01123595506 | FF17: =SUM(FF15:FF16)/'Raw Data'!HS21 -> 0.003759398496 | FG17: =SUM(FG15:FG16)/'Raw Data'!HT21 -> 0 | FH17: =SUM(FH15:FH16)/'Raw Data'!HU21 -> 0.004842615012 | FI17: =SUM(FI15:FI16)/'Raw Data'!HV21 -> 0.001890359168 | FJ17: =SUM(FJ15:FJ16)/'Raw Data'!HW21 -> 0 | FK17: =SUM(FK15:FK16)/'Raw Data'!HX21 -> 0.003649635036 | FL17: =SUM(FL15:FL16)/'Raw Data'!HY21 -> 0 | FM17: =SUM(FM15:FM16)/'Raw Data'!HZ21 -> 0.003929273084 | FN17: =SUM(FN15:FN16)/'Raw Data'!IA21 -> 0.001890359168 | FO17: =SUM(FO15:FO16)/'Raw Data'!IB21 -> 0.004395604396 | FP17: =SUM(FP15:FP16)/'Raw Data'!IC21 -> 0 | FQ17: =SUM(FQ15:FQ16)/'Raw Data'!ID21 -> 0 | FR17: =SUM(FR15:FR16)/'Raw Data'!#REF! ->  | FS17: =SUM(FS15:FS16)/'Raw Data'!IF21 -> 0.01078167116 | FT17: =SUM(FT15:FT16)/'Raw Data'!IG21 -> 0 | FU17: =SUM(FU15:FU16)/'Raw Data'!IH21 -> 0.007281553398 | FV17: =SUM(FV15:FV16)/'Raw Data'!II21 -> 0.006578947368 | FW17: =SUM(FW15:FW16)/'Raw Data'!IJ21 -> 0 | FX17: =SUM(FX15:FX16)/'Raw Data'!IK21 -> 0 | FY17: =SUM(FY15:FY16)/'Raw Data'!IL21 -> 0.003898635478 | FZ17: =SUM(FZ15:FZ16)/'Raw Data'!IM21 -> 0.003683241252 | GA17: =SUM(GA15:GA16)/'Raw Data'!IN21 -> 0.006097560976 | GB17: =SUM(GB15:GB16)/'Raw Data'!IO21 ->  | GC17: =SUM(GC15:GC16)/'Raw Data'!IP21 ->  | GD17: =SUM(GD15:GD16)/'Raw Data'!IQ21 ->  | GE17: =SUM(GE15:GE16)/'Raw Data'!IR21 ->  | GF17: =SUM(GF15:GF16)/'Raw Data'!IS21 ->  | GG17: =SUM(GG15:GG16)/'Raw Data'!IT21 ->  | GH17: =SUM(GH15:GH16)/'Raw Data'!IU21 ->  | GI17: =SUM(GI15:GI16)/'Raw Data'!IV21 ->  | GJ17: =SUM(GJ15:GJ16)/'Raw Data'!IW21 ->  | GK17: =SUM(GK15:GK16)/'Raw Data'!IX21 ->  | GL17: =SUM(GL15:GL16)/'Raw Data'!IY21 ->  | GM17: =SUM(GM15:GM16)/'Raw Data'!IZ21 -> 
B19: 2008-11-01 | C19: 2008-12-01 | D19: 2009-01-01 | E19: 2009-02-01 | F19: 2009-03-01 | G19: 2009-04-01 | H19: 2009-05-01 | I19: 2009-06-01 | J19: 2009-07-01 | K19: 2009-08-01 | L19: 2009-09-01 | M19: 2009-10-01 | N19: 2009-11-01 | O19: 2009-12-01 | P19: 2010-01-01 | Q19: 2010-02-01 | R19: 2010-03-01 | S19: 2010-04-01 | T19: 2010-05-01 | U19: 2010-06-01 | V19: 2010-07-01 | W19: 2010-08-01 | X19: 2010-09-01 | Y19: 2010-10-01 | Z19: 2010-11-01 | AA19: 2010-12-01 | AB19: 2011-01-01 | AC19: 2011-02-01 | AD19: 2011-03-01 | AE19: 2011-04-01 | AF19: 2011-05-01 | AG19: 2011-06-01 | AH19: 2011-07-01 | AI19: 2011-08-01 | AJ19: 2011-09-01 | AK19: 2011-10-01 | AL19: 2011-11-01 | AM19: 2011-12-01 | AN19: 2012-01-01 | AO19: 2012-02-01 | AP19: 2012-03-01 | AQ19: 2012-04-01 | AR19: 2012-05-01 | AS19: 2012-06-01 | AT19: 2012-07-01 | AU19: 2012-08-01 | AV19: 2012-09-01 | AW19: 2012-10-01 | AX19: 2012-11-01 | AY19: 2012-12-01 | AZ19: 2013-01-01 | BA19: 2013-02-01 | BB19: 2013-03-01 | BC19: 2013-04-01 | BD19: 2013-05-01 | BE19: 2013-06-01 | BF19: 2013-07-01 | BG19: 2013-08-01 | BH19: 2013-09-01 | BI19: 2013-10-01 | BJ19: 2013-11-01 | BK19: 2013-12-01 | BL19: 2014-01-01 | BM19: 2014-02-01 | BN19: 2014-03-01 | BO19: 2014-04-01 | BP19: 2014-05-01 | BQ19: 2014-06-01 | BR19: 2014-07-01 | BS19: 2014-08-01 | BT19: 2014-09-01 | BU19: 2014-10-01 | BV19: 2014-11-01 | BW19: 2014-12-01 | BX19: 2015-01-01 | BY19: 2015-02-01 | BZ19: 2015-03-01 | CA19: 2015-04-01 | CB19: 2015-05-01 | CC19: 2015-06-01 | CD19: 2015-07-01 | CE19: 2015-08-01 | CF19: 2015-09-01 | CG19: 2015-10-01 | CH19: 2015-11-01 | CI19: 2015-12-01 | CJ19: 2016-01-01 | CK19: 2016-02-01 | CL19: 2016-03-01 | CM19: 2016-04-01 | CN19: 2016-05-01 | CO19: 2016-06-01 | CP19: 2016-07-01 | CQ19: 2016-08-01 | CR19: 2016-09-01 | CS19: 2016-10-01 | CT19: 2016-11-01 | CU19: 2016-12-01 | CV19: 2017-01-01 | CW19: 2017-02-01 | CX19: 2017-03-01 | CY19: 2017-04-01 | CZ19: 2017-05-01 | DA19: 2017-06-01 | DB19: 2017-07-01 | DC19: 2017-08-01 | DD19: 2017-09-01 | DE19: 2017-10-01 | DF19: 2017-11-01 | DG19: 2017-12-01 | DH19: 2018-01-01 | DI19: 2018-02-01 | DJ19: 2018-03-01 | DK19: 2018-04-01 | DL19: 2018-05-01 | DM19: 2018-06-01 | DN19: 2018-07-01 | DO19: 2018-08-01 | DP19: 2018-09-01 | DQ19: 2018-10-01 | DR19: 2018-11-01 | DS19: 2018-12-01 | DT19: 2019-01-01 | DU19: 2019-02-01 | DV19: 2019-03-01 | DW19: 2019-04-01 | DX19: 2019-05-01 | DY19: 2019-06-01 | DZ19: 2019-07-01 | EA19: 2019-08-01 | EB19: 2019-09-01 | EC19: 2019-10-01 | ED19: 2019-11-01 | EE19: 2019-12-01 | EF19: 2020-01-01 | EG19: 2020-02-01 | EH19: 2020-03-01 | EI19: 2020-04-01 | EJ19: 2020-05-01 | EK19: 2020-06-01 | EL19: 2020-07-01 | EM19: 2020-08-01 | EN19: 2020-09-01 | EO19: 2020-10-01 | EP19: 2020-11-01 | EQ19: 2020-12-01 | ER19: 2021-01-01 | ES19: 2021-02-01 | ET19: 2021-03-01 | EU19: 2021-04-01 | EV19: 2021-05-01 | EW19: 2021-06-01 | EX19: 2021-07-01 | EY19: 2021-08-01 | EZ19: 2021-09-01 | FA19: 2021-10-01 | FB19: 2021-11-01 | FC19: 2021-12-01 | FD19: 2022-01-01 | FE19: 2022-02-01 | FF19: 2022-03-01 | FG19: 2022-04-01 | FH19: 2022-05-01 | FI19: 2022-06-01 | FJ19: 2022-07-01 | FK19: 2022-08-01 | FL19: 2022-09-01 | FM19: 2022-10-01 | FN19: 2022-11-01 | FO19: 2022-12-01 | FP19: 2023-01-01 | FQ19: 2023-02-01 | FR19: 2023-03-01 | FS19: 2023-04-01 | FT19: 2023-05-01 | FU19: 2023-06-01 | FV19: 2023-07-01 | FW19: 2023-08-01 | FX19: 2023-09-01 | FY19: 2023-10-01 | FZ19: 2023-11-01 | GA19: 2023-12-01 | GB19: 2024-01-01 | GC19: 2024-02-01 | GD19: 2024-03-01 | GE19: 2024-04-01 | GF19: 2024-05-01 | GG19: 2024-06-01 | GH19: 2024-07-01 | GI19: 2024-08-01 | GJ19: 2024-09-01 | GK19: 2024-10-01 | GL19: 2024-11-01 | GM19: 2024-12-01
A21: Short Sale Inventory | B21: =B15 -> 0 | C21: 0 | D21: 0 | E21: 0 | F21: 0 | G21: 0 | H21: 0 | I21: 0 | J21: 0 | K21: 0 | L21: 0 | M21: 0 | N21: 0 | O21: 0 | P21: 0 | Q21: 0 | R21: 0 | S21: 0 | T21: 0 | U21: 0 | V21: 0 | W21: 0 | X21: 0 | Y21: 0 | Z21: 0 | AA21: 0 | AB21: 0 | AC21: 0 | AD21: Short Sale Inventory | AE21: 190 | AF21: 173 | AG21: 177 | AH21: 178 | AI21: 175 | AJ21: 169 | AK21: 186 | AL21: 120 | AM21: 152 | AN21: 126 | AO21: 150 | AP21: 162 | AQ21: 160 | AR21: 161 | AS21: 153 | AT21: 145 | AU21: 129 | AV21: 127 | AW21: 132 | AX21: 132 | AY21: 134 | AZ21: 133 | BA21: 139 | BB21: 136 | BC21: 132 | BD21: 120 | BE21: 105 | BF21: 98 | BG21: 93 | BH21: 89 | BI21: 91 | BJ21: 87 | BK21: 78 | BL21: 91 | BM21: 96 | BN21: 91 | BO21: 86 | BP21: 85 | BQ21: 80 | BR21: 84 | BS21: 87 | BT21: 85 | BU21: 83 | BV21: 87 | BW21: 66 | BX21: 80 | BY21: 82 | BZ21: 82 | CA21: 74 | CB21: 57 | CC21: 54 | CD21: 52 | CE21: 46 | CF21: 46 | CG21: 46 | CH21: 39 | CI21: 35 | CJ21: 36 | CK21: 36 | CL21: 32 | CM21: 31 | CN21: 30 | CO21: 32 | CP21: 30 | CQ21: 34 | CR21: 17 | CS21: 30 | CT21: 31 | CU21: 22 | CV21: 18 | CW21: 22 | CX21: 18 | CY21: 15 | CZ21: 18 | DA21: 19 | DB21: 15 | DC21: 10 | DD21: 10 | DE21: 7 | DF21: 8 | DG21: 10 | DH21: 7 | DI21: 9 | DJ21: 13 | DK21: 8 | DL21: 7 | DM21: 4 | DN21: 9 | DO21: 12 | DP21: 10 | DQ21: 9 | DR21: 6 | DS21: 7 | DT21: 4 | DU21: 6 | DV21: 6 | DW21: 8 | DX21: 8 | DY21: 4 | DZ21: 5 | EA21: 7 | EB21: 4 | EC21: 5 | ED21: 5 | EE21: 5 | EF21: 7 | EG21: 6 | EH21: 8 | EI21: 11 | EJ21: 10 | EK21: 3 | EL21: 6 | EM21: 6 | EN21: 5 | EO21: 1 | EP21: 4 | EQ21: =EQ15 -> 3 | ER21: 4 | ES21: 5 | ET21: 3 | EU21: 3 | EV21: 2 | EW21: 2 | EX21: 2 | EY21: 1 | EZ21: 2 | FA21: 2 | FB21: 0 | FC21: 3 | FD21: =FD15 -> 2 | FE21: 0 | FF21: 1 | FG21: 0 | FH21: 0 | FI21: 0 | FJ21: 0 | FK21: 0 | FL21: 0 | FM21: 0 | FN21: 0 | FO21: 0 | FP21: 0 | FQ21: =FQ15 -> 0 | FR21: 0 | FS21: 0 | FT21: 0 | FU21: 0 | FV21: 0 | FW21: 0 | FX21: 0 | FY21: 1 | FZ21: 2 | GA21: 2 | GB21: =GB15 -> 0 | GC21: 0 | GD21: 0 | GE21: 0 | GF21: 0 | GG21: 0 | GH21: 0 | GI21: 0 | GJ21: 0 | GK21: 0 | GL21: 0 | GM21: 0
A22: Bank Owned Inventory | B22: =B16 -> 0 | C22: 0 | D22: 0 | E22: 0 | F22: 0 | G22: 0 | H22: 0 | I22: 0 | J22: 0 | K22: 0 | L22: 0 | M22: 0 | N22: 0 | O22: 0 | P22: 0 | Q22: 0 | R22: 0 | S22: 0 | T22: 0 | U22: 0 | V22: 0 | W22: 0 | X22: 0 | Y22: 0 | Z22: 0 | AA22: 0 | AB22: 0 | AC22: 0 | AD22: Bank Owned Inventory | AE22: 83 | AF22: 78 | AG22: 71 | AH22: 61 | AI22: 69 | AJ22: 60 | AK22: 65 | AL22: 62 | AM22: 85 | AN22: 75 | AO22: 78 | AP22: 74 | AQ22: 82 | AR22: 69 | AS22: 68 | AT22: 60 | AU22: 56 | AV22: 61 | AW22: 64 | AX22: 80 | AY22: 84 | AZ22: 67 | BA22: 63 | BB22: 56 | BC22: 60 | BD22: 58 | BE22: 51 | BF22: 47 | BG22: 40 | BH22: 53 | BI22: 56 | BJ22: 58 | BK22: 48 | BL22: 42 | BM22: 40 | BN22: 44 | BO22: 37 | BP22: 39 | BQ22: 41 | BR22: 40 | BS22: 47 | BT22: 46 | BU22: 36 | BV22: 30 | BW22: 32 | BX22: 32 | BY22: 28 | BZ22: 22 | CA22: 17 | CB22: 20 | CC22: 24 | CD22: 18 | CE22: 18 | CF22: 23 | CG22: 22 | CH22: 19 | CI22: 20 | CJ22: 22 | CK22: 23 | CL22: 22 | CM22: 25 | CN22: 23 | CO22: 26 | CP22: 22 | CQ22: 23 | CR22: 19 | CS22: 25 | CT22: 24 | CU22: 23 | CV22: 21 | CW22: 18 | CX22: 14 | CY22: 11 | CZ22: 14 | DA22: 16 | DB22: 10 | DC22: 13 | DD22: 11 | DE22: 15 | DF22: 16 | DG22: 20 | DH22: 16 | DI22: 16 | DJ22: 19 | DK22: 17 | DL22: 15 | DM22: 14 | DN22: 16 | DO22: 14 | DP22: 15 | DQ22: 12 | DR22: 13 | DS22: 16 | DT22: 16 | DU22: 16 | DV22: 12 | DW22: 13 | DX22: 10 | DY22: 7 | DZ22: 11 | EA22: 13 | EB22: 5 | EC22: 15 | ED22: 19 | EE22: 16 | EF22: 14 | EG22: 10 | EH22: 9 | EI22: 12 | EJ22: 14 | EK22: 7 | EL22: 7 | EM22: 4 | EN22: 2 | EO22: 0 | EP22: 3 | EQ22: =EQ16 -> 3 | ER22: 1 | ES22: 1 | ET22: 0 | EU22: 1 | EV22: 2 | EW22: 3 | EX22: 2 | EY22: 0 | EZ22: 2 | FA22: 2 | FB22: 0 | FC22: 3 | FD22: =FD16 -> 4 | FE22: 3 | FF22: 0 | FG22: 0 | FH22: 2 | FI22: 1 | FJ22: 0 | FK22: 2 | FL22: 0 | FM22: 2 | FN22: 1 | FO22: 2 | FP22: 0 | FQ22: =FQ16 -> 0 | FR22: 2 | FS22: 4 | FT22: 0 | FU22: 3 | FV22: 3 | FW22: 0 | FX22: 0 | FY22: 1 | FZ22: 0 | GA22: 1 | GB22: =GB16 -> 0 | GC22: 0 | GD22: 0 | GE22: 0 | GF22: 0 | GG22: 0 | GH22: 0 | GI22: 0 | GJ22: 0 | GK22: 0 | GL22: 0 | GM22: 0
B23: 2008-11-01 | C23: 2008-12-01 | D23: 2009-01-01 | E23: 2009-02-01 | F23: 2009-03-01 | G23: 2009-04-01 | H23: 2009-05-01 | I23: 2009-06-01 | J23: 2009-07-01 | K23: 2009-08-01 | L23: 2009-09-01 | M23: 2009-10-01 | N23: 2009-11-01 | O23: 2009-12-01 | P23: 2010-01-01 | Q23: 2010-02-01 | R23: 2010-03-01 | S23: 2010-04-01 | T23: 2010-05-01 | U23: 2010-06-01 | V23: 2010-07-01 | W23: 2010-08-01 | X23: 2010-09-01 | Y23: 2010-10-01 | Z23: 2010-11-01 | AA23: 2010-12-01 | AB23: 2011-01-01 | AC23: 2011-02-01 | AD23: 2011-03-01 | AE23: 2011-04-01 | AF23: 2011-05-01 | AG23: 2011-06-01 | AH23: 2011-07-01 | AI23: 2011-08-01 | AJ23: 2011-09-01 | AK23: 2011-10-01 | AL23: 2011-11-01 | AM23: 2011-12-01 | AN23: 2012-01-01 | AO23: 2012-02-01 | AP23: 2012-03-01 | AQ23: 2012-04-01 | AR23: 2012-05-01 | AS23: 2012-06-01 | AT23: 2012-07-01 | AU23: 2012-08-01 | AV23: 2012-09-01 | AW23: 2012-10-01 | AX23: 2012-11-01 | AY23: 2012-12-01 | AZ23: 2013-01-01 | BA23: 2013-02-01 | BB23: 2013-03-01 | BC23: 2013-04-01 | BD23: 2013-05-01 | BE23: 2013-06-01 | BF23: 2013-07-01 | BG23: 2013-08-01 | BH23: 2013-09-01 | BI23: 2013-10-01 | BJ23: 2013-11-01 | BK23: 2013-12-01 | BL23: 2014-01-01 | BM23: 2014-02-01 | BN23: 2014-03-01 | BO23: 2014-04-01 | BP23: 2014-05-01 | BQ23: 2014-06-01 | BR23: 2014-07-01 | BS23: 2014-08-01 | BT23: 2014-09-01 | BU23: 2014-10-01 | BV23: 2014-11-01 | BW23: 2014-12-01 | BX23: 2015-01-01 | BY23: 2015-02-01 | BZ23: 2015-03-01 | CA23: 2015-04-01 | CB23: 2015-05-01 | CC23: 2015-06-01 | CD23: 2015-07-01 | CE23: 2015-08-01 | CF23: 2015-09-01 | CG23: 2015-10-01 | CH23: 2015-11-01 | CI23: 2015-12-01 | CJ23: 2016-01-01 | CK23: 2016-02-01 | CL23: 2016-03-01 | CM23: 2016-04-01 | CN23: 2016-05-01 | CO23: 2016-06-01 | CP23: 2016-07-01 | CQ23: 2016-08-01 | CR23: 2016-09-01 | CS23: 2016-10-01 | CT23: 2016-11-01 | CU23: 2016-12-01 | CV23: 2017-01-01 | CW23: 2017-02-01 | CX23: 2017-03-01 | CY23: 2017-04-01 | CZ23: 2017-05-01 | DA23: 2017-06-01 | DB23: 2017-07-01 | DC23: 2017-08-01 | DD23: 2017-09-01 | DE23: 2017-10-01 | DF23: 2017-11-01 | DG23: 2017-12-01 | DH23: 2018-01-01 | DI23: 2018-02-01 | DJ23: 2018-03-01 | DK23: 2018-04-01 | DL23: 2018-05-01 | DM23: 2018-06-01 | DN23: 2018-07-01 | DO23: 2018-08-01 | DP23: 2018-09-01 | DQ23: 2018-10-01 | DR23: 2018-11-01 | DS23: 2018-12-01 | DT23: 2019-01-01 | DU23: 2019-02-01 | DV23: 2019-03-01 | DW23: 2019-04-01 | DX23: 2019-05-01 | DY23: 2019-06-01 | DZ23: 2019-07-01 | EA23: 2019-08-01 | EB23: 2019-09-01 | EC23: 2019-10-01 | ED23: 2019-11-01 | EE23: 2019-12-01 | EF23: 2020-01-01 | EG23: 2020-02-01 | EH23: 2020-03-01 | EI23: 2020-04-01 | EJ23: 2020-05-01 | EK23: 2020-06-01 | EL23: 2020-07-01 | EM23: 2020-08-01 | EN23: 2020-09-01 | EO23: 2020-10-01 | EP23: 2020-11-01 | EQ23: 2020-12-01 | ER23: 2021-01-01 | ES23: 2021-02-01 | ET23: 2021-03-01 | EU23: 2021-04-01 | EV23: 2021-05-01 | EW23: 2021-06-01 | EX23: 2021-07-01 | EY23: 2021-08-01 | EZ23: 2021-09-01 | FA23: 2021-10-01 | FB23: 2021-11-01 | FC23: 2021-12-01 | FD23: 2022-01-01 | FE23: 2022-02-01 | FF23: 2022-03-01 | FG23: 2022-04-01 | FH23: 2022-05-01 | FI23: 2022-06-01 | FJ23: 2022-07-01 | FK23: 2022-08-01 | FL23: 2022-09-01 | FM23: 2022-10-01 | FN23: 2022-11-01 | FO23: 2022-12-01 | FP23: 2023-01-01
A24: Total Distressed Inventory | B24: =B11 -> 0 | C24: 0 | D24: 0 | E24: 0 | F24: 0 | G24: 0 | H24: 0 | I24: 0 | J24: 0 | K24: 0 | L24: 0 | M24: 0 | N24: 0 | O24: 0 | P24: 0 | Q24: 0 | R24: 0 | S24: 0 | T24: 299 | U24: 294 | V24: 306 | W24: 274 | X24: 295 | Y24: 258 | Z24: 262 | AA24: 288 | AB24: 301 | AC24: 282 | AD24: 279 | AE24: 273 | AF24: 251 | AG24: 248 | AH24: 239 | AI24: 244 | AJ24: 229 | AK24: 251 | AL24: 182 | AM24: 237 | AN24: 201 | AO24: 228 | AP24: 236 | AQ24: 242 | AR24: 230 | AS24: 221 | AT24: 205 | AU24: 185 | AV24: 188 | AW24: 196 | AX24: 212 | AY24: 218 | AZ24: 200 | BA24: 202 | BB24: 192 | BC24: 192 | BD24: 178 | BE24: 156 | BF24: 145 | BG24: 133 | BH24: 142 | BI24: 147 | BJ24: 145 | BK24: 126 | BL24: 133 | BM24: 136 | BN24: 135 | BO24: 123 | BP24: 124 | BQ24: 121 | BR24: 124 | BS24: 134 | BT24: 131 | BU24: 119 | BV24: 117 | BW24: 98 | BX24: 112 | BY24: 110 | BZ24: 104 | CA24: 91 | CB24: 77 | CC24: 78 | CD24: 70 | CE24: 64 | CF24: 69 | CG24: 68 | CH24: 58 | CI24: 55 | CJ24: 58 | CK24: 59 | CL24: 54 | CM24: 56 | CN24: 53 | CO24: 58 | CP24: 52 | CQ24: 57 | CR24: 36 | CS24: 55 | CT24: 55 | CU24: 45 | CV24: 39 | CW24: 40 | CX24: 32 | CY24: 26 | CZ24: 32 | DA24: 35 | DB24: 25 | DC24: 23 | DD24: 21 | DE24: 22 | DF24: 24 | DG24: 30 | DH24: 23 | DI24: 25 | DJ24: 32 | DK24: 25 | DL24: 22 | DM24: 18 | DN24: 25 | DO24: 26 | DP24: 25 | DQ24: 21 | DR24: 19 | DS24: 23 | DT24: 20 | DU24: 22 | DV24: 18 | DW24: 21 | DX24: 18 | DY24: 11 | DZ24: 16 | EA24: 20 | EB24: 9 | EC24: 20 | ED24: 24 | EE24: 21 | EF24: 21 | EG24: 16 | EH24: 17 | EI24: 23 | EJ24: 24 | EK24: 10 | EL24: 13 | EM24: 10 | EN24: 7 | EO24: 1 | EP24: 7 | EQ24: =EQ11 -> 6 | ER24: 5 | ES24: 6 | ET24: 3 | EU24: 4 | EV24: 4 | EW24: 5 | EX24: 4 | EY24: 1 | EZ24: 4 | FA24: 4 | FB24: 0 | FC24: 6 | FD24: =FD11 -> 6 | FE24: 3 | FF24: 1 | FG24: 0 | FH24: 2 | FI24: 1 | FJ24: 0 | FK24: 2 | FL24: 0 | FM24: 2 | FN24: 1 | FO24: 2 | FP24: 0 | FQ24: =FQ11 -> 0 | FR24: 2 | FS24: 4 | FT24: 0 | FU24: 3 | FV24: 3 | FW24: 0 | FX24: 0 | FY24: 2 | FZ24: 2 | GA24: 3 | GB24: =GB11 -> 0 | GC24: 0 | GD24: 0 | GE24: 0 | GF24: 0 | GG24: 0 | GH24: 0 | GI24: 0 | GJ24: 0 | GK24: 0 | GL24: 0 | GM24: 0
A25: Total Distressed Sold | B25: =B10 -> 8 | C25: 13 | D25: 7 | E25: 25 | F25: 26 | G25: 24 | H25: 26 | I25: 29 | J25: 29 | K25: 16 | L25: 24 | M25: 33 | N25: 27 | O25: 57 | P25: 34 | Q25: 27 | R25: 43 | S25: 58 | T25: 52 | U25: 54 | V25: 41 | W25: 40 | X25: 50 | Y25: 35 | Z25: 41 | AA25: 49 | AB25: 34 | AC25: 41 | AD25: 54 | AE25: 51 | AF25: 55 | AG25: 52 | AH25: 49 | AI25: 30 | AJ25: 36 | AK25: 34 | AL25: 22 | AM25: 33 | AN25: 28 | AO25: 49 | AP25: 40 | AQ25: 31 | AR25: 49 | AS25: 37 | AT25: 38 | AU25: 50 | AV25: 49 | AW25: 34 | AX25: 37 | AY25: 35 | AZ25: 32 | BA25: 39 | BB25: 44 | BC25: 37 | BD25: 40 | BE25: 33 | BF25: 43 | BG25: 32 | BH25: 24 | BI25: 15 | BJ25: 9 | BK25: 34 | BL25: 19 | BM25: 23 | BN25: 20 | BO25: 24 | BP25: 31 | BQ25: 18 | BR25: 19 | BS25: 18 | BT25: 24 | BU25: 18 | BV25: 12 | BW25: 26 | BX25: 17 | BY25: 16 | BZ25: 19 | CA25: 10 | CB25: 18 | CC25: 20 | CD25: 21 | CE25: 11 | CF25: 12 | CG25: 7 | CH25: 14 | CI25: 13 | CJ25: 10 | CK25: 9 | CL25: 9 | CM25: 10 | CN25: 10 | CO25: 11 | CP25: 9 | CQ25: 9 | CR25: 4 | CS25: 8 | CT25: 12 | CU25: 11 | CV25: 14 | CW25: 10 | CX25: 10 | CY25: 6 | CZ25: 14 | DA25: 11 | DB25: 6 | DC25: 5 | DD25: 9 | DE25: 13 | DF25: 4 | DG25: 6 | DH25: 4 | DI25: 4 | DJ25: 13 | DK25: 5 | DL25: 6 | DM25: 6 | DN25: 3 | DO25: 11 | DP25: 4 | DQ25: 4 | DR25: 7 | DS25: 8 | DT25: 2 | DU25: 2 | DV25: 6 | DW25: 6 | DX25: 7 | DY25: 2 | DZ25: 6 | EA25: 5 | EB25: 7 | EC25: 5 | ED25: 4 | EE25: 3 | EF25: 9 | EG25: 8 | EH25: 8 | EI25: 4 | EJ25: 5 | EK25: 9 | EL25: 3 | EM25: 5 | EN25: 3 | EO25: 5 | EP25: 2 | EQ25: =EQ10 -> 3 | ER25: 4 | ES25: 1 | ET25: 4 | EU25: 2 | EV25: 1 | EW25: 3 | EX25: 2 | EY25: 5 | EZ25: 0 | FA25: 1 | FB25: 2 | FC25: 1 | FD25: =FD10 -> 3 | FE25: 1 | FF25: 3 | FG25: 1 | FH25: 0 | FI25: 0 | FJ25: 2 | FK25: 1 | FL25: 0 | FM25: 1 | FN25: 1 | FO25: 1 | FP25: 0 | FQ25: =FQ10 -> 1 | FR25: 1 | FS25: 3 | FT25: 1 | FU25: 3 | FV25: 1 | FW25: 2 | FX25: 1 | FY25: 0 | FZ25: 1 | GA25: 1 | GB25: =GB10 -> 0 | GC25: 0 | GD25: 0 | GE25: 0 | GF25: 0 | GG25: 0 | GH25: 0 | GI25: 0 | GJ25: 0 | GK25: 0 | GL25: 0 | GM25: 0
A28: Total Distressed Inventory | GB28: Jan | GC28: Feb | GD28: Mar | GE28: Apr | GF28: May | GG28: Jun | GH28: Jul | GI28: Aug | GJ28: Sep | GK28: Oct | GL28: Nov | GM28: Dec
GA29: 2024
GA30: 2023 | GB30: =FP24 -> 0 | GC30: 0 | GD30: 2 | GE30: 4 | GF30: 0 | GG30: 3 | GH30: 3 | GI30: 0 | GJ30: 0 | GK30: 2 | GL30: 2 | GM30: 3
GA31: 2022 | GB31: =FD24 -> 6 | GC31: 3 | GD31: 1 | GE31: 0 | GF31: 2 | GG31: 1 | GH31: 0 | GI31: 2 | GJ31: 0 | GK31: 2 | GL31: 1 | GM31: 2
GA32: 2021 | GB32: =ER24 -> 5 | GC32: 6 | GD32: 3 | GE32: 4 | GF32: 4 | GG32: 5 | GH32: 4 | GI32: 1 | GJ32: 4 | GK32: 4 | GL32: 0 | GM32: 6
GA33: 2020 | GB33: =EF24 -> 21 | GC33: 16 | GD33: 17 | GE33: 23 | GF33: 24 | GG33: 10 | GH33: 13 | GI33: 10 | GJ33: 7 | GK33: 1 | GL33: 7 | GM33: 6
GA34: 2019 | GB34: =DT24 -> 20 | GC34: 22 | GD34: 18 | GE34: 21 | GF34: 18 | GG34: 11 | GH34: 16 | GI34: 20 | GJ34: 9 | GK34: 20 | GL34: 24 | GM34: 21
GA35: 2018 | GB35: =DH24 -> 23 | GC35: 25 | GD35: 32 | GE35: 25 | GF35: 22 | GG35: 18 | GH35: 25 | GI35: 26 | GJ35: 25 | GK35: 21 | GL35: 19 | GM35: 23
GA36: 2017 | GB36: =CV24 -> 39 | GC36: 40 | GD36: 32 | GE36: 26 | GF36: 32 | GG36: 35 | GH36: 25 | GI36: 23 | GJ36: 21 | GK36: 22 | GL36: 24 | GM36: 30
GA37: 2016 | GB37: =CJ24 -> 58 | GC37: 59 | GD37: 54 | GE37: 56 | GF37: 53 | GG37: 58 | GH37: 52 | GI37: 57 | GJ37: 36 | GK37: 55 | GL37: 55 | GM37: 45
GA38: 2015 | GB38: =BX24 -> 112 | GC38: 110 | GD38: 104 | GE38: 91 | GF38: 77 | GG38: 78 | GH38: 70 | GI38: 64 | GJ38: 69 | GK38: 68 | GL38: 58 | GM38: 55
A42: Total Distressed Sold | GB42: Jan | GC42: Feb | GD42: Mar | GE42: Apr | GF42: May | GG42: Jun | GH42: Jul | GI42: Aug | GJ42: Sep | GK42: Oct | GL42: Nov | GM42: Dec
GA43: 2024
GA44: 2023 | GB44: =FP25 -> 0 | GC44: 1 | GD44: 1 | GE44: 3 | GF44: 1 | GG44: 3 | GH44: 1 | GI44: 2 | GJ44: 1 | GK44: 0 | GL44: 1 | GM44: 1
GA45: 2022 | GB45: =FD25 -> 3 | GC45: 1 | GD45: 3 | GE45: 1 | GF45: 0 | GG45: 0 | GH45: 2 | GI45: 1 | GJ45: 0 | GK45: 1 | GL45: 1 | GM45: 1
GA46: 2021 | GB46: =ER25 -> 4 | GC46: 1 | GD46: 4 | GE46: 2 | GF46: 1 | GG46: 3 | GH46: 2 | GI46: 5 | GJ46: 0 | GK46: 1 | GL46: 2 | GM46: 1
GA47: 2020 | GB47: =EF25 -> 9 | GC47: 8 | GD47: 8 | GE47: 4 | GF47: 5 | GG47: 9 | GH47: 3 | GI47: 5 | GJ47: 3 | GK47: 5 | GL47: 2 | GM47: 3
FM48: 2019 | FN48: =DT25 -> 2 | FO48: 2 | FP48: 6 | FQ48: 6 | FR48: 7 | FS48: 2 | FT48: 6 | FU48: 5 | FV48: 7 | FW48: 5 | FX48: 4 | FY48: 3
FM49: 2018 | FN49: =DH25 -> 4 | FO49: 4 | FP49: 13 | FQ49: 5 | FR49: 6 | FS49: 6 | FT49: 3 | FU49: 11 | FV49: 4 | FW49: 4 | FX49: 7 | FY49: 8
FM50: 2017 | FN50: =CV25 -> 14 | FO50: 10 | FP50: 10 | FQ50: 6 | FR50: 14 | FS50: 11 | FT50: 6 | FU50: 5 | FV50: 9 | FW50: 13 | FX50: 4 | FY50: 6
FM51: 2016 | FN51: =CJ25 -> 10 | FO51: 9 | FP51: 9 | FQ51: 10 | FR51: 10 | FS51: 11 | FT51: 9 | FU51: 9 | FV51: 4 | FW51: 8 | FX51: 12 | FY51: 11
FM52: 2015 | FN52: =BX25 -> 17 | FO52: 16 | FP52: 19 | FQ52: 10 | FR52: 18 | FS52: 20 | FT52: 21 | FU52: 11 | FV52: 12 | FW52: 7 | FX52: 14 | FY52: 13
GG58: Distressed Sale Inventory | GK58: Distressed Sales
GG59: Month / Year | GH59: Count | GI59: %Chg | GK59: Month / Year | GL59: Count | GM59: %Chg
GG60: Dec'23 | GH60: =GM30 -> 3 | GI60: 4 | GK60: Dec'23 | GL60: =GM44 -> 1 | GM60: =SUM(GL61-GL60)/GL61*-1 -> 0
GG61: Dec'22 | GH61: =GM31 -> 2 | GI61: =-FZ67 -> 0 | GK61: Dec'22 | GL61: =GM45 -> 1 | GM61: =SUM(GL62-GL61)/GL62*-1 -> 0
GG62: Dec'21 | GH62: =GM32 -> 6 | GI62: =SUM(GH63-GH62)/GH63*-1 -> 0 | GK62: Dec'21 | GL62: =GM46 -> 1 | GM62: =SUM(GL63-GL62)/GL63*-1 -> -0.6666666667
GG63: Dec'20 | GH63: =GM33 -> 6 | GK63: Dec'20 | GL63: =GM47 -> 3
GK66: Yearly Distressed Sales
GK67: Month / Year | GL67: Count | GM67: %Chg
GK68: 2023 | GL68: =SUM(GB44:GM44) -> 15 | GM68: =SUM(GL69-GL68)/GL69*-1 -> 0.07142857143
GK69: 2022 | GL69: =SUM(GB45:GM45) -> 14 | GM69: =SUM(GL70-GL69)/GL70*-1 -> -0.4615384615
GK70: 2021 | GL70: =SUM(GB46:GM46) -> 26 | GM70: =SUM(GL71-GL70)/GL71*-1 -> -0.59375
GK71: 2020 | GL71: =SUM(GB47:GM47) -> 64

Sheet Residential
B1: ='Raw Data'!P44 -> 00:00:00 | C1: ='Raw Data'!Q44 -> 00:00:00 | D1: ='Raw Data'!R44 -> 00:00:00 | E1: ='Raw Data'!S44 -> 00:00:00 | F1: ='Raw Data'!T44 -> 00:00:00 | G1: ='Raw Data'!U44 -> 2005-01-01 | H1: ='Raw Data'!V44 -> 2005-02-01 | I1: ='Raw Data'!W44 -> 2005-03-01 | J1: ='Raw Data'!X44 -> 2005-04-01 | K1: ='Raw Data'!Y44 -> 2005-05-01 | L1: ='Raw Data'!Z44 -> 2005-06-01 | M1: ='Raw Data'!AA44 -> 2005-07-01 | N1: ='Raw Data'!AB44 -> 2005-08-01 | O1: ='Raw Data'!AC44 -> 2005-09-01 | P1: ='Raw Data'!AD44 -> 2005-10-01 | Q1: ='Raw Data'!AE44 -> 2005-11-01 | R1: ='Raw Data'!AF44 -> 2005-12-01 | S1: ='Raw Data'!AG44 -> 2006-01-01 | T1: ='Raw Data'!AH44 -> 2006-02-01 | U1: ='Raw Data'!AI44 -> 2006-03-01 | V1: ='Raw Data'!AJ44 -> 2006-04-01 | W1: ='Raw Data'!AK44 -> 2006-05-01 | X1: ='Raw Data'!AL44 -> 2006-06-01 | Y1: ='Raw Data'!AM44 -> 2006-07-01 | Z1: ='Raw Data'!AN44 -> 2006-08-01 | AA1: ='Raw Data'!AO44 -> 2006-09-01 | AB1: ='Raw Data'!AP44 -> 2006-10-01 | AC1: ='Raw Data'!AQ44 -> 2006-11-01 | AD1: ='Raw Data'!AR44 -> 2006-12-01 | AE1: ='Raw Data'!AS44 -> 2007-01-01 | AF1: ='Raw Data'!AT44 -> 2007-02-01 | AG1: ='Raw Data'!AU44 -> 2007-03-01 | AH1: ='Raw Data'!AV44 -> 2007-04-01 | AI1: ='Raw Data'!AW44 -> 2007-05-01 | AJ1: ='Raw Data'!AX44 -> 2007-06-01 | AK1: ='Raw Data'!AY44 -> 2007-07-01 | AL1: ='Raw Data'!AZ44 -> 2007-08-01 | AM1: ='Raw Data'!BA44 -> 2007-09-01 | AN1: ='Raw Data'!BB44 -> 2007-10-01 | AO1: ='Raw Data'!BC44 -> 2007-11-01 | AP1: ='Raw Data'!BD44 -> 2007-12-01 | AQ1: ='Raw Data'!BE44 -> 2008-01-01 | AR1: ='Raw Data'!BF44 -> 2008-02-01 | AS1: ='Raw Data'!BG44 -> 2008-03-03 | AT1: ='Raw Data'!BH44 -> 2008-04-01 | AU1: ='Raw Data'!BI44 -> 2008-05-01 | AV1: ='Raw Data'!BJ44 -> 2008-06-01 | AW1: ='Raw Data'!BK44 -> 2008-07-01 | AX1: ='Raw Data'!BL44 -> 2008-08-01 | AY1: ='Raw Data'!BM44 -> 2008-09-01 | AZ1: ='Raw Data'!BN44 -> 2008-10-08 | BA1: ='Raw Data'!BO44 -> 2008-11-14 | BB1: ='Raw Data'!BP44 -> 2008-12-21 | BC1: ='Raw Data'!BQ44 -> 2009-01-27 | BD1: ='Raw Data'!BR44 -> 2009-02-09 | BE1: ='Raw Data'!BS44 -> 2009-03-09 | BF1: ='Raw Data'!BT44 -> 2009-04-09 | BG1: ='Raw Data'!BU44 -> 2009-05-09 | BH1: ='Raw Data'!BV44 -> 2009-06-09 | BI1: ='Raw Data'!BW44 -> 2009-07-09 | BJ1: ='Raw Data'!BX44 -> 2009-08-09 | BK1: ='Raw Data'!BY44 -> 2009-09-09 | BL1: ='Raw Data'!BZ44 -> 2009-10-09 | BM1: ='Raw Data'!CA44 -> 2009-11-09 | BN1: ='Raw Data'!CB44 -> 2009-12-09 | BO1: ='Raw Data'!CC44 -> 2010-01-09 | BP1: ='Raw Data'!CD44 -> 2010-02-09 | BQ1: ='Raw Data'!CE44 -> 2010-03-09 | BR1: ='Raw Data'!CF44 -> 2010-04-09 | BS1: ='Raw Data'!CG44 -> 2010-05-09 | BT1: ='Raw Data'!CH44 -> 2010-06-09 | BU1: ='Raw Data'!CI44 -> 2010-07-09 | BV1: ='Raw Data'!CJ44 -> 2010-08-09 | BW1: ='Raw Data'!CK44 -> 2010-09-09 | BX1: ='Raw Data'!CL44 -> 2010-10-09 | BY1: ='Raw Data'!CM44 -> 2010-11-09 | BZ1: ='Raw Data'!CN44 -> 2010-12-09 | CA1: ='Raw Data'!CO44 -> 2011-01-09 | CB1: ='Raw Data'!CP44 -> 2011-02-09 | CC1: ='Raw Data'!CQ44 -> 2011-03-09 | CD1: ='Raw Data'!CR44 -> 2011-04-09 | CE1: ='Raw Data'!CS44 -> 2011-05-09 | CF1: ='Raw Data'!CT44 -> 2011-06-09 | CG1: ='Raw Data'!CU44 -> 2011-07-09 | CH1: ='Raw Data'!CV44 -> 2011-08-09 | CI1: ='Raw Data'!CW44 -> 2011-09-09 | CJ1: ='Raw Data'!CX44 -> 2011-10-09 | CK1: ='Raw Data'!CY44 -> 2011-11-09 | CL1: ='Raw Data'!CZ44 -> 2011-12-09 | CM1: ='Raw Data'!DA44 -> 2012-01-09 | CN1: ='Raw Data'!DB44 -> 2012-02-09 | CO1: ='Raw Data'!DC44 -> 2012-03-09 | CP1: ='Raw Data'!DD44 -> 2012-04-09 | CQ1: ='Raw Data'!DE44 -> 2012-05-09 | CR1: ='Raw Data'!DF44 -> 2012-06-09 | CS1: ='Raw Data'!DG44 -> 2012-07-09 | CT1: ='Raw Data'!DH44 -> 2012-08-09 | CU1: ='Raw Data'!DI44 -> 2012-09-09 | CV1: ='Raw Data'!DJ44 -> 2012-10-09 | CW1: ='Raw Data'!DK44 -> 2012-11-09 | CX1: ='Raw Data'!DL44 -> 2012-12-09 | CY1: ='Raw Data'!DM44 -> 2013-01-09 | CZ1: ='Raw Data'!DN44 -> 2013-02-09 | DA1: ='Raw Data'!DO44 -> 2013-03-09 | DB1: ='Raw Data'!DP44 -> 2013-04-09 | DC1: ='Raw Data'!DQ44 -> 2013-05-09 | DD1: ='Raw Data'!DR44 -> 2013-06-09 | DE1: ='Raw Data'!DS44 -> 2013-07-09 | DF1: ='Raw Data'!DT44 -> 2013-08-09 | DG1: ='Raw Data'!DU44 -> 2013-09-09 | DH1: ='Raw Data'!DV44 -> 2013-10-09 | DI1: ='Raw Data'!DW44 -> 2013-11-09 | DJ1: ='Raw Data'!DX44 -> 2013-12-09 | DK1: ='Raw Data'!DY44 -> 2014-01-09 | DL1: ='Raw Data'!DZ44 -> 2014-02-09 | DM1: ='Raw Data'!EA44 -> 2014-03-09 | DN1: ='Raw Data'!EB44 -> 2014-04-09 | DO1: ='Raw Data'!EC44 -> 2014-05-09 | DP1: ='Raw Data'!ED44 -> 2014-06-09 | DQ1: ='Raw Data'!EE44 -> 2014-07-09 | DR1: ='Raw Data'!EF44 -> 2014-08-09 | DS1: ='Raw Data'!EG44 -> 2014-09-09 | DT1: ='Raw Data'!EH44 -> 2014-10-09 | DU1: ='Raw Data'!EI44 -> 2014-11-09 | DV1: ='Raw Data'!EJ44 -> 2014-12-09 | DW1: ='Raw Data'!EK44 -> 2015-01-09 | DX1: ='Raw Data'!EL44 -> 2015-02-09 | DY1: ='Raw Data'!EM44 -> 2015-03-09 | DZ1: ='Raw Data'!EN44 -> 2015-04-09 | EA1: ='Raw Data'!EO44 -> 2015-05-09 | EB1: ='Raw Data'!EP44 -> 2015-06-09 | EC1: ='Raw Data'!EQ44 -> 2015-07-09 | ED1: ='Raw Data'!ER44 -> 2015-08-09 | EE1: ='Raw Data'!ES44 -> 2015-09-09 | EF1: ='Raw Data'!ET44 -> 2015-10-09 | EG1: ='Raw Data'!EU44 -> 2015-11-09 | EH1: ='Raw Data'!EV44 -> 2015-12-09 | EI1: ='Raw Data'!EW44 -> 2016-01-09 | EJ1: ='Raw Data'!EX44 -> 2016-02-09 | EK1: ='Raw Data'!EY44 -> 2016-03-09 | EL1: ='Raw Data'!EZ44 -> 2016-04-09 | EM1: ='Raw Data'!FA44 -> 2016-05-09 | EN1: ='Raw Data'!FB44 -> 2016-06-09 | EO1: ='Raw Data'!FC44 -> 2016-07-09 | EP1: ='Raw Data'!FD44 -> 2016-08-09 | EQ1: ='Raw Data'!FE44 -> 2016-09-09 | ER1: ='Raw Data'!FF44 -> 2016-10-09 | ES1: ='Raw Data'!FG44 -> 2016-11-09 | ET1: ='Raw Data'!FH44 -> 2016-12-09 | EU1: ='Raw Data'!FI44 -> 2017-01-09 | EV1: ='Raw Data'!FJ44 -> 2017-02-09 | EW1: ='Raw Data'!FK44 -> 2017-03-09 | EX1: ='Raw Data'!FL44 -> 2017-04-09 | EY1: ='Raw Data'!FM44 -> 2017-05-09 | EZ1: ='Raw Data'!FN44 -> 2017-06-09 | FA1: ='Raw Data'!FO44 -> 2017-07-09 | FB1: ='Raw Data'!FP44 -> 2017-08-09 | FC1: ='Raw Data'!FQ44 -> 2017-09-09 | FD1: ='Raw Data'!FR44 -> 2017-10-09 | FE1: ='Raw Data'!FS44 -> 2017-11-09 | FF1: ='Raw Data'!FT44 -> 2017-12-09 | FG1: ='Raw Data'!FU44 -> 2018-01-09 | FH1: ='Raw Data'!FV44 -> 2018-02-09 | FI1: ='Raw Data'!FW44 -> 2018-03-09 | FJ1: ='Raw Data'!FX44 -> 2018-04-09 | FK1: ='Raw Data'!FY44 -> 2018-05-09 | FL1: ='Raw Data'!FZ44 -> 2018-06-09 | FM1: ='Raw Data'!GA44 -> 2018-07-09 | FN1: ='Raw Data'!GB44 -> 2018-08-09 | FO1: ='Raw Data'!GC44 -> 2018-09-09 | FP1: ='Raw Data'!GD44 -> 2018-10-09 | FQ1: ='Raw Data'!GE44 -> 2018-11-09 | FR1: ='Raw Data'!GF44 -> 2018-12-09 | FS1: ='Raw Data'!GG44 -> 2019-01-09 | FT1: ='Raw Data'!GH44 -> 2019-02-09 | FU1: ='Raw Data'!GI44 -> 2019-03-09 | FV1: ='Raw Data'!GJ44 -> 2019-04-09 | FW1: ='Raw Data'!GK44 -> 2019-05-09 | FX1: ='Raw Data'!GL44 -> 2019-06-09 | FY1: ='Raw Data'!GM44 -> 2019-07-09 | FZ1: ='Raw Data'!GN44 -> 2019-08-09 | GA1: ='Raw Data'!GO44 -> 2019-09-09 | GB1: ='Raw Data'!GP44 -> 2019-10-09 | GC1: ='Raw Data'!GQ44 -> 2019-11-09 | GD1: ='Raw Data'!GR44 -> 2019-12-09 | GE1: ='Raw Data'!GS44 -> 2020-01-09 | GF1: ='Raw Data'!GT44 -> 2020-02-09 | GG1: ='Raw Data'!GU44 -> 2020-03-09 | GH1: ='Raw Data'!GV44 -> 2020-04-09 | GI1: ='Raw Data'!GW44 -> 2020-05-09 | GJ1: ='Raw Data'!GX44 -> 2020-06-09 | GK1: ='Raw Data'!GY44 -> 2020-07-09 | GL1: ='Raw Data'!GZ44 -> 2020-08-09 | GM1: ='Raw Data'!HA44 -> 2020-09-09 | GN1: ='Raw Data'!HB44 -> 2020-10-09 | GO1: ='Raw Data'!HC44 -> 2020-11-09 | GP1: ='Raw Data'!HD44 -> 2020-12-09 | GQ1: ='Raw Data'!HE44 -> 2021-01-09 | GR1: ='Raw Data'!HF44 -> 2021-02-09 | GS1: 2021-03-21 | GT1: 2021-04-21 | GU1: 2021-05-21 | GV1: 2021-06-21 | GW1: 2021-07-21 | GX1: 2021-08-21 | GY1: 2021-09-21 | GZ1: 2021-10-21 | HA1: 2021-11-21 | HB1: 2021-12-21 | HC1: 2022-01-21 | HD1: 2022-02-21 | HE1: 2022-03-21 | HF1: 2022-04-21 | HG1: 2022-05-21 | HH1: 2022-06-21 | HI1: 2022-07-21 | HJ1: 2022-08-21 | HK1: 2022-09-21 | HL1: 2022-10-21 | HM1: 2022-11-21 | HN1: 2022-12-21 | HO1: 2023-01-21 | HP1: 2023-02-21 | HQ1: 2023-03-21 | HR1: 2023-04-21 | HS1: 2023-05-21 | HT1: 2023-06-21 | HU1: 2023-07-21 | HV1: 2023-08-21 | HW1: 2023-09-21 | HX1: 2023-10-21 | HY1: 2023-11-21 | HZ1: 2023-12-21 | IA1: 2024-01-21 | IB1: 2024-02-21 | IC1: 2024-03-21 | ID1: 2024-04-21 | IE1: 2024-05-21 | IF1: 2024-06-21 | IG1: 2024-07-21 | IH1: 2024-08-21 | II1: 2024-09-21 | IJ1: 2024-10-21 | IK1: 2024-11-21 | IL1: 2024-12-21 | IM1: 2025-01-21 | IN1: 2025-02-21 | IO1: 2025-03-21 | IP1: 2025-04-21 | IQ1: 2025-05-21 | IR1: 2025-06-21 | IS1: 2025-07-21 | IT1: 2025-08-21 | IU1: 2025-09-21 | IV1: 2025-10-21 | IW1: 2025-11-21 | IX1: 2025-12-21
A2: ='Raw Data'!A45 -> Residential | B2: ='Raw Data'!P45 -> 0 | C2: ='Raw Data'!Q45 -> 0 | D2: ='Raw Data'!R45 -> 0 | E2: ='Raw Data'!S45 -> 0 | F2: ='Raw Data'!T45 -> 2357 | G2: ='Raw Data'!U45 -> 149 | H2: ='Raw Data'!V45 -> 119 | I2: ='Raw Data'!W45 -> 190 | J2: ='Raw Data'!X45 -> 208 | K2: ='Raw Data'!Y45 -> 286 | L2: ='Raw Data'!Z45 -> 234 | M2: ='Raw Data'!AA45 -> 167 | N2: ='Raw Data'!AB45 -> 178 | O2: ='Raw Data'!AC45 -> 177 | P2: ='Raw Data'!AD45 -> 162 | Q2: ='Raw Data'!AE45 -> 126 | R2: ='Raw Data'!AF45 -> 108 | S2: ='Raw Data'!AG45 -> 97 | T2: ='Raw Data'!AH45 -> 93 | U2: ='Raw Data'!AI45 -> 122 | V2: ='Raw Data'!AJ45 -> 118 | W2: ='Raw Data'!AK45 -> 151 | X2: ='Raw Data'!AL45 -> 117 | Y2: ='Raw Data'!AM45 -> 83 | Z2: ='Raw Data'!AN45 -> 106 | AA2: ='Raw Data'!AO45 -> 93 | AB2: ='Raw Data'!AP45 -> 119 | AC2: ='Raw Data'!AQ45 -> 81 | AD2: ='Raw Data'!AR45 -> 89 | AE2: ='Raw Data'!AS45 -> 76 | AF2: ='Raw Data'!AT45 -> 103 | AG2: ='Raw Data'!AU45 -> 100 | AH2: ='Raw Data'!AV45 -> 119 | AI2: ='Raw Data'!AW45 -> 137 | AJ2: ='Raw Data'!AX45 -> 117 | AK2: ='Raw Data'!AY45 -> 103 | AL2: ='Raw Data'!AZ45 -> 106 | AM2: ='Raw Data'!BA45 -> 104 | AN2: ='Raw Data'!BB45 -> 95 | AO2: ='Raw Data'!BC45 -> 93 | AP2: ='Raw Data'!BD45 -> 82 | AQ2: ='Raw Data'!BE45 -> 57 | AR2: ='Raw Data'!BF45 -> 75 | AS2: ='Raw Data'!BG45 -> 96 | AT2: ='Raw Data'!BH45 -> 92 | AU2: ='Raw Data'!BI45 -> 111 | AV2: ='Raw Data'!BJ45 -> 110 | AW2: ='Raw Data'!BK45 -> 94 | AX2: ='Raw Data'!BL45 -> 103 | AY2: ='Raw Data'!BM45 -> 93 | AZ2: ='Raw Data'!BN45 -> 85 | BA2: ='Raw Data'!BO45 -> 60 | BB2: ='Raw Data'!BP45 -> 69 | BC2: ='Raw Data'!BQ45 -> 42 | BD2: ='Raw Data'!BR45 -> 68 | BE2: ='Raw Data'!BS45 -> 84 | BF2: ='Raw Data'!BT45 -> 81 | BG2: ='Raw Data'!BU45 -> 111 | BH2: ='Raw Data'!BV45 -> 114 | BI2: ='Raw Data'!BW45 -> 105 | BJ2: ='Raw Data'!BX45 -> 105 | BK2: ='Raw Data'!BY45 -> 104 | BL2: ='Raw Data'!BZ45 -> 106 | BM2: ='Raw Data'!CA45 -> 106 | BN2: ='Raw Data'!CB45 -> 100 | BO2: ='Raw Data'!CC45 -> 86 | BP2: ='Raw Data'!CD45 -> 72 | BQ2: ='Raw Data'!CE45 -> 113 | BR2: ='Raw Data'!CF45 -> 136 | BS2: ='Raw Data'!CG45 -> 151 | BT2: ='Raw Data'!CH45 -> 137 | BU2: ='Raw Data'!CI45 -> 125 | BV2: ='Raw Data'!CJ45 -> 99 | BW2: ='Raw Data'!CK45 -> 109 | BX2: ='Raw Data'!CL45 -> 115 | BY2: ='Raw Data'!CM45 -> 106 | BZ2: ='Raw Data'!CN45 -> 125 | CA2: ='Raw Data'!CO45 -> 83 | CB2: ='Raw Data'!CP45 -> 87 | CC2: ='Raw Data'!CQ45 -> 130 | CD2: ='Raw Data'!CR45 -> 137 | CE2: ='Raw Data'!CS45 -> 124 | CF2: ='Raw Data'!CT45 -> 142 | CG2: ='Raw Data'!CU45 -> 127 | CH2: ='Raw Data'!CV45 -> 105 | CI2: ='Raw Data'!CW45 -> 113 | CJ2: ='Raw Data'!CX45 -> 109 | CK2: ='Raw Data'!CY45 -> 74 | CL2: ='Raw Data'!CZ45 -> 102 | CM2: ='Raw Data'!DA45 -> 94 | CN2: ='Raw Data'!DB45 -> 112 | CO2: ='Raw Data'!DC45 -> 171 | CP2: ='Raw Data'!DD45 -> 131 | CQ2: ='Raw Data'!DE45 -> 165 | CR2: ='Raw Data'!DF45 -> 146 | CS2: ='Raw Data'!DG45 -> 121 | CT2: ='Raw Data'!DH45 -> 125 | CU2: ='Raw Data'!DI45 -> 146 | CV2: ='Raw Data'!DJ45 -> 134 | CW2: ='Raw Data'!DK45 -> 129 | CX2: ='Raw Data'!DL45 -> 109 | CY2: ='Raw Data'!DM45 -> 89 | CZ2: ='Raw Data'!DN45 -> 91 | DA2: ='Raw Data'!DO45 -> 136 | DB2: ='Raw Data'!DP45 -> 168 | DC2: ='Raw Data'!DQ45 -> 157 | DD2: ='Raw Data'!DR45 -> 150 | DE2: ='Raw Data'!DS45 -> 161 | DF2: ='Raw Data'!DT45 -> 136 | DG2: ='Raw Data'!DU45 -> 127 | DH2: ='Raw Data'!DV45 -> 114 | DI2: ='Raw Data'!DW45 -> 115 | DJ2: ='Raw Data'!DX45 -> 125 | DK2: ='Raw Data'!DY45 -> 106 | DL2: ='Raw Data'!DZ45 -> 88 | DM2: ='Raw Data'!EA45 -> 115 | DN2: ='Raw Data'!EB45 -> 149 | DO2: ='Raw Data'!EC45 -> 192 | DP2: ='Raw Data'!ED45 -> 147 | DQ2: ='Raw Data'!EE45 -> 122 | DR2: ='Raw Data'!EF45 -> 127 | DS2: ='Raw Data'!EG45 -> 142 | DT2: ='Raw Data'!EH45 -> 144 | DU2: ='Raw Data'!EI45 -> 118 | DV2: ='Raw Data'!EJ45 -> 157 | DW2: ='Raw Data'!EK45 -> 96 | DX2: ='Raw Data'!EL45 -> 105 | DY2: ='Raw Data'!EM45 -> 140 | DZ2: ='Raw Data'!EN45 -> 153 | EA2: ='Raw Data'!EO45 -> 202 | EB2: ='Raw Data'!EP45 -> 185 | EC2: ='Raw Data'!EQ45 -> 171 | ED2: ='Raw Data'!ER45 -> 146 | EE2: ='Raw Data'!ES45 -> 143 | EF2: ='Raw Data'!ET45 -> 159 | EG2: ='Raw Data'!EU45 -> 143 | EH2: ='Raw Data'!EV45 -> 148 | EI2: ='Raw Data'!EW45 -> 111 | EJ2: ='Raw Data'!EX45 -> 92 | EK2: ='Raw Data'!EY45 -> 138 | EL2: ='Raw Data'!EZ45 -> 158 | EM2: ='Raw Data'!FA45 -> 175 | EN2: ='Raw Data'!FB45 -> 185 | EO2: ='Raw Data'!FC45 -> 155 | EP2: ='Raw Data'!FD45 -> 159 | EQ2: ='Raw Data'!FE45 -> 159 | ER2: ='Raw Data'!FF45 -> 145 | ES2: ='Raw Data'!FG45 -> 140 | ET2: ='Raw Data'!FH45 -> 173 | EU2: ='Raw Data'!FI45 -> 112 | EV2: ='Raw Data'!FJ45 -> 129 | EW2: ='Raw Data'!FK45 -> 180 | EX2: ='Raw Data'!FL45 -> 180 | EY2: ='Raw Data'!FM45 -> 203 | EZ2: ='Raw Data'!FN45 -> 218 | FA2: ='Raw Data'!FO45 -> 136 | FB2: ='Raw Data'!FP45 -> 171 | FC2: ='Raw Data'!FQ45 -> 162 | FD2: ='Raw Data'!FR45 -> 166 | FE2: ='Raw Data'!FS45 -> 164 | FF2: ='Raw Data'!FT45 -> 164 | FG2: ='Raw Data'!FU45 -> 118 | FH2: ='Raw Data'!FV45 -> 89 | FI2: ='Raw Data'!FW45 -> 187 | FJ2: ='Raw Data'!FX45 -> 186 | FK2: ='Raw Data'!FY45 -> 219 | FL2: ='Raw Data'!FZ45 -> 188 | FM2: ='Raw Data'!GA45 -> 172 | FN2: ='Raw Data'!GB45 -> 189 | FO2: ='Raw Data'!GC45 -> 142 | FP2: ='Raw Data'!GD45 -> 176 | FQ2: ='Raw Data'!GE45 -> 135 | FR2: ='Raw Data'!GF45 -> 166 | FS2: ='Raw Data'!GG45 -> 119 | FT2: ='Raw Data'!GH45 -> 123 | FU2: ='Raw Data'!GI45 -> 184 | FV2: ='Raw Data'!GJ45 -> 189 | FW2: ='Raw Data'!GK45 -> 217 | FX2: ='Raw Data'!GL45 -> 190 | FY2: ='Raw Data'!GM45 -> 185 | FZ2: ='Raw Data'!GN45 -> 201 | GA2: ='Raw Data'!GO45 -> 162 | GB2: ='Raw Data'!GP45 -> 189 | GC2: ='Raw Data'!GQ45 -> 206 | GD2: ='Raw Data'!GR45 -> 174 | GE2: ='Raw Data'!GS45 -> 148 | GF2: ='Raw Data'!GT45 -> 146 | GG2: ='Raw Data'!GU45 -> 198 | GH2: ='Raw Data'!GV45 -> 154 | GI2: ='Raw Data'!GW45 -> 150 | GJ2: ='Raw Data'!GX45 -> 221 | GK2: ='Raw Data'!GY45 -> 396 | GL2: ='Raw Data'!GZ45 -> 322 | GM2: ='Raw Data'!HA45 -> 358 | GN2: ='Raw Data'!HB45 -> 372 | GO2: ='Raw Data'!HC45 -> 310 | GP2: ='Raw Data'!HD45 -> 316 | GQ2: ='Raw Data'!HE45 -> 263 | GR2: ='Raw Data'!HF45 -> 237 | GS2: ='Raw Data'!HG45 -> 377 | GT2: ='Raw Data'!HH45 -> 349 | GU2: ='Raw Data'!HI45 -> 337 | GV2: ='Raw Data'!HJ45 -> 326 | GW2: ='Raw Data'!HK45 -> 263 | GX2: ='Raw Data'!HL45 -> 234 | GY2: ='Raw Data'!HM45 -> 230 | GZ2: ='Raw Data'!HN45 -> 253 | HA2: ='Raw Data'!HO45 -> 267 | HB2: ='Raw Data'!HP45 -> 240 | HC2: ='Raw Data'!HQ45 -> 225 | HD2: ='Raw Data'!HR45 -> 182 | HE2: ='Raw Data'!HS45 -> 300 | HF2: ='Raw Data'!HT45 -> 265 | HG2: ='Raw Data'!HU45 -> 247 | HH2: ='Raw Data'!HV45 -> 235 | HI2: ='Raw Data'!HW45 -> 171 | HJ2: ='Raw Data'!HX45 -> 201 | HK2: ='Raw Data'!HY45 -> 179 | HL2: ='Raw Data'!HZ45 -> 161 | HM2: ='Raw Data'!IA45 -> 161 | HN2: ='Raw Data'!IB45 -> 131 | HO2: ='Raw Data'!IC45 -> 101 | HP2: ='Raw Data'!ID45 -> 137 | HQ2: ='Raw Data'!IE45 -> 193 | HR2: ='Raw Data'!IF45 -> 166 | HS2: ='Raw Data'!IG45 -> 184 | HT2: ='Raw Data'!IH45 -> 189 | HU2: ='Raw Data'!II45 -> 129 | HV2: ='Raw Data'!IJ45 -> 143 | HW2: ='Raw Data'!IK45 -> 167 | HX2: ='Raw Data'!IL45 -> 129 | HY2: ='Raw Data'!IM45 -> 137 | HZ2: ='Raw Data'!IN45 -> 116 | IA2: ='Raw Data'!IO45 -> 0 | IB2: ='Raw Data'!IP45 -> 0 | IC2: ='Raw Data'!IQ45 -> 0 | ID2: ='Raw Data'!IR45 -> 0 | IE2: ='Raw Data'!IS45 -> 0 | IF2: ='Raw Data'!IT45 -> 0 | IG2: ='Raw Data'!IU45 -> 0 | IH2: ='Raw Data'!IV45 -> 0 | II2: ='Raw Data'!IW45 -> 0 | IJ2: ='Raw Data'!IX45 -> 0 | IK2: ='Raw Data'!IY45 -> 0 | IL2: ='Raw Data'!IZ45 -> 0 | IM2: ='Raw Data'!JA45 -> 0 | IN2: ='Raw Data'!JB45 -> 0 | IO2: ='Raw Data'!JC45 -> 0 | IP2: ='Raw Data'!JD45 -> 0 | IQ2: ='Raw Data'!JE45 -> 0 | IR2: ='Raw Data'!JF45 -> 0 | IS2: ='Raw Data'!JG45 -> 0 | IT2: ='Raw Data'!JH45 -> 0 | IU2: ='Raw Data'!JI45 -> 0 | IV2: ='Raw Data'!JJ45 -> 0 | IW2: ='Raw Data'!JK45 -> 0 | IX2: ='Raw Data'!JL45 -> 0
A3: Total Sold Volume | B3: ='Raw Data'!P69 -> 0 | C3: ='Raw Data'!Q69 -> 0 | D3: ='Raw Data'!R69 -> 0 | E3: ='Raw Data'!S69 -> 0 | F3: ='Raw Data'!T69 -> 0 | G3: ='Raw Data'!U69 -> 0 | H3: ='Raw Data'!V69 -> 0 | I3: ='Raw Data'!W69 -> 0 | J3: ='Raw Data'!X69 -> 0 | K3: ='Raw Data'!Y69 -> 0 | L3: ='Raw Data'!Z69 -> 0 | M3: ='Raw Data'!AA69 -> 0 | N3: ='Raw Data'!AB69 -> 0 | O3: ='Raw Data'!AC69 -> 0 | P3: ='Raw Data'!AD69 -> 0 | Q3: ='Raw Data'!AE69 -> 0 | R3: ='Raw Data'!AF69 -> 0 | S3: ='Raw Data'!AG69 -> 47205399 | T3: ='Raw Data'!AH69 -> 42604901 | U3: ='Raw Data'!AI69 -> 34471262 | V3: ='Raw Data'!AJ69 -> 65265602 | W3: ='Raw Data'!AK69 -> 69520550 | X3: ='Raw Data'!AL69 -> 71410330 | Y3: ='Raw Data'!AM69 -> 39816189 | Z3: ='Raw Data'!AN69 -> 47717662 | AA3: ='Raw Data'!AO69 -> 39526640 | AB3: ='Raw Data'!AP69 -> 55853877 | AC3: ='Raw Data'!AQ69 -> 40503552 | AD3: ='Raw Data'!AR69 -> 44178183 | AE3: ='Raw Data'!AS69 -> 40466294 | AF3: ='Raw Data'!AT69 -> 46819475 | AG3: ='Raw Data'!AU69 -> 55710954 | AH3: ='Raw Data'!AV69 -> 62732539 | AI3: ='Raw Data'!AW69 -> 62448361 | AJ3: ='Raw Data'!AX69 -> 50109260 | AK3: ='Raw Data'!AY69 -> 59946824 | AL3: ='Raw Data'!AZ69 -> 45920200 | AM3: ='Raw Data'!BA69 -> 57090150 | AN3: ='Raw Data'!BB69 -> 46714300 | AO3: ='Raw Data'!BC69 -> 40503552 | AP3: ='Raw Data'!BD69 -> 39565039 | AQ3: ='Raw Data'!BE69 -> 29895912 | AR3: ='Raw Data'!BF69 -> 34091850 | AS3: ='Raw Data'!BG69 -> 38789750 | AT3: ='Raw Data'!BH69 -> 40704191 | AU3: ='Raw Data'!BI69 -> 47407365 | AV3: ='Raw Data'!BJ69 -> 44900829 | AW3: ='Raw Data'!BK69 -> 43655189 | AX3: ='Raw Data'!BL69 -> 40686545 | AY3: ='Raw Data'!BM69 -> 37749435 | AZ3: ='Raw Data'!BN69 -> 35297989 | BA3: ='Raw Data'!BO69 -> 30566326 | BB3: ='Raw Data'!BP69 -> 31291849 | BC3: ='Raw Data'!BQ69 -> 17389450 | BD3: ='Raw Data'!BR69 -> 25328675 | BE3: ='Raw Data'!BS69 -> 32464567 | BF3: ='Raw Data'!BT69 -> 32852000 | BG3: ='Raw Data'!BU69 -> 39288899 | BH3: ='Raw Data'!BV69 -> 45943450 | BI3: ='Raw Data'!BW69 -> 33608526 | BJ3: ='Raw Data'!BX69 -> 34830434 | BK3: ='Raw Data'!BY69 -> 35700844 | BL3: ='Raw Data'!BZ69 -> 38765085 | BM3: ='Raw Data'!CA69 -> 36754930 | BN3: ='Raw Data'!CB69 -> 42705700 | BO3: ='Raw Data'!CC69 -> 38818500 | BP3: ='Raw Data'!CD69 -> 28584449 | BQ3: ='Raw Data'!CE69 -> 42139213 | BR3: ='Raw Data'!CF69 -> 47052654 | BS3: ='Raw Data'!CG69 -> 56282280 | BT3: ='Raw Data'!CH69 -> 46474846 | BU3: ='Raw Data'!CI69 -> 38824552 | BV3: ='Raw Data'!CJ69 -> 33043860 | BW3: ='Raw Data'!CK69 -> 37634009 | BX3: ='Raw Data'!CL69 -> 39431307 | BY3: ='Raw Data'!CM69 -> 35531023 | BZ3: ='Raw Data'!CN69 -> 47323910 | CA3: ='Raw Data'!CO69 -> 31881469 | CB3: ='Raw Data'!CP69 -> 34630380 | CC3: ='Raw Data'!CQ69 -> 47885276 | CD3: ='Raw Data'!CR69 -> 51253523 | CE3: ='Raw Data'!CS69 -> 52702977 | CF3: ='Raw Data'!CT69 -> 51471051 | CG3: ='Raw Data'!CU69 -> 39291126 | CH3: ='Raw Data'!CV69 -> 30810405 | CI3: ='Raw Data'!CW69 -> 45425058 | CJ3: ='Raw Data'!CX69 -> 34305520 | CK3: ='Raw Data'!CY69 -> 23661088 | CL3: ='Raw Data'!CZ69 -> 39944789 | CM3: ='Raw Data'!DA69 -> 34849705 | CN3: ='Raw Data'!DB69 -> 37622376 | CO3: ='Raw Data'!DC69 -> 64782870 | CP3: ='Raw Data'!DD69 -> 44171441 | CQ3: ='Raw Data'!DE69 -> 56930290 | CR3: ='Raw Data'!DF69 -> 54067033 | CS3: ='Raw Data'!DG69 -> 40109155 | CT3: ='Raw Data'!DH69 -> 40622120 | CU3: ='Raw Data'!DI69 -> 42910709 | CV3: ='Raw Data'!DJ69 -> 48155487 | CW3: ='Raw Data'!DK69 -> 50105950 | CX3: ='Raw Data'!DL69 -> 46591321 | CY3: ='Raw Data'!DM69 -> 29025378 | CZ3: ='Raw Data'!DN69 -> 28634562 | DA3: ='Raw Data'!DO69 -> 51596237 | DB3: ='Raw Data'!DP69 -> 53703510 | DC3: ='Raw Data'!DQ69 -> 58312054 | DD3: ='Raw Data'!DR69 -> 55867599 | DE3: ='Raw Data'!DS69 -> 57774133 | DF3: ='Raw Data'!DT69 -> 44799538 | DG3: ='Raw Data'!DU69 -> 38887863 | DH3: ='Raw Data'!DV69 -> 43728710 | DI3: ='Raw Data'!DW69 -> 39376616 | DJ3: ='Raw Data'!DX69 -> 46505857 | DK3: ='Raw Data'!DY69 -> 41558956 | DL3: ='Raw Data'!DZ69 -> 30797923 | DM3: ='Raw Data'!EA69 -> 44973561 | DN3: ='Raw Data'!EB69 -> 64870853 | DO3: ='Raw Data'!EC69 -> 75392586 | DP3: ='Raw Data'!ED69 -> 54630189 | DQ3: ='Raw Data'!EE69 -> 42500893 | DR3: ='Raw Data'!EF69 -> 38587393 | DS3: ='Raw Data'!EG69 -> 47717101 | DT3: ='Raw Data'!EH69 -> 50919644 | DU3: ='Raw Data'!EI69 -> 48613801 | DV3: ='Raw Data'!EJ69 -> 61219467 | DW3: ='Raw Data'!EK69 -> 37825852 | DX3: ='Raw Data'!EL69 -> 36899888 | DY3: ='Raw Data'!EM69 -> 47172437 | DZ3: ='Raw Data'!EN69 -> 60797939 | EA3: ='Raw Data'!EO69 -> 67662469 | EB3: ='Raw Data'!EP69 -> 74699702 | EC3: ='Raw Data'!EQ69 -> 63168186 | ED3: ='Raw Data'!ER69 -> 51303745 | EE3: ='Raw Data'!ES69 -> 50863793 | EF3: ='Raw Data'!ET69 -> 48597661 | EG3: ='Raw Data'!EU69 -> 54310986 | EH3: ='Raw Data'!EV69 -> 56364805 | EI3: ='Raw Data'!EW69 -> 47379563 | EJ3: ='Raw Data'!EX69 -> 33437008 | EK3: ='Raw Data'!EY69 -> 52363972 | EL3: ='Raw Data'!EZ69 -> 58917871 | EM3: ='Raw Data'!FA69 -> 63408941 | EN3: ='Raw Data'!FB69 -> 71863377 | EO3: ='Raw Data'!FC69 -> 53939277 | EP3: ='Raw Data'!FD69 -> 55109188 | EQ3: ='Raw Data'!FE69 -> 55925776 | ER3: ='Raw Data'!FF69 -> 51278488 | ES3: ='Raw Data'!FG69 -> 51150392 | ET3: ='Raw Data'!FH69 -> 68382407 | EU3: ='Raw Data'!FI69 -> 46171775 | EV3: ='Raw Data'!FJ69 -> 49404971 | EW3: ='Raw Data'!FK69 -> 66557269 | EX3: ='Raw Data'!FL69 -> 72187652 | EY3: ='Raw Data'!FM69 -> 81978227 | EZ3: ='Raw Data'!FN69 -> 83911384 | FA3: ='Raw Data'!FO69 -> 53770962 | FB3: ='Raw Data'!FP69 -> 60870546 | FC3: ='Raw Data'!FQ69 -> 60920419 | FD3: ='Raw Data'!FR69 -> 57534728 | FE3: ='Raw Data'!FS69 -> 61423739 | FF3: ='Raw Data'!FT69 -> 71325400 | FG3: ='Raw Data'!FU69 -> 53806022 | FH3: ='Raw Data'!FV69 -> 37775593 | FI3: ='Raw Data'!FW69 -> 74855305 | FJ3: ='Raw Data'!FX69 -> 72701705 | FK3: ='Raw Data'!FY69 -> 95944777 | FL3: ='Raw Data'!FZ69 -> 77879484 | FM3: ='Raw Data'!GA69 -> 71991330 | FN3: ='Raw Data'!GB69 -> 70552463 | FO3: ='Raw Data'!GC69 -> 51055445 | FP3: ='Raw Data'!GD69 -> 68813556 | FQ3: ='Raw Data'!GE69 -> 53716537 | FR3: ='Raw Data'!GF69 -> 75011518 | FS3: ='Raw Data'!GG69 -> 47996645 | FT3: ='Raw Data'!GH69 -> 47520857 | FU3: ='Raw Data'!GI69 -> 73175948 | FV3: ='Raw Data'!GJ69 -> 77882329 | FW3: ='Raw Data'!GK69 -> 85644128 | FX3: ='Raw Data'!GL69 -> 77881539 | FY3: ='Raw Data'!GM69 -> 68405376 | FZ3: ='Raw Data'!GN69 -> 75137084 | GA3: ='Raw Data'!GO69 -> 66950.35 | GB3: ='Raw Data'!GP69 -> 75993539 | GC3: ='Raw Data'!GQ69 -> 90283404 | GD3: ='Raw Data'!GR69 -> 73319980 | GE3: ='Raw Data'!GS69 -> 59692538 | GF3: ='Raw Data'!GT69 -> 52783977 | GG3: ='Raw Data'!GU69 -> 86642322 | GH3: ='Raw Data'!GV69 -> 63917397 | GI3: ='Raw Data'!GW69 -> 60473571 | GJ3: ='Raw Data'!GX69 -> 87099309 | GK3: ='Raw Data'!GY69 -> 175725314 | GL3: ='Raw Data'!GZ69 -> 151135811 | GM3: ='Raw Data'!HA69 -> 175448586 | GN3: ='Raw Data'!HB69 -> 199247577 | GO3: ='Raw Data'!HC69 -> 173614022 | GP3: ='Raw Data'!HD69 -> 182162109 | GQ3: ='Raw Data'!HE69 -> 139019355 | GR3: ='Raw Data'!HF69 -> 125519815 | GS3: ='Raw Data'!HG69 -> 224932131 | GT3: ='Raw Data'!HH69 -> 210979465 | GU3: ='Raw Data'!HI69 -> 216393628 | GV3: ='Raw Data'!HJ69 -> 221039293 | GW3: ='Raw Data'!HK69 -> 165370385 | GX3: ='Raw Data'!HL69 -> 143034410 | GY3: ='Raw Data'!HM69 -> 142413206 | GZ3: ='Raw Data'!HN69 -> 168784558 | HA3: ='Raw Data'!HO69 -> 164928718 | HB3: ='Raw Data'!HP69 -> 167048527 | HC3: ='Raw Data'!HQ69 -> 163275539 | HD3: ='Raw Data'!HR69 -> 140682279 | HE3: ='Raw Data'!HS69 -> 222154531 | HF3: ='Raw Data'!HT69 -> 199253257 | HG3: ='Raw Data'!HU69 -> 189034064 | HH3: ='Raw Data'!HV69 -> 167309528 | HI3: ='Raw Data'!HW69 -> 131792618 | HJ3: ='Raw Data'!HX69 -> 123473834 | HK3: ='Raw Data'!HY69 -> 115771984 | HL3: ='Raw Data'!HZ69 -> 114476319 | HM3: ='Raw Data'!IA69 -> 101846155 | HN3: ='Raw Data'!IB69 -> 91030096 | HO3: ='Raw Data'!IC69 -> 72043087 | HP3: ='Raw Data'!ID69 -> 77678473 | HQ3: ='Raw Data'!IE69 -> 135010870 | HR3: ='Raw Data'!IF69 -> 105684431 | HS3: ='Raw Data'!IG69 -> 127769028 | HT3: ='Raw Data'!IH69 -> 141557759 | HU3: ='Raw Data'!II69 -> 77712888 | HV3: ='Raw Data'!IJ69 -> 93198603 | HW3: ='Raw Data'!IK69 -> 104817254 | HX3: ='Raw Data'!IL69 -> 93476165 | HY3: ='Raw Data'!IM69 -> 99346310 | HZ3: ='Raw Data'!IN69 -> 92035549 | IA3: ='Raw Data'!IO69 -> 0 | IB3: ='Raw Data'!IP69 -> 0 | IC3: ='Raw Data'!IQ69 -> 0 | ID3: ='Raw Data'!IR69 -> 0 | IE3: ='Raw Data'!IS69 -> 0 | IF3: ='Raw Data'!IT69 -> 0 | IG3: ='Raw Data'!IU69 -> 0 | IH3: ='Raw Data'!IV69 -> 0 | II3: ='Raw Data'!IW69 -> 0 | IJ3: ='Raw Data'!IX69 -> 0 | IK3: ='Raw Data'!IY69 -> 0 | IL3: ='Raw Data'!IZ69 -> 0 | IM3: ='Raw Data'!JA69 -> 0 | IN3: ='Raw Data'!JB69 -> 0 | IO3: ='Raw Data'!JC69 -> 0 | IP3: ='Raw Data'!JD69 -> 0 | IQ3: ='Raw Data'!JE69 -> 0 | IR3: ='Raw Data'!JF69 -> 0 | IS3: ='Raw Data'!JG69 -> 0 | IT3: ='Raw Data'!JH69 -> 0 | IU3: ='Raw Data'!JI69 -> 0 | IV3: ='Raw Data'!JJ69 -> 0 | IW3: ='Raw Data'!JK69 -> 0 | IX3: ='Raw Data'!JL69 -> 0
AS5: =AS1 -> 2008-03-03 | AT5: 2008-04-01 | AU5: 2008-05-01 | AV5: 2008-06-01 | AW5: 2008-07-01 | AX5: 2008-08-01 | AY5: 2008-09-01 | AZ5: 2008-10-08 | BA5: 2008-11-14 | BB5: 2008-12-21 | BC5: 2009-01-27 | BD5: 2009-02-09 | BE5: 2009-03-09 | BF5: 2009-04-09 | BG5: 2009-05-09 | BH5: 2009-06-09 | BI5: 2009-07-09 | BJ5: 2009-08-09 | BK5: 2009-09-09 | BL5: 2009-10-09 | BM5: 2009-11-09 | BN5: 2009-12-09 | BO5: 2010-01-09 | BP5: 2010-02-09 | BQ5: 2010-03-09 | BR5: 2010-04-09 | BS5: 2010-05-09 | BT5: 2010-06-09 | BU5: 2010-07-09 | BV5: 2010-08-09 | BW5: 2010-09-09 | BX5: 2010-10-09 | BY5: 2010-11-09 | BZ5: 2010-12-09 | CA5: 2011-01-09 | CB5: 2011-02-09 | CC5: 2011-03-09 | CD5: 2011-04-09 | CE5: 2011-05-09 | CF5: 2011-06-09 | CG5: 2011-07-09 | CH5: 2011-08-09 | CI5: 2011-09-09 | CJ5: 2011-10-09 | CK5: 2011-11-09 | CL5: 2011-12-09 | CM5: 2012-01-09 | CN5: 2012-02-09 | CO5: 2012-03-09 | CP5: 2012-04-09 | CQ5: 2012-05-09 | CR5: 2012-06-09 | CS5: 2012-07-09 | CT5: 2012-08-09 | CU5: 2012-09-09 | CV5: 2012-10-09 | CW5: 2012-11-09 | CX5: 2012-12-09 | CY5: 2013-01-09 | CZ5: 2013-02-09 | DA5: 2013-03-09 | DB5: 2013-04-09 | DC5: 2013-05-09 | DD5: 2013-06-09 | DE5: 2013-07-09 | DF5: 2013-08-09 | DG5: 2013-09-09 | DH5: 2013-10-09 | DI5: 2013-11-09 | DJ5: 2013-12-09 | DK5: 2014-01-09 | DL5: 2014-02-09 | DM5: 2014-03-09 | DN5: 2014-04-09 | DO5: 2014-05-09 | DP5: 2014-06-09 | DQ5: 2014-07-09 | DR5: 2014-08-09 | DS5: 2014-09-09 | DT5: 2014-10-09 | DU5: 2014-11-09 | DV5: 2014-12-09 | DW5: 2015-01-09 | DX5: 2015-02-09 | DY5: 2015-03-09 | DZ5: 2015-04-09 | EA5: 2015-05-09 | EB5: 2015-06-09 | EC5: 2015-07-09 | ED5: 2015-08-09 | EE5: 2015-09-09 | EF5: 2015-10-09 | EG5: 2015-11-09 | EH5: 2015-12-09 | EI5: 2016-01-09 | EJ5: 2016-02-09 | EK5: 2016-03-09 | EL5: 2016-04-09 | EM5: 2016-05-09 | EN5: 2016-06-09 | EO5: 2016-07-09 | EP5: 2016-08-09 | EQ5: 2016-09-09 | ER5: 2016-10-09 | ES5: 2016-11-09 | ET5: 2016-12-09 | EU5: 2017-01-09 | EV5: 2017-02-09 | EW5: 2017-03-09 | EX5: 2017-04-09 | EY5: 2017-05-09 | EZ5: 2017-06-09 | FA5: 2017-07-09 | FB5: 2017-08-09 | FC5: 2017-09-09 | FD5: 2017-10-09 | FE5: 2017-11-09 | FF5: 2017-12-09 | FG5: 2018-01-09 | FH5: 2018-02-09 | FI5: 2018-03-09 | FJ5: 2018-04-09 | FK5: 2018-05-09 | FL5: 2018-06-09 | FM5: 2018-07-09 | FN5: 2018-08-09 | FO5: 2018-09-09 | FP5: 2018-10-09 | FQ5: 2018-11-09 | FR5: 2018-12-09 | FS5: 2019-01-09 | FT5: 2019-02-09 | FU5: 2019-03-09 | FV5: 2019-04-09 | FW5: 2019-05-09 | FX5: 2019-06-09 | FY5: 2019-07-09 | FZ5: 2019-08-09 | GA5: 2019-09-09 | GB5: 2019-10-09 | GC5: 2019-11-09 | GD5: 2019-12-09 | GE5: 2020-01-09 | GF5: 2020-02-09 | GG5: 2020-03-09 | GH5: 2020-04-09 | GI5: 2020-05-09 | GJ5: 2020-06-09 | GK5: 2020-07-20 | GL5: 2020-08-20 | GM5: 2020-09-20 | GN5: 2020-10-20 | GO5: 2020-11-20 | GP5: 2020-12-20 | GQ5: 2021-01-20 | GR5: 2021-02-20 | GS5: 2021-03-20 | GT5: 2021-04-20 | GU5: 2021-05-20 | GV5: 2021-06-20 | GW5: 2021-07-20 | GX5: 2021-08-20 | GY5: 2021-09-20 | GZ5: 2021-10-20 | HA5: 2021-11-20 | HB5: 2021-12-20 | HC5: 2022-01-20 | HD5: 2022-02-20 | HE5: 2022-03-20 | HF5: 2022-04-20 | HG5: 2022-05-20 | HH5: 2022-06-20 | HI5: 2022-07-20 | HJ5: 2022-08-20 | HK5: 2022-09-20 | HL5: 2022-10-20 | HM5: 2022-11-20 | HN5: 2022-12-20 | HO5: 2023-01-20 | HP5: 2023-02-20 | HQ5: 2023-03-20 | HR5: 2023-04-20 | HS5: 2023-05-20 | HT5: 2023-06-20 | HU5: 2023-07-20 | HV5: 2023-08-20 | HW5: 2023-09-20 | HX5: 2023-10-20 | HY5: 2023-11-20 | HZ5: 2023-12-20 | IA5: 2024-01-20 | IB5: 2024-02-20 | IC5: 2024-03-20 | ID5: 2024-04-20 | IE5: 2024-05-20 | IF5: 2024-06-20 | IG5: 2024-07-20 | IH5: 2024-08-20 | II5: 2024-09-20 | IJ5: 2024-10-20 | IK5: 2024-11-20 | IL5: 2024-12-20 | IM5: 2025-01-20 | IN5: 2025-02-20 | IO5: 2025-03-20 | IP5: 2025-04-20 | IQ5: 2025-05-20 | IR5: 2025-06-20 | IS5: 2025-07-20 | IT5: 2025-08-20 | IU5: 2025-09-20 | IV5: 2025-10-20 | IW5: 2025-11-20 | IX5: 2025-12-20
A6: Average | AS6: ='Raw Data'!BG67 -> 302450 | AT6: ='Raw Data'!BH67 -> 391386 | AU6: ='Raw Data'!BI67 -> 438957 | AV6: ='Raw Data'!BJ67 -> 435930 | AW6: ='Raw Data'!BK67 -> 501898 | AX6: ='Raw Data'!BL67 -> 379874 | AY6: ='Raw Data'!BM67 -> 370092 | AZ6: ='Raw Data'!BN67 -> 387889 | BA6: ='Raw Data'!BO67 -> 396965 | BB6: ='Raw Data'!BP67 -> 444173 | BC6: ='Raw Data'!BQ67 -> 414034 | BD6: ='Raw Data'!BR67 -> 372480 | BE6: ='Raw Data'!BS67 -> 391139 | BF6: ='Raw Data'!BT67 -> 405580 | BG6: ='Raw Data'!BU67 -> 370649 | BH6: ='Raw Data'!BV67 -> 417667 | BI6: ='Raw Data'!BW67 -> 332757 | BJ6: ='Raw Data'!BX67 -> 355412 | BK6: ='Raw Data'!BY67 -> 280000 | BL6: ='Raw Data'!BZ67 -> 330000 | BM6: ='Raw Data'!CA67 -> 367549 | BN6: ='Raw Data'!CB67 -> 481398 | BO6: ='Raw Data'!CC67 -> 451377 | BP6: ='Raw Data'!CD67 -> 408349 | BQ6: ='Raw Data'!CE67 -> 386598 | BR6: ='Raw Data'!CF67 -> 283500 | BS6: ='Raw Data'!CG67 -> 385495 | BT6: ='Raw Data'!CH67 -> 365943 | BU6: ='Raw Data'!CI67 -> 331833 | BV6: ='Raw Data'!CJ67 -> 275450 | BW6: ='Raw Data'!CK67 -> 361865 | BX6: ='Raw Data'!CL67 -> 352065 | BY6: ='Raw Data'!CM67 -> 348343 | BZ6: ='Raw Data'!CN67 -> 378591 | CA6: ='Raw Data'!CO67 -> 388798 | CB6: ='Raw Data'!CP67 -> 407416 | CC6: ='Raw Data'!CQ67 -> 371203 | CD6: ='Raw Data'!CR67 -> 374113 | CE6: ='Raw Data'!CS67 -> 431991 | CF6: ='Raw Data'!CT67 -> 362472 | CG6: ='Raw Data'!CU67 -> 316863 | CH6: ='Raw Data'!CV67 -> 314391 | CI6: ='Raw Data'!CW67 -> 405580 | CJ6: ='Raw Data'!CX67 -> 317643 | CK6: ='Raw Data'!CY67 -> 333254 | CL6: ='Raw Data'!CZ67 -> 411801 | CM6: ='Raw Data'!DA67 -> 370741 | CN6: ='Raw Data'!DB67 -> 348355 | CO6: ='Raw Data'!DC67 -> 412362 | CP6: ='Raw Data'!DD67 -> 337186 | CQ6: ='Raw Data'!DE67 -> 349265 | CR6: ='Raw Data'!DF67 -> 378091 | CS6: ='Raw Data'!DG67 -> 378878 | CT6: ='Raw Data'!DH67 -> 327597 | CU6: ='Raw Data'!DI67 -> 295935 | CV6: ='Raw Data'!DJ67 -> 366492 | CW6: ='Raw Data'!DK67 -> 388418 | CX6: ='Raw Data'!DL67 -> 431401 | CY6: ='Raw Data'!DM67 -> 326127 | CZ6: ='Raw Data'!DN67 -> 314665 | DA6: ='Raw Data'!DO67 -> 379384 | DB6: ='Raw Data'!DP67 -> 319663 | DC6: ='Raw Data'!DQ67 -> 371414 | DD6: ='Raw Data'!DR67 -> 372450 | DE6: ='Raw Data'!DS67 -> 358845 | DF6: ='Raw Data'!DT67 -> 329408 | DG6: ='Raw Data'!DU67 -> 306203 | DH6: ='Raw Data'!DV67 -> 383585 | DI6: ='Raw Data'!DW67 -> 342405 | DJ6: ='Raw Data'!DX67 -> 372046 | DK6: ='Raw Data'!DY67 -> 392065 | DL6: ='Raw Data'!DZ67 -> 349976 | DM6: ='Raw Data'!EA67 -> 391074 | DN6: ='Raw Data'!EB67 -> 435374 | DO6: ='Raw Data'!EC67 -> 392669 | DP6: ='Raw Data'!ED67 -> 371633 | DQ6: ='Raw Data'!EE67 -> 351247 | DR6: ='Raw Data'!EF67 -> 303837 | DS6: ='Raw Data'!EG67 -> 343288 | DT6: ='Raw Data'!EH67 -> 361132 | DU6: ='Raw Data'!EI67 -> 342350 | DV6: ='Raw Data'!EJ67 -> 402759 | DW6: ='Raw Data'!EK67 -> 293223 | DX6: ='Raw Data'!EL67 -> 358251 | DY6: ='Raw Data'!EM67 -> 336945 | DZ6: ='Raw Data'!EN67 -> 397372 | EA6: ='Raw Data'!EO67 -> 340012 | EB6: ='Raw Data'!EP67 -> 403782 | EC6: ='Raw Data'!EQ67 -> 331603 | ED6: ='Raw Data'!ER67 -> 351395 | EE6: 300000 | EF6: ='Raw Data'!ET67 -> 309539 | EG6: ='Raw Data'!EU67 -> 379797 | EH6: ='Raw Data'!EV67 -> 380843 | EI6: ='Raw Data'!EW67 -> 426842 | EJ6: ='Raw Data'!EX67 -> 363445 | EK6: ='Raw Data'!EY67 -> 379449 | EL6: ='Raw Data'!EZ67 -> 372897 | EM6: ='Raw Data'!FA67 -> 362336 | EN6: ='Raw Data'!FB67 -> 388450 | EO6: ='Raw Data'!FC67 -> 347995 | EP6: ='Raw Data'!FD67 -> 346598 | EQ6: ='Raw Data'!FE67 -> 351734 | ER6: ='Raw Data'!FF67 -> 353644 | ES6: ='Raw Data'!FG67 -> 365359 | ET6: ='Raw Data'!FH67 -> 395274 | EU6: ='Raw Data'!FI67 -> 412247 | EV6: ='Raw Data'!FJ67 -> 385976 | EW6: ='Raw Data'!FK67 -> 369762 | EX6: ='Raw Data'!FL67 -> 401042 | EY6: ='Raw Data'!FM67 -> 403833 | EZ6: ='Raw Data'!FN67 -> 388478 | FA6: ='Raw Data'!FO67 -> 395374 | FB6: ='Raw Data'!FP67 -> 355968 | FC6: ='Raw Data'!FQ67 -> 376051 | FD6: ='Raw Data'!FR67 -> 346594 | FE6: ='Raw Data'!FS67 -> 374534 | FF6: ='Raw Data'!FT67 -> 434910 | FG6: ='Raw Data'!FU67 -> 351673 | FH6: ='Raw Data'!FV67 -> 424444 | FI6: ='Raw Data'!FW67 -> 400295 | FJ6: ='Raw Data'!FX67 -> 390869 | FK6: ='Raw Data'!FY67 -> 438104 | FL6: ='Raw Data'!FZ67 -> 414252 | FM6: ='Raw Data'!GA67 -> 418554 | FN6: ='Raw Data'!GB67 -> 373293 | FO6: ='Raw Data'!GC67 -> 359545 | FP6: ='Raw Data'!GD67 -> 390986 | FQ6: ='Raw Data'!GE67 -> 397900 | FR6: ='Raw Data'!GF67 -> 451876 | FS6: ='Raw Data'!GG67 -> 410227 | FT6: ='Raw Data'!GH67 -> 386500 | FU6: ='Raw Data'!GI67 -> 397695 | FV6: ='Raw Data'!GJ67 -> 412075 | FW6: ='Raw Data'!GK67 -> 394673 | FX6: ='Raw Data'!GL67 -> 409902 | FY6: ='Raw Data'!GM67 -> 369758 | FZ6: ='Raw Data'!GN67 -> 373816 | GA6: ='Raw Data'!GO67 -> 413273 | GB6: ='Raw Data'!GP67 -> 402082 | GC6: ='Raw Data'!GQ67 -> 438268 | GD6: ='Raw Data'!GR67 -> 421379 | GE6: ='Raw Data'!GS67 -> 406071 | GF6: ='Raw Data'!GT67 -> 371718 | GG6: ='Raw Data'!GU67 -> 435388 | GH6: ='Raw Data'!GV67 -> 415048 | GI6: ='Raw Data'!GW67 -> 405862 | GJ6: ='Raw Data'!GX67 -> 395114 | GK6: ='Raw Data'!GY67 -> 443748 | GL6: ='Raw Data'!GZ67 -> 475269 | GM6: ='Raw Data'!HA67 -> 490079 | GN6: ='Raw Data'!HB67 -> 535611 | GO6: ='Raw Data'!HC67 -> 567366 | GP6: ='Raw Data'!HD67 -> 578292 | GQ6: ='Raw Data'!HE67 -> 528590 | GR6: ='Raw Data'!HF67 -> 529619 | GS6: ='Raw Data'!HG67 -> 596636 | GT6: ='Raw Data'!HH67 -> 606262 | GU6: ='Raw Data'!HI67 -> 642117 | GV6: ='Raw Data'!HJ67 -> 688595 | GW6: ='Raw Data'!HK67 -> 628784 | GX6: ='Raw Data'!HL67 -> 611258 | GY6: ='Raw Data'!HM67 -> 619187 | GZ6: ='Raw Data'!HN67 -> 667132 | HA6: ='Raw Data'!HO67 -> 617710 | HB6: ='Raw Data'!HP67 -> 698947 | HC6: ='Raw Data'!HQ67 -> 725669 | HD6: ='Raw Data'!HR67 -> 772979 | HE6: ='Raw Data'!HS67 -> 740515 | HF6: ='Raw Data'!HT67 -> 751899 | HG6: ='Raw Data'!HU67 -> 765320 | HH6: ='Raw Data'!HV67 -> 711955 | HI6: ='Raw Data'!HW67 -> 712237 | HJ6: ='Raw Data'!HX67 -> 614297 | HK6: ='Raw Data'!HY67 -> 693245 | HL6: ='Raw Data'!HZ67 -> 711033 | HM6: ='Raw Data'!IA67 -> 632584 | HN6: ='Raw Data'!IB67 -> 694886 | HO6: ='Raw Data'!IC67 -> 713297 | HP6: ='Raw Data'!ID67 -> 566966 | HQ6: ='Raw Data'!IE67 -> 699538 | HR6: ='Raw Data'!IF67 -> 652373 | HS6: ='Raw Data'!IG67 -> 690943 | HT6: ='Raw Data'!IH67 -> 748942 | HU6: ='Raw Data'!II67 -> 616768 | HV6: ='Raw Data'!IJ67 -> 651738 | HW6: ='Raw Data'!IK67 -> 627648 | HX6: ='Raw Data'!IL67 -> 730282 | HY6: ='Raw Data'!IM67 -> 730487 | HZ6: ='Raw Data'!IN67 -> 793409 | IA6: ='Raw Data'!IO67 -> 0 | IB6: ='Raw Data'!IP67 -> 0 | IC6: ='Raw Data'!IQ67 -> 0 | ID6: ='Raw Data'!IR67 -> 0 | IE6: ='Raw Data'!IS67 -> 0 | IF6: ='Raw Data'!IT67 -> 0 | IG6: ='Raw Data'!IU67 -> 0 | IH6: ='Raw Data'!IV67 -> 0 | II6: ='Raw Data'!IW67 -> 0 | IJ6: ='Raw Data'!IX67 -> 0 | IK6: ='Raw Data'!IY67 -> 0 | IL6: ='Raw Data'!IZ67 -> 0 | IM6: ='Raw Data'!JA67 -> 0 | IN6: ='Raw Data'!JB67 -> 0 | IO6: ='Raw Data'!JC67 -> 0 | IP6: ='Raw Data'!JD67 -> 0 | IQ6: ='Raw Data'!JE67 -> 0 | IR6: ='Raw Data'!JF67 -> 0 | IS6: ='Raw Data'!JG67 -> 0 | IT6: ='Raw Data'!JH67 -> 0 | IU6: ='Raw Data'!JI67 -> 0 | IV6: ='Raw Data'!JJ67 -> 0 | IW6: ='Raw Data'!JK67 -> 0 | IX6: ='Raw Data'!JL67 -> 0
A7: Total Sold | AS7: ='Raw Data'!BG69 -> 38789750 | AT7: ='Raw Data'!BH69 -> 40704191 | AU7: ='Raw Data'!BI69 -> 47407365 | AV7: ='Raw Data'!BJ69 -> 44900829 | AW7: ='Raw Data'!BK69 -> 43655189 | AX7: ='Raw Data'!BL69 -> 40686545 | AY7: ='Raw Data'!BM69 -> 37749435 | AZ7: ='Raw Data'!BN69 -> 35297989 | BA7: ='Raw Data'!BO69 -> 30566326 | BB7: ='Raw Data'!BP69 -> 31291849 | BC7: ='Raw Data'!BQ69 -> 17389450 | BD7: ='Raw Data'!BR69 -> 25328675 | BE7: ='Raw Data'!BS69 -> 32464567 | BF7: ='Raw Data'!BT69 -> 32852000 | BG7: ='Raw Data'!BU69 -> 39288899 | BH7: ='Raw Data'!BV69 -> 45943450 | BI7: ='Raw Data'!BW69 -> 33608526 | BJ7: ='Raw Data'!BX69 -> 34830434 | BK7: ='Raw Data'!BY69 -> 35700844 | BL7: ='Raw Data'!BZ69 -> 38765085 | BM7: ='Raw Data'!CA69 -> 36754930 | BN7: ='Raw Data'!CB69 -> 42705700 | BO7: ='Raw Data'!CC69 -> 38818500 | BP7: ='Raw Data'!CD69 -> 28584449 | BQ7: ='Raw Data'!CE69 -> 42139213 | BR7: ='Raw Data'!CF69 -> 47052654 | BS7: ='Raw Data'!CG69 -> 56282280 | BT7: ='Raw Data'!CH69 -> 46474846 | BU7: ='Raw Data'!CI69 -> 38824552 | BV7: ='Raw Data'!CJ69 -> 33043860 | BW7: ='Raw Data'!CK69 -> 37634009 | BX7: ='Raw Data'!CL69 -> 39431307 | BY7: ='Raw Data'!CM69 -> 35531023 | BZ7: ='Raw Data'!CN69 -> 47323910 | CA7: ='Raw Data'!CO69 -> 31881469 | CB7: ='Raw Data'!CP69 -> 34630380 | CC7: ='Raw Data'!CQ69 -> 47885276 | CD7: ='Raw Data'!CR69 -> 51253523 | CE7: ='Raw Data'!CS69 -> 52702977 | CF7: ='Raw Data'!CT69 -> 51471051 | CG7: ='Raw Data'!CU69 -> 39291126 | CH7: ='Raw Data'!CV69 -> 30810405 | CI7: ='Raw Data'!CW69 -> 45425058 | CJ7: ='Raw Data'!CX69 -> 34305520 | CK7: ='Raw Data'!CY69 -> 23661088 | CL7: ='Raw Data'!CZ69 -> 39944789 | CM7: ='Raw Data'!DA69 -> 34849705 | CN7: ='Raw Data'!DB69 -> 37622376 | CO7: ='Raw Data'!DC69 -> 64782870 | CP7: ='Raw Data'!DD69 -> 44171441 | CQ7: ='Raw Data'!DE69 -> 56930290 | CR7: ='Raw Data'!DF69 -> 54067033 | CS7: ='Raw Data'!DG69 -> 40109155 | CT7: ='Raw Data'!DH69 -> 40622120 | CU7: ='Raw Data'!DI69 -> 42910709 | CV7: ='Raw Data'!DJ69 -> 48155487 | CW7: ='Raw Data'!DK69 -> 50105950 | CX7: ='Raw Data'!DL69 -> 46591321 | CY7: ='Raw Data'!DM69 -> 29025378 | CZ7: ='Raw Data'!DN69 -> 28634562 | DA7: ='Raw Data'!DO69 -> 51596237 | DB7: ='Raw Data'!DP69 -> 53703510 | DC7: ='Raw Data'!DQ69 -> 58312054 | DD7: ='Raw Data'!DR69 -> 55867599 | DE7: ='Raw Data'!DS69 -> 57774133 | DF7: ='Raw Data'!DT69 -> 44799538 | DG7: ='Raw Data'!DU69 -> 38887863 | DH7: ='Raw Data'!DV69 -> 43728710 | DI7: ='Raw Data'!DW69 -> 39376616 | DJ7: ='Raw Data'!DX69 -> 46505857 | DK7: ='Raw Data'!DY69 -> 41558956 | DL7: ='Raw Data'!DZ69 -> 30797923 | DM7: ='Raw Data'!EA69 -> 44973561 | DN7: ='Raw Data'!EB69 -> 64870853 | DO7: ='Raw Data'!EC69 -> 75392586 | DP7: ='Raw Data'!ED69 -> 54630189 | DQ7: ='Raw Data'!EE69 -> 42500893 | DR7: ='Raw Data'!EF69 -> 38587393 | DS7: ='Raw Data'!EG69 -> 47717101 | DT7: ='Raw Data'!EH69 -> 50919644 | DU7: ='Raw Data'!EI69 -> 48613801 | DV7: ='Raw Data'!EJ69 -> 61219467 | DW7: ='Raw Data'!EK69 -> 37825852 | DX7: ='Raw Data'!EL69 -> 36899888 | DY7: ='Raw Data'!EM69 -> 47172437 | DZ7: ='Raw Data'!EN69 -> 60797939 | EA7: ='Raw Data'!EO69 -> 67662469 | EB7: ='Raw Data'!EP69 -> 74699702 | EC7: ='Raw Data'!EQ69 -> 63168186 | ED7: ='Raw Data'!ER69 -> 51303745 | EE7: ='Raw Data'!ES69 -> 50863793 | EF7: ='Raw Data'!ET69 -> 48597661 | EG7: ='Raw Data'!EU69 -> 54310986 | EH7: ='Raw Data'!EV69 -> 56364805 | EI7: ='Raw Data'!EW69 -> 47379563 | EJ7: ='Raw Data'!EX69 -> 33437008 | EK7: ='Raw Data'!EY69 -> 52363972 | EL7: ='Raw Data'!EZ69 -> 58917871 | EM7: ='Raw Data'!FA69 -> 63408941 | EN7: ='Raw Data'!FB69 -> 71863377 | EO7: ='Raw Data'!FC69 -> 53939277 | EP7: ='Raw Data'!FD69 -> 55109188 | EQ7: ='Raw Data'!FE69 -> 55925776 | ER7: ='Raw Data'!FF69 -> 51278488 | ES7: ='Raw Data'!FG69 -> 51150392 | ET7: ='Raw Data'!FH69 -> 68382407 | EU7: ='Raw Data'!FI69 -> 46171775 | EV7: ='Raw Data'!FJ69 -> 49404971 | EW7: ='Raw Data'!FK69 -> 66557269 | EX7: ='Raw Data'!FL69 -> 72187652 | EY7: ='Raw Data'!FM69 -> 81978227 | EZ7: ='Raw Data'!FN69 -> 83911384 | FA7: ='Raw Data'!FO69 -> 53770962 | FB7: ='Raw Data'!FP69 -> 60870546 | FC7: ='Raw Data'!FQ69 -> 60920419 | FD7: ='Raw Data'!FR69 -> 57534728 | FE7: ='Raw Data'!FS69 -> 61423739 | FF7: ='Raw Data'!FT69 -> 71325400 | FG7: ='Raw Data'!FU69 -> 53806022 | FH7: ='Raw Data'!FV69 -> 37775593 | FI7: ='Raw Data'!FW69 -> 74855305 | FJ7: ='Raw Data'!FX69 -> 72701705 | FK7: ='Raw Data'!FY69 -> 95944777 | FL7: ='Raw Data'!FZ69 -> 77879484 | FM7: ='Raw Data'!GA69 -> 71991330 | FN7: ='Raw Data'!GB69 -> 70552463 | FO7: ='Raw Data'!GC69 -> 51055445 | FP7: ='Raw Data'!GD69 -> 68813556 | FQ7: ='Raw Data'!GE69 -> 53716537 | FR7: ='Raw Data'!GF69 -> 75011518 | FS7: ='Raw Data'!GG69 -> 47996645 | FT7: ='Raw Data'!GH69 -> 47520857 | FU7: ='Raw Data'!GI69 -> 73175948 | FV7: ='Raw Data'!GJ69 -> 77882329 | FW7: ='Raw Data'!GK69 -> 85644128 | FX7: ='Raw Data'!GL69 -> 77881539 | FY7: ='Raw Data'!GM69 -> 68405376 | FZ7: ='Raw Data'!GN69 -> 75137084 | GA7: ='Raw Data'!GO69 -> 66950.35 | GB7: ='Raw Data'!GP69 -> 75993539 | GC7: ='Raw Data'!GQ69 -> 90283404 | GD7: ='Raw Data'!GR69 -> 73319980 | GE7: ='Raw Data'!GS69 -> 59692538 | GF7: ='Raw Data'!GT69 -> 52783977 | GG7: ='Raw Data'!GU69 -> 86642322 | GH7: ='Raw Data'!GV69 -> 63917397 | GI7: ='Raw Data'!GW69 -> 60473571 | GJ7: ='Raw Data'!GX69 -> 87099309 | GK7: ='Raw Data'!GY69 -> 175725314 | GL7: ='Raw Data'!GZ69 -> 151135811 | GM7: ='Raw Data'!HA69 -> 175448586 | GN7: ='Raw Data'!HB69 -> 199247577 | GO7: ='Raw Data'!HC69 -> 173614022 | GP7: ='Raw Data'!HD69 -> 182162109 | GQ7: ='Raw Data'!HE69 -> 139019355 | GR7: ='Raw Data'!HF69 -> 125519815 | GS7: ='Raw Data'!HG69 -> 224932131 | GT7: ='Raw Data'!HH69 -> 210979465 | GU7: ='Raw Data'!HI69 -> 216393628 | GV7: ='Raw Data'!HJ69 -> 221039293 | GW7: ='Raw Data'!HK69 -> 165370385 | GX7: ='Raw Data'!HL69 -> 143034410 | GY7: ='Raw Data'!HM69 -> 142413206 | GZ7: ='Raw Data'!HN69 -> 168784558 | HA7: ='Raw Data'!HO69 -> 164928718 | HB7: ='Raw Data'!HP69 -> 167048527 | HC7: ='Raw Data'!HQ69 -> 163275539 | HD7: ='Raw Data'!HR69 -> 140682279 | HE7: ='Raw Data'!HS69 -> 222154531 | HF7: ='Raw Data'!HT69 -> 199253257 | HG7: ='Raw Data'!HU69 -> 189034064 | HH7: ='Raw Data'!HV69 -> 167309528 | HI7: ='Raw Data'!HW69 -> 131792618 | HJ7: ='Raw Data'!HX69 -> 123473834 | HK7: ='Raw Data'!HY69 -> 115771984 | HL7: ='Raw Data'!HZ69 -> 114476319 | HM7: ='Raw Data'!IA69 -> 101846155 | HN7: ='Raw Data'!IB69 -> 91030096 | HO7: ='Raw Data'!IC69 -> 72043087 | HP7: ='Raw Data'!ID69 -> 77678473 | HQ7: ='Raw Data'!IE69 -> 135010870 | HR7: ='Raw Data'!IF69 -> 105684431 | HS7: ='Raw Data'!IG69 -> 127769028 | HT7: ='Raw Data'!IH69 -> 141557759 | HU7: ='Raw Data'!II69 -> 77712888 | HV7: ='Raw Data'!IJ69 -> 93198603 | HW7: ='Raw Data'!IK69 -> 104817254 | HX7: ='Raw Data'!IL69 -> 93476165 | HY7: ='Raw Data'!IM69 -> 99346310 | HZ7: ='Raw Data'!IN69 -> 92035549 | IA7: ='Raw Data'!IO69 -> 0 | IB7: ='Raw Data'!IP69 -> 0 | IC7: ='Raw Data'!IQ69 -> 0 | ID7: ='Raw Data'!IR69 -> 0 | IE7: ='Raw Data'!IS69 -> 0 | IF7: ='Raw Data'!IT69 -> 0 | IG7: ='Raw Data'!IU69 -> 0 | IH7: ='Raw Data'!IV69 -> 0 | II7: ='Raw Data'!IW69 -> 0 | IJ7: ='Raw Data'!IX69 -> 0 | IK7: ='Raw Data'!IY69 -> 0 | IL7: ='Raw Data'!IZ69 -> 0 | IM7: ='Raw Data'!JA69 -> 0 | IN7: ='Raw Data'!JB69 -> 0 | IO7: ='Raw Data'!JC69 -> 0 | IP7: ='Raw Data'!JD69 -> 0 | IQ7: ='Raw Data'!JE69 -> 0 | IR7: ='Raw Data'!JF69 -> 0 | IS7: ='Raw Data'!JG69 -> 0 | IT7: ='Raw Data'!JH69 -> 0 | IU7: ='Raw Data'!JI69 -> 0 | IV7: ='Raw Data'!JJ69 -> 0 | IW7: ='Raw Data'!JK69 -> 0 | IX7: ='Raw Data'!JL69 -> 0
